{"text_format":"1","workbook":"xlsx","n_sheets":6,"sheets":["Anexo Cuantitativo","Anexo Cualitativo","Hoja2","SECRETARIASYPROYECTOS","Pbr's","Hoja1"],"not_rendered":{"charts":0,"images":2,"macros":1,"external_links":0,"defined_names":38,"comments":0,"pivot_tables":0},"unopened":[],"bounds":{"document_bytes":16777216,"sheet_cells":100000,"rows_first":2000,"rows_last":500,"rows_between":2000,"halvings":0,"cell_chars":16384,"cell_head_chars":4096},"cells_cut":0,"cells_raw":0,"read":"whole","date_system":"1900"}

{"sheet":"Anexo Cuantitativo","index":0,"n_rows":54,"n_cols":14,"rows_kept":54,"cut":false,"hidden":false,"merged":[[3,2,3,13],[10,5,11,5],[10,7,11,7],[10,4,11,4],[5,2,5,5],[4,2,4,5],[7,2,9,13],[6,2,6,5],[10,8,11,8],[10,6,11,6],[10,3,11,3],[10,2,11,2],[10,13,11,13],[6,9,6,11]]}
[]
[]
[]
[null,null,"ANEXO 3 AVANCE CUANTITATIVO"]
[null,null,"NOMBRE DE LA SECRETARIA: ",null,null,null,"OPD"]
[null,null,"NOMBRE DE LA DIRECCIÓN O JEFATURA: ",null,null,null,"IMMUJERES"]
[null,null,"TRIMESTRE REPORTADO:",null,null,null,"Del 1 de Abril al 30 de Junio del 2025",null,"Fecha de Elaboración:",{"$f":"TODAY()","v":"2025-07-16"}]
[null,null,"Registro de avances de PbR 2025"]
[]
[]
[null,null,null,"NOMBRE DE LA PROPUESTA","DIMENSIÓN A MEDIR (Eficiencia/Eficacia/  Economía/Calidad)","Nombre Indicador (Indicador Operativo)","UNIDAD DE MEDIDA ","LÍNEA BASE"," META ANUAL (ABSOLUTA)","AVANCE 1","AVANCE 2","AVANCE 3","AVANCE 4","AVANCE ACUMULADO EN PORCENTAJE"]
[null,null,null,null,null,null,null,null,null,"Primer Trimestre             (octubre-diciembre 2024)                        "," Segundo Trimestre           (enero-marzo 2025)                       ","Tercer Trimestre    (abril-junio 2025)                       "," Cuarto Trimestre (julio-septiembre 2025)                       "]
[null,null,1,{"$f":"IFERROR(VLOOKUP($G$5&$G$6&C13,'Pbr''s'!B:X,5,0),\" \")","v":"Enfoque Transversal con Perspectiva de Género"},{"$f":"IFERROR(VLOOKUP($G$5&$G$6&C13&D13,'Pbr''s'!A:X,15,0),\" \")","v":"Eficacia"},{"$f":"IFERROR(VLOOKUP($G$5&$G$6&C13&D13,'Pbr''s'!A:X,7,0),\" \")","v":"Porcentaje de acciones con perspectiva de Género reportadas."},{"$f":"IFERROR(VLOOKUP($G$5&$G$6&C13&D13,'Pbr''s'!A:X,8,0),\" \")","v":"Número de Acciones reportadas "},{"$f":"IFERROR(VLOOKUP($G$5&$G$6&C13&D13,'Pbr''s'!A:X,9,0),\" \")","v":30},{"$f":"IFERROR(VLOOKUP($G$5&$G$6&C13&D13,'Pbr''s'!A:X,10,0),\" \")","v":30},9,10,22,null,{"$f":"IFERROR(SUM(J13:M13)/I13,\" \")","v":1.3666666666666667}]
[null,null,{"$f":"C13+1","v":2},{"$f":"IFERROR(VLOOKUP($G$5&$G$6&C14,'Pbr''s'!B:X,5,0),\" \")","v":"Enfoque Transversal con Perspectiva de Género"},{"$f":"IFERROR(VLOOKUP($G$5&$G$6&C14&D14,'Pbr''s'!A:X,15,0),\" \")","v":"Eficacia"},{"$f":"IFERROR(VLOOKUP($G$5&$G$6&C14&D14,'Pbr''s'!A:X,7,0),\" \")","v":"Porcentaje de Instrumentos normativos y programaticos observados para incorporar la Perspectiva de Género. "},{"$f":"IFERROR(VLOOKUP($G$5&$G$6&C14&D14,'Pbr''s'!A:X,8,0),\" \")","v":"Número de Instrumentos incorporados "},{"$f":"IFERROR(VLOOKUP($G$5&$G$6&C14&D14,'Pbr''s'!A:X,9,0),\" \")","v":1},{"$f":"IFERROR(VLOOKUP($G$5&$G$6&C14&D14,'Pbr''s'!A:X,10,0),\" \")","v":3},{"$f":"IFERROR(VLOOKUP($G$5&$G$6&C14&D14,'Pbr''s'!A:X,16,0),\" \")","v":1},0,0,null,{"$f":"IFERROR(SUM(J14:M14)/I14,\" \")","v":0.33333333333333331}]
[null,null,{"$f":"C14+1","v":3},{"$f":"IFERROR(VLOOKUP($G$5&$G$6&C15,'Pbr''s'!B:X,5,0),\" \")","v":"Enfoque Transversal con Perspectiva de Género"},{"$f":"IFERROR(VLOOKUP($G$5&$G$6&C15&D15,'Pbr''s'!A:X,15,0),\" \")","v":"Eficacia"},{"$f":"IFERROR(VLOOKUP($G$5&$G$6&C15&D15,'Pbr''s'!A:X,7,0),\" \")","v":"Porcentaje de mujeres beneficiadas por incorporación de perspectiva de Género a los Anexos de planeación."},{"$f":"IFERROR(VLOOKUP($G$5&$G$6&C15&D15,'Pbr''s'!A:X,8,0),\" \")","v":"Número de mujeres beneficiadas"},{"$f":"IFERROR(VLOOKUP($G$5&$G$6&C15&D15,'Pbr''s'!A:X,9,0),\" \")","v":1500},{"$f":"IFERROR(VLOOKUP($G$5&$G$6&C15&D15,'Pbr''s'!A:X,10,0),\" \")","v":2000},128,1337,713,null,1.089]
[null,null,4,{"$f":"IFERROR(VLOOKUP($G$5&$G$6&C16,'Pbr''s'!B:X,5,0),\" \")","v":"Libres por la igualdad"},{"$f":"IFERROR(VLOOKUP($G$5&$G$6&C16&D16,'Pbr''s'!A:X,15,0),\" \")","v":"Eficacia"},{"$f":"IFERROR(VLOOKUP($G$5&$G$6&C16&D16,'Pbr''s'!A:X,7,0),\" \")","v":"Porcentaje de personas beneficiadas por las acciones de promoción"},{"$f":"IFERROR(VLOOKUP($G$5&$G$6&C16&D16,'Pbr''s'!A:X,8,0),\" \")","v":"Número de personas beneficiadas "},{"$f":"IFERROR(VLOOKUP($G$5&$G$6&C16&D16,'Pbr''s'!A:X,9,0),\" \")","v":1500},{"$f":"IFERROR(VLOOKUP($G$5&$G$6&C16&D16,'Pbr''s'!A:X,10,0),\" \")","v":2000},200,1097,1041,null,1.169]
[null,null,5,{"$f":"IFERROR(VLOOKUP($G$5&$G$6&C17,'Pbr''s'!B:X,5,0),\" \")","v":"Libres por la igualdad"},{"$f":"IFERROR(VLOOKUP($G$5&$G$6&C17&D17,'Pbr''s'!A:X,15,0),\" \")","v":"Eficacia"},{"$f":"IFERROR(VLOOKUP($G$5&$G$6&C17&D17,'Pbr''s'!A:X,7,0),\" \")","v":"Porcentaje de Eventos conmemorativos para promover y reconocer los derechos de las mujeres en su diversidad, realizados"},{"$f":"IFERROR(VLOOKUP($G$5&$G$6&C17&D17,'Pbr''s'!A:X,8,0),\" \")","v":"Número de Eventos realizados  "},{"$f":"IFERROR(VLOOKUP($G$5&$G$6&C17&D17,'Pbr''s'!A:X,9,0),\" \")","v":1},{"$f":"IFERROR(VLOOKUP($G$5&$G$6&C17&D17,'Pbr''s'!A:X,10,0),\" \")","v":1},0,1,0,null,1]
[null,null,6,{"$f":"IFERROR(VLOOKUP($G$5&$G$6&C18,'Pbr''s'!B:X,5,0),\" \")","v":"Vivir sin violencia"},{"$f":"IFERROR(VLOOKUP($G$5&$G$6&C18&D18,'Pbr''s'!A:X,15,0),\" \")","v":0},{"$f":"IFERROR(VLOOKUP($G$5&$G$6&C18&D18,'Pbr''s'!A:X,7,0),\" \")","v":"Porcentaje de atenciones de primer contacto, realizadas"},{"$f":"IFERROR(VLOOKUP($G$5&$G$6&C18&D18,'Pbr''s'!A:X,8,0),\" \")","v":"Número de atenciones realizadas"},{"$f":"IFERROR(VLOOKUP($G$5&$G$6&C18&D18,'Pbr''s'!A:X,9,0),\" \")","v":425},{"$f":"IFERROR(VLOOKUP($G$5&$G$6&C18&D18,'Pbr''s'!A:X,10,0),\" \")","v":430},159,98,108,null,0.84883720930232553]
[null,null,{"$f":"C18+1","v":7},{"$f":"IFERROR(VLOOKUP($G$5&$G$6&C19,'Pbr''s'!B:X,5,0),\" \")","v":"Vivir sin violencia"},{"$f":"IFERROR(VLOOKUP($G$5&$G$6&C19&D19,'Pbr''s'!A:X,15,0),\" \")","v":"Eficacia"},{"$f":"IFERROR(VLOOKUP($G$5&$G$6&C19&D19,'Pbr''s'!A:X,7,0),\" \")","v":"Porcentaje de acciones de prevención de la violencia de género en la comunidad, realizadas  "},{"$f":"IFERROR(VLOOKUP($G$5&$G$6&C19&D19,'Pbr''s'!A:X,8,0),\" \")","v":"Número de acciones realizadas"},{"$f":"IFERROR(VLOOKUP($G$5&$G$6&C19&D19,'Pbr''s'!A:X,9,0),\" \")","v":30},{"$f":"IFERROR(VLOOKUP($G$5&$G$6&C19&D19,'Pbr''s'!A:X,10,0),\" \")","v":40},{"$f":"IFERROR(VLOOKUP($G$5&$G$6&C19&D19,'Pbr''s'!A:X,16,0),\" \")","v":10},6,12,null,{"$f":"IFERROR(SUM(J19:M19)/I19,\" \")","v":0.7}]
[null,null,8,{"$f":"IFERROR(VLOOKUP($G$5&$G$6&C20,'Pbr''s'!B:X,5,0),\" \")","v":"Vivir sin violencia"},{"$f":"IFERROR(VLOOKUP($G$5&$G$6&C20&D20,'Pbr''s'!A:X,15,0),\" \")","v":"Eficacia"},{"$f":"IFERROR(VLOOKUP($G$5&$G$6&C20&D20,'Pbr''s'!A:X,7,0),\" \")","v":"Porcentaje de personas beneficiadas con las acciones de prevención, atención y profesionalización en materia de violencia contra las mujeres."},{"$f":"IFERROR(VLOOKUP($G$5&$G$6&C20&D20,'Pbr''s'!A:X,8,0),\" \")","v":"Número de personas beneficiarias"},{"$f":"IFERROR(VLOOKUP($G$5&$G$6&C20&D20,'Pbr''s'!A:X,9,0),\" \")","v":1500},{"$f":"IFERROR(VLOOKUP($G$5&$G$6&C20&D20,'Pbr''s'!A:X,10,0),\" \")","v":1500},457,358,293,null,0.73866666666666669]
[null,null,9,{"$f":"IFERROR(VLOOKUP($G$5&$G$6&C21,'Pbr''s'!B:X,5,0),\" \")","v":"Vivir sin violencia"},{"$f":"IFERROR(VLOOKUP($G$5&$G$6&C21&D21,'Pbr''s'!A:X,15,0),\" \")","v":"Eficacia"},{"$f":"IFERROR(VLOOKUP($G$5&$G$6&C21&D21,'Pbr''s'!A:X,7,0),\" \")","v":"Porcentaje de eventos conmemorativos de fechas o acciones contra la violencia de género, realizados "},{"$f":"IFERROR(VLOOKUP($G$5&$G$6&C21&D21,'Pbr''s'!A:X,8,0),\" \")","v":"Número de eventos realizados"},{"$f":"IFERROR(VLOOKUP($G$5&$G$6&C21&D21,'Pbr''s'!A:X,9,0),\" \")","v":1},{"$f":"IFERROR(VLOOKUP($G$5&$G$6&C21&D21,'Pbr''s'!A:X,10,0),\" \")","v":1},{"$f":"IFERROR(VLOOKUP($G$5&$G$6&C21&D21,'Pbr''s'!A:X,16,0),\" \")","v":1},0,0,null,1]
[null,null,10,{"$f":"IFERROR(VLOOKUP($G$5&$G$6&C22,'Pbr''s'!B:X,5,0),\" \")","v":" "},{"$f":"IFERROR(VLOOKUP($G$5&$G$6&C22&D22,'Pbr''s'!A:X,15,0),\" \")","v":" "},{"$f":"IFERROR(VLOOKUP($G$5&$G$6&C22&D22,'Pbr''s'!A:X,7,0),\" \")","v":" "},{"$f":"IFERROR(VLOOKUP($G$5&$G$6&C22&D22,'Pbr''s'!A:X,8,0),\" \")","v":" "},{"$f":"IFERROR(VLOOKUP($G$5&$G$6&C22&D22,'Pbr''s'!A:X,9,0),\" \")","v":" "},{"$f":"IFERROR(VLOOKUP($G$5&$G$6&C22&D22,'Pbr''s'!A:X,10,0),\" \")","v":" "},{"$f":"IFERROR(VLOOKUP($G$5&$G$6&C22&D22,'Pbr''s'!A:X,16,0),\" \")","v":" "},null,null,null," "]
[null,null,11,{"$f":"IFERROR(VLOOKUP($G$5&$G$6&C23,'Pbr''s'!B:X,5,0),\" \")","v":" "},{"$f":"IFERROR(VLOOKUP($G$5&$G$6&C23&D23,'Pbr''s'!A:X,15,0),\" \")","v":" "},{"$f":"IFERROR(VLOOKUP($G$5&$G$6&C23&D23,'Pbr''s'!A:X,7,0),\" \")","v":" "},{"$f":"IFERROR(VLOOKUP($G$5&$G$6&C23&D23,'Pbr''s'!A:X,8,0),\" \")","v":" "},{"$f":"IFERROR(VLOOKUP($G$5&$G$6&C23&D23,'Pbr''s'!A:X,9,0),\" \")","v":" "},{"$f":"IFERROR(VLOOKUP($G$5&$G$6&C23&D23,'Pbr''s'!A:X,10,0),\" \")","v":" "},{"$f":"IFERROR(VLOOKUP($G$5&$G$6&C23&D23,'Pbr''s'!A:X,16,0),\" \")","v":" "},null,null,null," "]
[null,null,12,{"$f":"IFERROR(VLOOKUP($G$5&$G$6&C24,'Pbr''s'!B:X,5,0),\" \")","v":" "},{"$f":"IFERROR(VLOOKUP($G$5&$G$6&C24&D24,'Pbr''s'!A:X,15,0),\" \")","v":" "},{"$f":"IFERROR(VLOOKUP($G$5&$G$6&C24&D24,'Pbr''s'!A:X,7,0),\" \")","v":" "},{"$f":"IFERROR(VLOOKUP($G$5&$G$6&C24&D24,'Pbr''s'!A:X,8,0),\" \")","v":" "},{"$f":"IFERROR(VLOOKUP($G$5&$G$6&C24&D24,'Pbr''s'!A:X,9,0),\" \")","v":" "},{"$f":"IFERROR(VLOOKUP($G$5&$G$6&C24&D24,'Pbr''s'!A:X,10,0),\" \")","v":" "},{"$f":"IFERROR(VLOOKUP($G$5&$G$6&C24&D24,'Pbr''s'!A:X,16,0),\" \")","v":" "},null,null,null," "]
[null,null,13,{"$f":"IFERROR(VLOOKUP($G$5&$G$6&C25,'Pbr''s'!B:X,5,0),\" \")","v":" "},{"$f":"IFERROR(VLOOKUP($G$5&$G$6&C25&D25,'Pbr''s'!A:X,15,0),\" \")","v":" "},{"$f":"IFERROR(VLOOKUP($G$5&$G$6&C25&D25,'Pbr''s'!A:X,7,0),\" \")","v":" "},{"$f":"IFERROR(VLOOKUP($G$5&$G$6&C25&D25,'Pbr''s'!A:X,8,0),\" \")","v":" "},{"$f":"IFERROR(VLOOKUP($G$5&$G$6&C25&D25,'Pbr''s'!A:X,9,0),\" \")","v":" "},{"$f":"IFERROR(VLOOKUP($G$5&$G$6&C25&D25,'Pbr''s'!A:X,10,0),\" \")","v":" "},{"$f":"IFERROR(VLOOKUP($G$5&$G$6&C25&D25,'Pbr''s'!A:X,16,0),\" \")","v":" "},null,null,null," "]
[null,null,14,{"$f":"IFERROR(VLOOKUP($G$5&$G$6&C26,'Pbr''s'!B:X,5,0),\" \")","v":" "},{"$f":"IFERROR(VLOOKUP($G$5&$G$6&C26&D26,'Pbr''s'!A:X,15,0),\" \")","v":" "},{"$f":"IFERROR(VLOOKUP($G$5&$G$6&C26&D26,'Pbr''s'!A:X,7,0),\" \")","v":" "},{"$f":"IFERROR(VLOOKUP($G$5&$G$6&C26&D26,'Pbr''s'!A:X,8,0),\" \")","v":" "},{"$f":"IFERROR(VLOOKUP($G$5&$G$6&C26&D26,'Pbr''s'!A:X,9,0),\" \")","v":" "},{"$f":"IFERROR(VLOOKUP($G$5&$G$6&C26&D26,'Pbr''s'!A:X,10,0),\" \")","v":" "},{"$f":"IFERROR(VLOOKUP($G$5&$G$6&C26&D26,'Pbr''s'!A:X,16,0),\" \")","v":" "},null,null,null," "]
[null,null,15,{"$f":"IFERROR(VLOOKUP($G$5&$G$6&C27,'Pbr''s'!B:X,5,0),\" \")","v":" "},{"$f":"IFERROR(VLOOKUP($G$5&$G$6&C27&D27,'Pbr''s'!A:X,15,0),\" \")","v":" "},{"$f":"IFERROR(VLOOKUP($G$5&$G$6&C27&D27,'Pbr''s'!A:X,7,0),\" \")","v":" "},{"$f":"IFERROR(VLOOKUP($G$5&$G$6&C27&D27,'Pbr''s'!A:X,8,0),\" \")","v":" "},{"$f":"IFERROR(VLOOKUP($G$5&$G$6&C27&D27,'Pbr''s'!A:X,9,0),\" \")","v":" "},{"$f":"IFERROR(VLOOKUP($G$5&$G$6&C27&D27,'Pbr''s'!A:X,10,0),\" \")","v":" "},{"$f":"IFERROR(VLOOKUP($G$5&$G$6&C27&D27,'Pbr''s'!A:X,16,0),\" \")","v":" "},null,null,null," "]
[null,null,16,{"$f":"IFERROR(VLOOKUP($G$5&$G$6&C28,'Pbr''s'!B:X,5,0),\" \")","v":" "},{"$f":"IFERROR(VLOOKUP($G$5&$G$6&C28&D28,'Pbr''s'!A:X,15,0),\" \")","v":" "},{"$f":"IFERROR(VLOOKUP($G$5&$G$6&C28&D28,'Pbr''s'!A:X,7,0),\" \")","v":" "},{"$f":"IFERROR(VLOOKUP($G$5&$G$6&C28&D28,'Pbr''s'!A:X,8,0),\" \")","v":" "},{"$f":"IFERROR(VLOOKUP($G$5&$G$6&C28&D28,'Pbr''s'!A:X,9,0),\" \")","v":" "},{"$f":"IFERROR(VLOOKUP($G$5&$G$6&C28&D28,'Pbr''s'!A:X,10,0),\" \")","v":" "},{"$f":"IFERROR(VLOOKUP($G$5&$G$6&C28&D28,'Pbr''s'!A:X,16,0),\" \")","v":" "},null,null,null," "]
[null,null,17,{"$f":"IFERROR(VLOOKUP($G$5&$G$6&C29,'Pbr''s'!B:X,5,0),\" \")","v":" "},{"$f":"IFERROR(VLOOKUP($G$5&$G$6&C29&D29,'Pbr''s'!A:X,15,0),\" \")","v":" "},{"$f":"IFERROR(VLOOKUP($G$5&$G$6&C29&D29,'Pbr''s'!A:X,7,0),\" \")","v":" "},{"$f":"IFERROR(VLOOKUP($G$5&$G$6&C29&D29,'Pbr''s'!A:X,8,0),\" \")","v":" "},{"$f":"IFERROR(VLOOKUP($G$5&$G$6&C29&D29,'Pbr''s'!A:X,9,0),\" \")","v":" "},{"$f":"IFERROR(VLOOKUP($G$5&$G$6&C29&D29,'Pbr''s'!A:X,10,0),\" \")","v":" "},{"$f":"IFERROR(VLOOKUP($G$5&$G$6&C29&D29,'Pbr''s'!A:X,16,0),\" \")","v":" "},null,null,null," "]
[null,null,18,{"$f":"IFERROR(VLOOKUP($G$5&$G$6&C30,'Pbr''s'!B:X,5,0),\" \")","v":" "},{"$f":"IFERROR(VLOOKUP($G$5&$G$6&C30&D30,'Pbr''s'!A:X,15,0),\" \")","v":" "},{"$f":"IFERROR(VLOOKUP($G$5&$G$6&C30&D30,'Pbr''s'!A:X,7,0),\" \")","v":" "},{"$f":"IFERROR(VLOOKUP($G$5&$G$6&C30&D30,'Pbr''s'!A:X,8,0),\" \")","v":" "},{"$f":"IFERROR(VLOOKUP($G$5&$G$6&C30&D30,'Pbr''s'!A:X,9,0),\" \")","v":" "},{"$f":"IFERROR(VLOOKUP($G$5&$G$6&C30&D30,'Pbr''s'!A:X,10,0),\" \")","v":" "},{"$f":"IFERROR(VLOOKUP($G$5&$G$6&C30&D30,'Pbr''s'!A:X,16,0),\" \")","v":" "},null,null,null," "]
[null,null,19,{"$f":"IFERROR(VLOOKUP($G$5&$G$6&C31,'Pbr''s'!B:X,5,0),\" \")","v":" "},{"$f":"IFERROR(VLOOKUP($G$5&$G$6&C31&D31,'Pbr''s'!A:X,15,0),\" \")","v":" "},{"$f":"IFERROR(VLOOKUP($G$5&$G$6&C31&D31,'Pbr''s'!A:X,7,0),\" \")","v":" "},{"$f":"IFERROR(VLOOKUP($G$5&$G$6&C31&D31,'Pbr''s'!A:X,8,0),\" \")","v":" "},{"$f":"IFERROR(VLOOKUP($G$5&$G$6&C31&D31,'Pbr''s'!A:X,9,0),\" \")","v":" "},{"$f":"IFERROR(VLOOKUP($G$5&$G$6&C31&D31,'Pbr''s'!A:X,10,0),\" \")","v":" "},{"$f":"IFERROR(VLOOKUP($G$5&$G$6&C31&D31,'Pbr''s'!A:X,16,0),\" \")","v":" "},null,null,null," "]
[null,null,20,{"$f":"IFERROR(VLOOKUP($G$5&$G$6&C32,'Pbr''s'!B:X,5,0),\" \")","v":" "},{"$f":"IFERROR(VLOOKUP($G$5&$G$6&C32&D32,'Pbr''s'!A:X,15,0),\" \")","v":" "},{"$f":"IFERROR(VLOOKUP($G$5&$G$6&C32&D32,'Pbr''s'!A:X,7,0),\" \")","v":" "},{"$f":"IFERROR(VLOOKUP($G$5&$G$6&C32&D32,'Pbr''s'!A:X,8,0),\" \")","v":" "},{"$f":"IFERROR(VLOOKUP($G$5&$G$6&C32&D32,'Pbr''s'!A:X,9,0),\" \")","v":" "},{"$f":"IFERROR(VLOOKUP($G$5&$G$6&C32&D32,'Pbr''s'!A:X,10,0),\" \")","v":" "},{"$f":"IFERROR(VLOOKUP($G$5&$G$6&C32&D32,'Pbr''s'!A:X,16,0),\" \")","v":" "},null,null,null," "]
[null,null,21,{"$f":"IFERROR(VLOOKUP($G$5&$G$6&C33,'Pbr''s'!B:X,5,0),\" \")","v":" "},{"$f":"IFERROR(VLOOKUP($G$5&$G$6&C33&D33,'Pbr''s'!A:X,15,0),\" \")","v":" "},{"$f":"IFERROR(VLOOKUP($G$5&$G$6&C33&D33,'Pbr''s'!A:X,7,0),\" \")","v":" "},{"$f":"IFERROR(VLOOKUP($G$5&$G$6&C33&D33,'Pbr''s'!A:X,8,0),\" \")","v":" "},{"$f":"IFERROR(VLOOKUP($G$5&$G$6&C33&D33,'Pbr''s'!A:X,9,0),\" \")","v":" "},{"$f":"IFERROR(VLOOKUP($G$5&$G$6&C33&D33,'Pbr''s'!A:X,10,0),\" \")","v":" "},{"$f":"IFERROR(VLOOKUP($G$5&$G$6&C33&D33,'Pbr''s'!A:X,16,0),\" \")","v":" "},null,null,null," "]
[null,null,22,{"$f":"IFERROR(VLOOKUP($G$5&$G$6&C34,'Pbr''s'!B:X,5,0),\" \")","v":" "},{"$f":"IFERROR(VLOOKUP($G$5&$G$6&C34&D34,'Pbr''s'!A:X,15,0),\" \")","v":" "},{"$f":"IFERROR(VLOOKUP($G$5&$G$6&C34&D34,'Pbr''s'!A:X,7,0),\" \")","v":" "},{"$f":"IFERROR(VLOOKUP($G$5&$G$6&C34&D34,'Pbr''s'!A:X,8,0),\" \")","v":" "},{"$f":"IFERROR(VLOOKUP($G$5&$G$6&C34&D34,'Pbr''s'!A:X,9,0),\" \")","v":" "},{"$f":"IFERROR(VLOOKUP($G$5&$G$6&C34&D34,'Pbr''s'!A:X,10,0),\" \")","v":" "},{"$f":"IFERROR(VLOOKUP($G$5&$G$6&C34&D34,'Pbr''s'!A:X,16,0),\" \")","v":" "},null,null,null," "]
[null,null,23,{"$f":"IFERROR(VLOOKUP($G$5&$G$6&C35,'Pbr''s'!B:X,5,0),\" \")","v":" "},{"$f":"IFERROR(VLOOKUP($G$5&$G$6&C35&D35,'Pbr''s'!A:X,15,0),\" \")","v":" "},{"$f":"IFERROR(VLOOKUP($G$5&$G$6&C35&D35,'Pbr''s'!A:X,7,0),\" \")","v":" "},{"$f":"IFERROR(VLOOKUP($G$5&$G$6&C35&D35,'Pbr''s'!A:X,8,0),\" \")","v":" "},{"$f":"IFERROR(VLOOKUP($G$5&$G$6&C35&D35,'Pbr''s'!A:X,9,0),\" \")","v":" "},{"$f":"IFERROR(VLOOKUP($G$5&$G$6&C35&D35,'Pbr''s'!A:X,10,0),\" \")","v":" "},{"$f":"IFERROR(VLOOKUP($G$5&$G$6&C35&D35,'Pbr''s'!A:X,16,0),\" \")","v":" "},null,null,null," "]
[null,null,24,{"$f":"IFERROR(VLOOKUP($G$5&$G$6&C36,'Pbr''s'!B:X,5,0),\" \")","v":" "},{"$f":"IFERROR(VLOOKUP($G$5&$G$6&C36&D36,'Pbr''s'!A:X,15,0),\" \")","v":" "},{"$f":"IFERROR(VLOOKUP($G$5&$G$6&C36&D36,'Pbr''s'!A:X,7,0),\" \")","v":" "},{"$f":"IFERROR(VLOOKUP($G$5&$G$6&C36&D36,'Pbr''s'!A:X,8,0),\" \")","v":" "},{"$f":"IFERROR(VLOOKUP($G$5&$G$6&C36&D36,'Pbr''s'!A:X,9,0),\" \")","v":" "},{"$f":"IFERROR(VLOOKUP($G$5&$G$6&C36&D36,'Pbr''s'!A:X,10,0),\" \")","v":" "},{"$f":"IFERROR(VLOOKUP($G$5&$G$6&C36&D36,'Pbr''s'!A:X,16,0),\" \")","v":" "},null,null,null," "]
[null,null,25,{"$f":"IFERROR(VLOOKUP($G$5&$G$6&C37,'Pbr''s'!B:X,5,0),\" \")","v":" "},{"$f":"IFERROR(VLOOKUP($G$5&$G$6&C37&D37,'Pbr''s'!A:X,15,0),\" \")","v":" "},{"$f":"IFERROR(VLOOKUP($G$5&$G$6&C37&D37,'Pbr''s'!A:X,7,0),\" \")","v":" "},{"$f":"IFERROR(VLOOKUP($G$5&$G$6&C37&D37,'Pbr''s'!A:X,8,0),\" \")","v":" "},{"$f":"IFERROR(VLOOKUP($G$5&$G$6&C37&D37,'Pbr''s'!A:X,9,0),\" \")","v":" "},{"$f":"IFERROR(VLOOKUP($G$5&$G$6&C37&D37,'Pbr''s'!A:X,10,0),\" \")","v":" "},{"$f":"IFERROR(VLOOKUP($G$5&$G$6&C37&D37,'Pbr''s'!A:X,16,0),\" \")","v":" "},null,null,null," "]
[null,null,26,{"$f":"IFERROR(VLOOKUP($G$5&$G$6&C38,'Pbr''s'!B:X,5,0),\" \")","v":" "},{"$f":"IFERROR(VLOOKUP($G$5&$G$6&C38&D38,'Pbr''s'!A:X,15,0),\" \")","v":" "},{"$f":"IFERROR(VLOOKUP($G$5&$G$6&C38&D38,'Pbr''s'!A:X,7,0),\" \")","v":" "},{"$f":"IFERROR(VLOOKUP($G$5&$G$6&C38&D38,'Pbr''s'!A:X,8,0),\" \")","v":" "},{"$f":"IFERROR(VLOOKUP($G$5&$G$6&C38&D38,'Pbr''s'!A:X,9,0),\" \")","v":" "},{"$f":"IFERROR(VLOOKUP($G$5&$G$6&C38&D38,'Pbr''s'!A:X,10,0),\" \")","v":" "},{"$f":"IFERROR(VLOOKUP($G$5&$G$6&C38&D38,'Pbr''s'!A:X,16,0),\" \")","v":" "},null,null,null," "]
[null,null,27,{"$f":"IFERROR(VLOOKUP($G$5&$G$6&C39,'Pbr''s'!B:X,5,0),\" \")","v":" "},{"$f":"IFERROR(VLOOKUP($G$5&$G$6&C39&D39,'Pbr''s'!A:X,15,0),\" \")","v":" "},{"$f":"IFERROR(VLOOKUP($G$5&$G$6&C39&D39,'Pbr''s'!A:X,7,0),\" \")","v":" "},{"$f":"IFERROR(VLOOKUP($G$5&$G$6&C39&D39,'Pbr''s'!A:X,8,0),\" \")","v":" "},{"$f":"IFERROR(VLOOKUP($G$5&$G$6&C39&D39,'Pbr''s'!A:X,9,0),\" \")","v":" "},{"$f":"IFERROR(VLOOKUP($G$5&$G$6&C39&D39,'Pbr''s'!A:X,10,0),\" \")","v":" "},{"$f":"IFERROR(VLOOKUP($G$5&$G$6&C39&D39,'Pbr''s'!A:X,16,0),\" \")","v":" "},null,null,null," "]
[null,null,28,{"$f":"IFERROR(VLOOKUP($G$5&$G$6&C40,'Pbr''s'!B:X,5,0),\" \")","v":" "},{"$f":"IFERROR(VLOOKUP($G$5&$G$6&C40&D40,'Pbr''s'!A:X,15,0),\" \")","v":" "},{"$f":"IFERROR(VLOOKUP($G$5&$G$6&C40&D40,'Pbr''s'!A:X,7,0),\" \")","v":" "},{"$f":"IFERROR(VLOOKUP($G$5&$G$6&C40&D40,'Pbr''s'!A:X,8,0),\" \")","v":" "},{"$f":"IFERROR(VLOOKUP($G$5&$G$6&C40&D40,'Pbr''s'!A:X,9,0),\" \")","v":" "},{"$f":"IFERROR(VLOOKUP($G$5&$G$6&C40&D40,'Pbr''s'!A:X,10,0),\" \")","v":" "},{"$f":"IFERROR(VLOOKUP($G$5&$G$6&C40&D40,'Pbr''s'!A:X,16,0),\" \")","v":" "},null,null,null," "]
[null,null,29,{"$f":"IFERROR(VLOOKUP($G$5&$G$6&C41,'Pbr''s'!B:X,5,0),\" \")","v":" "},{"$f":"IFERROR(VLOOKUP($G$5&$G$6&C41&D41,'Pbr''s'!A:X,15,0),\" \")","v":" "},{"$f":"IFERROR(VLOOKUP($G$5&$G$6&C41&D41,'Pbr''s'!A:X,7,0),\" \")","v":" "},{"$f":"IFERROR(VLOOKUP($G$5&$G$6&C41&D41,'Pbr''s'!A:X,8,0),\" \")","v":" "},{"$f":"IFERROR(VLOOKUP($G$5&$G$6&C41&D41,'Pbr''s'!A:X,9,0),\" \")","v":" "},{"$f":"IFERROR(VLOOKUP($G$5&$G$6&C41&D41,'Pbr''s'!A:X,10,0),\" \")","v":" "},{"$f":"IFERROR(VLOOKUP($G$5&$G$6&C41&D41,'Pbr''s'!A:X,16,0),\" \")","v":" "},null,null,null," "]
[null,null,30,{"$f":"IFERROR(VLOOKUP($G$5&$G$6&C42,'Pbr''s'!B:X,5,0),\" \")","v":" "},{"$f":"IFERROR(VLOOKUP($G$5&$G$6&C42&D42,'Pbr''s'!A:X,15,0),\" \")","v":" "},{"$f":"IFERROR(VLOOKUP($G$5&$G$6&C42&D42,'Pbr''s'!A:X,7,0),\" \")","v":" "},{"$f":"IFERROR(VLOOKUP($G$5&$G$6&C42&D42,'Pbr''s'!A:X,8,0),\" \")","v":" "},{"$f":"IFERROR(VLOOKUP($G$5&$G$6&C42&D42,'Pbr''s'!A:X,9,0),\" \")","v":" "},{"$f":"IFERROR(VLOOKUP($G$5&$G$6&C42&D42,'Pbr''s'!A:X,10,0),\" \")","v":" "},{"$f":"IFERROR(VLOOKUP($G$5&$G$6&C42&D42,'Pbr''s'!A:X,16,0),\" \")","v":" "},null,null,null," "]
[null,null,31,{"$f":"IFERROR(VLOOKUP($G$5&$G$6&C43,'Pbr''s'!B:X,5,0),\" \")","v":" "},{"$f":"IFERROR(VLOOKUP($G$5&$G$6&C43&D43,'Pbr''s'!A:X,15,0),\" \")","v":" "},{"$f":"IFERROR(VLOOKUP($G$5&$G$6&C43&D43,'Pbr''s'!A:X,7,0),\" \")","v":" "},{"$f":"IFERROR(VLOOKUP($G$5&$G$6&C43&D43,'Pbr''s'!A:X,8,0),\" \")","v":" "},{"$f":"IFERROR(VLOOKUP($G$5&$G$6&C43&D43,'Pbr''s'!A:X,9,0),\" \")","v":" "},{"$f":"IFERROR(VLOOKUP($G$5&$G$6&C43&D43,'Pbr''s'!A:X,10,0),\" \")","v":" "},{"$f":"IFERROR(VLOOKUP($G$5&$G$6&C43&D43,'Pbr''s'!A:X,16,0),\" \")","v":" "},null,null,null," "]
[null,null,32,{"$f":"IFERROR(VLOOKUP($G$5&$G$6&C44,'Pbr''s'!B:X,5,0),\" \")","v":" "},{"$f":"IFERROR(VLOOKUP($G$5&$G$6&C44&D44,'Pbr''s'!A:X,15,0),\" \")","v":" "},{"$f":"IFERROR(VLOOKUP($G$5&$G$6&C44&D44,'Pbr''s'!A:X,7,0),\" \")","v":" "},{"$f":"IFERROR(VLOOKUP($G$5&$G$6&C44&D44,'Pbr''s'!A:X,8,0),\" \")","v":" "},{"$f":"IFERROR(VLOOKUP($G$5&$G$6&C44&D44,'Pbr''s'!A:X,9,0),\" \")","v":" "},{"$f":"IFERROR(VLOOKUP($G$5&$G$6&C44&D44,'Pbr''s'!A:X,10,0),\" \")","v":" "},{"$f":"IFERROR(VLOOKUP($G$5&$G$6&C44&D44,'Pbr''s'!A:X,16,0),\" \")","v":" "},null,null,null," "]
[null,null,33,{"$f":"IFERROR(VLOOKUP($G$5&$G$6&C45,'Pbr''s'!B:X,5,0),\" \")","v":" "},{"$f":"IFERROR(VLOOKUP($G$5&$G$6&C45&D45,'Pbr''s'!A:X,15,0),\" \")","v":" "},{"$f":"IFERROR(VLOOKUP($G$5&$G$6&C45&D45,'Pbr''s'!A:X,7,0),\" \")","v":" "},{"$f":"IFERROR(VLOOKUP($G$5&$G$6&C45&D45,'Pbr''s'!A:X,8,0),\" \")","v":" "},{"$f":"IFERROR(VLOOKUP($G$5&$G$6&C45&D45,'Pbr''s'!A:X,9,0),\" \")","v":" "},{"$f":"IFERROR(VLOOKUP($G$5&$G$6&C45&D45,'Pbr''s'!A:X,10,0),\" \")","v":" "},{"$f":"IFERROR(VLOOKUP($G$5&$G$6&C45&D45,'Pbr''s'!A:X,16,0),\" \")","v":" "},null,null,null," "]
[null,null,34,{"$f":"IFERROR(VLOOKUP($G$5&$G$6&C46,'Pbr''s'!B:X,5,0),\" \")","v":" "},{"$f":"IFERROR(VLOOKUP($G$5&$G$6&C46&D46,'Pbr''s'!A:X,15,0),\" \")","v":" "},{"$f":"IFERROR(VLOOKUP($G$5&$G$6&C46&D46,'Pbr''s'!A:X,7,0),\" \")","v":" "},{"$f":"IFERROR(VLOOKUP($G$5&$G$6&C46&D46,'Pbr''s'!A:X,8,0),\" \")","v":" "},{"$f":"IFERROR(VLOOKUP($G$5&$G$6&C46&D46,'Pbr''s'!A:X,9,0),\" \")","v":" "},{"$f":"IFERROR(VLOOKUP($G$5&$G$6&C46&D46,'Pbr''s'!A:X,10,0),\" \")","v":" "},{"$f":"IFERROR(VLOOKUP($G$5&$G$6&C46&D46,'Pbr''s'!A:X,16,0),\" \")","v":" "},null,null,null," "]
[null,null,35,{"$f":"IFERROR(VLOOKUP($G$5&$G$6&C47,'Pbr''s'!B:X,5,0),\" \")","v":" "},{"$f":"IFERROR(VLOOKUP($G$5&$G$6&C47&D47,'Pbr''s'!A:X,15,0),\" \")","v":" "},{"$f":"IFERROR(VLOOKUP($G$5&$G$6&C47&D47,'Pbr''s'!A:X,7,0),\" \")","v":" "},{"$f":"IFERROR(VLOOKUP($G$5&$G$6&C47&D47,'Pbr''s'!A:X,8,0),\" \")","v":" "},{"$f":"IFERROR(VLOOKUP($G$5&$G$6&C47&D47,'Pbr''s'!A:X,9,0),\" \")","v":" "},{"$f":"IFERROR(VLOOKUP($G$5&$G$6&C47&D47,'Pbr''s'!A:X,10,0),\" \")","v":" "},{"$f":"IFERROR(VLOOKUP($G$5&$G$6&C47&D47,'Pbr''s'!A:X,16,0),\" \")","v":" "},null,null,null," "]
[null,null,36,{"$f":"IFERROR(VLOOKUP($G$5&$G$6&C48,'Pbr''s'!B:X,5,0),\" \")","v":" "},{"$f":"IFERROR(VLOOKUP($G$5&$G$6&C48&D48,'Pbr''s'!A:X,15,0),\" \")","v":" "},{"$f":"IFERROR(VLOOKUP($G$5&$G$6&C48&D48,'Pbr''s'!A:X,7,0),\" \")","v":" "},{"$f":"IFERROR(VLOOKUP($G$5&$G$6&C48&D48,'Pbr''s'!A:X,8,0),\" \")","v":" "},{"$f":"IFERROR(VLOOKUP($G$5&$G$6&C48&D48,'Pbr''s'!A:X,9,0),\" \")","v":" "},{"$f":"IFERROR(VLOOKUP($G$5&$G$6&C48&D48,'Pbr''s'!A:X,10,0),\" \")","v":" "},{"$f":"IFERROR(VLOOKUP($G$5&$G$6&C48&D48,'Pbr''s'!A:X,16,0),\" \")","v":" "},null,null,null," "]
[null,null,37,{"$f":"IFERROR(VLOOKUP($G$5&$G$6&C49,'Pbr''s'!B:X,5,0),\" \")","v":" "},{"$f":"IFERROR(VLOOKUP($G$5&$G$6&C49&D49,'Pbr''s'!A:X,15,0),\" \")","v":" "},{"$f":"IFERROR(VLOOKUP($G$5&$G$6&C49&D49,'Pbr''s'!A:X,7,0),\" \")","v":" "},{"$f":"IFERROR(VLOOKUP($G$5&$G$6&C49&D49,'Pbr''s'!A:X,8,0),\" \")","v":" "},{"$f":"IFERROR(VLOOKUP($G$5&$G$6&C49&D49,'Pbr''s'!A:X,9,0),\" \")","v":" "},{"$f":"IFERROR(VLOOKUP($G$5&$G$6&C49&D49,'Pbr''s'!A:X,10,0),\" \")","v":" "},{"$f":"IFERROR(VLOOKUP($G$5&$G$6&C49&D49,'Pbr''s'!A:X,16,0),\" \")","v":" "},null,null,null," "]
[null,null,38,{"$f":"IFERROR(VLOOKUP($G$5&$G$6&C50,'Pbr''s'!B:X,5,0),\" \")","v":" "},{"$f":"IFERROR(VLOOKUP($G$5&$G$6&C50&D50,'Pbr''s'!A:X,15,0),\" \")","v":" "},{"$f":"IFERROR(VLOOKUP($G$5&$G$6&C50&D50,'Pbr''s'!A:X,7,0),\" \")","v":" "},{"$f":"IFERROR(VLOOKUP($G$5&$G$6&C50&D50,'Pbr''s'!A:X,8,0),\" \")","v":" "},{"$f":"IFERROR(VLOOKUP($G$5&$G$6&C50&D50,'Pbr''s'!A:X,9,0),\" \")","v":" "},{"$f":"IFERROR(VLOOKUP($G$5&$G$6&C50&D50,'Pbr''s'!A:X,10,0),\" \")","v":" "},{"$f":"IFERROR(VLOOKUP($G$5&$G$6&C50&D50,'Pbr''s'!A:X,16,0),\" \")","v":" "},null,null,null," "]
[null,null,39,{"$f":"IFERROR(VLOOKUP($G$5&$G$6&C51,'Pbr''s'!B:X,5,0),\" \")","v":" "},{"$f":"IFERROR(VLOOKUP($G$5&$G$6&C51&D51,'Pbr''s'!A:X,15,0),\" \")","v":" "},{"$f":"IFERROR(VLOOKUP($G$5&$G$6&C51&D51,'Pbr''s'!A:X,7,0),\" \")","v":" "},{"$f":"IFERROR(VLOOKUP($G$5&$G$6&C51&D51,'Pbr''s'!A:X,8,0),\" \")","v":" "},{"$f":"IFERROR(VLOOKUP($G$5&$G$6&C51&D51,'Pbr''s'!A:X,9,0),\" \")","v":" "},{"$f":"IFERROR(VLOOKUP($G$5&$G$6&C51&D51,'Pbr''s'!A:X,10,0),\" \")","v":" "},{"$f":"IFERROR(VLOOKUP($G$5&$G$6&C51&D51,'Pbr''s'!A:X,16,0),\" \")","v":" "},null,null,null," "]
[null,null,40,{"$f":"IFERROR(VLOOKUP($G$5&$G$6&C52,'Pbr''s'!B:X,5,0),\" \")","v":" "},{"$f":"IFERROR(VLOOKUP($G$5&$G$6&C52&D52,'Pbr''s'!A:X,15,0),\" \")","v":" "},{"$f":"IFERROR(VLOOKUP($G$5&$G$6&C52&D52,'Pbr''s'!A:X,7,0),\" \")","v":" "},{"$f":"IFERROR(VLOOKUP($G$5&$G$6&C52&D52,'Pbr''s'!A:X,8,0),\" \")","v":" "},{"$f":"IFERROR(VLOOKUP($G$5&$G$6&C52&D52,'Pbr''s'!A:X,9,0),\" \")","v":" "},{"$f":"IFERROR(VLOOKUP($G$5&$G$6&C52&D52,'Pbr''s'!A:X,10,0),\" \")","v":" "},{"$f":"IFERROR(VLOOKUP($G$5&$G$6&C52&D52,'Pbr''s'!A:X,16,0),\" \")","v":" "},null,null,null," "]
[null,null,41,{"$f":"IFERROR(VLOOKUP($G$5&$G$6&C53,'Pbr''s'!B:X,5,0),\" \")","v":" "},{"$f":"IFERROR(VLOOKUP($G$5&$G$6&C53&D53,'Pbr''s'!A:X,15,0),\" \")","v":" "},{"$f":"IFERROR(VLOOKUP($G$5&$G$6&C53&D53,'Pbr''s'!A:X,7,0),\" \")","v":" "},{"$f":"IFERROR(VLOOKUP($G$5&$G$6&C53&D53,'Pbr''s'!A:X,8,0),\" \")","v":" "},{"$f":"IFERROR(VLOOKUP($G$5&$G$6&C53&D53,'Pbr''s'!A:X,9,0),\" \")","v":" "},{"$f":"IFERROR(VLOOKUP($G$5&$G$6&C53&D53,'Pbr''s'!A:X,10,0),\" \")","v":" "},{"$f":"IFERROR(VLOOKUP($G$5&$G$6&C53&D53,'Pbr''s'!A:X,16,0),\" \")","v":" "},null,null,null," "]
[null,null,42,{"$f":"IFERROR(VLOOKUP($G$5&$G$6&C54,'Pbr''s'!B:X,5,0),\" \")","v":" "},{"$f":"IFERROR(VLOOKUP($G$5&$G$6&C54&D54,'Pbr''s'!A:X,15,0),\" \")","v":" "},{"$f":"IFERROR(VLOOKUP($G$5&$G$6&C54&D54,'Pbr''s'!A:X,7,0),\" \")","v":" "},{"$f":"IFERROR(VLOOKUP($G$5&$G$6&C54&D54,'Pbr''s'!A:X,8,0),\" \")","v":" "},{"$f":"IFERROR(VLOOKUP($G$5&$G$6&C54&D54,'Pbr''s'!A:X,9,0),\" \")","v":" "},{"$f":"IFERROR(VLOOKUP($G$5&$G$6&C54&D54,'Pbr''s'!A:X,10,0),\" \")","v":" "},{"$f":"IFERROR(VLOOKUP($G$5&$G$6&C54&D54,'Pbr''s'!A:X,16,0),\" \")","v":" "},null,null,null," "]

{"sheet":"Anexo Cualitativo","index":1,"n_rows":178,"n_cols":9,"rows_kept":178,"cut":false,"hidden":false,"merged":[[170,4,173,4],[170,5,173,5],[170,6,170,10],[171,6,171,10],[172,6,172,10],[173,6,173,10],[174,4,177,4],[174,5,177,5],[174,6,174,10],[175,6,175,10],[176,6,176,10],[177,6,177,10],[162,4,165,4],[162,5,165,5],[162,6,162,10],[163,6,163,10],[164,6,164,10],[165,6,165,10],[166,4,169,4],[166,5,169,5],[166,6,166,10],[167,6,167,10],[168,6,168,10],[169,6,169,10],[154,4,157,4],[154,5,157,5],[154,6,154,10],[155,6,155,10],[156,6,156,10],[157,6,157,10],[158,4,161,4],[158,5,161,5],[158,6,158,10],[159,6,159,10],[160,6,160,10],[161,6,161,10],[146,4,149,4],[146,5,149,5],[146,6,146,10],[147,6,147,10],[148,6,148,10],[149,6,149,10],[150,4,153,4],[150,5,153,5],[150,6,150,10],[151,6,151,10],[152,6,152,10],[153,6,153,10],[138,4,141,4],[138,5,141,5],[138,6,138,10],[139,6,139,10],[140,6,140,10],[141,6,141,10],[142,4,145,4],[142,5,145,5],[142,6,142,10],[143,6,143,10],[144,6,144,10],[145,6,145,10],[130,4,133,4],[130,5,133,5],[130,6,130,10],[131,6,131,10],[132,6,132,10],[133,6,133,10],[134,4,137,4],[134,5,137,5],[134,6,134,10],[135,6,135,10],[136,6,136,10],[137,6,137,10],[122,4,125,4],[122,5,125,5],[122,6,122,10],[123,6,123,10],[124,6,124,10],[125,6,125,10],[126,4,129,4],[126,5,129,5],[126,6,126,10],[127,6,127,10],[128,6,128,10],[129,6,129,10],[114,4,117,4],[114,5,117,5],[114,6,114,10],[115,6,115,10],[116,6,116,10],[117,6,117,10],[118,4,121,4],[118,5,121,5],[118,6,118,10],[119,6,119,10],[120,6,120,10],[121,6,121,10],[110,4,113,4],[110,5,113,5],[110,6,110,10],[111,6,111,10],[112,6,112,10],[113,6,113,10],[98,4,101,4],[98,5,101,5],[98,6,98,10],[99,6,99,10],[100,6,100,10],[101,6,101,10],[102,6,102,10],[103,6,103,10],[104,6,104,10],[105,6,105,10],[102,5,105,5],[102,4,105,4],[106,4,109,4],[106,5,109,5],[106,6,106,10],[107,6,107,10],[108,6,108,10],[109,6,109,10],[94,4,97,4],[94,5,97,5],[94,6,94,10],[95,6,95,10],[96,6,96,10],[97,6,97,10],[90,4,93,4],[90,5,93,5],[90,6,90,10],[91,6,91,10],[92,6,92,10],[93,6,93,10],[86,4,89,4],[86,5,89,5],[86,6,86,10],[87,6,87,10],[88,6,88,10],[89,6,89,10],[82,4,85,4],[82,5,85,5],[82,6,82,10],[83,6,83,10],[84,6,84,10],[85,6,85,10],[78,4,81,4],[78,5,81,5],[78,6,78,10],[79,6,79,10],[80,6,80,10],[81,6,81,10],[74,4,77,4],[74,5,77,5],[74,6,74,10],[75,6,75,10],[76,6,76,10],[77,6,77,10],[70,4,73,4],[70,5,73,5],[70,6,70,10],[71,6,71,10],[72,6,72,10],[73,6,73,10],[66,4,69,4],[66,5,69,5],[66,6,66,10],[67,6,67,10],[68,6,68,10],[69,6,69,10],[62,4,65,4],[62,5,65,5],[62,6,62,10],[63,6,63,10],[64,6,64,10],[65,6,65,10],[58,4,61,4],[58,5,61,5],[58,6,58,10],[59,6,59,10],[60,6,60,10],[61,6,61,10],[54,4,57,4],[54,5,57,5],[54,6,54,10],[55,6,55,10],[56,6,56,10],[57,6,57,10],[50,4,53,4],[50,5,53,5],[50,6,50,10],[51,6,51,10],[52,6,52,10],[53,6,53,10],[46,4,49,4],[46,5,49,5],[46,6,46,10],[47,6,47,10],[48,6,48,10],[49,6,49,10],[42,4,45,4],[42,5,45,5],[42,6,42,10],[43,6,43,10],[44,6,44,10],[45,6,45,10],[38,4,41,4],[38,5,41,5],[38,6,38,10],[39,6,39,10],[40,6,40,10],[41,6,41,10],[22,6,22,10],[23,6,23,10],[24,6,24,10],[25,6,25,10],[34,4,37,4],[34,5,37,5],[34,6,34,10],[35,6,35,10],[36,6,36,10],[37,6,37,10],[30,4,33,4],[30,5,33,5],[30,6,30,10],[31,6,31,10],[32,6,32,10],[33,6,33,10],[180,4,190,10],[4,4,4,7],[4,8,4,11],[5,8,5,11],[10,4,13,4],[10,5,13,5],[13,6,13,10],[14,5,17,5],[14,6,14,10],[15,6,15,10],[16,6,16,10],[17,6,17,10],[18,4,21,4],[18,5,21,5],[18,6,18,10],[19,6,19,10],[26,4,29,4],[26,5,29,5],[26,6,26,10],[27,6,27,10],[28,6,28,10],[29,6,29,10],[22,4,25,4],[22,5,25,5],[20,6,20,10],[21,6,21,10],[14,4,17,4],[2,4,2,10],[5,4,5,7],[9,6,9,10],[3,4,3,7],[3,8,3,11],[10,6,10,10],[11,6,11,10],[12,6,12,10]]}
[]
[]
[null,null,null,null,"ANEXO 4 EVALUACIÓN DE PROGRAMAS Y/O PROYECTOS (AVANCE CUALITATIVO)"]
[null,null,null,null,"NOMBRE DE LA SECRETARIA: ",null,null,null,{"$f":"'Anexo Cuantitativo'!G5","v":"OPD"}]
[null,null,null,null,"NOMBRE DE LA ENTIDAD PÚBLICA: ",null,null,null,{"$f":"'Anexo Cuantitativo'!G6","v":"IMMUJERES"}]
[null,null,null,null,"TRIMESTRE REPORTADO:",null,null,null,{"$f":"'Anexo Cuantitativo'!G7","v":"Del 1 de Abril al 30 de Junio del 2025"}]
[]
[]
[null,null,null,null,null,null,"DESCRIPCIÓN"]
[null,null,null,null,"NO.","NOMBRE DE LA PROPUESTA","DESCRIPCIÓN DE LAS ACTIVIDADES REALIZADAS                                                                                                                    (REDACTAR SÓLO LO REALIZADO EN TIEMPO PASADO)                                                                                                                                                  "]
[null,null,null,null,1,{"$f":"IFERROR('Anexo Cuantitativo'!D13,\" \")","v":"Enfoque Transversal con Perspectiva de Género"},"En este trimestre tuvimos un total de 9 acciones. Se realizó un convenio con Casa Calera, que atiende a mujeres con situaciones de vulnerabilidad enfocadas en las adicciones o temas conductuales. Se asistió a una reunión de trabajo en la Comisaría de Seguridad Municipal de Tlaquepaque sobre el Programa Sendero Seguro, que buscaba garantizar la seguridad de las escuelas y sus estudiantes. Se llevó a cabo de manera interinstitucional la colaboración del Instituto en jornadas de salud junto a otras dependencias y OPDs, en las que se buscaba tener mayor cercanía con la ciudadanía. De igual manera, se asistió a la Comisaría de Seguridad de Tlaquepaque referente a la Mesa de Construcción de Paz y Seguridad, en la que se buscó unir esfuerzos de coordinación entre los tres niveles de gobierno para la lucha contra la violencia y la impunidad. Finalmente, se realizó un foro con la temática \"Retos y Oportunidades en la Defensa de Derechos Humanos de Mujeres Víctimas de Violencia\" con invitadas especialistas en dicho tema y finalmente se brindaron 4 capacitaciones en perspectiva de género."]
[" ",null,null,null,null,null,"Narrativa de trimestre Enero-marzo: En el periodo de este trimestre reportamos 10 acciones con perspectiva de género, en este periodo se encuentra el dia internacional de las mujeres tambien conocido y mencionado como 8M. Bajo ese contexto presentamos un alza en la numeralia de nuestros Pbr´s.     Durante estos tres meses logramos hacer una vinculación institucional con seis instituciones entre las que se encuentran; LAVARTEX, Preparatoria Toluquilla de la Universidad de Guadalajara, Preparatoria N°16 de la  Universidad de Guadalajara, CUTonala de la Universidad de Guadalajara, COMUDE y el Centro Universitario de ciencias exactas e ingenierias (CUCEI). En dichas instituciones se impartieron talleres, capacitaciones y charlas acerca de temas de género como: Derechos de las mujeres, violencias en el noviazgo, sensibilizacion en perspectiva de género, entre otras, dandónos un total de 6 acciones con dichas vinculaciones. Visitamos 3 delagaciones municipales: Las juntas,Santa Anita y Loma bonita, en las que capacitamos a personas de la comunidad. Tuvimos un (1)  evento masivo el 7 de marzo en el marco del dia de las mujeres en colaboración con la dirección de bomberos y protección civil con una asistencia de aproximadamente 500 mujeres. Dando un total de 10 acciones con perspectiva de género.                                                                                                                                                                                                                                                                                                                                                                                                                                                                                                                                                                                "]
[null,null,null,null,null,null,"Narrativa de trimestre Abril-junio: Durante el trimestre abril-junio reportamos un total de 22 acciones con perspectiva de género, destacando avances importantes en vinculación institucional, formación comunitaria y participación en espacios intergubernamentales. en cuanto a procesos formativos, se realizaron 21 capacitaciones y talleres en instituciones y espacios comunitarios como: Jardín de Niños Irene Robledo, Secundarias 91, 43 y 60, Preparatoria Toluquilla, Casa Calera, LAVARTEX, Centro Universitario de Tlaquepaque (CUTLAQUE) Centro Comunitario Xamixtli en La Cofradía y la Secretaría de Seguridad y Protección Ciudadana de Tlaquepaque. Al igual que se realizó una (1) caravana de salud en la Cofradía en colaboración con otras Instituciones.  En estos espacios se abordaron temas prioritarios como: \"Ser madre con igualdad: derechos, dignidad y empoderamiento para una vida libre y plena\", derechos humanos de las mujeres, sensibilización en la perspectiva de género, sororidad, entre otros. Estas acciones reflejan el compromiso del Instituto con la promoción de la igualdad sustantiva, la prevención de violencias y la transversalización de la perspectiva de género en diferentes sectores de la sociedad.                                                                                                                                                                                                                                                                                                                                                                                                                                                                                                                                                                                                                                                                                                                                                                                                                                                                                                                                                                                                                                        "]
[null,null,null,null,null,null,"Narrativa de trimestre Julio-sept:"]
[null,null,null,null,{"$f":"E11+1","v":2},{"$f":"IFERROR('Anexo Cuantitativo'!D14,\" \")","v":"Enfoque Transversal con Perspectiva de Género"},"Hubo una (1) modificación a instrumentos normativos. La modificación se realizó en el Reglamento interno del Instituto Municipal de las mujeres y para la Igualdad Sustantiva en San Pedro Tlaquepaque, ya que, se observó la falta de actualización del mismo, en temas de vida órganica del Instituto, como procesos internos y funciones."]
[null,null,null,null,null,null,"Narrativa de trimestre Enero-marzo:  Durante este periodo no hubo modificaciones a instrumentos normativos.                                                                                                                                                                                                                                                                                                                                                                                                                                                                                                                                                                                                 "]
[null,null,null,null,null,null,"Narrativa de trimestre Abril-junio:  Durante este periodo no hubo modificaciones a instrumentos normativos.                                                                                                                                                                                                                                                                                                                                                                                                                                                                                                                                                                                                                                                                                                                                                                                                                                                                                                                                                                                                                                               "]
[null,null,null,null,null,null,"Narrativa de trimestre Julio-sept:"]
[null,null,null,null,{"$f":"E15+1","v":3},{"$f":"IFERROR('Anexo Cuantitativo'!D15,\" \")","v":"Enfoque Transversal con Perspectiva de Género"},"Este trimestre tuvimos un impacto de 128 mujeres, beneficiadas a través de diversos eventos, capacitación y atenciones que versan o tienen una transversalidad con perspectiva de género, así como sobre la eliminación de la violencia hacia las mujeres, en los que se obtuvo una buena respuesta por parte de las mujeres asistentes."]
[null,null,null,null,null,null,"Narrativa de trimestre Enero-marzo: tuvo un impacto significativo al alcanzar a un número importante de mujeres 1337 en total beneficiadas a través de diversas acciones estratégicas en el marco de la conmemoración del Día Internacional de las Mujeres (8M). Las intervenciones se llevaron a cabo en seis espacios clave, incluyendo instituciones educativas, dependencias públicas y organizaciones privadas.En las 10 acciones de este trimestre  tuvimos un impacto a 1239 personas y en el área de primer contacto se atendío y se dio seguimiento a un total de 98 mujeres. Estas acciones buscaron no solo sensibilizar a la población, sino también fortalecer el conocimiento y ejercicio de los derechos humanos de las mujeres, promover el desarrollo personal y colectivo, así como desmitificar creencias en torno al amor romántico y visibilizar los distintos tipos de violencia de género. Los talleres y actividades, diseñados con enfoque pedagógico y participativo, permitieron generar espacios de diálogo y reflexión que favorecieron la apropiación de herramientas teóricas y prácticas para la prevención de la violencia y la promoción de la igualdad. Esto contribuyó no solo al empoderamiento individual de las participantes, sino también a reforzar una cultura institucional más consciente de la transversalización de la perspectiva de género.                                                                                                                                                                                                                                                                                                                                                                                                                                                                                                                                                                                         "]
[null,null,null,null,null,null,"Narrativa de trimestre Abril-junio: En el transcurso de este trimestre, el Instituto logró impactar a 713 personas, de las cuales 605 fueron mujeres, a través de diversas acciones orientadas a la promoción de la igualdad de género y la prevención de la violencia. Las actividades se desarrollaron en planteles educativos, centros comunitarios y en la Secretaría de Seguridad y Protección Ciudadana de Tlaquepaque, donde se ofrecieron espacios formativos diseñados para fomentar la reflexión, el diálogo y el aprendizaje colectivo. Los contenidos abordaron temas esenciales como los derechos humanos de las mujeres, las distintas formas de violencia, los mitos del amor romántico y el fortalecimiento de la autonomía femenina. Por su parte, el área de Primer Contacto ofreció atención integral a 108 mujeres, brindándoles orientación jurídica, apoyo psicológico y acompañamiento desde trabajo social, con un enfoque sensible y adaptado a sus necesidades particulares. Estas actividades permitieron no solo fortalecer el desarrollo personal de las participantes, sino también favorecer una transformación cultural dentro de las instituciones, promoviendo entornos más justos, igualitarios y comprometidos con la perspectiva de género.\n                                                                                                                                                                                                                                                                                                                                                                                                                                                                                                                                                                                                                                                                                                                                                                                                                                                                                                                                                                                                                                              "]
[null,null,null,null,null,null,"Narrativa de trimestre Julio-sept:"]
[null,null,null,null,{"$f":"E19+1","v":4},{"$f":"IFERROR('Anexo Cuantitativo'!D16,\" \")","v":"Libres por la igualdad"},"Este trimestre se logro impactar a 200 mujeres a tráves de las diversas actividades y servicios que tenemos en el Instituto como la cartera de capacitaciones que tenemos y que estamos llevando a instituciones públicas y privadas, las atenciones en primer contacto y las acciones afirmativas que se llevaron a cabo en pro de los derechos de las mujeres."]
[null,null,null,null,null,null,"El instituto logro consolidar su impacto a 1097 personas mediante la implementación de talleres formativos dirigidos a estudiantes y personas usuarias de delegaciones municipales. Las capacitaciones dirigidas a estudiantes tuvieron un total de 147 personas beneficiadas y los talleres impartidos en las delegaciones y espacios municipales tuvieron un total de 950 personas impactadas con las actividades de promoción. Estas acciones se enmarcaron dentro de una propuesta educativa con enfoque de género y derechos humanos, orientada a la promoción de la equidad y el cuestionamiento de patrones culturales normalizados que perpetúan diversas formas de violencia. Los contenidos abordados tales como el amor romántico, la violencia en el noviazgo y el desarrollo humano fueron trabajados desde una perspectiva reflexiva, inclusiva y participativa, lo que permitió a las personas asistentes reconocerse como agentes de cambio en sus propias comunidades. A través del diálogo abierto y la reflexión colectiva, se generaron espacios seguros que facilitaron la identificación de conductas y creencias arraigadas que reproducen desigualdades, especialmente en las primeras etapas de las relaciones afectivas.\nLa amplia convocatoria y respuesta favorable de la comunidad se reflejaron en una alta participación                                                                                                                                                                                                                                                                                                                                                                                                                                                                                                             "]
[null,null,null,null,null,null,"Narrativa de trimestre Abril-junio:  El Instituto logró consolidar su impacto al alcanzar a un total de 1,041 personas mediante la implementación de talleres formativos con perspectiva de género y enfoque de derechos humanos. En el ámbito educativo, se capacitó a 740 estudiantes de diferentes niveles escolares, mientras que en espacios comunitarios, colonias e instituciones del municipio de Tlaquepaque, se impactó a 301 personas a través de actividades de promoción y sensibilización. Estas acciones se desarrollaron como parte de una propuesta educativa orientada a la promoción de la equidad y al cuestionamiento de patrones culturales normalizados que reproducen diversas formas de violencia. Los contenidos abordados (como el amor romántico, la violencia en el noviazgo y el desarrollo humano) fueron trabajados desde una metodología reflexiva, inclusiva y participativa, permitiendo que las personas asistentes se reconocieran como agentes de cambio en sus entornos. A través del diálogo abierto y la reflexión colectiva, se generaron espacios seguros donde se facilitaron procesos de identificación de conductas y creencias arraigadas que perpetúan desigualdades, especialmente en las etapas tempranas de las relaciones afectivas. La alta participación y la respuesta favorable de la comunidad reflejan el compromiso social hacia la construcción de una cultura de paz y reducción de la violencia de género.                                                                                                                                                                                                                                                                                                                                                                                                                                                                                                                                                                                                                                                                                                                                                                                                                                                                                                                                                                                                                                             "]
[null,null,null,null,null,null,"Narrativa de trimestre Julio-sept:"]
[null,null,null,null,{"$f":"E23+1","v":5},{"$f":"IFERROR('Anexo Cuantitativo'!D17,\" \")","v":"Libres por la igualdad"},"No hubo evento conmemorativo para promover y reconocimiento a los derechos de las mujeres en sus diversidades. "]
[null,null,null,null,null,null,"Narrativa de trimestre Enero-marzo:  Tuvimos un (1) evento masivo en colaboración con la Dirección de bomberos y protección civil en conmemoración al dia internacional de las mujeres tambien conocido como 8M, en cual se busco promover la perspectiva de género como forma de prevención de las violencias de género además de concientizar a las personas que asistieron (500 mujeres) sobre los retos que vivimos como mujeres en el contexto actual.                                                                                                                                                                                                                                                                                                                                                                                                                                                                                                                                                                                         "]
[null,null,null,null,null,null,"Narrativa de trimestre Abril-junio: No hubo evento conmemorativo para promover y reconocimiento a los derechos de las mujeres en sus diversidades.                                                                                                                                                                                                                                                                                                                                                                                                                                                                                                                                                                                                                                                                                                                                                                                                                                                                                                                                                                                                                                               "]
[null,null,null,null,null,null,"Narrativa de trimestre Julio-sept:"]
[null,null,null,null,{"$f":"E27+1","v":6},{"$f":"IFERROR('Anexo Cuantitativo'!D18,\" \")","v":"Vivir sin violencia"},"Narrativa de trimestre octubre-diciembre:   Tuvimos un total de  159 mujeres atendidas en el área de primer contacto.   Esta área de primer contacto es la encargada de dar acompañamiento jurídico, psicológico y de trabajo social a las mujeres que recibimos en el instituto para levantar sus expedientes de canalización y  dar seguimiento a sus casos concretos.En el transcurso de este trimestre brindamos la atención a estas noventa y ocho mujeres a través de este equipo especializado de primer contacto. Algunas mujeres son canalizadas a otras instituciones dependiendo el caso concreto y las necesidades de las usuarias.                                                                                                                                                                                                                                                                                                                                                                                                                                                                                                                                                                                                                                                                                                                                               "]
[null,null,null,null,null,null,"Narrativa de trimestre Enero-marzo: Tuvimos un total de 98 mujeres atendidas en el área de primer contacto. Según se requiera las mujeres son canalizadas a otras instituciones dependiendo el caso concreto y las necesidades de las usuarias.                                                                                                                                                                                                                                                                                                                                                                                                                                                                                                                                                                                                                                                                                                                                                       "]
[null,null,null,null,null,null,"Narrativa de trimestre Abril-junio: Durante este trimestre, el área de Primer Contacto del Instituto brindó atención a un total de 108 mujeres. Esta área especializada tiene como función ofrecer un primer acompañamiento integral (jurídico, psicológico y de trabajo social) a las mujeres que acuden al instituto, con el objetivo de levantar sus expedientes de canalización y dar seguimiento a cada caso de manera individualizada.                                                                                                                                                                                                                                                                                                                                                                                                                                                                                                                                                                                                                                                                                                                                                                                                                                                                                                                                                                                                                                              "]
[null,null,null,null,null,null,"Narrativa de trimestre Julio-sept:"]
[null,null,null,null,{"$f":"E31+1","v":7},{"$f":"IFERROR('Anexo Cuantitativo'!D19,\" \")","v":"Vivir sin violencia"},"Se realizaron 10 acciones en este trimestre entre las que se encuentran; caravanas de salud en las distintas delegaciones del municipio, en donde se brindó asesoramiento y orientación a mujeres sobre los lugares a los que debían acudir para recibir atención y seguimiento de su caso. En eventos como un cineforo, se proyectó una película llamada \"Desde mi Cielo\" que abordaba la violencia y la concientización de cómo la experimentan las mujeres.\nSe llevó a cabo un cambaceo en dichos eventos y caravanas, en donde se proporcionó publicidad sobre cómo prevenir la violencia y se ofrecieron números de contacto para que las mujeres puedan acudir en caso de estar viviendo algún tipo de violencia. También se realizaron talleres de prevención y concientización sobre la violencia de género.\nAdemás, se establecieron juntas de trabajo con la directora de UVI para fortalecer lazos colaborativos en beneficio de las mujeres, así como con la comisaria de seguridad de Tlaquepaque en conjunto con los tres niveles de gobierno. En estas juntas, se previó la prevención de delitos que atenten contra la integridad de las estudiantes, y se promovió la concientización sobre la eliminación de la violencia de género a través de la jornada del 25 de noviembre, en la que se desarrollaron temas para la prevención de violencias hacia las mujeres."]
[null,null,null,null,null,null,"Narrativa de trimestre Enero-marzo:  Entre nuestras 6 acciones reportadas  para la prevencion de las violencias de género se encuentran  2 capacitaciones al funcionariado público y a 3 instituciones privadas con el objetivo de brindar los conocimientos necesarios para la prevención y erradición de la violencia. Ademas de formar una vinculación con organizaciones de la sociedad civil organizada para poder replicar las acciones en toda la comunidad tlaquepaquense tal como: A.C Psicobarrio .                                                                                                                                                                                                                                                                                                                                                                                                                                                                                                                                                                                                       "]
[null,null,null,null,null,null,"Narrativa de trimestre Abril-junio: Entre las 12 acciones reportadas para la prevención de las violencias de género durante este trimestre, se destaca la participación en mesas de trabajo para la construcción de paz y seguridad, donde se promovió la coordinación entre los tres niveles de gobierno con el objetivo de prevenir la violencia y combatir la impunidad de manera efectiva. Se realizaron 11 capacitaciones, charlas y talleres en distintos puntos del municipio, abordando temas como los tipos de violencia de género, el debido proceso, la violencia en el noviazgo, y los derechos de las mujeres. Estas intervenciones se llevaron a cabo en instituciones educativas (secundarias, preparatorias y universidades), empresas privadas y colonias, con el fin de acercar los contenidos a la comunidad de manera directa y participativa. Destacando la  impartición de capacitaciones en la Secretaría de Seguridad y Protección Ciudadana de Tlaquepaque, dirigida a las y los próximos elementos de la policía de proximidad, con el objetivo de fortalecer sus conocimientos en materia de prevención de la violencia de género y dotarlos de herramientas que les permitan brindar una atención más sensible, efectiva y con perspectiva de derechos humanos en su labor cotidiana.\n                                                                                                                                                                                                                                                                                                                                                                                                                                                                                                                                                                                                                                                                                                                                                                                                                                                                                                                                                                                                                                      "]
[null,null,null,null,null,null,"Narrativa de trimestre Julio-sept:"]
[null,null,null,null,{"$f":"E35+1","v":8},{"$f":"IFERROR('Anexo Cuantitativo'!D20,\" \")","v":"Vivir sin violencia"},"Con todas las acciones realizadas por el Instituto se  beneficiaron un total de 457 mujeres, divididas en otros campos relativos a los diversos programas y proyectos con los que se cuenta en el instituto, se han obtenido estos resultados gracias a que la mayoria de programas contribuyen a la prevención de la violencia y a la sensibilización en perspectiva de género desde distintos temas, como la transversalidad, la igualdad y la violencia de género."]
[null,null,null,null,null,null,"Narrativa de trimestre Enero-marzo: Las acciones para atender, prevenir y erradicar la violencia son de suma relevancia para el Instituto, tuvimos en el área de primer contacto 98 atenciones a mujeres víctimas de violencia atendidas y canalizadas, y en el área de capacitación que promueven la sensiblización hacia los casos de violencia y buscan prevenir situaciones de riesgo tuvimos la participación de 260 personas. Dándonos un total de 358 personas beneficiadas por las acciones del instituto antes mencionadas.                                                                                                                                                                                                                                                                                                                                                                                                                                                                                                                                                                                              "]
[null,null,null,null,null,null,"Narrativa de trimestre Abril-junio: Las acciones enfocadas en la atención, prevención y erradicación de la violencia representan una prioridad para el Instituto. Durante este trimestre, el área de Primer Contacto brindó atención y canalización a 108 mujeres víctimas de violencia, ofreciéndoles acompañamiento integral desde un enfoque jurídico, psicológico y de trabajo social. Paralelamente, en el ámbito de capacitación y sensibilización, se logró la participación de 185 personas en talleres y charlas orientadas a concientizar sobre las distintas manifestaciones de la violencia y fortalecer herramientas para su prevención. En conjunto, estas estrategias permitieron beneficiar a un total de 293 personas, reafirmando el compromiso institucional con la construcción de entornos más seguros, igualitarios y libres de violencia.\n                                                                                                                                                                                                                                                                                                                                                                                                                                                                                                                                                                                                                                                                                                                                                                                                                                                                                                                                                                                                                                              "]
[null,null,null,null,null,null,"Narrativa de trimestre Julio-sept:"]
[null,null,null,null,{"$f":"E39+1","v":9},{"$f":"IFERROR('Anexo Cuantitativo'!D21,\" \")","v":"Vivir sin violencia"},"Se realizo un evento conmemorativo del \"Día de la Eliminación de la Violencia de Género\" que tiene fecha el 25 de noviembre de cada año y es llamado por sus siglas 25N, el evento recibio el nombre de \" Huellas con Historia\" y contamos con participación de activistas sociales, mujeres de la comunidad de San Pedro Tlaquepaque,  regidores y regidoras, directivos y personal de distintas dependencias y OPDs del municipio, logrando tener un impacto en una población de 300 mujeres."]
[null,null,null,null,null,null,"Narrativa de trimestre Enero-marzo:    Este trimestre no se realizo evento enfocado en las violencias sino en la generalidad de la vidad de las mujeres.                                                                                                                                                                                                                                                                                                                                                                                                                                                                                                                                                                                                     "]
[null,null,null,null,null,null,"Narrativa de trimestre Abril-junio:  Este trimestre no se realizo evento enfocado en las violencias sino en la generalidad de la vidad de las mujeres.                                                                                                                                                                                                                                                                                                                                                                                                                                                                                                                                                                                                                                                                                                                                                                                                                                                                                                                                                                                                                                               "]
[null,null,null,null,null,null,"Narrativa de trimestre Julio-sept:"]
[null,null,null,null,{"$f":"E43+1","v":10},{"$f":"IFERROR('Anexo Cuantitativo'!D22,\" \")","v":" "},{"$f":"IFERROR(VLOOKUP($I$4&$I$5&E47&F47,'Pbr''s'!A:X,21,0),\" \")","v":" "}]
[null,null,null,null,null,null,"Narrativa de trimestre Enero-marzo:                                                                                                                                                                                                                                                                                                                                                                                                                                                                                                                                                                                                         "]
[null,null,null,null,null,null,"Narrativa de trimestre Abril-junio:                                                                                                                                                                                                                                                                                                                                                                                                                                                                                                                                                                                                                                                                                                                                                                                                                                                                                                                                                                                                                                               "]
[null,null,null,null,null,null,"Narrativa de trimestre Julio-sept:"]
[null,null,null,null,{"$f":"E47+1","v":11},{"$f":"IFERROR('Anexo Cuantitativo'!D23,\" \")","v":" "},{"$f":"IFERROR(VLOOKUP($I$4&$I$5&E51&F51,'Pbr''s'!A:X,21,0),\" \")","v":" "}]
[null,null,null,null,null,null,"Narrativa de trimestre Enero-marzo:                                                                                                                                                                                                                                                                                                                                                                                                                                                                                                                                                                                                         "]
[null,null,null,null,null,null,"Narrativa de trimestre Abril-junio:                                                                                                                                                                                                                                                                                                                                                                                                                                                                                                                                                                                                                                                                                                                                                                                                                                                                                                                                                                                                                                               "]
[null,null,null,null,null,null,"Narrativa de trimestre Julio-sept:"]
[null,null,null,null,{"$f":"E51+1","v":12},{"$f":"IFERROR('Anexo Cuantitativo'!D24,\" \")","v":" "},{"$f":"IFERROR(VLOOKUP($I$4&$I$5&E55&F55,'Pbr''s'!A:X,21,0),\" \")","v":" "}]
[null,null,null,null,null,null,"Narrativa de trimestre Enero-marzo:                                                                                                                                                                                                                                                                                                                                                                                                                                                                                                                                                                                                         "]
[null,null,null,null,null,null,"Narrativa de trimestre Abril-junio:                                                                                                                                                                                                                                                                                                                                                                                                                                                                                                                                                                                                                                                                                                                                                                                                                                                                                                                                                                                                                                               "]
[null,null,null,null,null,null,"Narrativa de trimestre Julio-sept:"]
[null,null,null,null,{"$f":"E55+1","v":13},{"$f":"IFERROR('Anexo Cuantitativo'!D25,\" \")","v":" "},{"$f":"IFERROR(VLOOKUP($I$4&$I$5&E59&F59,'Pbr''s'!A:X,21,0),\" \")","v":" "}]
[null,null,null,null,null,null,"Narrativa de trimestre Enero-marzo:                                                                                                                                                                                                                                                                                                                                                                                                                                                                                                                                                                                                         "]
[null,null,null,null,null,null,"Narrativa de trimestre Abril-junio:                                                                                                                                                                                                                                                                                                                                                                                                                                                                                                                                                                                                                                                                                                                                                                                                                                                                                                                                                                                                                                               "]
[null,null,null,null,null,null,"Narrativa de trimestre Julio-sept:"]
[null,null,null,null,{"$f":"E59+1","v":14},{"$f":"IFERROR('Anexo Cuantitativo'!D26,\" \")","v":" "},{"$f":"IFERROR(VLOOKUP($I$4&$I$5&E63&F63,'Pbr''s'!A:X,21,0),\" \")","v":" "}]
[null,null,null,null,null,null,"Narrativa de trimestre Enero-marzo:                                                                                                                                                                                                                                                                                                                                                                                                                                                                                                                                                                                                         "]
[null,null,null,null,null,null,"Narrativa de trimestre Abril-junio:                                                                                                                                                                                                                                                                                                                                                                                                                                                                                                                                                                                                                                                                                                                                                                                                                                                                                                                                                                                                                                               "]
[null,null,null,null,null,null,"Narrativa de trimestre Julio-sept:"]
[null,null,null,null,{"$f":"E63+1","v":15},{"$f":"IFERROR('Anexo Cuantitativo'!D27,\" \")","v":" "},{"$f":"IFERROR(VLOOKUP($I$4&$I$5&E67&F67,'Pbr''s'!A:X,21,0),\" \")","v":" "}]
[null,null,null,null,null,null,"Narrativa de trimestre Enero-marzo:                                                                                                                                                                                                                                                                                                                                                                                                                                                                                                                                                                                                         "]
[null,null,null,null,null,null,"Narrativa de trimestre Abril-junio:                                                                                                                                                                                                                                                                                                                                                                                                                                                                                                                                                                                                                                                                                                                                                                                                                                                                                                                                                                                                                                               "]
[null,null,null,null,null,null,"Narrativa de trimestre Julio-sept:"]
[null,null,null,null,{"$f":"E67+1","v":16},{"$f":"IFERROR('Anexo Cuantitativo'!D28,\" \")","v":" "},{"$f":"IFERROR(VLOOKUP($I$4&$I$5&E71&F71,'Pbr''s'!A:X,21,0),\" \")","v":" "}]
[null,null,null,null,null,null,"Narrativa de trimestre Enero-marzo:                                                                                                                                                                                                                                                                                                                                                                                                                                                                                                                                                                                                         "]
[null,null,null,null,null,null,"Narrativa de trimestre Abril-junio:                                                                                                                                                                                                                                                                                                                                                                                                                                                                                                                                                                                                                                                                                                                                                                                                                                                                                                                                                                                                                                               "]
[null,null,null,null,null,null,"Narrativa de trimestre Julio-sept:"]
[null,null,null,null,{"$f":"E71+1","v":17},{"$f":"IFERROR('Anexo Cuantitativo'!D29,\" \")","v":" "},{"$f":"IFERROR(VLOOKUP($I$4&$I$5&E75&F75,'Pbr''s'!A:X,21,0),\" \")","v":" "}]
[null,null,null,null,null,null,"Narrativa de trimestre Enero-marzo:                                                                                                                                                                                                                                                                                                                                                                                                                                                                                                                                                                                                         "]
[null,null,null,null,null,null,"Narrativa de trimestre Abril-junio:                                                                                                                                                                                                                                                                                                                                                                                                                                                                                                                                                                                                                                                                                                                                                                                                                                                                                                                                                                                                                                               "]
[null,null,null,null,null,null,"Narrativa de trimestre Julio-sept:"]
[null,null,null,null,{"$f":"E75+1","v":18},{"$f":"IFERROR('Anexo Cuantitativo'!D30,\" \")","v":" "},{"$f":"IFERROR(VLOOKUP($I$4&$I$5&E79&F79,'Pbr''s'!A:X,21,0),\" \")","v":" "}]
[null,null,null,null,null,null,"Narrativa de trimestre Enero-marzo:                                                                                                                                                                                                                                                                                                                                                                                                                                                                                                                                                                                                         "]
[null,null,null,null,null,null,"Narrativa de trimestre Abril-junio:                                                                                                                                                                                                                                                                                                                                                                                                                                                                                                                                                                                                                                                                                                                                                                                                                                                                                                                                                                                                                                               "]
[null,null,null,null,null,null,"Narrativa de trimestre Julio-sept:"]
[null,null,null,null,{"$f":"E79+1","v":19},{"$f":"IFERROR('Anexo Cuantitativo'!D31,\" \")","v":" "},{"$f":"IFERROR(VLOOKUP($I$4&$I$5&E83&F83,'Pbr''s'!A:X,21,0),\" \")","v":" "}]
[null,null,null,null,null,null,"Narrativa de trimestre Enero-marzo:                                                                                                                                                                                                                                                                                                                                                                                                                                                                                                                                                                                                         "]
[null,null,null,null,null,null,"Narrativa de trimestre Abril-junio:                                                                                                                                                                                                                                                                                                                                                                                                                                                                                                                                                                                                                                                                                                                                                                                                                                                                                                                                                                                                                                               "]
[null,null,null,null,null,null,"Narrativa de trimestre Julio-sept:"]
[null,null,null,null,{"$f":"E83+1","v":20},{"$f":"IFERROR('Anexo Cuantitativo'!D32,\" \")","v":" "},{"$f":"IFERROR(VLOOKUP($I$4&$I$5&E87&F87,'Pbr''s'!A:X,21,0),\" \")","v":" "}]
[null,null,null,null,null,null,"Narrativa de trimestre Enero-marzo:                                                                                                                                                                                                                                                                                                                                                                                                                                                                                                                                                                                                         "]
[null,null,null,null,null,null,"Narrativa de trimestre Abril-junio:                                                                                                                                                                                                                                                                                                                                                                                                                                                                                                                                                                                                                                                                                                                                                                                                                                                                                                                                                                                                                                               "]
[null,null,null,null,null,null,"Narrativa de trimestre Julio-sept:"]
[null,null,null,null,{"$f":"E87+1","v":21},{"$f":"IFERROR('Anexo Cuantitativo'!D33,\" \")","v":" "},{"$f":"IFERROR(VLOOKUP($I$4&$I$5&E91&F91,'Pbr''s'!A:X,21,0),\" \")","v":" "}]
[null,null,null,null,null,null,"Narrativa de trimestre Enero-marzo:                                                                                                                                                                                                                                                                                                                                                                                                                                                                                                                                                                                                         "]
[null,null,null,null,null,null,"Narrativa de trimestre Abril-junio:                                                                                                                                                                                                                                                                                                                                                                                                                                                                                                                                                                                                                                                                                                                                                                                                                                                                                                                                                                                                                                               "]
[null,null,null,null,null,null,"Narrativa de trimestre Julio-sept:"]
[null,null,null,null,{"$f":"E91+1","v":22},{"$f":"IFERROR('Anexo Cuantitativo'!D34,\" \")","v":" "},{"$f":"IFERROR(VLOOKUP($I$4&$I$5&E95&F95,'Pbr''s'!A:X,21,0),\" \")","v":" "}]
[null,null,null,null,null,null,"Narrativa de trimestre Enero-marzo:                                                                                                                                                                                                                                                                                                                                                                                                                                                                                                                                                                                                         "]
[null,null,null,null,null,null,"Narrativa de trimestre Abril-junio:                                                                                                                                                                                                                                                                                                                                                                                                                                                                                                                                                                                                                                                                                                                                                                                                                                                                                                                                                                                                                                               "]
[null,null,null,null,null,null,"Narrativa de trimestre Julio-sept:"]
[null,null,null,null,{"$f":"E95+1","v":23},{"$f":"IFERROR('Anexo Cuantitativo'!D35,\" \")","v":" "},{"$f":"IFERROR(VLOOKUP($I$4&$I$5&E99&F99,'Pbr''s'!A:X,21,0),\" \")","v":" "}]
[null,null,null,null,null,null,"Narrativa de trimestre Enero-marzo:                                                                                                                                                                                                                                                                                                                                                                                                                                                                                                                                                                                                         "]
[null,null,null,null,null,null,"Narrativa de trimestre Abril-junio:                                                                                                                                                                                                                                                                                                                                                                                                                                                                                                                                                                                                                                                                                                                                                                                                                                                                                                                                                                                                                                               "]
[null,null,null,null,null,null,"Narrativa de trimestre Julio-sept:"]
[null,null,null,null,{"$f":"E99+1","v":24},{"$f":"IFERROR('Anexo Cuantitativo'!D36,\" \")","v":" "},{"$f":"IFERROR(VLOOKUP($I$4&$I$5&E103&F103,'Pbr''s'!A:X,21,0),\" \")","v":" "}]
[null,null,null,null,null,null,"Narrativa de trimestre Enero-marzo:                                                                                                                                                                                                                                                                                                                                                                                                                                                                                                                                                                                                         "]
[null,null,null,null,null,null,"Narrativa de trimestre Abril-junio:                                                                                                                                                                                                                                                                                                                                                                                                                                                                                                                                                                                                                                                                                                                                                                                                                                                                                                                                                                                                                                               "]
[null,null,null,null,null,null,"Narrativa de trimestre Julio-sept:"]
[null,null,null,null,{"$f":"E103+1","v":25},{"$f":"IFERROR('Anexo Cuantitativo'!D37,\" \")","v":" "},{"$f":"IFERROR(VLOOKUP($I$4&$I$5&E107&F107,'Pbr''s'!A:X,21,0),\" \")","v":" "}]
[null,null,null,null,null,null,"Narrativa de trimestre Enero-marzo:                                                                                                                                                                                                                                                                                                                                                                                                                                                                                                                                                                                                         "]
[null,null,null,null,null,null,"Narrativa de trimestre Abril-junio:                                                                                                                                                                                                                                                                                                                                                                                                                                                                                                                                                                                                                                                                                                                                                                                                                                                                                                                                                                                                                                               "]
[null,null,null,null,null,null,"Narrativa de trimestre Julio-sept:"]
[null,null,null,null,{"$f":"E107+1","v":26},{"$f":"IFERROR('Anexo Cuantitativo'!D38,\" \")","v":" "},{"$f":"IFERROR(VLOOKUP($I$4&$I$5&E111&F111,'Pbr''s'!A:X,21,0),\" \")","v":" "}]
[null,null,null,null,null,null,"Narrativa de trimestre Enero-marzo:                                                                                                                                                                                                                                                                                                                                                                                                                                                                                                                                                                                                         "]
[null,null,null,null,null,null,"Narrativa de trimestre Abril-junio:                                                                                                                                                                                                                                                                                                                                                                                                                                                                                                                                                                                                                                                                                                                                                                                                                                                                                                                                                                                                                                               "]
[null,null,null,null,null,null,"Narrativa de trimestre Julio-sept:"]
[null,null,null,null,{"$f":"E111+1","v":27},{"$f":"IFERROR('Anexo Cuantitativo'!D39,\" \")","v":" "},{"$f":"IFERROR(VLOOKUP($I$4&$I$5&E115&F115,'Pbr''s'!A:X,21,0),\" \")","v":" "}]
[null,null,null,null,null,null,"Narrativa de trimestre Enero-marzo:                                                                                                                                                                                                                                                                                                                                                                                                                                                                                                                                                                                                         "]
[null,null,null,null,null,null,"Narrativa de trimestre Abril-junio:                                                                                                                                                                                                                                                                                                                                                                                                                                                                                                                                                                                                                                                                                                                                                                                                                                                                                                                                                                                                                                               "]
[null,null,null,null,null,null,"Narrativa de trimestre Julio-sept:"]
[null,null,null,null,{"$f":"E115+1","v":28},{"$f":"IFERROR('Anexo Cuantitativo'!D40,\" \")","v":" "},{"$f":"IFERROR(VLOOKUP($I$4&$I$5&E119&F119,'Pbr''s'!A:X,21,0),\" \")","v":" "}]
[null,null,null,null,null,null,"Narrativa de trimestre Enero-marzo:                                                                                                                                                                                                                                                                                                                                                                                                                                                                                                                                                                                                         "]
[null,null,null,null,null,null,"Narrativa de trimestre Abril-junio:                                                                                                                                                                                                                                                                                                                                                                                                                                                                                                                                                                                                                                                                                                                                                                                                                                                                                                                                                                                                                                               "]
[null,null,null,null,null,null,"Narrativa de trimestre Julio-sept:"]
[null,null,null,null,{"$f":"E119+1","v":29},{"$f":"IFERROR('Anexo Cuantitativo'!D41,\" \")","v":" "},{"$f":"IFERROR(VLOOKUP($I$4&$I$5&E123&F123,'Pbr''s'!A:X,21,0),\" \")","v":" "}]
[null,null,null,null,null,null,"Narrativa de trimestre Enero-marzo:                                                                                                                                                                                                                                                                                                                                                                                                                                                                                                                                                                                                         "]
[null,null,null,null,null,null,"Narrativa de trimestre Abril-junio:                                                                                                                                                                                                                                                                                                                                                                                                                                                                                                                                                                                                                                                                                                                                                                                                                                                                                                                                                                                                                                               "]
[null,null,null,null,null,null,"Narrativa de trimestre Julio-sept:"]
[null,null,null,null,{"$f":"E123+1","v":30},{"$f":"IFERROR('Anexo Cuantitativo'!D42,\" \")","v":" "},{"$f":"IFERROR(VLOOKUP($I$4&$I$5&E127&F127,'Pbr''s'!A:X,21,0),\" \")","v":" "}]
[null,null,null,null,null,null,"Narrativa de trimestre Enero-marzo:                                                                                                                                                                                                                                                                                                                                                                                                                                                                                                                                                                                                         "]
[null,null,null,null,null,null,"Narrativa de trimestre Abril-junio:                                                                                                                                                                                                                                                                                                                                                                                                                                                                                                                                                                                                                                                                                                                                                                                                                                                                                                                                                                                                                                               "]
[null,null,null,null,null,null,"Narrativa de trimestre Julio-sept:"]
[null,null,null,null,{"$f":"E127+1","v":31},{"$f":"IFERROR('Anexo Cuantitativo'!D43,\" \")","v":" "},{"$f":"IFERROR(VLOOKUP($I$4&$I$5&E131&F131,'Pbr''s'!A:X,21,0),\" \")","v":" "}]
[null,null,null,null,null,null,"Narrativa de trimestre Enero-marzo:                                                                                                                                                                                                                                                                                                                                                                                                                                                                                                                                                                                                         "]
[null,null,null,null,null,null,"Narrativa de trimestre Abril-junio:                                                                                                                                                                                                                                                                                                                                                                                                                                                                                                                                                                                                                                                                                                                                                                                                                                                                                                                                                                                                                                               "]
[null,null,null,null,null,null,"Narrativa de trimestre Julio-sept:"]
[null,null,null,null,{"$f":"E131+1","v":32},{"$f":"IFERROR('Anexo Cuantitativo'!D44,\" \")","v":" "},{"$f":"IFERROR(VLOOKUP($I$4&$I$5&E135&F135,'Pbr''s'!A:X,21,0),\" \")","v":" "}]
[null,null,null,null,null,null,"Narrativa de trimestre Enero-marzo:                                                                                                                                                                                                                                                                                                                                                                                                                                                                                                                                                                                                         "]
[null,null,null,null,null,null,"Narrativa de trimestre Abril-junio:                                                                                                                                                                                                                                                                                                                                                                                                                                                                                                                                                                                                                                                                                                                                                                                                                                                                                                                                                                                                                                               "]
[null,null,null,null,null,null,"Narrativa de trimestre Julio-sept:"]
[null,null,null,null,{"$f":"E135+1","v":33},{"$f":"IFERROR('Anexo Cuantitativo'!D45,\" \")","v":" "},{"$f":"IFERROR(VLOOKUP($I$4&$I$5&E139&F139,'Pbr''s'!A:X,21,0),\" \")","v":" "}]
[null,null,null,null,null,null,"Narrativa de trimestre Enero-marzo:                                                                                                                                                                                                                                                                                                                                                                                                                                                                                                                                                                                                         "]
[null,null,null,null,null,null,"Narrativa de trimestre Abril-junio:                                                                                                                                                                                                                                                                                                                                                                                                                                                                                                                                                                                                                                                                                                                                                                                                                                                                                                                                                                                                                                               "]
[null,null,null,null,null,null,"Narrativa de trimestre Julio-sept:"]
[null,null,null,null,{"$f":"E139+1","v":34},{"$f":"IFERROR('Anexo Cuantitativo'!D46,\" \")","v":" "},{"$f":"IFERROR(VLOOKUP($I$4&$I$5&E143&F143,'Pbr''s'!A:X,21,0),\" \")","v":" "}]
[null,null,null,null,null,null,"Narrativa de trimestre Enero-marzo:                                                                                                                                                                                                                                                                                                                                                                                                                                                                                                                                                                                                         "]
[null,null,null,null,null,null,"Narrativa de trimestre Abril-junio:                                                                                                                                                                                                                                                                                                                                                                                                                                                                                                                                                                                                                                                                                                                                                                                                                                                                                                                                                                                                                                               "]
[null,null,null,null,null,null,"Narrativa de trimestre Julio-sept:"]
[null,null,null,null,{"$f":"E143+1","v":35},{"$f":"IFERROR('Anexo Cuantitativo'!D47,\" \")","v":" "},{"$f":"IFERROR(VLOOKUP($I$4&$I$5&E147&F147,'Pbr''s'!A:X,21,0),\" \")","v":" "}]
[null,null,null,null,null,null,"Narrativa de trimestre Enero-marzo:                                                                                                                                                                                                                                                                                                                                                                                                                                                                                                                                                                                                         "]
[null,null,null,null,null,null,"Narrativa de trimestre Abril-junio:                                                                                                                                                                                                                                                                                                                                                                                                                                                                                                                                                                                                                                                                                                                                                                                                                                                                                                                                                                                                                                               "]
[null,null,null,null,null,null,"Narrativa de trimestre Julio-sept:"]
[null,null,null,null,{"$f":"E147+1","v":36},{"$f":"IFERROR('Anexo Cuantitativo'!D48,\" \")","v":" "},{"$f":"IFERROR(VLOOKUP($I$4&$I$5&E151&F151,'Pbr''s'!A:X,21,0),\" \")","v":" "}]
[null,null,null,null,null,null,"Narrativa de trimestre Enero-marzo:                                                                                                                                                                                                                                                                                                                                                                                                                                                                                                                                                                                                         "]
[null,null,null,null,null,null,"Narrativa de trimestre Abril-junio:                                                                                                                                                                                                                                                                                                                                                                                                                                                                                                                                                                                                                                                                                                                                                                                                                                                                                                                                                                                                                                               "]
[null,null,null,null,null,null,"Narrativa de trimestre Julio-sept:"]
[null,null,null,null,{"$f":"E151+1","v":37},{"$f":"IFERROR('Anexo Cuantitativo'!D49,\" \")","v":" "},{"$f":"IFERROR(VLOOKUP($I$4&$I$5&E155&F155,'Pbr''s'!A:X,21,0),\" \")","v":" "}]
[null,null,null,null,null,null,"Narrativa de trimestre Enero-marzo:                                                                                                                                                                                                                                                                                                                                                                                                                                                                                                                                                                                                         "]
[null,null,null,null,null,null,"Narrativa de trimestre Abril-junio:                                                                                                                                                                                                                                                                                                                                                                                                                                                                                                                                                                                                                                                                                                                                                                                                                                                                                                                                                                                                                                               "]
[null,null,null,null,null,null,"Narrativa de trimestre Julio-sept:"]
[null,null,null,null,{"$f":"E155+1","v":38},{"$f":"IFERROR('Anexo Cuantitativo'!D50,\" \")","v":" "},{"$f":"IFERROR(VLOOKUP($I$4&$I$5&E159&F159,'Pbr''s'!A:X,21,0),\" \")","v":" "}]
[null,null,null,null,null,null,"Narrativa de trimestre Enero-marzo:                                                                                                                                                                                                                                                                                                                                                                                                                                                                                                                                                                                                         "]
[null,null,null,null,null,null,"Narrativa de trimestre Abril-junio:                                                                                                                                                                                                                                                                                                                                                                                                                                                                                                                                                                                                                                                                                                                                                                                                                                                                                                                                                                                                                                               "]
[null,null,null,null,null,null,"Narrativa de trimestre Julio-sept:"]
[null,null,null,null,{"$f":"E159+1","v":39},{"$f":"IFERROR('Anexo Cuantitativo'!D51,\" \")","v":" "},{"$f":"IFERROR(VLOOKUP($I$4&$I$5&E163&F163,'Pbr''s'!A:X,21,0),\" \")","v":" "}]
[null,null,null,null,null,null,"Narrativa de trimestre Enero-marzo:                                                                                                                                                                                                                                                                                                                                                                                                                                                                                                                                                                                                         "]
[null,null,null,null,null,null,"Narrativa de trimestre Abril-junio:                                                                                                                                                                                                                                                                                                                                                                                                                                                                                                                                                                                                                                                                                                                                                                                                                                                                                                                                                                                                                                               "]
[null,null,null,null,null,null,"Narrativa de trimestre Julio-sept:"]
[null,null,null,null,{"$f":"E163+1","v":40},{"$f":"IFERROR('Anexo Cuantitativo'!D52,\" \")","v":" "},{"$f":"IFERROR(VLOOKUP($I$4&$I$5&E167&F167,'Pbr''s'!A:X,21,0),\" \")","v":" "}]
[null,null,null,null,null,null,"Narrativa de trimestre Enero-marzo:                                                                                                                                                                                                                                                                                                                                                                                                                                                                                                                                                                                                         "]
[null,null,null,null,null,null,"Narrativa de trimestre Abril-junio:                                                                                                                                                                                                                                                                                                                                                                                                                                                                                                                                                                                                                                                                                                                                                                                                                                                                                                                                                                                                                                               "]
[null,null,null,null,null,null,"Narrativa de trimestre Julio-sept:"]
[null,null,null,null,{"$f":"E167+1","v":41},{"$f":"IFERROR('Anexo Cuantitativo'!D53,\" \")","v":" "},{"$f":"IFERROR(VLOOKUP($I$4&$I$5&E171&F171,'Pbr''s'!A:X,21,0),\" \")","v":" "}]
[null,null,null,null,null,null,"Narrativa de trimestre Enero-marzo:                                                                                                                                                                                                                                                                                                                                                                                                                                                                                                                                                                                                         "]
[null,null,null,null,null,null,"Narrativa de trimestre Abril-junio:                                                                                                                                                                                                                                                                                                                                                                                                                                                                                                                                                                                                                                                                                                                                                                                                                                                                                                                                                                                                                                               "]
[null,null,null,null,null,null,"Narrativa de trimestre Julio-sept:"]
[null,null,null,null,{"$f":"E171+1","v":42},{"$f":"IFERROR('Anexo Cuantitativo'!D54,\" \")","v":" "},{"$f":"IFERROR(VLOOKUP($I$4&$I$5&E175&F175,'Pbr''s'!A:X,21,0),\" \")","v":" "}]
[null,null,null,null,null,null,"Narrativa de trimestre Enero-marzo:                                                                                                                                                                                                                                                                                                                                                                                                                                                                                                                                                                                                         "]
[null,null,null,null,null,null,"Narrativa de trimestre Abril-junio:                                                                                                                                                                                                                                                                                                                                                                                                                                                                                                                                                                                                                                                                                                                                                                                                                                                                                                                                                                                                                                               "]
[null,null,null,null,null,null,"Narrativa de trimestre Julio-sept:"]

{"sheet":"Hoja2","index":2,"n_rows":7,"n_cols":2,"rows_kept":7,"cut":false,"hidden":true,"merged":[]}
[]
[]
[]
[]
[]
[null,"ESTRATÉGICO"]
[null,"GESTIÓN"]

{"sheet":"SECRETARIASYPROYECTOS","index":3,"n_rows":56,"n_cols":32,"rows_kept":56,"cut":false,"hidden":true,"merged":[[0,0,0,15],[0,17,0,31]]}
["SECRETARIAS / DIRECCIONES /SUBDIRECCIONES",null,null,null,null,null,null,null,null,null,null,null,null,null,null,null,null,"SECRETARIAS / PROYECTOS"]
["OFICINA_DE_PRESIDENCIA","SECRETARIA_GENERAL_DEL_AYUNTAMIENTO","SINDICATURA","SECRETARIA_DE_LA_CONSEJERIA_JURIDICA","SECRETARIA_DE_GOBERNANZA_Y_TERRITORIO","SECRETARIA_DE_ADMINISTRACION_Y_FINANZAS","SECRETARIA_DE_CONTRALORIA_MUNICIPAL_Y_COMBATE_A_LA_CORRUPCION","OFICIALIA_MAYOR","SECRETARIA_DE_PLANIFICACION_ANALISIS_Y_GESTION_URBANA","SECRETARIA_DE_BIENESTAR","SECRETARIA_DE_FOMENTO_ECONOMICO_Y_CULTURAL","SECRETARIA_DE_SERVICIOS_PUBLICOS_Y_MEDIO_AMBIENTE","SECRETARIA_DE_SALUD","SECRETARIA_DE_OBRAS_PUBLICAS","SECRETARIA_DE_SEGURIDAD_Y_PROTECCION_CIUDADANA","OPD",null,"PRESIDENCIA","SINDICATURA_PROYECTO","CONSEJERIA_JURIDICA","GOBERNANZA_Y_TERRITORIO"," ADMINISTRACION_Y_FINANZAS"," CONTRALORIA_MUNICIPAL_Y_COMBATE_A_LA_CORRUPCION","OFICIALIA","PLANIFICACION_ANALISIS_Y_GESTION_URBANA","BIENESTAR","FOMENTO_ECONOMICO_Y_CULTURAL","SERVICIOS_PUBLICOS_Y_MEDIO_AMBIENTE","SALUD","OBRAS_PUBLICAS","SEGURIDAD_Y_PROTECCION_CIUDADANA","OPD_PROYECTO"]
["DIRECCION DE ATENCION Y VINCULACION CIUDADANA","SECRETARIA DEL AYUNTAMIENTO","DEPARTAMENTO DE CONTRATOS Y CONVENIOS","DEPARTAMENTO DE RECLUTAMIENTO MILITAR","DELEGACION SAN SEBASTIANITO","DEPARTAMENTO DE BIENES MUEBLES","DIRECCION DE AUDITORIA A OBRA PUBLICA Y SERVICIOS","DEPARTAMENTO DE CAPACITACION Y SERVICIO SOCIAL","DEPARTAMENTO DE EVALUACION DE PROYECTOS Y PROGRAMAS","DIRECCION DE EDUCACION","DIRECCION DE CULTURA","DEPARTAMENTO DE REGULACION AMBIENTAL","DEPARTAMENTO DE TRABAJO SOCIAL","DIRECCION DE CONSTRUCCION Y MANTENIMIENTO","DEPARTAMENTO DE AREA DE PREVENCION","COMUCAT",null,"Atención a Reportesde Servicios Públicos, Información sobre Ayudas Sociales y Reportes en General","Servicios de asesoramiento legal y jurídico a la población que presenta vulnerabilidad legal e indefención de su patrimonio","Opiniones jurídicas","Actividades Administrativas","Programa de Apoyo a Adultos Mayores","Análisis documental de expedientes de obras ","Elaboración de Manuales Administrativos","Coordinación de actividades de los departamentos de la Dirección de Desempeño, Resultados y Tablero de Control","Alas de Esperanza","Formacion Continua","Trabajos emergentes de redes hidrosanitarias ","Soporte Ventilatorio ","Programa de Urbanización ","Gestión Adquisición de Uniformes","Capacitaciones Preventivas en Adicciones "]
["DIRECCION DE COMUNICACION ESTRATEGICA",null,"DEPARTAMENTO DE MEJORA REGULATORIA","DIRECCION DE APOYO A CABILDO","DEPARTAMENTO DE ASUNTOS RELIGIOSOS","DEPARTAMENTO DE REDES Y TELECOMUNICACIONES","DIRECCION DE AUDITORIA GUBERNAMENTAL Y COMBATE A LA CORRUPCION","DEPARTAMENTO DE INCIDENCIAS Y CALCULO DE NOMINA","DEPARTAMENTO DE GESTION TERRITORIAL SUELO Y VIVIENDA","DIRECCION DE PROGRAMAS SOCIALES PARA EL BIENESTAR","DIRECCION DE DESARROLLO ARTESANAL Y TURISTICO (ARTESANAL)","DIRECCION DE AGUA POTABLE, DRENAJE Y ALCANTARILLADO","DIRECCION DE SALUD PUBLICA","DIRECCION DE PRESUPUESTOS Y CONTRATACION DE OBRA PUBLICA","DIRECCION ADMINISTRATIVA","COMUDE",null,"Atencion y capacitacion a organizaciones vecinales en materia de participacion ciudadana","Catálogo Municipal de Trámites y Servicios","Consultas y asesoría jurídica","Atención a Solicitudes Ciudadanas","Programa de Convenios","Control documental de expedientes de obras ","Armonización Organizativa ","Servicio de Acompañamiento para la gestión del sistema de Planeación Municipal ","Aprendiendo bien ","Ferias, Festivales y Exposiciones","Servicio  Medido ","Atención Urgente en Sala de Choque","Señalización Horizontal y Vertical ","Programa permanente de seguimiento para la administración eficiente de los recursos humanos y materiales de la Secretaría ","Atención Terapeútica "]
["SUBDIRECCION DE GESTION DE PARTICIPACION TERRITORIAL",null,"DIRECCION JURIDICA","DIRECCION DE DERECHOS HUMANOS","DEPARTAMENTO DE OFICINA DE PASAPORTES","DEPARTAMENTO DE SERVICIOS GENERALES","DIRECCION DE RESPONSABILIDADES Y EVOLUCION PATRIMONIAL","DIRECCION DE DESARROLLO ORGANIZACIONAL","DEPARTAMENTO DE INDICADORES Y METAS PARA RESULTADOS","SUBDIRECCION DE DESARROLLO Y ATENCION AL SECTOR AGROPECUARIO","DIRECCION DE GESTION EMPRESARIAL E INDUSTRIAL","DIRECCION DE ALUMBRADO PUBLICO","DIRECCION DE URGENCIAS MEDICAS","SUBDIRECCION DE INSPECCION DE CONTROL DE LA EDIFICACION Y ORDENAMIENTO TERRITORIAL","DIRECCION DE ATENCION A LA VIOLENCIA DE GENERO","IMJUVET",null,"Conformacion de Organizaciones Vecinales","Servicio de Revisión Contratos ","Cartillas Militares","Brigadas de Mantenimiento y Recuperación de Espacios Públicos ","Programa Integral de Recaudación","Auditorías ","Certificación en el ECO385","Seguimiento y Evaluación a la Administración Pública Municipal","Unidos en Corazón ","Cultura por la Paz","Recepción, Distribución, Dosificación, Monitoreo de cloro residual de Agua Potable","Enseñanza Continua","Intervenciones al Entorno Urbano","Material para el desempeño de las actividades de la Unidad de Proximidad Social ","Espacios COMUCAT"]
["UNIDAD DE TRANSPARENCIA",null,"SINDICATURA","DIRECCION DE MEDIACION Y JUZGADOS CIVICOS MUNICIPALES","DIRECCION DE ARCHIVO MUNICIPAL","DEPARTAMENTO DE SOPORTE Y MANTENIMIENTO","SUBDIRECCION DE AUDITORIA FINANCIERA Y DE DESEMPEÑO","","DEPARTAMENTO DE PLANEACION URBANA",null,"DIRECCION DEL CENTRO HISTORICO","DIRECCION DE ASEO PUBLICO","SUBDIRECCION DE ENSEÑANZA","SUBDIRECCION DE MANTENIMIENTO","DIRECCION DE BOMBEROS Y PROTECCION CIVIL","IMMUJERES",null,"Socializando y perifoneando para la cuidadania","Actualización de los instrumentos de control de Archivo de Tramite de la Sindicatura","Campaña de Integración Familiar 2025","Festividades Tradicionales Cívicas","Administración y control de los Recursos Materiales  ","Visitas de Inspección ","Capacitación en materia de Derechos Humanos","Seguimiento y Evaluación a los Programas Sociales","Cuidando tu Esperanza","Cultura en tu colonia ","Padrón Único de Usuarios","Monitores al Área de Urgencias (Choque)","Mtto. a Edificios y Espacios Públicos","Certificación de personal y oficiales caninos K-9","Red de Apoyo para Establecimientos especializado en Adicciones "]
["",null,"","DIRECCION DE REGISTRO CIVIL","DIRECCION DE DELEGACIONES Y AGENCIAS","DEPARTAMENTO DE TALLER MUNICIPAL","","","DEPARTAMENTO DEL SISTEMA DE EVALUACION DEL DESEMPEÑO",null,"SUBDIRECCION DE BIBLIOTECAS","DIRECCION DE RASTRO","SUBDIRECCION DE SALUD ANIMAL","","DIRECCION OPERATIVA","PREMIO NACIONAL DE LA CERÁMICA",null,"Campañas en Redes Sociales ","Presentación de Iniciativas de modificación de normatividad","Celebracion de Matrimonios en Lugares emblemáticos ","Visitas a Colonias ","Administracion de Bienes Inmuebles","Auditorías ","Desarrollo Académico Básico de las y los servidores públicos de la Secretaría de Servicios Públicos y Medio Ambiente ","Banco integrado de proyectos y programas","Esperanza Joven ","Amigos de Refugio ","Gestión y puesta en marcha del laboratorio de análisis de Agua Potable","Camillas al Área de Urgencias (Choque)","Programa Permanente de Mantenimiento de Vialidades ","Equipamiento para el desarrollo del centro de unidades policiales especializadas de Tlaquepaque (C.U.P.E.T.)","Área Alimentaria "]
["",null,"","DIRECCION LEGAL-CONSULTIVA","DIRECCION DE INSPECCION Y VIGILANCIA","DIRECCION DE CATASTRO","","","DIRECCION DE GESTION DEL DESEMPEÑO, EVALUACION DE RESULTADOS Y TABLERO DE CONTROL",null,"SUBDIRECCION DE MUSEOS","DIRECCION DE SALUD AMBIENTAL Y CAMBIO CLIMATICO",null,"","SUBDIRECCION DE GESTION GENERAL DEL RIESGO","Sistema de Desarrollo Integral de la Familia (DIF) de Tlaquepaque",null,"Atención a Reportesde Servicios Públicos, Información sobre Ayudas Sociales y Reportes en General",null,"Calificacion de Actas de Infraccion ","Servicio eficaz de trámite de licencias municipal precensial y en línea","Actualización y control de los inventarios de los bienes muebles.","Procedimientos de aclaración derivados de entrega recepción ","Difusión de Protocolos ","Seguimiento de  Mesas de gestión Metropolitana ante el IMEPLAN ","Inclusión con Esperanza","Equipamiento de talleres y Administrativo de Artes, Artesanías y Oficios","Estudio de Factibiloidades de Redes Hidrosanitarias ","Terapia de Infusión Intravenosa","Mantenimiento a Escuelas ","Proyecto de adapatación de espacio para entrenamiento de oficiales caninos  ","Psicología "]
["",null,"","OFICINA DEL REGISTRO CIVIL NO. 1","DIRECCION DE PADRON Y LICENCIAS","DIRECCION DE CONTABILIDAD Y GLOSA","","","DIRECCION DE GESTION TERRITORIAL Y PLANEACION URBANA","","DIRECCION DE DESARROLLO ARTESANAL Y TURISTICO (TURISMO)","SUBDIRECCION DE\nPARQUES, JARDINES Y GESTIÓN\nDEL CAMBIO CLIMÁTICO DE SERVICIOS ECOSISTEMICOS Y GESTION DEL CAMBIO CLIMATICO",null,"","SUBDIRECCION DE PLANEACION ESTRATEGICA","",null,"Atencion y capacitacion a organizaciones vecinales en materia de participacion ciudadana",null,"Restablecer el servicio de trabajo social y psicología a Juzgados Cívicos Municipales ","Regularizacion de licencias en base a la ley de hacienda","Implementar Sistema de Inventarios  ","Visitas de Inspección ","Fortalecimiento y Desarrollo de Habilidades Blandas y Desarrollo Humano","Gestión de recursos para la adquisición de vehículos para el seguimiento de programas de los tres niveles de gobierno ","Legados de Esperanza ","Equipamiento para las Bibliotecas","Equipamiento de Parque Vehicular para el Suministro de Agua Potable","Prevención de riesgo de caidas ","Programa para la gestión sustentable de la infraestructura y movilidad segura.","Unidad de Proximidad Policial ","Talleres de Esperanza "]
["",null,"","SECRETARIA DE LA CONSEJERIA JURIDICA","DIRECCION DE PADRON Y LICENCIAS 1","DIRECCION DE EGRESOS","","","DIRECCION DEL BANCO INTEGRADO DE PROYECTOS Y PROGRAMAS","",null,"SUBDIRECCION DE SERVICIOS ECOSISTEMICOS Y GESTION DEL CAMBIO CLIMATICO DE\nPARQUES, JARDINES Y GESTIÓN\nDEL CAMBIO CLIMÁTICO",null,"","SUBDIRECCION DE PREVENCION AL DELITO","",null,"Conformacion de Organizaciones Vecinales",null,"Construcción y habilitación del espacio digno y seguro para la atención a mujeres víctimas de violencia ","Verificación de giros comerciales rezagados en el municipio de San Pedro Tlaquepaque","Recursos Humanos eficiente ","Educación e Innovación Técnológica","Fortalecimiento y Desarrollo de Habilidades Técnicas","Dictamen de evaluación de solicitud de obras","Líderes de Esperanza","Mantenimiento de la infraestructura de las Bibliotecas","Entrega del Vital Líquido ","Ferías de la Salud Tlaquepaque","Programa para la gestión sustentable de la infraestructura básica.","Atención a las violencias en el ámbito familiar y seguimiento a Medidas/Ordenes de Protercción emitidas en razón de Género.","Programa de Atención a la Discapacidad "]
["",null,"",null,"SUBDIRECCION DE ATENCION E INSPECCION A TIANGUIS Y ESPACIOS ABIERTOS","DIRECCION DE INGRESOS","","","SECRETARIA DE PLANIFICACION, ANALISIS Y GESTION URBANA","",null,"DIRECCIÓN DE CEMENTERIOS",null,"","SUBDIRECCION DE PROFESIONALIZACION Y ACREDITACION POLICIAL","",null,"Socializando y perifoneando para la cuidadania",null,"Difusión de la Cultura de Paz en conflictos comunitarios ","Verificación y regularización de residuos peligrosos y emisiones en talleres de laminado y pintura ","Mantenimiento preventivo y correctivo del parque vehicular ",null,"Promoción de estilos de vida y entornos laboral, alimentaria y físicamente saludable para el personal","Coordinación de actividades de las direcciones que integran la Secretaría de Planificación, Análisis y Gestión Urbana ","Mujeres Colibrí","Talleres de Fomento a Cultura","Actualización de Datos de Redes Hidrosanitarias ","Reinstauracion de Unidad Medica La Guadalupana","Programa para la recuperación del espacio público y regeneración del tejido social","Prevención Comunitaria de las Violencias en el ámbito familiar y por razón de género.","Inclusión y Derechos Humanos de las Personas con Discapacidad"]
["",null,"","","SUBDIRECCION DE ATENCION E INSPECCION DE MERCADOS","DIRECCION DE RECURSOS MATERIALES","","",null,"",null,null,null,"","SUBDIRECCION DE VIALIDAD","",null,"Campañas en Redes Sociales ",null,"Atención primaria a problemas de adicción ","Regularizar comercio en espacio abierto en la colonia San Martín de las Flores ","Licitaciones Ejecutadas ",null,"Tlaquepaque Universitario ",null,"Nutriendo Esperanza ","XVLVII Premio Nacional de la Cerámica","Servicio de dictaminación ambiental","Vinculación de Asistencia Social","Programa Fortalecimiento institucional financiero y operativo, para la provisión de los servicios públicos municipales bajo criterios de calidad, eficiencia y oportunidad.","Programa Volanta","Protección y Atención ante casos de Violencia Familia"]
["",null,"","","SUBDIRECCION DE INSPECCION AMBIENTAL","SUBDIRECCION DE COMPRAS Y ADQUISICIONES","","","","","",null,"","","SUBDIRECCION DE VINCULACION CIUDADANA","",null,null,null,"Orientación y Asesoría Jurídica ","Actualizar los padrones de los comerciantes de tianguis ","Capacitación para Adquisiciones ",null,"Pago de Nóminas ",null,"Ojos mirando al Futuro ","Museos a la Calle ","Retiro de bienes en estado de abandono en la vía pública","Campañas de esterilización y vacunación antirrábica gratuitas ","Programa de Inspección y Vigilancia de Tramites y Licencias de Construcción.","Gestión y adquisición de vehículo,  equipos de computo y material, para una mejor atención eficiente y efizaz a los ciudadanos de San Pedro Tlaquepaque ","Procuraduría de Protección de NNA"]
["",null,"","",null,"SUBDIRECCION DE CONTROL DE PAGOS","","","","","","","","","SUBDIRECCION JURIDICA Y DE DERECHOS HUMANOS","",null,null,null,"Diplomado en MASC","Recuperación de locales abandonados en merados municipales ","Porcentaje de presupuesto ejercido de acuerdo con criterios de eficiencia, austeridad y ahorro",null,null,null,"Peques, Estancias de Esperanza","Museo Itinerante ","Registro de ladrilleros","Atención Médica a Paciente Encamado a Domicilio ","Trámites y Servicios","Gestión, adquisición y entrega de uniformes","Albergue Vista Hermosa "]
["",null,"","",null,"SUBDIRECCION DE PATRIMONIO","","","","","","","","","SUBDIRECCION OPERATIVA","",null,null,null,"La Mediación con rumbo a tu Colonia","Creación de un libro sobre la historia del Archivo Municipal ","Optimizar el proceso de pagos ",null,null,null,"Raíces Jóvenes ","Exposiciones Temporales","Registro de fuentes fijas municipales",null,null,"Gestión, adquisición y entrega de vehículos ","Protección y Restitución de Derechos de Niñas. Niños y Adolescentes "]
["",null,"","",null,null,"","","","","","","","",null,"",null,null,null,"Atención y desahogo de los MASC ","Programa de Apoyo a la Infraestructura Cultural de los Estados PAICE ","Programa de elaboración y presentación de Cuentas Públicas",null,null,null,"Semilleros de la Esperanza","Acondicionamiento y Equipamiento del Centro Cultural El Refugio","Denuncia ambiental ciudadana",null,null,"Evaluaciones de Control de Confianza","Área Médica "]
["",null,"","","",null,"","","","","","","","",null,"",null,null,null,"Apoyo Asuntos derivados por Secretaría","Programa de capacitación para la clasificación, organización, transferencia, resguardo y consulta de información oficial ","Normalización e identificación de la TI",null,null,null,"Tlaquepasos ","Equipamiento del Departamento Promoción y Difusión Cultural","Adopta un árbol y dale vida al planeta",null,null,"Credencialización de Personal Operativo ","Laboratorio Clínico "]
["",null,"","","",null,"","","","","","","","",null,"",null,null,null,"Consolidar el Sistema de Información de Acuerdos del Pleno","Proyecto de digitalización para el Archivo Municipal ","Sistema de control de servicios ",null,null,null,"Tu Esperanza Vale","Rescatando nuestras Tradiciones ","Operativo de Reforestación",null,null,"Mantenimiento Preventivo de Armas ","Por una Gestión Responsable "]
[null,null,null,null,null,null,null,null,null,null,null,null,null,null,null,null,null,null,null,"Integración, Dictaminación de Iniciativas ","Campaña de divulgación cultural histórica del Archivo Muicipal a escuelas de educación básica en Tlaquepaque ","Instalación de Cámaras de Seguridad ",null,null,null,"Actividades Extraescolares ","Permanencia Pueblo Mágico ","Trituración de material organico para la elaboración de composta",null,null,"Compra de armamento ","Rehabilitación "]
[null,null,null,null,null,null,null,null,null,null,null,null,null,null,null,null,null,null,null,"Participación en Sesiones del Ayuntamiento","Coadyuvar en la creación de un convenio tripartita entre la A.C. Vifac, el Gobierno Municipal y Asociaciones religiosas de San Pedro Tlaquepaque  ","Reingeniería Ciudadanía Digital",null,null,null,"Re-conociendo a la labor docente y entrega de medalla al merito","Padrón Artesanal y Credencialización ","Operativo Mantenimiento de áreas verdes",null,null,"Compra de municiones ","Atención a la Población en Condiciones de Emergencia"]
[null,null,null,null,null,null,null,null,null,null,null,null,null,null,null,null,null,null,null,"Sitio Web de Actas y Acuerdos","Servicio de atención a las necesidades de las distintas asociaciones religiosas del municipio ","Tramites y Servicios ",null,null,null,"Re-conociendo con bienestar","Festivales, Eventos, Ferías y Exposiciones","Operativo de podas preventivas",null,null,"Compra de chalecos balísticos ","Fortalecimiento Sociofamiliar "]
[null,null,"Del 1 de Octubre al 31 de Diciembre del 2024",null,null,null,null,null,null,null,null,null,null,null,null,null,null,null,null,"Reconstruccion del tejido social. Atencion a los grupos vulnerables.","Trámite de Pasaporte Mexicano en Oficinas de Enlace de Tlaquepaque",null,null,null,null,"Profesionalización Docente ","Ferías y Exposiciones","Operativos de derribos secos",null,null,"Elaboración de documentos y/o diagnósticos basados en evidencias ","Atención Integral a personas a Adultos Mayores "]
[null,null,"Del 1 de Enero al 31 de Marzo del 2025",null,null,null,null,null,null,null,null,null,null,null,null,null,null,null,"Revisión documentos para firma Presidenta",null,null,null,null,null,"Alerta con la diversidad funcional ","Capacitación ","Parque Vehicular",null,null,"Coordinación de la Politica Transversal de Recontsrucción del Tejido Social ","CDC"]
[null,null,"Del 1 de Abril al 30 de Junio del 2025",null,null,null,null,null,null,null,null,null,null,null,null,null,null,null,"Atención y orientación jurídica a la ciudadanía",null,null,null,null,null,"Feria de la oferta educativa media superior y superior ","Mujeres Empresarias en Tlaquepaque","Sembrando Esperanza",null,null,"Sendero Seguro ","Clinica Deportiva Prevención de Adicciones "]
[null,null,"Del 1 de Julio al 31 de Septiembre del 2025",null,null,null,null,null,null,null,null,null,null,null,null,null,null,null,"Capacitación Jurídica al Gobierno Municipal",null,null,null,null,null,"Educación y capacitación para el medio ambiente","Expo Emprende y Transforma 2025","Creadores de Esperanza para el Medio Ambiente",null,null,"Programa de Participación Ciudadana (Línea Segura)","Prevención de Embarazo Adolescente "]
[null,null,null,null,null,null,null,null,null,null,null,null,null,null,null,null,null,null,null,"Participación comisiones, comités y grupos de trabajo",null,null,null,null,null,"Cabildo infantil y juvenil","Empleo a Tu Alcance","Gobierno con Buen Papel",null,null,"Actualización de Requisitos de Permanencia ","Crecer sin Violencia "]
[null,null,null,null,null,null,null,null,null,null,null,null,null,null,null,null,null,null,null,null,null,null,null,null,null,"Aulas tecnológicas e interáctivas","Capacitación Permanente Empresarial, Cooperativas bienes y/o Servicios y Talleres Autoempleo","Trueque",null,null,"Becas para Cadetes en Formación Inicial Policía de Proximidad","Situación de Calle "]
[null,null,null,null,null,null,null,null,null,null,null,null,null,null,null,null,null,null,null,null,null,null,null,null,null,"Abrigando tu bienestar","Vinculación directa con empresas","El Mercadito ",null,null,"Formación de docentes e instructores certificados","Mejoramiento Educativo "]
[null,null,null,null,null,null,null,null,null,null,null,null,null,null,null,null,null,null,null,null,null,null,null,null,null,"Escuelas para el bienestar","Mantenimiento y Conservación del Centro Histórico ","Hacía un futuro más limpio",null,null,"Convocatoria para Selección de Personal Operativo ","Prevención y Detención de abuso Sexual "]
[null,null,null,null,null,null,null,null,null,null,null,null,null,null,null,null,null,null,null,null,null,null,null,null,null,"Graduaciones del bienestar ","Exposiciones Casa Morelos ","Servicio de recolección de residuos urbanos",null,null,"Formación Inicial Policía de Proximidad","Beca Joven"]
[null,null,null,null,null,null,null,null,null,null,null,null,null,null,null,null,null,null,null,null,null,null,null,null,null,"Adecuaciones de acceso","Agenda del Espacio Público ","Fortalecimiento y adiestramiento al personal operativo ",null,null,"Profesionalización Continua ","Cabildo Juvenil "]
[null,null,null,null,null,null,null,null,null,null,null,null,null,null,null,null,null,null,null,null,null,null,null,null,null,"Expanción de delagaciónes del bienestar ",null,"Plataforma de Atención Ciudadana (Reportes)",null,null,"Selección y Reclutamiento para plazas operativas","Cine en tu Barrio "]
[null,null,null,null,null,null,null,null,null,null,null,null,null,null,null,null,null,null,null,null,null,null,null,null,null,"Bienestar Tla-li",null,"Programa de operativos de limpieza",null,null,"Centro de Atención a Niños, Niñas y Adolescentes de Tlaquepaque","Coloquios Juveniles "]
[null,null,null,null,null,null,null,null,null,null,null,null,null,null,null,null,null,null,null,null,null,null,null,null,null,"Bienestar sin fronteras",null,"Acciones para el ahorro del parque vehícular",null,null,"Programas Preventivos","Ciltiva-T"]
[null,null,null,null,null,null,null,null,null,null,null,null,null,null,null,null,null,null,null,null,null,null,null,null,null,"Bienestar con Orgullo",null,"Rehabilitación de las instalaciones de atención de aseo público",null,null,"Gabinete Psicológico","Cultura en tu escuela"]
[null,null,null,null,null,null,null,null,null,null,null,null,null,null,null,null,null,null,null,null,null,null,null,null,null,"Rehabilitación Permanente de Caminos Rurales",null,"Compra de unidades",null,null,"ASIPT","Enchula tu barrio "]
[null,null,null,null,null,null,null,null,null,null,null,null,null,null,null,null,null,null,null,null,null,null,null,null,null,"Procesadora de composta orgánica. ",null,"Servicio de fumigación para prevención del dengue y otras plagas",null,null,"Cascareando por la prevención","Festival Juventudes Tlaquepaque"]
[null,null,null,null,null,null,null,null,null,null,null,null,null,null,null,null,null,null,null,null,null,null,null,null,null,"Pozos de absorción Tecnificados.",null,"Sustitucion de luminarias a la red de alumbrado publico.",null,null,"Trotando ando por la vida y la familia","Jóvenes con arte"]
[null,null,null,null,null,null,null,null,null,null,null,null,null,null,null,null,null,null,null,null,null,null,null,null,null,"Conservación y mejoramiento de suelos agrícolas ",null,"Mantenimiento y reparación de luminarias a la red de alumbrado publico.",null,null,"Programa del consejo municipal de Proteccion Civil de San Pedro Tlaquepaque","Jóvenes Con-Ciencia "]
[null,null,null,null,null,null,null,null,null,null,null,null,null,null,null,null,null,null,null,null,null,null,null,null,null,"Compra de Balastre  o Gravilla",null,"Obtención de contenedores de basura ",null,null,"Programa permanente de operativos de prevencion de accidentes","Juventudes Emprendedoras "]
[null,null,null,null,null,null,null,null,null,null,null,null,null,null,null,null,null,null,null,null,null,null,null,null,null,"Mantenimiento Dron Agricola Agras T 30 Mark DJI mod. 2023",null,"Digitalizacion administrativa ",null,null,"Programa permanente de auxilio a la poblacion para casos de emergencia y/o desastres en San Pedro Tlaquepaque","Juventudes con historia "]
[null,null,null,null,null,null,null,null,null,null,null,null,null,null,null,null,null,null,null,null,null,null,null,null,null,"Detección y Vacunación de Ganado Rumiante contra la Tuberculosis y Brucela. ",null,"Compra venta de espacios",null,null,"Programa de evaluacion y dictaminacion de riesgos hidrometeorologicos","Juventudes a la cancha "]
[null,null,null,null,null,null,null,null,null,null,null,null,null,null,null,null,null,null,null,null,null,null,null,null,null,"Hidroponía ",null,"Ampliacion y adecuacion del area de archivo de catastro de cementerios",null,null,"Programa de Gestion Inetrgal del Riesgo mediante visitas de inspeccion a inmuebles","Oportunidad joven "]
[null,null,null,null,null,null,null,null,null,null,null,null,null,null,null,null,null,null,null,null,null,null,null,null,null,null,null,"Mejora en las instalaciones",null,null,"Programa de Dictaminacion de Programas Internos de Protección Civil, Estudios Generales de Riesgos y Dictaminación y Evaluación de Riesgos","Conoce tus derechos"]
[null,null,null,null,null,null,null,null,null,null,null,null,null,null,null,null,null,null,null,null,null,null,null,null,null,null,null,"Capacitación Continua",null,null,"Programa permanente de prevencion de riesgos mediante la capacitacion a la poblacion en general","Premio de las juventudes"]
[null,null,null,null,null,null,null,null,null,null,null,null,null,null,null,null,null,null,null,null,null,null,null,null,null,null,null,"Inspección Carnica",null,null,"Ampliación y remodelación de Bases operativas, Base Central, Base 2 (El Sauz) y Base 4 (Parques de la Victoria)","Servicio Social Integral "]
[null,null,null,null,null,null,null,null,null,null,null,null,null,null,null,null,null,null,null,null,null,null,null,null,null,null,null,"Participación en campañas",null,null,"Equipamiento de la Base de Bomberos","Suetertón & Jugetón"]
[null,null,null,null,null,null,null,null,null,null,null,null,null,null,null,null,null,null,null,null,null,null,null,null,null,null,null,null,null,null,"Programa de Actualización del Atlas Municipal de Riesgos de San Pedro Tlaquepaque","Tlaque-Can"]
[null,null,null,null,null,null,null,null,null,null,null,null,null,null,null,null,null,null,null,null,null,null,null,null,null,null,null,null,null,null,"Programa de profecionalización, actualización, especializada y salud integral para el personal de la Dirección de Bomberos y Protección Civil","Enfoque Transversal con Perspectiva de Género"]
[null,null,null,null,null,null,null,null,null,null,null,null,null,null,null,null,null,null,null,null,null,null,null,null,null,null,null,null,null,null,null,"Libres por la igualdad "]
[null,null,null,null,null,null,null,null,null,null,null,null,null,null,null,null,null,null,null,null,null,null,null,null,null,null,null,null,null,null,null,"Vivir sin violencia"]
[null,null,null,null,null,null,null,null,null,null,null,null,null,null,null,null,null,null,null,null,null,null,null,null,null,null,null,null,null,null,null,"Administración y Gestión Institucional"]
[null,null,null,null,null,null,null,null,null,null,null,null,null,null,null,null,null,null,null,null,null,null,null,null,null,null,null,null,null,null,null,"Macro Eventos"]
[null,null,null,null,null,null,null,null,null,null,null,null,null,null,null,null,null,null,null,null,null,null,null,null,null,null,null,null,null,null,null,"Via recreactiva metropolitana san pedro tlaquepaque "]
[null,null,null,null,null,null,null,null,null,null,null,null,null,null,null,null,null,null,null,null,null,null,null,null,null,null,null,null,null,null,null,"Infraestructura"]
[null,null,null,null,null,null,null,null,null,null,null,null,null,null,null,null,null,null,null,null,null,null,null,null,null,null,null,null,null,null,null,"Tlaquepaque Acude"]

{"sheet":"Pbr's","index":4,"n_rows":353,"n_cols":30,"rows_kept":353,"cut":false,"hidden":true,"merged":[[1,14,2,14],[1,19,2,19],[0,14,0,19],[0,20,0,23],[343,10,345,10],[343,11,345,11],[343,12,345,12],[350,10,351,10],[350,11,351,11],[350,12,351,12],[337,10,339,10],[337,11,339,11],[337,12,339,12],[340,10,341,10],[340,11,341,11],[340,12,341,12],[308,10,310,10],[308,11,310,11],[308,12,310,12],[316,10,317,10],[316,11,317,11],[316,12,317,12],[302,10,304,10],[302,11,304,11],[302,12,304,12],[305,10,307,10],[305,11,307,11],[305,12,307,12],[297,10,298,10],[297,11,298,11],[297,12,298,12],[299,10,300,10],[299,11,300,11],[299,12,300,12],[292,10,294,10],[292,11,294,11],[292,12,294,12],[295,10,296,10],[295,11,296,11],[295,12,296,12],[283,10,284,10],[283,11,284,11],[283,12,284,12],[287,10,289,10],[287,11,289,11],[287,12,289,12],[276,10,278,10],[276,11,278,11],[276,12,278,12],[280,10,282,10],[280,11,282,11],[280,12,282,12],[272,10,273,10],[272,11,273,11],[272,12,273,12],[274,10,275,10],[274,11,275,11],[274,12,275,12],[255,10,259,10],[255,11,259,11],[255,12,259,12],[267,10,268,10],[267,11,268,11],[267,12,268,12],[249,10,250,10],[249,11,250,11],[249,12,250,12],[251,10,252,10],[251,11,252,11],[251,12,252,12],[242,10,244,10],[242,11,244,11],[242,12,244,12],[233,10,234,10],[233,11,234,11],[233,12,234,12],[235,10,237,10],[235,11,237,11],[235,12,237,12],[205,10,206,10],[205,11,206,11],[205,12,206,12],[223,10,225,10],[223,11,225,11],[223,12,225,12],[238,10,241,10],[238,11,241,11],[238,12,241,12],[199,10,200,10],[199,11,200,11],[199,12,200,12],[202,10,203,10],[202,11,203,11],[202,12,203,12],[176,10,177,10],[176,11,177,11],[176,12,177,12],[189,10,190,10],[189,11,190,11],[189,12,190,12],[169,10,170,10],[169,11,170,11],[169,12,170,12],[174,10,175,10],[174,11,175,11],[174,12,175,12],[166,10,167,10],[166,11,167,11],[166,12,167,12],[144,10,145,10],[144,11,145,11],[144,12,145,12],[151,10,152,10],[151,11,152,11],[151,12,152,12],[132,10,133,10],[132,11,133,11],[132,12,133,12],[136,10,137,10],[136,11,137,11],[136,12,137,12],[109,10,112,10],[109,11,112,11],[109,12,112,12],[130,10,131,10],[130,11,131,11],[130,12,131,12],[69,10,70,10],[69,11,70,11],[69,12,70,12],[75,10,77,10],[75,11,77,11],[75,12,77,12],[47,10,48,10],[47,11,48,11],[47,12,48,12],[52,10,53,10],[52,11,53,11],[52,12,53,12],[31,10,33,10],[31,11,33,11],[31,12,33,12],[38,10,39,10],[38,11,39,11],[38,12,39,12],[14,10,15,10],[14,11,15,11],[14,12,15,12],[28,10,30,10],[28,11,30,11],[28,12,30,12],[5,10,6,10],[5,11,6,11],[5,12,6,12],[8,10,9,10],[8,11,9,11],[8,12,9,12]]}
[null,null,352724141,null,null,null,null,null,null,null,null,null,null,null,"Evaluacion  Anexo Cuantitativo",null,null,null,null,null,"Evaluacion  Anexo Cualitativo"]
[null,null,352724141,null,null,336,"Indicador Operativo",null,null,null,null,null,null,null,"DIMENSIÓN A MEDIR (Eficiencia/Eficacia/  Economía/Calidad)","AVANCE 1","AVANCE 2","AVANCE 3","AVANCE 4","AVANCE ACUMULADO EN PORCENTAJE","AVANCE 1","AVANCE 2","AVANCE 3","AVANCE 4"]
[null,null,"Secretaria","Dependencia","NO.","Proyecto","Nombre de indicador","Unidad de medida","Línea Base","Meta",null,null,null,"Revisado",null,"Primer Trimestre             (octubre-diciembre 2024)                        "," Segundo Trimestre           (enero-marzo 2025)                       ","Tercer Trimestre    (abril-junio 2025)                       "," Cuarto Trimestre (julio-septiembre 2025)                       ",null,"Primer Trimestre             (octubre-diciembre 2024)                        "," Segundo Trimestre           (enero-marzo 2025)                       ","Tercer Trimestre    (abril-junio 2025)                       "," Cuarto Trimestre (julio-septiembre 2025)                       ",null,"Secretarias","Secretarias/Direcciones/Subdireciones/Departamentos","No. Total de Indicadores","Total Recibidos","% Avance"]
[{"$f":"B4&F4","v":"OFICINA_DE_PRESIDENCIADIRECCION DE COMUNICACION ESTRATEGICA1Campañas en Redes Sociales"},{"$f":"C4&D4&E4","v":"OFICINA_DE_PRESIDENCIADIRECCION DE COMUNICACION ESTRATEGICA1"},"OFICINA_DE_PRESIDENCIA","DIRECCION DE COMUNICACION ESTRATEGICA",{"$f":"COUNTIF($D$4:D4,D4:D4)","v":1},"Campañas en Redes Sociales","Porcentaje de avance en la  realización de campañas en Redes Sociales ","Número de campañas en redes sociales realizadas",0,35,"GRISELDA MEDRANO CRUZ","33 10 57 60 08","mgriselda672@gmail.com Y daniela.neri@tlaquepaque.gob.mx",null,"Eficiencia/Calidad",1,null,null,null,{"$f":"SUM(P4:S4/J4)","v":2.8571428571428571E-2},"Narrativa de trimestre Octubre-diciembre: el pasado 30 de noviembre se concluyo la campaña  Festival de Muertos.   ",null,null,null,null,{"$f":"COUNTA(SECRETARIAS_DIRECCIONES)","v":16},{"$f":"COUNTA(SECRETARIASYPROYECTOS!A3:P19)","v":217},{"$f":"COUNTA(G4:G346)","v":343},{"$f":"COUNTA(P4:P346)","v":88},{"$f":"AC4/AB4","v":0.2565597667638484}]
[{"$f":"B5&F5","v":"OFICINA_DE_PRESIDENCIADIRECCION DE ATENCION Y VINCULACION CIUDADANA1Atención a Reportes de Servicios Públicos, Información sobre Ayudas Sociales y Reportes en General"},"OFICINA_DE_PRESIDENCIADIRECCION DE ATENCION Y VINCULACION CIUDADANA1","OFICINA_DE_PRESIDENCIA","DIRECCION DE ATENCION Y VINCULACION CIUDADANA",{"$f":"COUNTIF($D$4:D5,D5:D5)","v":1},"Atención a Reportes de Servicios Públicos, Información sobre Ayudas Sociales y Reportes en General","Porcentaje de reportes atendidos mediante la plataforma de ciudadanía digital, así como de manera presencial y vía telefónica.","número de reportes atendidos ",7500,9500,"Lourdes Hernández Rojas","33.28.10.66.00","luhrojas.shadday@gmail.com",null,"Eficiencia",3539,null,null,null,{"$f":"SUM(P5:S5/J5)","v":0.37252631578947371},"En este trimeste se atendieron un total de 3539 solicitudes de la siguiente manera: 384 gestiones personalizadas, 255 gestiones de comités vecinales y se recibieron un total de 2900 llamadas tanto en conmutador así como en los teléfonos directo de esta dependencia. Las gestione se vincularon a: Alumbrado Público, Aseo Público, Agua Potable, Drenaje y Alcantarillado, Cementerios, Centro Histórico, Asuntos Religiosos, Consejería Jurídica, COMUDE, Comisaría, DIF, Drechos Humanos Municipales, Insopección de Obra, Reglamentos, Mantenimiento de Vialidades y Pavimentos, Maquinaría Pesada, Subdirección de Vialidad, Tianguis, Mecardos y Espacios Abiertos, Turismo, Unidad de Violencia de Género, Procuraduría Social, SIAPA."]
["OFICINA_DE_PRESIDENCIASUBDIRECCION DE GESTION DE PARTICIPACION TERRITORIAL1Atención y capacitación a organizaciones vecinales en materia de participación ciudadana","OFICINA_DE_PRESIDENCIASUBDIRECCION DE GESTION DE PARTICIPACION TERRITORIAL1","OFICINA_DE_PRESIDENCIA","SUBDIRECCION DE GESTION DE PARTICIPACION TERRITORIAL",{"$f":"COUNTIF($D$4:D6,D6:D6)","v":1},"Atención y capacitación a organizaciones vecinales en materia de participación ciudadana","Porcentaje de avance en las atenciones a organizaciones vecinales","Numero atenciones  realizadas",0,80,"Octavio Cesar Huerta Diaz",3313085238,"hudo77@hotmail.com",null,null,null,null,null,null,{"$f":"SUM(P6:S6/J6)","v":0}]
["OFICINA_DE_PRESIDENCIASUBDIRECCION DE GESTION DE PARTICIPACION TERRITORIAL2Atención y capacitación a organizaciones vecinales en materia de participación ciudadana","OFICINA_DE_PRESIDENCIASUBDIRECCION DE GESTION DE PARTICIPACION TERRITORIAL2","OFICINA_DE_PRESIDENCIA","SUBDIRECCION DE GESTION DE PARTICIPACION TERRITORIAL",{"$f":"COUNTIF($D$4:D7,D7:D7)","v":2},"Atención y capacitación a organizaciones vecinales en materia de participación ciudadana","Porcentaje de avance en las capacitaciones  en materia de participación ciudadana","número de capacitaciones realizadas",0,60,null,3313085238,"hudo77@hotmail.com",null,null,null,null,null,null,{"$f":"SUM(P7:S7/J7)","v":0}]
["OFICINA_DE_PRESIDENCIASUBDIRECCION DE GESTION DE PARTICIPACION TERRITORIAL3Actualización de Organizaciones Vecinales","OFICINA_DE_PRESIDENCIASUBDIRECCION DE GESTION DE PARTICIPACION TERRITORIAL3","OFICINA_DE_PRESIDENCIA","SUBDIRECCION DE GESTION DE PARTICIPACION TERRITORIAL",{"$f":"COUNTIF($D$4:D8,D8:D8)","v":3},"Actualización de Organizaciones Vecinales","Porcentaje de avance en la conformación de organizaciones vecinales de participación ciudadana","Numero de conformaciones de organizaciones vecinales, realizadas    ",60,150,"Octavio Cesar Huerta Diaz",3313085238,"hudo77@hotmail.com",null,null,null,null,null,null,{"$f":"SUM(P8:S8/J8)","v":0}]
["OFICINA_DE_PRESIDENCIASUBDIRECCION DE GESTION DE PARTICIPACION TERRITORIAL4Socializando y perifoneando para la ciudadanía","OFICINA_DE_PRESIDENCIASUBDIRECCION DE GESTION DE PARTICIPACION TERRITORIAL4","OFICINA_DE_PRESIDENCIA","SUBDIRECCION DE GESTION DE PARTICIPACION TERRITORIAL",{"$f":"COUNTIF($D$4:D9,D9:D9)","v":4},"Socializando y perifoneando para la ciudadanía","Porcentaje de avance en el proceso de perifoneos de las acciones de gobierno, realizados","Numero de perifoneos realizados ",0,350,"Octavio Cesar Huerta Diaz",3313085238,"hudo77@hotmail.com",null,null,null,null,null,null,{"$f":"SUM(P9:S9/J9)","v":0}]
["OFICINA_DE_PRESIDENCIASUBDIRECCION DE GESTION DE PARTICIPACION TERRITORIAL5Socializando y perifoneando para la ciudadanía","OFICINA_DE_PRESIDENCIASUBDIRECCION DE GESTION DE PARTICIPACION TERRITORIAL5","OFICINA_DE_PRESIDENCIA","SUBDIRECCION DE GESTION DE PARTICIPACION TERRITORIAL",{"$f":"COUNTIF($D$4:D10,D10:D10)","v":5},"Socializando y perifoneando para la ciudadanía","Porcentaje de avance en el proceso de difundir acciones de gobierno, mediante la socialización, realizadas","Numero de socializaciones realizadas ",0,250,"Octavio Cesar Huerta Diaz",3313085238,"hudo77@hotmail.com",null,null,null,null,null,null,{"$f":"SUM(P10:S10/J10)","v":0}]
[{"$f":"B11&F11","v":"OFICINA_DE_PRESIDENCIASECRETARÍA GENERAL DEL AYUNTAMIENTO1Atención de asuntos designados por Presidencia"},{"$f":"C11&D11&E11","v":"OFICINA_DE_PRESIDENCIASECRETARÍA GENERAL DEL AYUNTAMIENTO1"},"OFICINA_DE_PRESIDENCIA","SECRETARÍA GENERAL DEL AYUNTAMIENTO",{"$f":"COUNTIF($D$4:D11,D11:D11)","v":1},"Atención de asuntos designados por Presidencia","Porcentaje de gestiones realizadas","Número de gestiones realizadas",0,40,"Marisol Martínez Quiroz",3310576035,"cinthia.flores@tlaquepaque.gob.mx","INCLUIDO",null,null,null,null,null,{"$f":"SUM(P11:S11/J11)","v":0}]
[{"$f":"B12&F12","v":"OFICINA_DE_PRESIDENCIASECRETARÍA GENERAL DEL AYUNTAMIENTO2Cartas de Residencia"},{"$f":"C12&D12&E12","v":"OFICINA_DE_PRESIDENCIASECRETARÍA GENERAL DEL AYUNTAMIENTO2"},"OFICINA_DE_PRESIDENCIA","SECRETARÍA GENERAL DEL AYUNTAMIENTO",{"$f":"COUNTIF($D$4:D12,D12:D12)","v":2},"Cartas de Residencia","Porcentaje de expedición de cartas de residencia.","Número de Cartas de Residencia expedidas.",0,2440,"Marisol Martínez Quiroz",3310576035,"cinthia.flores@tlaquepaque.gob.mx","INCLUIDO",null,null,null,null,null,{"$f":"SUM(P12:S12/J12)","v":0}]
["OFICINA_DE_PRESIDENCIASECRETARÍA GENERAL DEL AYUNTAMIENTO3Certificaciones","OFICINA_DE_PRESIDENCIASECRETARÍA GENERAL DEL AYUNTAMIENTO3","OFICINA_DE_PRESIDENCIA","SECRETARÍA GENERAL DEL AYUNTAMIENTO",{"$f":"COUNTIF($D$4:D13,D13:D13)","v":3},"Certificaciones","Porcentaje de certificaciones realizadas","Número de Documentos Certificados",0,6956,"Marisol Martínez Quiroz",3310576035,"cinthia.flores@tlaquepaque.gob.mx","INCLUIDO",null,null,null,null,null,{"$f":"SUM(P13:S13/J13)","v":0}]
["OFICINA_DE_PRESIDENCIASECRETARÍA GENERAL DEL AYUNTAMIENTO4Diseño, impresión, publicación y distribución de gacetas (Gaceta Municipa","OFICINA_DE_PRESIDENCIASECRETARÍA GENERAL DEL AYUNTAMIENTO4","OFICINA_DE_PRESIDENCIA","SECRETARÍA GENERAL DEL AYUNTAMIENTO",{"$f":"COUNTIF($D$4:D14,D14:D14)","v":4},"Diseño, impresión, publicación y distribución de gacetas (Gaceta Municipa","Porcentaje de gacetas publicadas","Número de Gacetas Publicadas ",0,12,"Marisol Martínez Quiroz",3310576035,"cinthia.flores@tlaquepaque.gob.mx","INCLUIDO",null,null,null,null,null,{"$f":"SUM(P14:S14/J14)","v":0}]
[{"$f":"B15&F15","v":"OFICINA_DE_PRESIDENCIAUNIDAD DE TRANSPARENCIA1Programa de Transparencia y Atención de solicitudes de acceso a la información y protección de datos personales"},{"$f":"C15&D15&E15","v":"OFICINA_DE_PRESIDENCIAUNIDAD DE TRANSPARENCIA1"},"OFICINA_DE_PRESIDENCIA","UNIDAD DE TRANSPARENCIA",{"$f":"COUNTIF($D$4:D15,D15:D15)","v":1},"Programa de Transparencia y Atención de solicitudes de acceso a la información y protección de datos personales","1. Porcentaje de atención de solicitudes de acceso a la información y protección de datos personales"," total de solicitudes atendidas.",1800,200,"Cesar Ignacio Bocanegra Alvarado",3310576030,"tlaquepaque.transparencia@gmail.com","INCLUIDO",null,null,null,null,null,{"$f":"SUM(P15:S15/J15)","v":0}]
["OFICINA_DE_PRESIDENCIAUNIDAD DE TRANSPARENCIA2Programa de Transparencia y Atención de solicitudes de acceso a la información y protección de datos personales","OFICINA_DE_PRESIDENCIAUNIDAD DE TRANSPARENCIA2","OFICINA_DE_PRESIDENCIA","UNIDAD DE TRANSPARENCIA",{"$f":"COUNTIF($D$4:D16,D16:D16)","v":2},"Programa de Transparencia y Atención de solicitudes de acceso a la información y protección de datos personales","2. Porcentaje de etapas de gestión realizadas para el fortalecimiento del equipamiento de la Unidad de Transparencia.","Número de etapas de gestión.",0,5,null,null,null,"INCLUIDO",null,null,null,null,null,{"$f":"SUM(P16:S16/J16)","v":0}]
["SINDICATURASINDICATURA1Actualización de los instrumentos de control de Archivo de Tramite de la Sindicatura","SINDICATURASINDICATURA1","SINDICATURA","SINDICATURA",{"$f":"COUNTIF($D$4:D17,D17:D17)","v":1},"Actualización de los instrumentos de control de Archivo de Tramite de la Sindicatura","Porcentaje de etapas para la actualización de instrumentos para un archivo de tramite de la Sindicatura, realizadas","Porcentaje de etapas realizadas ",0,8,"Juan Manuel Rodríguez Patiño",3338386294,"juan.rodriguez@tlaquepaque.gob.mx",null,null,null,null,null,null,{"$f":"SUM(P17:S17/J17)","v":0}]
["SINDICATURASINDICATURA2Presentación de Iniciativas de modificación de normatividad","SINDICATURASINDICATURA2","SINDICATURA","SINDICATURA",{"$f":"COUNTIF($D$4:D18,D18:D18)","v":2},"Presentación de Iniciativas de modificación de normatividad","Porcentaje de Iniciativas de modificación de normatividad  realizadas","número de iniciativas  realizadas ",0,3,"Juan Manuel Rodríguez Patiño",3338386294,"juan.rodriguez@tlaquepaque.gob.mx",null,null,null,null,null,null,{"$f":"SUM(P18:S18/J18)","v":0}]
["SINDICATURADIRECCION JURIDICA1Servicios de asesoramiento legal y jurídico a la población que presenta vulnerabilidad legal e indefensión de su patrimonio","SINDICATURADIRECCION JURIDICA1","SINDICATURA","DIRECCION JURIDICA",{"$f":"COUNTIF($D$4:D19,D19:D19)","v":1},"Servicios de asesoramiento legal y jurídico a la población que presenta vulnerabilidad legal e indefensión de su patrimonio","Porcentaje de asesorías gratuitas en materia legal otorgadas a la población que lo requiera y solicite","número de asesorias otorgadas",45,130,"Lic. José Luis de la Mora Gálvez",3310576022,"maria.gomez@tlaquepaque.gob.mx",null,"Eficiencia/Calidad",9,null,null,null,{"$f":"SUM(P19:S19/J19)","v":6.9230769230769235E-2},"Brindamos orientación y atención a la ciudadanía con 9 asesorias gratuitas, en materia legal a los habitantes del municipio de San Pedro Tlaquepaque, apoyando a la economía de la población y facilitandoles a los ciiudadanos, el conocimiento del marco jurídico, con el fin de que resguarden su patrimonio, además de que conozcan la materia que lo requiera, mercantil, civil, penal, administrativo, amparo, quejas, laboral, deudas, divorcios, despidos, pension alimenticia, hipotecas, custodia, comunidad de vecinos y herencia."]
["SINDICATURADEPARTAMENTO DE MEJORA REGULATORIA1Catálogo Municipal de Trámites y Servicios",{"$f":"C20&D20&E20","v":"SINDICATURADEPARTAMENTO DE MEJORA REGULATORIA1"},"SINDICATURA","DEPARTAMENTO DE MEJORA REGULATORIA",{"$f":"COUNTIF($D$4:D20,D20:D20)","v":1},"Catálogo Municipal de Trámites y Servicios","Porcentaje de requerimientos para la actualización del catálogo municipal de trámites y servicios, realizados   ","Número de requerimientos realizados",0,57,"Leticia Cuellar Mena",null,"mejoraregulatoriatlaquepaque@gmail.com",null,null,null,null,null,null,{"$f":"SUM(P20:S20/J20)","v":0}]
["SINDICATURADEPARTAMENTO DE CONTRATOS Y CONVENIOS1Servicio de Revisión Contratos","SINDICATURADEPARTAMENTO DE CONTRATOS Y CONVENIOS1","SINDICATURA","DEPARTAMENTO DE CONTRATOS Y CONVENIOS",{"$f":"COUNTIF($D$4:D21,D21:D21)","v":1},"Servicio de Revisión Contratos","Porcentaje de solicitudes de revisión de contratos para firma de la Sindicatura requerido por las áreas para la continuación y eficacia de la actividad municipal, realizadas ","Número de solicitudes de revisión de contratos realizadas",300,350,"IRMA ROCIO VALDEZ GONZÁLEZ",null,null,null,null,null,null,null,null,{"$f":"SUM(P21:S21/J21)","v":0}]
["SECRETARIA_DE_LA_CONSEJERIA_JURIDICASECRETARIA DE LA CONSEJERIA JURIDICA1Revisión Documentos Para Firma Presidenta","SECRETARIA_DE_LA_CONSEJERIA_JURIDICASECRETARIA DE LA CONSEJERIA JURIDICA1","SECRETARIA_DE_LA_CONSEJERIA_JURIDICA","SECRETARIA DE LA CONSEJERIA JURIDICA",{"$f":"COUNTIF($D$4:D22,D22:D22)","v":1},"Revisión Documentos Para Firma Presidenta","Porcentaje de documentos revisados para firma Presidenta","Número de documentos revisados",550,600,"Lic. Mario Arturo corona Guillén",null,"mario.corona@tlaquepaque,gob.mx",null,null,null,null,null,null,{"$f":"SUM(P22:S22/J22)","v":0}]
["SECRETARIA_DE_LA_CONSEJERIA_JURIDICASECRETARIA DE LA CONSEJERIA JURIDICA2Atención Y Orientación Jurídica A La Ciudadanía","SECRETARIA_DE_LA_CONSEJERIA_JURIDICASECRETARIA DE LA CONSEJERIA JURIDICA2","SECRETARIA_DE_LA_CONSEJERIA_JURIDICA","SECRETARIA DE LA CONSEJERIA JURIDICA",{"$f":"COUNTIF($D$4:D23,D23:D23)","v":2},"Atención Y Orientación Jurídica A La Ciudadanía","Porcentaje de solicitudes de atención y orientación a la ciudadanía, realizadas","Número de atenciones y orientaciones realizadas",0,18,"Lic. Mario Arturo corona Guillén",null,"mario.corona@tlaquepaque,gob.mx",null,null,null,null,null,null,{"$f":"SUM(P23:S23/J23)","v":0}]
["SECRETARIA_DE_LA_CONSEJERIA_JURIDICASECRETARIA DE LA CONSEJERIA JURIDICA3Capacitación Jurídica Al Gobierno Municipal","SECRETARIA_DE_LA_CONSEJERIA_JURIDICASECRETARIA DE LA CONSEJERIA JURIDICA3","SECRETARIA_DE_LA_CONSEJERIA_JURIDICA","SECRETARIA DE LA CONSEJERIA JURIDICA",{"$f":"COUNTIF($D$4:D24,D24:D24)","v":3},"Capacitación Jurídica Al Gobierno Municipal","Porcentaje de capacitaciones juridicas realizadas ","Número de capacitaciones realizadas",0,6,"Lic. Mario Arturo corona Guillén",null,"mario.corona@tlaquepaque,gob.mx",null,null,null,null,null,null,{"$f":"SUM(P24:S24/J24)","v":0}]
["SECRETARIA_DE_LA_CONSEJERIA_JURIDICASECRETARIA DE LA CONSEJERIA JURIDICA4Participación Comisiones, Comités Y Grupos De Trabajo","SECRETARIA_DE_LA_CONSEJERIA_JURIDICASECRETARIA DE LA CONSEJERIA JURIDICA4","SECRETARIA_DE_LA_CONSEJERIA_JURIDICA","SECRETARIA DE LA CONSEJERIA JURIDICA",{"$f":"COUNTIF($D$4:D25,D25:D25)","v":4},"Participación Comisiones, Comités Y Grupos De Trabajo","Porcentaje de atención a comisiones, comités, grupos de trabajo y reuniones","Número de asistencia a comisiones, comités, grupos de trabajo y reuniones",0,10,"Lic. Mario Arturo Corona Guillén",null,"gerardo.hernandez@tlaquepaque.gob.mx",null,null,null,null,null,null,{"$f":"SUM(P25:S25/J25)","v":0}]
["SECRETARIA_DE_LA_CONSEJERIA_JURIDICADIRECCION LEGAL-CONSULTIVA1Opiniones Jurídicas","SECRETARIA_DE_LA_CONSEJERIA_JURIDICADIRECCION LEGAL-CONSULTIVA1","SECRETARIA_DE_LA_CONSEJERIA_JURIDICA","DIRECCION LEGAL-CONSULTIVA",{"$f":"COUNTIF($D$4:D26,D26:D26)","v":1},"Opiniones Jurídicas","Porcentaje de opiniones jurídicas emitidas","Número de opiniones jurídicas emitidas",0,10,"Mtro. Gerardo Natanael Hernández Ortiz",6018,"gerardo.hernandez@tlaquepaque.gob.mx",null,null,null,null,null,null,{"$f":"SUM(P26:S26/J26)","v":0}]
["SECRETARIA_DE_LA_CONSEJERIA_JURIDICADIRECCION LEGAL-CONSULTIVA2Consultas Y Asesoría Jurídica","SECRETARIA_DE_LA_CONSEJERIA_JURIDICADIRECCION LEGAL-CONSULTIVA2","SECRETARIA_DE_LA_CONSEJERIA_JURIDICA","DIRECCION LEGAL-CONSULTIVA",{"$f":"COUNTIF($D$4:D27,D27:D27)","v":2},"Consultas Y Asesoría Jurídica","Porcentaje de atención a consultas y asesoría jurídica","Número de atenciones a consultas y asesorías jurídicas",0,10,"Mtro. Gerardo Natanael Hernández Ortiz",null,"gerardo.hernandez@tlaquepaque.gob.mx",null,null,null,null,null,null,{"$f":"SUM(P27:S27/J27)","v":0}]
["SECRETARIA_DE_LA_CONSEJERIA_JURIDICADEPARTAMENTO DE RECLUTAMIENTO MILITAR1Cartillas Militares","SECRETARIA_DE_LA_CONSEJERIA_JURIDICADEPARTAMENTO DE RECLUTAMIENTO MILITAR1","SECRETARIA_DE_LA_CONSEJERIA_JURIDICA","DEPARTAMENTO DE RECLUTAMIENTO MILITAR",{"$f":"COUNTIF($D$4:D28,D28:D28)","v":1},"Cartillas Militares","Porcentaje de cartillas militares expedidas  en el municipio de San Pedro Tlaquepaque","Cartillas Militares expedidas",857,1000,"Arnulfo Piceno Rodríguez","3310571912 y 3338371379","juntamunicipaltlq@gmail.com",null,"Eficiencia, Eficacia y Calidad",93,null,null,null,{"$f":"SUM(P28:S28/J28)","v":9.2999999999999999E-2},"Elaboramos 93 cartillas militares en el mes de octubre de 2024. Hicimos el cierre del trámite el día 15 de octubre de 2024. Realizamos el Sorteo Militar Nacional en coordinación con la XV Zona Militar y la Consejeria Jurídica el día 10 de noviembre de 2024 teniendo un total del 85 % de asistencia de los jovenes que tramitaron su cartilla en la clase 2006 y remisos. Asistimos al evento que se llevó a cabo el dia 28 de noviembre del 2024 en las instalaciones de la XV Zona Militar por la entrega de cartillas liberadas, de los jovenes que cumplieron con su servicio militar de la clase 2005 y remisos.  Llevamos a cabo el sellado de las cartillas militares de los jovenes que tramitaron en la clase 2006 y remisos, del 21 noviembre al 31 de diciembre del 2024, segun el resultado del sorteo militar, obteniendo un 80 % de asistencia de los jovenes. "]
["SECRETARIA_DE_LA_CONSEJERIA_JURIDICADIRECCION DE REGISTRO CIVIL1Celebración de Matrimonios en Lugares emblemáticos","SECRETARIA_DE_LA_CONSEJERIA_JURIDICADIRECCION DE REGISTRO CIVIL1","SECRETARIA_DE_LA_CONSEJERIA_JURIDICA","DIRECCION DE REGISTRO CIVIL",{"$f":"COUNTIF($D$4:D29,D29:D29)","v":1},"Celebración de Matrimonios en Lugares emblemáticos","Porcentaje de actas de matrimonio levantadas, mediate celebración de matrimonios en  lugares emblemáticos ","Número de actas levantadas ",0,100,"Lic. Jorge Mendoza Ruíz/ Diana Belén Gutiérrez Muñoz",3338371378,"registro.direccion98@gmail.com",null,"Eficiencia/Eficacia",0,null,null,null,{"$f":"SUM(P29:S29/J29)","v":0},"durante este periodo de tiempo, en fechas y momentos diversos, dada las limitaciones de tiempo que la responsabilidad de la Dirección del Registro Civil me impone, me apersoné y caminé, a efecto de mejor conocerlos, los siguientes lugares emblemáticos de nuestro Municipio: Capilla-Claustro Pantaleón Panduro y su explanada; la terraza que se localiza en la azotea del Centro Cultural El Refugio; los diversos pabellones y salas o recintos del mencionado Centro Cultural; el Kiosko del Parián; el Kiosko de la Delegación de Las Juntas; el Kiosko de la Delegación de Santa Anita; Templo del Sagrado Corazón de Jesús en la Delegación de San Sebastianito, entre otros lugares que no he determinado si reúnen las características y condiciones para ser parte de este programa. El proyecto ya se encuentra elaborado.  "]
["SECRETARIA_DE_LA_CONSEJERIA_JURIDICADIRECCION DE REGISTRO CIVIL2Celebración de Matrimonios en Lugares emblemáticos","SECRETARIA_DE_LA_CONSEJERIA_JURIDICADIRECCION DE REGISTRO CIVIL2","SECRETARIA_DE_LA_CONSEJERIA_JURIDICA","DIRECCION DE REGISTRO CIVIL",{"$f":"COUNTIF($D$4:D30,D30:D30)","v":2},"Celebración de Matrimonios en Lugares emblemáticos","Porcentaje de recursos recaudados mediante la ejecucion del proyecto ","Recaucación por concepto de derechos ",0,500000,null,null,null,null,"Economía",0,null,null,null,{"$f":"SUM(P30:S30/J30)","v":0},"durante este periodo de tiempo, en fechas y momentos diversos, dada las limitaciones de tiempo que la responsabilidad de la Dirección del Registro Civil me impone, me apersoné y caminé, a efecto de mejor conocerlos, los siguientes lugares emblemáticos de nuestro Municipio: Capilla-Claustro Pantaleón Panduro y su explanada; la terraza que se localiza en la azotea del Centro Cultural El Refugio; los diversos pabellones y salas o recintos del mencionado Centro Cultural; el Kiosko del Parián; el Kiosko de la Delegación de Las Juntas; el Kiosko de la Delegación de Santa Anita; Templo del Sagrado Corazón de Jesús en la Delegación de San Sebastianito, entre otros lugares que no he determinado si reúnen las características y condiciones para ser parte de este programa. El proyecto ya se encuentra elaborado.  "]
["SECRETARIA_DE_LA_CONSEJERIA_JURIDICADIRECCION DE REGISTRO CIVIL3Celebración de Matrimonios en Lugares emblemáticos","SECRETARIA_DE_LA_CONSEJERIA_JURIDICADIRECCION DE REGISTRO CIVIL3","SECRETARIA_DE_LA_CONSEJERIA_JURIDICA","DIRECCION DE REGISTRO CIVIL",{"$f":"COUNTIF($D$4:D31,D31:D31)","v":3},"Celebración de Matrimonios en Lugares emblemáticos","Porcentaje de actas de matrimonio levantadas mediante la Campaña Extraordinaria de Matrimonios Colectivos","Número de actas levantadas ",0,300,"Lic. Jorge Mendoza Ruíz/ Diana Belén Gutiérrez Muñoz",3338371378,"registro.direccion98@gmail.com",null,"Eficiencia/Eficacia",0,null,null,null,{"$f":"SUM(P31:S31/J31)","v":0},"No se tenía contemplada durante este primer trimestre"]
["SECRETARIA_DE_LA_CONSEJERIA_JURIDICAOFICINA DEL REGISTRO CIVIL NO. 11Campaña de Integración Familiar 2025","SECRETARIA_DE_LA_CONSEJERIA_JURIDICAOFICINA DEL REGISTRO CIVIL NO. 11","SECRETARIA_DE_LA_CONSEJERIA_JURIDICA","OFICINA DEL REGISTRO CIVIL NO. 1",{"$f":"COUNTIF($D$4:D32,D32:D32)","v":1},"Campaña de Integración Familiar 2025","Porcentaje de actas de matrimonio realizadas en la Campaña de Integración Familiar 2025","Número de actas realizadas",785,900,"Licenciado Jorge Mendoza Ruiz / Diana Belén Gutiérrez Muñoz","3837 1378","registro.direccion98@gmail.com",null,"Eficiencia/Eficacia",0,null,null,null,{"$f":"SUM(P32:S32/J32)","v":0},"En el mes de octubre, en reunión de Dirección del Registro Civil para la realización de los Pbr 2024-2025 de nuestra dependencia, se estableció como fecha de inicio para la Campaña de Integración Familiar 2025 los meses de mayo y junio (2 de mayo al 30 de junio) toda vez que varios años atrás se ejecutaba en esa temporada y la población tiene por costumbre esperar a esas fechas para aprovechar las facilidades para los trámites que se ofrecen, como los son: Matrimonios colectivos (parejas con hijos), registros extemporáneos (personas que no han sido registradas) y reconocimiento de hijos (niños, niñas y/o adolescentes que fueron registrados como hijos de madre soltera y el progenitor declara ser el Padre del menor);   ya que los servicios son a título de Gratuito y con un mínimo de requisitos (siempre apegados a la ley).    Una vez establecida la fecha, hemos emitido en el mes de diciembre, el oficio correspondiente a la Dirección General del Registro Civil del Estado para solicitar su autorización, mismo que ya ha sido enviado a su destinatario para su revisión y aprobación.  "]
["SECRETARIA_DE_LA_CONSEJERIA_JURIDICAOFICINA DEL REGISTRO CIVIL NO. 12Campaña de Integración Familiar 2025","SECRETARIA_DE_LA_CONSEJERIA_JURIDICAOFICINA DEL REGISTRO CIVIL NO. 12","SECRETARIA_DE_LA_CONSEJERIA_JURIDICA","OFICINA DEL REGISTRO CIVIL NO. 1",{"$f":"COUNTIF($D$4:D33,D33:D33)","v":2},"Campaña de Integración Familiar 2025","Porcentaje de actas extemporaneas levantadas en 2025 con respecto a las actas extemporaneas levantadas en 2024, mediante la  Campaña de Integración Familiar ","Número de actas levantadas en 2025",222,200,"Licenciado Jorge Mendoza Ruiz / Diana Belén Gutiérrez Muñoz","3837 1378","registro.direccion98@gmail.com",null,"Eficiencia/Eficacia",0,null,null,null,{"$f":"SUM(P33:S33/J33)","v":0},"En el mes de octubre, en reunión de Dirección del Registro Civil para la realización de los Pbr 2024-2025 de nuestra dependencia, se estableció como fecha de inicio para la Campaña de Integración Familiar 2025 los meses de mayo y junio (2 de mayo al 30 de junio) toda vez que varios años atrás se ejecutaba en esa temporada y la población tiene por costumbre esperar a esas fechas para aprovechar las facilidades para los trámites que se ofrecen, como los son: Matrimonios colectivos (parejas con hijos), registros extemporáneos (personas que no han sido registradas) y reconocimiento de hijos (niños, niñas y/o adolescentes que fueron registrados como hijos de madre soltera y el progenitor declara ser el Padre del menor);   ya que los servicios son a título de Gratuito y con un mínimo de requisitos (siempre apegados a la ley).    Una vez establecida la fecha, hemos emitido en el mes de diciembre, el oficio correspondiente a la Dirección General del Registro Civil del Estado para solicitar su autorización, mismo que ya ha sido enviado a su destinatario para su revisión y aprobación.  "]
["SECRETARIA_DE_LA_CONSEJERIA_JURIDICAOFICINA DEL REGISTRO CIVIL NO. 13Campaña de Integración Familiar 2025","SECRETARIA_DE_LA_CONSEJERIA_JURIDICAOFICINA DEL REGISTRO CIVIL NO. 13","SECRETARIA_DE_LA_CONSEJERIA_JURIDICA","OFICINA DEL REGISTRO CIVIL NO. 1",{"$f":"COUNTIF($D$4:D34,D34:D34)","v":3},"Campaña de Integración Familiar 2025","Porcentaje de actas de reconocimiento de hijos  en la Campaña de Integración Familiar 2025","Número de actas realizadas",65,70,"Licenciado Jorge Mendoza Ruiz / Diana Belén Gutiérrez Muñoz","3837 1378","registro.direccion98@gmail.com",null,"Eficiencia/Eficacia",0,null,null,null,{"$f":"SUM(P34:S34/J34)","v":0},"En el mes de octubre, en reunión de Dirección del Registro Civil para la realización de los Pbr 2024-2025 de nuestra dependencia, se estableció como fecha de inicio para la Campaña de Integración Familiar 2025 los meses de mayo y junio (2 de mayo al 30 de junio) toda vez que varios años atrás se ejecutaba en esa temporada y la población tiene por costumbre esperar a esas fechas para aprovechar las facilidades para los trámites que se ofrecen, como los son: Matrimonios colectivos (parejas con hijos), registros extemporáneos (personas que no han sido registradas) y reconocimiento de hijos (niños, niñas y/o adolescentes que fueron registrados como hijos de madre soltera y el progenitor declara ser el Padre del menor);   ya que los servicios son a título de Gratuito y con un mínimo de requisitos (siempre apegados a la ley).    Una vez establecida la fecha, hemos emitido en el mes de diciembre, el oficio correspondiente a la Dirección General del Registro Civil del Estado para solicitar su autorización, mismo que ya ha sido enviado a su destinatario para su revisión y aprobación.  "]
["SECRETARIA_DE_LA_CONSEJERIA_JURIDICADIRECCION DE MEDIACION Y JUZGADOS CIVICOS MUNICIPALES1Calificación de Actas de Infracción","SECRETARIA_DE_LA_CONSEJERIA_JURIDICADIRECCION DE MEDIACION Y JUZGADOS CIVICOS MUNICIPALES1","SECRETARIA_DE_LA_CONSEJERIA_JURIDICA","DIRECCION DE MEDIACION Y JUZGADOS CIVICOS MUNICIPALES",{"$f":"COUNTIF($D$4:D35,D35:D35)","v":1},"Calificación de Actas de Infracción","Porcentaje de actas de infracción, calificadas ","Número de actas calificadas ",0,4000,"Lic. Juan Manuel Martínez Orozco","33-35-98-21-11","jmabogadosjuris@gmail.com",null,"Eficiencia",1331,null,null,null,{"$f":"SUM(P35:S35/J35)","v":0.33274999999999999},"Se han realizado un total de 1,331 folios de calificacion de los cuales 1,261 son de escritorio (son infracciones que nos envian las diversas dependencias de inspeccion para su calificacion que no son atendidas por el ciudadano) y se mandaron a la tesoreria municipal para requerir el  cobro a traves de un credito fiscal.  Se a dado el derecho de  audiencia a 70 ciudadanos a los cuales se realizo la  calificacion de la infraccion para el pago correspondiente a la tesoreria municipal."]
["SECRETARIA_DE_LA_CONSEJERIA_JURIDICADIRECCION DE MEDIACION Y JUZGADOS CIVICOS MUNICIPALES2Difusión de la Cultura de Paz en conflictos comunitarios","SECRETARIA_DE_LA_CONSEJERIA_JURIDICADIRECCION DE MEDIACION Y JUZGADOS CIVICOS MUNICIPALES2","SECRETARIA_DE_LA_CONSEJERIA_JURIDICA","DIRECCION DE MEDIACION Y JUZGADOS CIVICOS MUNICIPALES",{"$f":"COUNTIF($D$4:D36,D36:D36)","v":2},"Difusión de la Cultura de Paz en conflictos comunitarios","Porcentaje de colonias atendidas  mediante platicas de difusión de cultura de paz en confictos comunitarios ","Número de colonias atendidas ",0,20,"CLAUDIA LARA GARZA",3310576279,"municipaljuez@gmail.com",null,"Eficiencia/Eficacia",0,null,null,null,{"$f":"SUM(P36:S36/J36)","v":0},"Con el apoyo de la georeferencia que se hace internamente de incidencias de faltas administratvias por colonias del municipio; en noviembre  iniciamos con la logistica para las primeras visitas a colonias con la colaboración de las delegaciones que correspondan.-"]
["SECRETARIA_DE_LA_CONSEJERIA_JURIDICADIRECCION DE MEDIACION Y JUZGADOS CIVICOS MUNICIPALES3Orientación y Asesoría Jurídica","SECRETARIA_DE_LA_CONSEJERIA_JURIDICADIRECCION DE MEDIACION Y JUZGADOS CIVICOS MUNICIPALES3","SECRETARIA_DE_LA_CONSEJERIA_JURIDICA","DIRECCION DE MEDIACION Y JUZGADOS CIVICOS MUNICIPALES",{"$f":"COUNTIF($D$4:D37,D37:D37)","v":3},"Orientación y Asesoría Jurídica","Porcentaje de asesorías jurídicas para la Resolución de Conflictos, brindadas","Número de asesorías Jurídicas brindadas",1000,1000,"Lic. Luis Eduardo López Ramírez",3338423000,"lic_eduardo19@hotmail.com",null,"Eficiencia/Calidad",225,null,null,null,{"$f":"SUM(P37:S37/J37)","v":0.22500000000000001},"En éste primer trimestre se brindaroon a los ciudadanos de nuestro municipio y ciudadanos de municipios de la zona metrpolitana apoyo  para orientación y asesoría jurídica, motivo por el cual se otorgaron 225 asesorías en diversos asuntos legales y administrativos, tanto en materia comunitaria, civil, familiar y mercantil, logrando que algunos conforme a nuestra competencia fueran desahogados por los Métodos Alternos y los de caracter administrativo derivados a dependencias de nuestro municipio para su mejor atención y los de carácter legal a la Procuraduría Social en el Estado de Jalisco para la asignación de un abogado gratuito que les llevé su asunto ante las instancias judiciales que correspondan."]
["SECRETARIA_DE_LA_CONSEJERIA_JURIDICADIRECCION DE MEDIACION Y JUZGADOS CIVICOS MUNICIPALES4La Mediación Con Rumbo A Tu Colonia","SECRETARIA_DE_LA_CONSEJERIA_JURIDICADIRECCION DE MEDIACION Y JUZGADOS CIVICOS MUNICIPALES4","SECRETARIA_DE_LA_CONSEJERIA_JURIDICA","DIRECCION DE MEDIACION Y JUZGADOS CIVICOS MUNICIPALES",{"$f":"COUNTIF($D$4:D38,D38:D38)","v":4},"La Mediación Con Rumbo A Tu Colonia","Porcentaje de capacitaciones de \"Mediación y Conciliación con rumbo a tu Colonia\", realizadas","Número de capacitaciones realizadas ",0,12,"Lic. Luis Eduardo López Ramírez",3338423000,"lic_eduardo19@hotmail.com",null,"Eficiencia/Calidad",0,null,null,null,{"$f":"SUM(P38:S38/J38)","v":0},"Se ha trabajado en concretar la aprobación por parte de nuestro superior jerárquico del material y proyecto, para con ello realizar en primer lugar la reunión con regidores y delegados de nuestro municipio para exponer el mismo y de ahí proceder a otoprgar capacitaciones a la ciudadanía con el apoyo de los  líderes de las colonias de nuestro muncipio, trabajando en realizar la calendarización de las reuniones para concientizar a la ciudadanía de la relevancia del procedimiento y los convenios que se logran en el Centro Público de Mediación conforme los lineamientos de la Ley de Justicia Alternativa; de la misma manera se ha buscado coadyuvar con la estructura de organización que se maneja en la Dirección de Participación Ciudadna y la Dirección de delegaciones y Agencias municipales con el fin de lograr un enlace directo que sea el contacto para direccionar al ciudadano para una atención integral de acuerdo a los MASC.- Nota: El trabajo de escritorio esta realizado para comenzar a proyectarlo, solo se esta en espera de la autorización para dar el siguiente paso a las reuniones informativas.-"]
["SECRETARIA_DE_LA_CONSEJERIA_JURIDICADIRECCION DE MEDIACION Y JUZGADOS CIVICOS MUNICIPALES5Atención y desahogo de los MASC","SECRETARIA_DE_LA_CONSEJERIA_JURIDICADIRECCION DE MEDIACION Y JUZGADOS CIVICOS MUNICIPALES5","SECRETARIA_DE_LA_CONSEJERIA_JURIDICA","DIRECCION DE MEDIACION Y JUZGADOS CIVICOS MUNICIPALES",{"$f":"COUNTIF($D$4:D39,D39:D39)","v":5},"Atención y desahogo de los MASC","Porcentaje de expedientes de mediación integrados ","Número de expedientes integrados",700,700,"Lic. Luis Eduardo López Ramírez",3338423000,"lic_eduardo19@hotmail.com",null,"Eficiencia",157,null,null,null,{"$f":"SUM(P39:S39/J39)","v":0.22428571428571428},"En el primer trimestre se otorgaron a la ciudadanía el desahogo de los Procedimientos de Métodos Alternos de Solución de Conflictos,  realizando solicitudes de atención, enviando las invitaciones a las partes en el proceso de mediación, desahogando las audiencias de mediación y llevando a cabo los convenios de carácter administrativo y legal que dan por terminado los conflictos entre los ciudadanos; por lo cual en el trimestre hemos atendido 157 nuevas solicitudes de mediación, llevando a cabo el desahogo de 225 audiencias, teniendo éxito y conclusión en 71 convenios finales, beneficiando a un amplio sector de nuestra ciudadanía contribuyendo para la igualdad y seguridad de los derechos entre los ciudadanos, apoyando para respetar y contribuir en beneficio de los derechos de los adultos mayores, niños, niñas y adolescentes, conforme a las leyes que rigen y de acuerdo a priorizar una Cultura de la Paz.- "]
["SECRETARIA_DE_LA_CONSEJERIA_JURIDICADIRECCION DE MEDIACION Y JUZGADOS CIVICOS MUNICIPALES6Atención y desahogo de los MASC","SECRETARIA_DE_LA_CONSEJERIA_JURIDICADIRECCION DE MEDIACION Y JUZGADOS CIVICOS MUNICIPALES6","SECRETARIA_DE_LA_CONSEJERIA_JURIDICA","DIRECCION DE MEDIACION Y JUZGADOS CIVICOS MUNICIPALES",{"$f":"COUNTIF($D$4:D40,D40:D40)","v":6},"Atención y desahogo de los MASC","Porcentaje de procedimientos concluidos y con convenio final realizados","Número de convenios realizados ",350,350,"Lic. Luis Eduardo López Ramírez",3338423000,"lic_eduardo19@hotmail.com",null,"Eficiencia",71,null,null,null,{"$f":"SUM(P40:S40/J40)","v":0.20285714285714285},"En el primer trimestre de acuerdo al desahogo de los Procedimientos de Métodos Alternos de Solución de Conflictos, se llevaron a cabo el desahogo de 225 audiencias, teniendo éxito y conclusión en 71 convenios finales, de los cuales 26 fueron enviados al Instituto de Justicia Alternativa para su debida legalización, beneficiando a un amplio sector de nuestra ciudadanía contribuyendo para la igualdad y seguridad de los derechos entre los ciudadanos, apoyando para respetar y contribuir en beneficio de los derechos de los adultos mayores, niños, niñas y adolescentes, conforme a las leyes que rigen y de acuerdo a priorizar una Cultura de la Paz.- "]
["SECRETARIA_DE_LA_CONSEJERIA_JURIDICADIRECCION DE MEDIACION Y JUZGADOS CIVICOS MUNICIPALES7Servicio de trabajo social y psicología a Juzgados Cívicos Municipales","SECRETARIA_DE_LA_CONSEJERIA_JURIDICADIRECCION DE MEDIACION Y JUZGADOS CIVICOS MUNICIPALES7","SECRETARIA_DE_LA_CONSEJERIA_JURIDICA","DIRECCION DE MEDIACION Y JUZGADOS CIVICOS MUNICIPALES",{"$f":"COUNTIF($D$4:D41,D41:D41)","v":7},"Servicio de trabajo social y psicología a Juzgados Cívicos Municipales","Porcentaje de etapas de gestión para la incorporación de personal de trabajo social y/o psicología a los Juzgados Civicos, realizadas","número de etapas de gestión ",0,3,"Lic. Claudia Lara Garza",null,"municipaljuez@gmail.com",null,"Eficiencia/Calidad",0,null,null,null,{"$f":"SUM(P41:S41/J41)","v":0},"Mediante la asignación del Departamento de Capacitación y Servkicio Social de estudiantes prestadores de servicios y practicantes profesionales de la carrera de Trabajo Social y Psicología; continuamos con los trabajos y programas pilotos de tamizajes y entrevistas, tanto a personas que son detenidas o ciudadanía "]
["SECRETARIA_DE_LA_CONSEJERIA_JURIDICADIRECCION DE APOYO A CABILDO1Sitio Web de Actas y Acuerdos","SECRETARIA_DE_LA_CONSEJERIA_JURIDICADIRECCION DE APOYO A CABILDO1","SECRETARIA_DE_LA_CONSEJERIA_JURIDICA","DIRECCION DE APOYO A CABILDO",{"$f":"COUNTIF($D$4:D42,D42:D42)","v":1},"Sitio Web de Actas y Acuerdos","Porcentaje de avance en las etapas de actualización del Sitio Web de Actas y Acuerdos ","Número de etapas realizadas ",4,5,"Marisol Martínez Quiroz",3310576035,"apoyoacomisiones@gmail.com",null,"Eficiencia/Economía",1,null,null,null,{"$f":"SUM(P42:S42/J42)","v":0.2},"Actualizamos en el periodo octubre-diciembre el sitio web de “Actas y Acuerdos” con toda la información que se generó en cada una de las 6 Sesiones ordinarias, 1 sesión solemne y 1 sesión extraordinaria del periodo. En la sección de Sesiones del Pleno la actualización consistió en: Convocatoria y orden del día, Puntos de Acuerdo, Actas en Versión Estenográfica (se subieron las actas del del 27 de agosto, 09 de septiembre (solemne, 26 de septiembre, 30 de septiembre, 01 de octubre (solemne), 01 de octubre (extraordinaria) 18 de octubre, 29 de octubre, 15 de noviembre, 29 de noviembre y 02 de diciembre), Base de datos (documento que contiene cada uno de los acuerdos que se generan en las sesiones de cabildo). Asimismo, también se realizaron actualizaciones en el apartado de “Comisiones Edilicias”: el Calendario de Sesiones de Comisiones Edilicias, según llegaba la información proporcionada por los regidores se actualizaba la página; las convocatorias a las sesiones de comisión, mismo que fue se encuentra en la página. En lo que refiere a “Gacetas” se subieron los tomos Gaceta Municipal 1 Fecha de Publicación 01 de octubre 2024, Tomo II Fecha de publicación 11 de octubre 2024, Tomo III fecha de publicación 11 de octubre, Tomo IV fecha de publicación 26 de octubre 2024, Tomo V fecha de publicación 12 de noviembre 2024, Tomo VI fecha de publicación 25 de noviembre 2024 y Tomo VII fecha de publicación 30 de diciembre 2024; asimismo actualizamos los reglamentos que fueron modificados por las comisiones y aprobados por el pleno.  Subimos la información al “Sistema de Información de Acuerdos del Pleno” que se localiza en el apartado de “Sesiones del Pleno” pero se despliega una plataforma en la cual subimos los acuerdos aprobados en cada Sesión de Cabildo junto con la iniciativa que lo motiva. En total fueron 9 acuerdos en la Sesión Solemne del 01 de octubre , 4 acuerdos de la Sesión Extraordinaria del 01 octubre, 3 acuerdos de la Sesión del 18 de octubre, 2 acuerdos de la Sesión 29 de octubre, 13 acuerdos de la Sesión del 15 de noviembre 01 acuerdo de la Sesión del 02 de diciembre y 01 acuerdo de la Sesión del 16 de diciembre;  Asimismo, enviamos a cada una de las dependencias según corresponda, la información relativa a realizarse. Para poder llevar a cabo las actividades del Sitio Web nos apoyamos en la Dirección de Procesos e Informática. La política transversal que rige a esta área es Derechos Humanos y la cumplimentamos con el acceso a la información."]
["SECRETARIA_DE_LA_CONSEJERIA_JURIDICADIRECCION DE APOYO A CABILDO2Participación En Sesiones Del Ayuntamiento","SECRETARIA_DE_LA_CONSEJERIA_JURIDICADIRECCION DE APOYO A CABILDO2","SECRETARIA_DE_LA_CONSEJERIA_JURIDICA","DIRECCION DE APOYO A CABILDO",{"$f":"COUNTIF($D$4:D43,D43:D43)","v":2},"Participación En Sesiones Del Ayuntamiento","Porcentaje de Sesiones del Pleno realizadas","Sesiones realizadas",0,12,"Marisol Martínez Quiroz",3310576035,"apoyoacomisiones@gmail.com",null,"Eficiecia/Eficacia",8,null,null,null,{"$f":"SUM(P43:S43/J43)","v":0.66666666666666663},"Realizamos una serie de actividades para el buen desarrollo de las 6 Sesiones ordinarias, 1sesión solemne con motivo de la Integración de la Administración Municipal 2024-2027 y 1 sesión extraordinaria; se elaboró la  Convocatoria para cada uno de los integrantes de cabildo; así como la guía para la sesión, la cual contempla el desarrollo de la misma;  el seguimiento y desarrollo de acuerdos tomados durante la sesión de los cuales se generaron 9 acuerdos en la Sesión Solemne del 01 de octubre , 4 acuerdos de la Sesión Extraordinaria del 01 octubre, 3 acuerdos de la Sesión del 18 de octubre, 2 acuerdos de la Sesión 29 de octubre, 13 acuerdos de la Sesión del 15 de noviembre 01 acuerdo de la Sesión del 02 de diciembre y 01 acuerdo de la Sesión del 16 de diciembre; 96 notificaciones de las Sesiones  del 01 de octubre,  32 notificaciones de la Sesión del 18 de octubre, 7 notificaciones del sesión del 29 de octubre, 38 notificaciones de la Sesión del 15 de noviembre, 10 notificaciones del 02 de diciembre y 9 notificaciones del 16 de diciembre; al término de cada Sesión se inicia la transcripción del acta de cabildo y concluimos las de las sesiones del del 27 de agosto, 09 de septiembre (solemne, 26 de septiembre, 30 de septiembre, 01 de octubre (solemne), 01 de octubre (extraordinaria) 18 de octubre, 29 de octubre, 15 de noviembre, 29 de noviembre y 02 de diciembre; publicamos en la página de Actas y Acuerdos y en la Plataforma del Sistema de Información de Acuerdos todo lo inherente a las Sesiones para que la ciudadanía tenga un fácil y oportuno acceso a la información; además realizamos la gestión de exhortos y solicitudes que fueron  emitidas durante cada una de las sesiones. Para poder llevar a cabo algunas de las actividades de la Sesión contamos con la ayuda de otras áreas, como la Unidad de Transparencia que se encarga de transmitir en vivo cada sesión para que la ciudadanía se informe al momento de las decisiones que toman los ediles, así mismo nos apoya la Coordinación de Comunicación y Análisis Estratégicos en el mismo tenor. Asimismo, toda la información de las iniciativas que se presentan para votación en el pleno fue circulada de manera electrónica, siguiendo los protocolos de sanidad y austeridad. "]
["SECRETARIA_DE_LA_CONSEJERIA_JURIDICADIRECCION DE APOYO A CABILDO3Integración, Dictaminación de Iniciativas","SECRETARIA_DE_LA_CONSEJERIA_JURIDICADIRECCION DE APOYO A CABILDO3","SECRETARIA_DE_LA_CONSEJERIA_JURIDICA","DIRECCION DE APOYO A CABILDO",{"$f":"COUNTIF($D$4:D44,D44:D44)","v":3},"Integración, Dictaminación de Iniciativas","Porcentaje de Iniciativas elaboradas                                        ","Número de iniciativas elaboradas",0,40,"Marisol Martínez Quiroz",3310576035,"apoyoacomisiones@gmail.com",null,"Calidad",28,null,null,null,{"$f":"SUM(P44:S44/J44)","v":0.7},"Apoyamos en el periodo de octubre-diciembre con la redacción y asesoría de dictámenes e iniciativas a la Presidenta y las regidoras y regidores que nos solicitaron en el periodo. Se apoyó en total con 28 iniciativas desglosándose de la siguiente manera: en octubre se apoyó con 21, en noviembre con 5 y diciembre con 2. Nos vinculamos con otras dependencias del gobierno para solicitar información para poder realizar adecuadamente lo que se nos requirió.                                                                                                     "]
["SECRETARIA_DE_LA_CONSEJERIA_JURIDICADIRECCION DE APOYO A CABILDO4Consolidar El Sistema De Información De Acuerdos Del Pleno","SECRETARIA_DE_LA_CONSEJERIA_JURIDICADIRECCION DE APOYO A CABILDO4","SECRETARIA_DE_LA_CONSEJERIA_JURIDICA","DIRECCION DE APOYO A CABILDO",{"$f":"COUNTIF($D$4:D45,D45:D45)","v":4},"Consolidar El Sistema De Información De Acuerdos Del Pleno","Porcentaje de avance en la identificación del estatus que guardan los puntos de acuerdo aprobados por el pleno del ayuntamiento","Número de puntos de acuerdo identificados en estatus de seguimiento",0,40,"Marisol Martínez Quiroz",3310576035,"apoyoacomisiones@gmail.com",null,"Eficiencia   ",10,null,null,null,{"$f":"SUM(P45:S45/J45)","v":0.25},"En el periodo octubre-diciembre, se realizaron 10 cambios en los estatus de los acuerdos en el sistema, por la información obtenida en las sesiones del pleno. estamos en coordinación con la Dirección de Informática debido a los cambios que hubo en el reglamento de gobierno y el de administración las dependencias del gobierno cambiaron de nombre y la estructura de la administración se vio modificada, por tal se están realizando los ajustes al sistema para adecuarlo a las nuevas disposiciones.                                                           "]
["SECRETARIA_DE_LA_CONSEJERIA_JURIDICADIRECCION DE APOYO A CABILDO5Apoyo Asuntos derivados por Secretaría","SECRETARIA_DE_LA_CONSEJERIA_JURIDICADIRECCION DE APOYO A CABILDO5","SECRETARIA_DE_LA_CONSEJERIA_JURIDICA","DIRECCION DE APOYO A CABILDO",{"$f":"COUNTIF($D$4:D46,D46:D46)","v":5},"Apoyo Asuntos derivados por Secretaría","Porcentaje de actividades derivadas atendidas.","Número de actividades atendidas.",0,40,"Marisol Martínez Quiroz",3310576035,"apoyoacomisiones@gmail.com",null,"Eficiencia",10,null,null,null,{"$f":"SUM(P46:S46/J46)","v":0.25},"Apoyamos a la Secretaría General con las siguientes actividades durante el periodo octubre diciembre: regularización de predios rústicos, certificación de firmas e identidades de Cooperativas de S. C.  R. L de C. V., certificaciones, edictos, oficios para informar de los Acuerdos Legislativos, las gestiones de las instrucciones que le asigna la Presidenta al Secretario en las Sesiones del Pleno, agendar las sesiones de las comisiones edilicias, solicitudes de transparencia, apoyo a cartas de residencia y contestación de amparos. Sumando 10 actividades diferentes."]
["SECRETARIA_DE_LA_CONSEJERIA_JURIDICADIRECCION DE DERECHOS HUMANOS1Atención a los grupos vulnerables.","SECRETARIA_DE_LA_CONSEJERIA_JURIDICADIRECCION DE DERECHOS HUMANOS1","SECRETARIA_DE_LA_CONSEJERIA_JURIDICA","DIRECCION DE DERECHOS HUMANOS",{"$f":"COUNTIF($D$4:D47,D47:D47)","v":1},"Atención a los grupos vulnerables.","Porcentaje de colonias intervenidas en atencion a servicios generales,  proteccion de sus derechos y administracion eficiente de los recursos.","No. de colonias intervenidas",40,60,"Bertha Castellanos",null,"bertha.castellanos@tlaquepaque.gob.mx",null,null,null,null,null,null,{"$f":"SUM(P47:S47/J47)","v":0}]
["SECRETARIA_DE_LA_CONSEJERIA_JURIDICASUBDIRECCIÓN DE APOYO A COMISIONES1Adecuación de Sala de Juntas (Pleno)","SECRETARIA_DE_LA_CONSEJERIA_JURIDICASUBDIRECCIÓN DE APOYO A COMISIONES1","SECRETARIA_DE_LA_CONSEJERIA_JURIDICA","SUBDIRECCIÓN DE APOYO A COMISIONES",{"$f":"COUNTIF($D$4:D48,D48:D48)","v":1},"Adecuación de Sala de Juntas (Pleno)","Porcentaje de adecuaciones a la Sala de Juntas (Pleno) realizadas","Número de adecuaciones realizadas ",0,2,"Marisol Martínez Quiroz",3310576035,"cinthia.flores@tlaquepaque.gob.mx",null,null,null,null,null,null,{"$f":"SUM(P48:S48/J48)","v":0}]
["SECRETARIA_DE_LA_CONSEJERIA_JURIDICASUBDIRECCIÓN DE APOYO A COMISIONES2Adecuación de Sala de Juntas (Pleno)","SECRETARIA_DE_LA_CONSEJERIA_JURIDICASUBDIRECCIÓN DE APOYO A COMISIONES2","SECRETARIA_DE_LA_CONSEJERIA_JURIDICA","SUBDIRECCIÓN DE APOYO A COMISIONES",{"$f":"COUNTIF($D$4:D49,D49:D49)","v":2},"Adecuación de Sala de Juntas (Pleno)","Porcentaje de Reuniones de reuniones celebradas en la Sala de Juntas","Número de reuniones celebradas",0,400,null,null,null,null,null,null,null,null,null,{"$f":"SUM(P49:S49/J49)","v":0}]
["SECRETARIA_DE_GOBERNANZA_Y_TERRITORIODIRECCION DE DELEGACIONES Y AGENCIAS1Atención a Solicitudes Ciudadanas","SECRETARIA_DE_GOBERNANZA_Y_TERRITORIODIRECCION DE DELEGACIONES Y AGENCIAS1","SECRETARIA_DE_GOBERNANZA_Y_TERRITORIO","DIRECCION DE DELEGACIONES Y AGENCIAS",{"$f":"COUNTIF($D$4:D50,D50:D50)","v":1},"Atención a Solicitudes Ciudadanas","porcentaje de solicitudes canalizadas para su atencion","Número de solicitudes canalizadas ",1740,2000,"JOSE ALFREDO ZAPATA SILVA",3336572403,"direccion.delegaciones@tlaquepaque.gob.mx",null,null,null,null,null,null,{"$f":"SUM(P50:S50/J50)","v":0}]
["SECRETARIA_DE_GOBERNANZA_Y_TERRITORIODIRECCION DE DELEGACIONES Y AGENCIAS2Brigadas de Mantenimiento y Recuperación de Espacios Públicos","SECRETARIA_DE_GOBERNANZA_Y_TERRITORIODIRECCION DE DELEGACIONES Y AGENCIAS2","SECRETARIA_DE_GOBERNANZA_Y_TERRITORIO","DIRECCION DE DELEGACIONES Y AGENCIAS",{"$f":"COUNTIF($D$4:D51,D51:D51)","v":2},"Brigadas de Mantenimiento y Recuperación de Espacios Públicos","porcentaje de brigadas y recuperacion de espacios","numero de brigadas y recueracion de espacios",77,85,"JOSE ALFREDO ZAPATA SILVA",3336572403,"direccion.delegaciones@tlaquepaque.gob.mx",null,null,null,null,null,null,{"$f":"SUM(P51:S51/J51)","v":0}]
["SECRETARIA_DE_GOBERNANZA_Y_TERRITORIODIRECCION DE DELEGACIONES Y AGENCIAS3Festividades Tradicionales Cívicas","SECRETARIA_DE_GOBERNANZA_Y_TERRITORIODIRECCION DE DELEGACIONES Y AGENCIAS3","SECRETARIA_DE_GOBERNANZA_Y_TERRITORIO","DIRECCION DE DELEGACIONES Y AGENCIAS",{"$f":"COUNTIF($D$4:D52,D52:D52)","v":3},"Festividades Tradicionales Cívicas","Porcentaje de asistentes a las festividades realizadas","Número de asistentes ",3550,4200,"JOSE ALFREDO ZAPATA SILVA",3336572403,"direccion.delegaciones@tlaquepaque.gob.mx",null,null,null,null,null,null,{"$f":"SUM(P52:S52/J52)","v":0}]
["SECRETARIA_DE_GOBERNANZA_Y_TERRITORIODIRECCION DE DELEGACIONES Y AGENCIAS4Actividades Administrativas","SECRETARIA_DE_GOBERNANZA_Y_TERRITORIODIRECCION DE DELEGACIONES Y AGENCIAS4","SECRETARIA_DE_GOBERNANZA_Y_TERRITORIO","DIRECCION DE DELEGACIONES Y AGENCIAS",{"$f":"COUNTIF($D$4:D53,D53:D53)","v":4},"Actividades Administrativas","Porcentaje de solicitudes de comprobantes de domicilio expedidas  ","Número de comprobantes de domicilio expedidos ",4300,4650,"JOSE ALFREDO ZAPATA SILVA",3336572403,"direccion.delegaciones@tlaquepaque.gob.mx",null,null,null,null,null,null,{"$f":"SUM(P53:S53/J53)","v":0}]
["SECRETARIA_DE_GOBERNANZA_Y_TERRITORIODIRECCION DE DELEGACIONES Y AGENCIAS5Actividades Administrativas","SECRETARIA_DE_GOBERNANZA_Y_TERRITORIODIRECCION DE DELEGACIONES Y AGENCIAS5","SECRETARIA_DE_GOBERNANZA_Y_TERRITORIO","DIRECCION DE DELEGACIONES Y AGENCIAS",{"$f":"COUNTIF($D$4:D54,D54:D54)","v":5},"Actividades Administrativas","Porcentaje de cartas de anuencia expedidas ","Número de cartas de anuencia expedidas  ",137,175,"JOSE ALFREDO ZAPATA SILVA",3336572403,"direccion.delegaciones@tlaquepaque.gob.mx",null,null,null,null,null,null,{"$f":"SUM(P54:S54/J54)","v":0}]
["SECRETARIA_DE_GOBERNANZA_Y_TERRITORIODELEGACION SAN SEBASTIANITO1VISITAS A COLONIAS","SECRETARIA_DE_GOBERNANZA_Y_TERRITORIODELEGACION SAN SEBASTIANITO1","SECRETARIA_DE_GOBERNANZA_Y_TERRITORIO","DELEGACION SAN SEBASTIANITO",{"$f":"COUNTIF($D$4:D55,D55:D55)","v":1},"VISITAS A COLONIAS","Porcentaje de recorridos para la detección de la problemática","número de recorridos",955,1200,"JOSE ALFREDO ZAPATA SILVA",3336572403,"direccion.delegaciones@tlaquepaque.gob.mx",null,null,null,null,null,null,{"$f":"SUM(P55:S55/J55)","v":0}]
["SECRETARIA_DE_GOBERNANZA_Y_TERRITORIODIRECCION DE PADRON Y LICENCIAS1Servicio eficaz de trámite de licencias municipal presencial y en línea","SECRETARIA_DE_GOBERNANZA_Y_TERRITORIODIRECCION DE PADRON Y LICENCIAS1","SECRETARIA_DE_GOBERNANZA_Y_TERRITORIO","DIRECCION DE PADRON Y LICENCIAS",{"$f":"COUNTIF($D$4:D56,D56:D56)","v":1},"Servicio eficaz de trámite de licencias municipal presencial y en línea","Porcentaje de licencias municipales de giro y/o anuncio entregadas de forma presencial.","Numero de licencias entregadas",2200,2300,"Kevin Daniel Vázquez Rodríguez",3317443315,"vkevindaniel@gmail.com",null,null,null,null,null,null,{"$f":"SUM(P56:S56/J56)","v":0}]
["SECRETARIA_DE_GOBERNANZA_Y_TERRITORIODIRECCION DE PADRON Y LICENCIAS 11Regularización de licencias en base a la ley de hacienda","SECRETARIA_DE_GOBERNANZA_Y_TERRITORIODIRECCION DE PADRON Y LICENCIAS 11","SECRETARIA_DE_GOBERNANZA_Y_TERRITORIO","DIRECCION DE PADRON Y LICENCIAS 1",{"$f":"COUNTIF($D$4:D57,D57:D57)","v":1},"Regularización de licencias en base a la ley de hacienda","porcentaje de licencias emitidas como giro anexo a la licencia principal","Numero de licencias de giro anexo emitidas",0,500,"Kevin Daniel Vázquez Rodríguez",3317443315,"vkevindaniel@gmail.com",null,null,null,null,null,null,{"$f":"SUM(P57:S57/J57)","v":0}]
["SECRETARIA_DE_GOBERNANZA_Y_TERRITORIODIRECCION DE INSPECCION Y VIGILANCIA1Verificación De Giros Comerciales Rezagados En El Municipio De San Pedro Tlaquepaque","SECRETARIA_DE_GOBERNANZA_Y_TERRITORIODIRECCION DE INSPECCION Y VIGILANCIA1","SECRETARIA_DE_GOBERNANZA_Y_TERRITORIO","DIRECCION DE INSPECCION Y VIGILANCIA",{"$f":"COUNTIF($D$4:D58,D58:D58)","v":1},"Verificación De Giros Comerciales Rezagados En El Municipio De San Pedro Tlaquepaque","Porcentaje de visitas a giros comerciales para conocer su estatus, realizadas   "," número de visitas realizadas",0,8983,"MARIA GUADALUPE GOMEZ GODINEZ",3337270092,"lupitagomez7777@gmail.com",null,null,null,null,null,null,{"$f":"SUM(P58:S58/J58)","v":0}]
["SECRETARIA_DE_GOBERNANZA_Y_TERRITORIOSUBDIRECCION DE INSPECCION AMBIENTAL1Verificación y regularización de residuos peligrosos y emisiones en talleres de laminado y pintura","SECRETARIA_DE_GOBERNANZA_Y_TERRITORIOSUBDIRECCION DE INSPECCION AMBIENTAL1","SECRETARIA_DE_GOBERNANZA_Y_TERRITORIO","SUBDIRECCION DE INSPECCION AMBIENTAL",{"$f":"COUNTIF($D$4:D59,D59:D59)","v":1},"Verificación y regularización de residuos peligrosos y emisiones en talleres de laminado y pintura","Porcentaje de avance en la  regularización de talleres de laminado y pintura que se encuentren fuera de Norma.","Número de giros regularizados ",136,136,"ING. BENITO ROJAS GUERRERO (ELABORA FORMATO GPE. MAGALY VELAZQUEZ FIGUEROA)","33-38-37-03-42","magalyvelazquez3008@gmail.com",null,"EFICIENCIA/ EFICACIA",32,null,null,null,{"$f":"SUM(P59:S59/J59)","v":0.23529411764705882},"SE REALIZO CENSO DE ZONIFICACION DE 136 GIROS DE TALLERES DE LAMINADO PARA INSPECCIONAR Y REGULARIZAR SUS RESIDUOS, VERIFICANDO  EN ESTE PERIODO 32 TALLERES A LOS CUALES SE LES LEVANTO ACTA CIRCUNTANCIADA DE VERIFICACION PARA ENTREGAR MANIFIESTOS DE RECOLECCION DE RESIDUOS PELIGROSOS Y DE MANEJO ESPECIAL, CABINA DE PINTADO CON EXTRACTOR Y FILTRO, CONTENDORES ROTULADOS PARA LA SEPARACION DE RESIDUOS, FUMIGACION Y LICENCIA MUNICIPAL"]
["SECRETARIA_DE_GOBERNANZA_Y_TERRITORIOSUBDIRECCION DE ATENCION E INSPECCION A TIANGUIS Y ESPACIOS ABIERTOS1Actualizar los padrones de los comerciantes de tianguis","SECRETARIA_DE_GOBERNANZA_Y_TERRITORIOSUBDIRECCION DE ATENCION E INSPECCION A TIANGUIS Y ESPACIOS ABIERTOS1","SECRETARIA_DE_GOBERNANZA_Y_TERRITORIO","SUBDIRECCION DE ATENCION E INSPECCION A TIANGUIS Y ESPACIOS ABIERTOS",{"$f":"COUNTIF($D$4:D60,D60:D60)","v":1},"Actualizar los padrones de los comerciantes de tianguis","porcentaje de comerciantes regularizados en los padrones ","numero de comerciantes regularizados en los padrones ",0,150,"LORENA PEREZ CARDENAS","333837-0346","mercados@tlaquepaque.gob.mx",null,"EFICIENCIA / CALIDAD",20,null,null,null,{"$f":"SUM(P60:S60/J60)","v":0.13333333333333333},"Visitamos tianguis del municipio, en donde detectamos diversas anomalias, como comerciantes laborando en un espacio por más de cinco años, sin estar relacionados en el censo autorizado de comerciantes, pagando \"impuestos\", a personas externas al gobierno municipal, por lo que este gobierno, preocupado por los comerciantes, les ofreció regularizar sus espacios, otorgando certeza a tráves de un documento que ampara su lugar de trabajo, en los tianguis denominados (San Pedrito, Parques de la Victoria y Nueva Santa María)  "]
["SECRETARIA_DE_GOBERNANZA_Y_TERRITORIOSUBDIRECCION DE ATENCION E INSPECCION A TIANGUIS Y ESPACIOS ABIERTOS2Regularizar comercio en espacio abierto en la colonia San Martín de las Flores","SECRETARIA_DE_GOBERNANZA_Y_TERRITORIOSUBDIRECCION DE ATENCION E INSPECCION A TIANGUIS Y ESPACIOS ABIERTOS2","SECRETARIA_DE_GOBERNANZA_Y_TERRITORIO","SUBDIRECCION DE ATENCION E INSPECCION A TIANGUIS Y ESPACIOS ABIERTOS",{"$f":"COUNTIF($D$4:D61,D61:D61)","v":2},"Regularizar comercio en espacio abierto en la colonia San Martín de las Flores","porcentaje de comerciantes regularizados ","número de comerciantes regularizados",0,500,"LORENA PEREZ CARDENAS","333837-0346","mercados@tlaquepaque.gob.mx",null,"EFICIENCIA / CALIDAD",303,null,null,null,{"$f":"SUM(P61:S61/J61)","v":0.60599999999999998},"A raíz de las inspecciones realizadas en la Colonia San Martín de las Flores, localizamos a comerciantes laborando sin permiso para uso de suelo o pagaban impuestos a personas extrernas al Gobierno Municipal, por lo que realizamos operativos en la vía pública, en las fiestas patronales, así como en los eventos de temporada (día de muertos y tianguis navideño), en donde invitamos a los comerciantes, a asistir a nuestras instalaciones para trámitar su permiso provisional y brindarles tranquilidad de comercializar en los espacios abiertos. "]
["SECRETARIA_DE_GOBERNANZA_Y_TERRITORIOSUBDIRECCION DE ATENCION E INSPECCION DE MERCADOS1Recuperación de locales abandonados en merados municipales","SECRETARIA_DE_GOBERNANZA_Y_TERRITORIOSUBDIRECCION DE ATENCION E INSPECCION DE MERCADOS1","SECRETARIA_DE_GOBERNANZA_Y_TERRITORIO","SUBDIRECCION DE ATENCION E INSPECCION DE MERCADOS",{"$f":"COUNTIF($D$4:D62,D62:D62)","v":1},"Recuperación de locales abandonados en merados municipales","Porcentaje de etapas para la recuperación de locales comerciales en estado de abandono de los mercados de Las Juntas-  ","numero de acciones realizadas ",0,220,"LIC. JORGE ALBERTO DURAN CRUZ","33 25 37 92 13","aurora.gonzalez@tlaquepaque.gob.mx",null,null,null,null,null,null,{"$f":"SUM(P62:S62/J62)","v":0}]
["SECRETARIA_DE_GOBERNANZA_Y_TERRITORIOSUBDIRECCION DE ATENCION E INSPECCION DE MERCADOS2Recuperación de locales abandonados en merados municipales","SECRETARIA_DE_GOBERNANZA_Y_TERRITORIOSUBDIRECCION DE ATENCION E INSPECCION DE MERCADOS2","SECRETARIA_DE_GOBERNANZA_Y_TERRITORIO","SUBDIRECCION DE ATENCION E INSPECCION DE MERCADOS",2,"Recuperación de locales abandonados en merados municipales","Porcentaje de etapas para la recuperación de locales comerciales en estado de abandono del mercado de San Martín de las Flores.  ","numero de acciones realizadas ",0,268,"LIC. JORGE ALBERTO DURAN CRUZ","33 25 37 92 13","aurora.gonzalez@tlaquepaque.gob.mx",null,null,null,null,null,null,{"$f":"SUM(P63:S63/J63)","v":0}]
["SECRETARIA_DE_GOBERNANZA_Y_TERRITORIODIRECCION DE ARCHIVO MUNICIPAL1Programa de capacitación para la clasificación, organización, transferencia, resguardo y consulta de información oficial","SECRETARIA_DE_GOBERNANZA_Y_TERRITORIODIRECCION DE ARCHIVO MUNICIPAL1","SECRETARIA_DE_GOBERNANZA_Y_TERRITORIO","DIRECCION DE ARCHIVO MUNICIPAL",{"$f":"COUNTIF($D$4:D64,D64:D64)","v":1},"Programa de capacitación para la clasificación, organización, transferencia, resguardo y consulta de información oficial","Porcentaje  de capacitaciones para la clasificación, organización, transferencia, resguardo y consulta de información oficial  para las y los servidores públicos, realizadas","Número de capacitaciones realizadas ",0,9,"Omar Agustín Gutiérrez Arana",3317662514,"omar.gtza@gmail.com",null,null,null,null,null,null,{"$f":"SUM(P64:S64/J64)","v":0}]
["SECRETARIA_DE_GOBERNANZA_Y_TERRITORIODIRECCION DE ARCHIVO MUNICIPAL2Proyecto de digitalización para el Archivo Municipal","SECRETARIA_DE_GOBERNANZA_Y_TERRITORIODIRECCION DE ARCHIVO MUNICIPAL2","SECRETARIA_DE_GOBERNANZA_Y_TERRITORIO","DIRECCION DE ARCHIVO MUNICIPAL",{"$f":"COUNTIF($D$4:D65,D65:D65)","v":2},"Proyecto de digitalización para el Archivo Municipal","Porcentaje de documentos digitalizados respecto al total de documentos seleccionados para el proyecto","Número de documentos digitalizados",0,500,"Omar Agustín Gutiérrez Arana",3317662514,"omar.gtza@gmail.com",null,null,null,null,null,null,{"$f":"SUM(P65:S65/J65)","v":0}]
["SECRETARIA_DE_GOBERNANZA_Y_TERRITORIODIRECCION DE ARCHIVO MUNICIPAL3Campaña de divulgación cultural histórica del Archivo Municipal a escuelas de educación básica en Tlaquepaque","SECRETARIA_DE_GOBERNANZA_Y_TERRITORIODIRECCION DE ARCHIVO MUNICIPAL3","SECRETARIA_DE_GOBERNANZA_Y_TERRITORIO","DIRECCION DE ARCHIVO MUNICIPAL",{"$f":"COUNTIF($D$4:D66,D66:D66)","v":3},"Campaña de divulgación cultural histórica del Archivo Municipal a escuelas de educación básica en Tlaquepaque","Porcentaje de escuelas de educación básica en el municipio de San Pedro Tlaquepaque que participan en las actividades de divulgación cultural e histórica del Archivo Municipal","Número de escuelas",0,6,"Omar Agustín Gutiérrez Arana",3317662514,"omar.gtza@gmail.com",null,null,null,null,null,null,{"$f":"SUM(P66:S66/J66)","v":0}]
["SECRETARIA_DE_GOBERNANZA_Y_TERRITORIODEPARTAMENTO DE ASUNTOS RELIGIOSOS1Servicio de atención a las necesidades de las distintas asociaciones religiosas del municipio","SECRETARIA_DE_GOBERNANZA_Y_TERRITORIODEPARTAMENTO DE ASUNTOS RELIGIOSOS1","SECRETARIA_DE_GOBERNANZA_Y_TERRITORIO","DEPARTAMENTO DE ASUNTOS RELIGIOSOS",{"$f":"COUNTIF($D$4:D67,D67:D67)","v":1},"Servicio de atención a las necesidades de las distintas asociaciones religiosas del municipio","Porcentaje de asociaciones religiosas atendidas ","Número de asociaciones religiosas atendidas",0,220,"Omar Agustín Gutiérrez Arana",3317662514,"omar.gtza@gmail.com",null,null,null,null,null,null,{"$f":"SUM(P67:S67/J67)","v":0}]
["SECRETARIA_DE_GOBERNANZA_Y_TERRITORIODEPARTAMENTO DE OFICINA DE PASAPORTES1Trámite de Pasaporte Mexicano en Oficinas de Enlace de Tlaquepaque","SECRETARIA_DE_GOBERNANZA_Y_TERRITORIODEPARTAMENTO DE OFICINA DE PASAPORTES1","SECRETARIA_DE_GOBERNANZA_Y_TERRITORIO","DEPARTAMENTO DE OFICINA DE PASAPORTES",{"$f":"COUNTIF($D$4:D68,D68:D68)","v":1},"Trámite de Pasaporte Mexicano en Oficinas de Enlace de Tlaquepaque","Porcentaje de trámites de expedición de pasaportes realizados.","Número de tramites ",0,20000,"Francisco Isaac Jiménez","3335627014 ext. 2217","ometlaquepaque@hotmail.com",null,null,3562,null,null,null,{"$f":"SUM(P68:S68/J68)","v":0.17810000000000001},"Durante el último trimestre de 2024, se recibieron 3,562 solicitudes para trámite de pasaporte en ambas oficinas de enlace, Pila Seca y Centro Sur, acercando el servicio a la ciudadanía para ejercer su derecho a la obtención de un pasaporte nacional."]
["SECRETARIA_DE_ADMINISTRACION_Y_FINANZASDIRECCION DE EGRESOS1Porcentaje De Presupuesto Ejercido De Acuerdo Con Criterios De Eficiencia, Austeridad Y Ahorro","SECRETARIA_DE_ADMINISTRACION_Y_FINANZASDIRECCION DE EGRESOS1","SECRETARIA_DE_ADMINISTRACION_Y_FINANZAS","DIRECCION DE EGRESOS",1,"Porcentaje De Presupuesto Ejercido De Acuerdo Con Criterios De Eficiencia, Austeridad Y Ahorro","Porcentaje de presupuesto ejercido de acuerdo con criterios de eficiencia, austeridad y ahorro"," presupuesto ejercido",2624511115,2624511116,"Dr. Carlos Raúl Magaña Ramírez","33-14-52-65-88","carlos.magana@univa.mx y carlosgdl_vd@hotmail.com",null,"Economía",547178970.62,null,null,null,{"$f":"SUM(P69:S69/J69)","v":0.20848796078027357},"$ 547178970.62 es la cantidad  de presupuesto ejercido de los meses antes citados, de aceurdo  con criterios de eficiencia, austeridad y ahorro "]
["SECRETARIA_DE_ADMINISTRACION_Y_FINANZASSUBDIRECCION DE CONTROL DE PAGOS1Optimizar el proceso de pagos","SECRETARIA_DE_ADMINISTRACION_Y_FINANZASSUBDIRECCION DE CONTROL DE PAGOS1","SECRETARIA_DE_ADMINISTRACION_Y_FINANZAS","SUBDIRECCION DE CONTROL DE PAGOS",{"$f":"COUNTIF($D$4:D70,D70:D70)","v":1},"Optimizar el proceso de pagos","Porcentaje de cheques elaborados ","Número de cheques elaborados ",0,1200,"JORGE ARMANDO MAGALLÓN LOMELÍ","3338520471 EXT. 107","jorge.magallon@tlaquepaque.gob.mx",null,null,null,null,null,null,{"$f":"SUM(P70:S70/J70)","v":0}]
["SECRETARIA_DE_ADMINISTRACION_Y_FINANZASSUBDIRECCION DE CONTROL DE PAGOS2Optimizar el proceso de pagos","SECRETARIA_DE_ADMINISTRACION_Y_FINANZASSUBDIRECCION DE CONTROL DE PAGOS2","SECRETARIA_DE_ADMINISTRACION_Y_FINANZAS","SUBDIRECCION DE CONTROL DE PAGOS",{"$f":"COUNTIF($D$4:D71,D71:D71)","v":2},"Optimizar el proceso de pagos","Porcentaje de transacciones realizadas","Número de transacciones realizads ",0,2850,"JORGE ARMANDO MAGALLÓN LOMELÍ","3338520471 EXT. 107","jorge.magallon@tlaquepaque.gob.mx",null,null,null,null,null,null,{"$f":"SUM(P71:S71/J71)","v":0}]
["SECRETARIA_DE_ADMINISTRACION_Y_FINANZASDIRECCION DE INGRESOS1Programa De Apoyo A Adultos Mayores","SECRETARIA_DE_ADMINISTRACION_Y_FINANZASDIRECCION DE INGRESOS1","SECRETARIA_DE_ADMINISTRACION_Y_FINANZAS","DIRECCION DE INGRESOS",{"$f":"COUNTIF($D$4:D72,D72:D72)","v":1},"Programa De Apoyo A Adultos Mayores","Porcentaje de trámites autorizados para descuentos y exenciones a adultos mayores ","Número de trámites realizados",20000,22000,"Julio Gutiérrez Martínez","33-31-24-42-22","julio_gutierrez18@hotmail.com",null,null,null,null,null,null,{"$f":"SUM(P72:S72/J72)","v":0}]
["SECRETARIA_DE_ADMINISTRACION_Y_FINANZASDIRECCION DE INGRESOS2Programa de Convenios","SECRETARIA_DE_ADMINISTRACION_Y_FINANZASDIRECCION DE INGRESOS2","SECRETARIA_DE_ADMINISTRACION_Y_FINANZAS","DIRECCION DE INGRESOS",{"$f":"COUNTIF($D$4:D73,D73:D73)","v":2},"Programa de Convenios","Porcentaje de convenios realizados para cumplir con el pago de impuestos  ","Número de convenios realizados.",300,320,"Julio Gutiérrez Martínez","33-31-24-42-22","julio_gutierrez18@hotmail.com",null,null,null,null,null,null,{"$f":"SUM(P73:S73/J73)","v":0}]
["SECRETARIA_DE_ADMINISTRACION_Y_FINANZASDIRECCION DE INGRESOS3Programa Integral de Recaudación","SECRETARIA_DE_ADMINISTRACION_Y_FINANZASDIRECCION DE INGRESOS3","SECRETARIA_DE_ADMINISTRACION_Y_FINANZAS","DIRECCION DE INGRESOS",{"$f":"COUNTIF($D$4:D74,D74:D74)","v":3},"Programa Integral de Recaudación","Porcentaje de avance en la recaudación municipal","cantidad de recursos recaudados",324000000,336000000,"Julio Gutiérrez Martínez","33-31-24-42-22","julio_gutierrez18@hotmail.com",null,null,null,null,null,null,{"$f":"SUM(P74:S74/J74)","v":0}]
["SECRETARIA_DE_ADMINISTRACION_Y_FINANZASDIRECCION DE RECURSOS MATERIALES1Administración y control de los Recursos Materiales","SECRETARIA_DE_ADMINISTRACION_Y_FINANZASDIRECCION DE RECURSOS MATERIALES1","SECRETARIA_DE_ADMINISTRACION_Y_FINANZAS","DIRECCION DE RECURSOS MATERIALES",{"$f":"COUNTIF($D$4:D75,D75:D75)","v":1},"Administración y control de los Recursos Materiales","Porcentaje de solicitudes de Recursos Materiales","Número de solicitudes atendidas ",4000,2160,"BLANCA ISELA EVANGELISTA AGUILAR",3336665995,"di.recursosmateriales@gmail.com se cambio por  gerardo.hernandez@tlaquepaque.gob.mx",null,null,null,null,null,null,{"$f":"SUM(P75:S75/J75)","v":0}]
["SECRETARIA_DE_ADMINISTRACION_Y_FINANZASSUBDIRECCION DE PATRIMONIO1Administración de Bienes Inmuebles","SECRETARIA_DE_ADMINISTRACION_Y_FINANZASSUBDIRECCION DE PATRIMONIO1","SECRETARIA_DE_ADMINISTRACION_Y_FINANZAS","SUBDIRECCION DE PATRIMONIO",{"$f":"COUNTIF($D$4:D76,D76:D76)","v":1},"Administración de Bienes Inmuebles","Porcentaje de avance y seguimiento de la dministración y control de bienes inmuebles","Bienes Inmuebles revisados    ",0,1500,"Martha Olivia Venegas Chavarín","33 3562 7000 ext. 2307","martha.venegas@tlaquepaque.gob.mx",null,null,null,null,null,null,{"$f":"SUM(P76:S76/J76)","v":0}]
[{"$f":"B77&F77","v":"SECRETARIA_DE_ADMINISTRACION_Y_FINANZASSUBDIRECCION DE PATRIMONIO2Administración de Bienes Inmuebles"},"SECRETARIA_DE_ADMINISTRACION_Y_FINANZASSUBDIRECCION DE PATRIMONIO2","SECRETARIA_DE_ADMINISTRACION_Y_FINANZAS","SUBDIRECCION DE PATRIMONIO",{"$f":"COUNTIF($D$4:D77,D77:D77)","v":2},"Administración de Bienes Inmuebles","Porcentaje de predios municipales con delimitacion (enmallado)","Numero de predios delimitados",15,11,"Martha Olivia Venegas Chavarín","33 3562 7000 ext. 2307","martha.venegas@tlaquepaque.gob.mx",null,null,null,null,null,null,{"$f":"SUM(P77:S77/J77)","v":0}]
["SECRETARIA_DE_ADMINISTRACION_Y_FINANZASSUBDIRECCION DE PATRIMONIO3Administración de Bienes Inmuebles","SECRETARIA_DE_ADMINISTRACION_Y_FINANZASSUBDIRECCION DE PATRIMONIO3","SECRETARIA_DE_ADMINISTRACION_Y_FINANZAS","SUBDIRECCION DE PATRIMONIO",{"$f":"COUNTIF($D$4:D78,D78:D78)","v":3},"Administración de Bienes Inmuebles","Porcentaje de letreros instalados en predios municipales","Numero de letreros instalados",65,20,"Martha Olivia Venegas Chavarín","33 3562 7000 ext. 2307","martha.venegas@tlaquepaque.gob.mx",null,null,null,null,null,null,{"$f":"SUM(P78:S78/J78)","v":0}]
["SECRETARIA_DE_ADMINISTRACION_Y_FINANZASDEPARTAMENTO DE BIENES MUEBLES1Actualización y control de los inventarios de los bienes muebles.","SECRETARIA_DE_ADMINISTRACION_Y_FINANZASDEPARTAMENTO DE BIENES MUEBLES1","SECRETARIA_DE_ADMINISTRACION_Y_FINANZAS","DEPARTAMENTO DE BIENES MUEBLES",{"$f":"COUNTIF($D$4:D79,D79:D79)","v":1},"Actualización y control de los inventarios de los bienes muebles.","Porcentaje de avance en la administración y control de los bienes muebles","Número de bienes revisados",29800,30560,"Fernando Villa Martínez",3314619220,"fernando.villa@tlaquepaque.gob.mx",null,null,null,null,null,null,{"$f":"SUM(P79:S79/J79)","v":0}]
["SECRETARIA_DE_ADMINISTRACION_Y_FINANZASDEPARTAMENTO DE SERVICIOS GENERALES1Recursos Humanos eficiente","SECRETARIA_DE_ADMINISTRACION_Y_FINANZASDEPARTAMENTO DE SERVICIOS GENERALES1","SECRETARIA_DE_ADMINISTRACION_Y_FINANZAS","DEPARTAMENTO DE SERVICIOS GENERALES",{"$f":"COUNTIF($D$4:D80,D80:D80)","v":1},"Recursos Humanos eficiente","Porcentaje de contratación de personal operativo para fortalecer el Departamento de Servicios Generales  ","Número de personas contratadas ",0,22,"LIC. JOSE CARLOS MORENO ARELLANO",3338091176,"lcp.charliemoreno@gmail.com y/o gusrbecerra@hotmail.com",null,null,null,null,null,null,{"$f":"SUM(P80:S80/J80)","v":0}]
["SECRETARIA_DE_ADMINISTRACION_Y_FINANZASDEPARTAMENTO DE TALLER MUNICIPAL1Mantenimiento preventivo y correctivo del parque vehicular","SECRETARIA_DE_ADMINISTRACION_Y_FINANZASDEPARTAMENTO DE TALLER MUNICIPAL1","SECRETARIA_DE_ADMINISTRACION_Y_FINANZAS","DEPARTAMENTO DE TALLER MUNICIPAL",{"$f":"COUNTIF($D$4:D81,D81:D81)","v":1},"Mantenimiento preventivo y correctivo del parque vehicular","Porcentaje de unidades atendidas y reparadas ","número de unidades atendidas y reparadas ",0,800,"JOSE LUIS APARICIO GARCÍA",3320663142,"jl.aparicio.g73@gmail.com",null,"Economía",197,null,null,null,{"$f":"SUM(P81:S81/J81)","v":0.24625},"Se recibieron 197 unidades vehículares,  con situciones más emergentes de funcionalidad, mismas que fueron reparadas,  de acuerdo a lo que nos fue solicitado en la hoja multiple de servicio, por cada una de las  dependencias solicitantes. "]
["SECRETARIA_DE_ADMINISTRACION_Y_FINANZASSUBDIRECCION DE COMPRAS Y ADQUISICIONES1Licitaciones Ejecutadas","SECRETARIA_DE_ADMINISTRACION_Y_FINANZASSUBDIRECCION DE COMPRAS Y ADQUISICIONES1","SECRETARIA_DE_ADMINISTRACION_Y_FINANZAS","SUBDIRECCION DE COMPRAS Y ADQUISICIONES",{"$f":"COUNTIF($D$4:D82,D82:D82)","v":1},"Licitaciones Ejecutadas","Porcentaje de procedimientos de adquisición de bienes y servicios realizados","Número de procedimientos realizados",0,100,"EDGAR JASIEL ESTRADA CASIMIRO",3336665995,"sub.cya@gmail.com se cambia por gerardo.hernandez@tlaquepaque.gob.mx",null,null,null,null,null,null,{"$f":"SUM(P82:S82/J82)","v":0}]
["SECRETARIA_DE_ADMINISTRACION_Y_FINANZASSUBDIRECCION DE COMPRAS Y ADQUISICIONES2Capacitación para Adquisiciones","SECRETARIA_DE_ADMINISTRACION_Y_FINANZASSUBDIRECCION DE COMPRAS Y ADQUISICIONES2","SECRETARIA_DE_ADMINISTRACION_Y_FINANZAS","SUBDIRECCION DE COMPRAS Y ADQUISICIONES",{"$f":"COUNTIF($D$4:D83,D83:D83)","v":2},"Capacitación para Adquisiciones","Porcentaje de capacitaciones en materia de adquisiciones.  ","Número de capacitaciones realizadas ",0,2,"EDGAR JASIEL ESTRADA CASIMIRO",3336665995,"sub.cya@gmail.com se cambia por gerardo.hernandez@tlaquepaque.gob.mx",null,null,null,null,null,null,{"$f":"SUM(P83:S83/J83)","v":0}]
["SECRETARIA_DE_ADMINISTRACION_Y_FINANZASDIRECCION DE CATASTRO1Tramites y Servicios","SECRETARIA_DE_ADMINISTRACION_Y_FINANZASDIRECCION DE CATASTRO1","SECRETARIA_DE_ADMINISTRACION_Y_FINANZAS","DIRECCION DE CATASTRO",{"$f":"COUNTIF($D$4:D84,D84:D84)","v":1},"Tramites y Servicios","Porcentaje de trámites y servicios de la dirección de Catastro atendidos ","Número de tramites y servicios atendidos ",25199,26500,"JOSE GUADALUPE CUZ BRISEÑO",3338379393,"catastro@tlaquepaque.gob.mx",null,null,null,null,null,null,{"$f":"SUM(P84:S84/J84)","v":0}]
["SECRETARIA_DE_ADMINISTRACION_Y_FINANZASDEPARTAMENTO DE SOPORTE Y MANTENIMIENTO1Sistema de control de servicios","SECRETARIA_DE_ADMINISTRACION_Y_FINANZASDEPARTAMENTO DE SOPORTE Y MANTENIMIENTO1","SECRETARIA_DE_ADMINISTRACION_Y_FINANZAS","DEPARTAMENTO DE SOPORTE Y MANTENIMIENTO",{"$f":"COUNTIF($D$4:D85,D85:D85)","v":1},"Sistema de control de servicios","Porcentaje de etapas realizadas para la elaboración del sistema de control de servicios","numero de etapas realizadas",0,5,"Marcela Escobedo",3338379008,"marcela.escobedo@tlaquepaque.gob.mx",null,"Eficiencia/Eficacia",2,null,null,null,{"$f":"SUM(P85:S85/J85)","v":0.4},"Realizamos un análisis de requerimientos basados en la información de SASG como dependencia, número patrimonial, solicitud de servicio, técnicos asignados en cual comenzamos a elaborar tablas de técnicos, bienes, dependencias, servicios, dictámenes, mantenimientos creando un diseño para la captura de la información."]
["SECRETARIA_DE_ADMINISTRACION_Y_FINANZASDEPARTAMENTO DE REDES Y TELECOMUNICACIONES1Instalación de Cámaras de Seguridad",{"$f":"C86&D86&E86","v":"SECRETARIA_DE_ADMINISTRACION_Y_FINANZASDEPARTAMENTO DE REDES Y TELECOMUNICACIONES1"},"SECRETARIA_DE_ADMINISTRACION_Y_FINANZAS","DEPARTAMENTO DE REDES Y TELECOMUNICACIONES",{"$f":"COUNTIF($D$4:D86,D86:D86)","v":1},"Instalación de Cámaras de Seguridad","Porcentaje de etapas realizadas para la instalación de camaras de seguridad","número de etapas realizadas",0,6,"Marcela Escobedo",3338379008,"marcela.escobedo@tlaquepaque.gob.mx","Revisado",null,null,null,null,null,{"$f":"SUM(P86:S86/J86)","v":0}]
["SECRETARIA_DE_ADMINISTRACION_Y_FINANZASDIRECCION DE CONTABILIDAD Y GLOSA1Programa de elaboración y presentación de Cuentas Públicas","SECRETARIA_DE_ADMINISTRACION_Y_FINANZASDIRECCION DE CONTABILIDAD Y GLOSA1","SECRETARIA_DE_ADMINISTRACION_Y_FINANZAS","DIRECCION DE CONTABILIDAD Y GLOSA",{"$f":"COUNTIF($D$4:D87,D87:D87)","v":1},"Programa de elaboración y presentación de Cuentas Públicas","Porcentaje de avance en la elaboración y presentación puntual de las Cuentas Públicas.","Número de Cuentas Públicas Elaboradas y Presentadas",0,14,null,null,null,"Revisado",null,null,null,null,null,{"$f":"SUM(P87:S87/J87)","v":0}]
["SECRETARIA_DE_CONTRALORIA_MUNICIPAL_Y_COMBATE_A_LA_CORRUPCIONDIRECCION DE AUDITORIA A OBRA PUBLICA Y SERVICIOS1Control documental de expedientes de obras","SECRETARIA_DE_CONTRALORIA_MUNICIPAL_Y_COMBATE_A_LA_CORRUPCIONDIRECCION DE AUDITORIA A OBRA PUBLICA Y SERVICIOS1","SECRETARIA_DE_CONTRALORIA_MUNICIPAL_Y_COMBATE_A_LA_CORRUPCION","DIRECCION DE AUDITORIA A OBRA PUBLICA Y SERVICIOS",{"$f":"COUNTIF($D$4:D88,D88:D88)","v":1},"Control documental de expedientes de obras","Porcentaje de expedientes revisados y digitalizados  ","Número de  expedientes revisados y digitalizados ",0,150,"HÉCTOR NICODEMO TREJO ROMERO","33.3662.0575",null,null,"CALIDAD",42,null,null,null,{"$f":"SUM(P88:S88/J88)","v":0.28000000000000003},"Se recibieron 42 expedientes conteniendo la documentación acorde con la etapa en proceso de la auditoria a obra, anticipo, estimación de avance o finiquito, llevando un control interno para seguiemiento del avance de obra y registro del auditor encargado. Hay obras de inicio, con avances en estimaciones y finiquitos de términos de obra"]
["SECRETARIA_DE_CONTRALORIA_MUNICIPAL_Y_COMBATE_A_LA_CORRUPCIONDIRECCION DE AUDITORIA A OBRA PUBLICA Y SERVICIOS2Análisis documental de expedientes de obras","SECRETARIA_DE_CONTRALORIA_MUNICIPAL_Y_COMBATE_A_LA_CORRUPCIONDIRECCION DE AUDITORIA A OBRA PUBLICA Y SERVICIOS2","SECRETARIA_DE_CONTRALORIA_MUNICIPAL_Y_COMBATE_A_LA_CORRUPCION","DIRECCION DE AUDITORIA A OBRA PUBLICA Y SERVICIOS",{"$f":"COUNTIF($D$4:D89,D89:D89)","v":2},"Análisis documental de expedientes de obras","Porcentaje de expedientes de obra con proceso de análisis documental, realizado ","Número de expedientes analizados ",0,150,"HÉCTOR NICODEMO TREJO ROMERO","33.3662.0575",null,null,"CALIDAD",42,null,null,null,{"$f":"SUM(P89:S89/J89)","v":0.28000000000000003},"Se recibieron 42 oficios de Obras Públicas con el expediente de cada etapa en proceso por obra, se revisó que este la documentación vigente y acorde con normativa y se enviaron los oficios para liberación del pago a la Secretaría de Administración y Finanzas de San Pedro Tlaquepaque y con copia a la Secretaía de Obras Públicas. En caso de existir observaciones se solicita al contratista hacer las correcciones pertinentes y se aplican deductivas de ser necesarias"]
["SECRETARIA_DE_CONTRALORIA_MUNICIPAL_Y_COMBATE_A_LA_CORRUPCIONDIRECCION DE AUDITORIA GUBERNAMENTAL Y COMBATE A LA CORRUPCION1Auditorías","SECRETARIA_DE_CONTRALORIA_MUNICIPAL_Y_COMBATE_A_LA_CORRUPCIONDIRECCION DE AUDITORIA GUBERNAMENTAL Y COMBATE A LA CORRUPCION1","SECRETARIA_DE_CONTRALORIA_MUNICIPAL_Y_COMBATE_A_LA_CORRUPCION","DIRECCION DE AUDITORIA GUBERNAMENTAL Y COMBATE A LA CORRUPCION",{"$f":"COUNTIF($D$4:D90,D90:D90)","v":1},"Auditorías","Porcentaje de Auditorías realizadas","Número de auditorías, realizadas ",10,8,"Ana Rosa Guzmán Peña",3314176115,"anarosa.guzman@tlaquepaque.gob.mx",null,null,null,null,null,null,{"$f":"SUM(P90:S90/J90)","v":0}]
["SECRETARIA_DE_CONTRALORIA_MUNICIPAL_Y_COMBATE_A_LA_CORRUPCIONDIRECCION DE AUDITORIA GUBERNAMENTAL Y COMBATE A LA CORRUPCION2Visitas de Inspección","SECRETARIA_DE_CONTRALORIA_MUNICIPAL_Y_COMBATE_A_LA_CORRUPCIONDIRECCION DE AUDITORIA GUBERNAMENTAL Y COMBATE A LA CORRUPCION2","SECRETARIA_DE_CONTRALORIA_MUNICIPAL_Y_COMBATE_A_LA_CORRUPCION","DIRECCION DE AUDITORIA GUBERNAMENTAL Y COMBATE A LA CORRUPCION",{"$f":"COUNTIF($D$4:D91,D91:D91)","v":2},"Visitas de Inspección","Porcentaje de visitas de inspección realizadas","Número de visitas de inspección realizadas ",3,8,"Ana Rosa Guzmán Peña",3314176115,"anarosa.guzman@tlaquepaque.gob.mx",null,null,null,null,null,null,{"$f":"SUM(P91:S91/J91)","v":0}]
["SECRETARIA_DE_CONTRALORIA_MUNICIPAL_Y_COMBATE_A_LA_CORRUPCIONSUBDIRECCION DE AUDITORIA FINANCIERA Y DE DESEMPEÑO1Auditorías","SECRETARIA_DE_CONTRALORIA_MUNICIPAL_Y_COMBATE_A_LA_CORRUPCIONSUBDIRECCION DE AUDITORIA FINANCIERA Y DE DESEMPEÑO1","SECRETARIA_DE_CONTRALORIA_MUNICIPAL_Y_COMBATE_A_LA_CORRUPCION","SUBDIRECCION DE AUDITORIA FINANCIERA Y DE DESEMPEÑO",{"$f":"COUNTIF($D$4:D92,D92:D92)","v":1},"Auditorías","Porcentaje de Auditorias financieras y de desempeño, realizadas","Número de auditorias realizadas ",10,9,"Itzel Adriana Trejo Corona",3310723898,"itzel.trejo@tlaquepaque.gob.mx",null,null,null,null,null,null,{"$f":"SUM(P92:S92/J92)","v":0}]
["SECRETARIA_DE_CONTRALORIA_MUNICIPAL_Y_COMBATE_A_LA_CORRUPCIONSUBDIRECCION DE AUDITORIA FINANCIERA Y DE DESEMPEÑO2Procedimientos de aclaración derivados de entrega recepción","SECRETARIA_DE_CONTRALORIA_MUNICIPAL_Y_COMBATE_A_LA_CORRUPCIONSUBDIRECCION DE AUDITORIA FINANCIERA Y DE DESEMPEÑO2","SECRETARIA_DE_CONTRALORIA_MUNICIPAL_Y_COMBATE_A_LA_CORRUPCION","SUBDIRECCION DE AUDITORIA FINANCIERA Y DE DESEMPEÑO",{"$f":"COUNTIF($D$4:D93,D93:D93)","v":2},"Procedimientos de aclaración derivados de entrega recepción","Porcentaje de procedimientos de aclaración derivados de entrega- recepción, realizados  ","Número de procedimientos de aclaración realizados",66,30,"Itzel Adriana Trejo Corona",3310723898,"itzel,trejo@tlaquepaque.gob.mx",null,null,null,null,null,null,{"$f":"SUM(P93:S93/J93)","v":0}]
["SECRETARIA_DE_CONTRALORIA_MUNICIPAL_Y_COMBATE_A_LA_CORRUPCIONSUBDIRECCION DE AUDITORIA FINANCIERA Y DE DESEMPEÑO3Visitas de Inspección","SECRETARIA_DE_CONTRALORIA_MUNICIPAL_Y_COMBATE_A_LA_CORRUPCIONSUBDIRECCION DE AUDITORIA FINANCIERA Y DE DESEMPEÑO3","SECRETARIA_DE_CONTRALORIA_MUNICIPAL_Y_COMBATE_A_LA_CORRUPCION","SUBDIRECCION DE AUDITORIA FINANCIERA Y DE DESEMPEÑO",{"$f":"COUNTIF($D$4:D94,D94:D94)","v":3},"Visitas de Inspección","Porcentaje de visitas de inspección realizadas","Número de visitas de inspección realizadas",3,10,"Itzel Adriana Trejo Corona",3310723898,"itzel,trejo@tlaquepaque.gob.mx",null,null,null,null,null,null,{"$f":"SUM(P94:S94/J94)","v":0}]
["SECRETARIA_DE_CONTRALORIA_MUNICIPAL_Y_COMBATE_A_LA_CORRUPCIONDIRECCION DE RESPONSABILIDADES Y EVOLUCION PATRIMONIAL1Educación e Innovación Tecnológica","SECRETARIA_DE_CONTRALORIA_MUNICIPAL_Y_COMBATE_A_LA_CORRUPCIONDIRECCION DE RESPONSABILIDADES Y EVOLUCION PATRIMONIAL1","SECRETARIA_DE_CONTRALORIA_MUNICIPAL_Y_COMBATE_A_LA_CORRUPCION","DIRECCION DE RESPONSABILIDADES Y EVOLUCION PATRIMONIAL",{"$f":"COUNTIF($D$4:D95,D95:D95)","v":1},"Educación e Innovación Tecnológica","Porcentaje de personas de nuevo ingreso que hayan cumplido con su declaracion patrimonial ","Numero  de personas de nuevo ingreso con declaración patrimonial realizada",0,180,"Felipe Rivas Rivera",3314179257,"felipe.rivas@tlaquepaque.gob.mx",null,null,null,null,null,null,{"$f":"SUM(P95:S95/J95)","v":0}]
["OFICIALIA_MAYORDIRECCION DE DESARROLLO ORGANIZACIONAL1Elaboración de Manuales Administrativos","OFICIALIA_MAYORDIRECCION DE DESARROLLO ORGANIZACIONAL1","OFICIALIA_MAYOR","DIRECCION DE DESARROLLO ORGANIZACIONAL",{"$f":"COUNTIF($D$4:D96,D96:D96)","v":1},"Elaboración de Manuales Administrativos","Porcentaje de la elaboracion de manuales administrativos que representen la actualidad de la estructura de las Dependencias","Numero de manuales elaborados",0,30,"Lic. José Luis Barba Reynoso","'3338078864","Sdelatorrev.Stgo@gmail.com",null,"Eficacia",17,null,null,null,{"$f":"SUM(P96:S96/J96)","v":0.56666666666666665},"Se logró un significativo avance en la preparación previo a la elaboración de los manuales de Organización. Este progreso se ha materializado en los 17 manuales mencionados a través del analisis del nuevo Reglamento de la Administración Publica Municipal  para detectar  y reflejar los objetivos y funciones de cada una de las Secretarias y sus respectivas dependencias."]
["OFICIALIA_MAYORDIRECCION DE DESARROLLO ORGANIZACIONAL2Armonización Organizativa","OFICIALIA_MAYORDIRECCION DE DESARROLLO ORGANIZACIONAL2","OFICIALIA_MAYOR","DIRECCION DE DESARROLLO ORGANIZACIONAL",{"$f":"COUNTIF($D$4:D97,D97:D97)","v":2},"Armonización Organizativa","Porcentaje de la elaboracion de manuales que representen la actualidad de la estructura de las Secretarias","Numero de manuales elaborados",0,15,"Lic. José Luis Barba Reynoso","'3338078864","Sdelatorrev.Stgo@gmail.com",null,"Eficacia",0,null,null,null,{"$f":"SUM(P97:S97/J97)","v":0},"Se efectuó el análisis y diagnóstico tomando como base el nuevo organigrama de la nueva administración y se propusieron adecuaciónes con respecto a  la operatividad que pudiera visualizar algun conflicto con las funciones y desempeño de algunas dependencias, con la finalidad de tomar las medidas correctivas y se optimicen para un mejor desempeño y actualizar en los manuales correspondientes."]
["OFICIALIA_MAYORDEPARTAMENTO DE CAPACITACION Y SERVICIO SOCIAL1Certificación en el ECO385","OFICIALIA_MAYORDEPARTAMENTO DE CAPACITACION Y SERVICIO SOCIAL1","OFICIALIA_MAYOR","DEPARTAMENTO DE CAPACITACION Y SERVICIO SOCIAL",{"$f":"COUNTIF($D$4:D98,D98:D98)","v":1},"Certificación en el ECO385","Porcentaje de servidoras y servidores públicos certificados","Número de personas certificadas",0,51,"Lic. José Antonio Aceves Reynoso","33 12 00 39 80 al 83","capacitaciónyserviciosocial@gmail.com",null,null,null,null,null,null,{"$f":"SUM(P98:S98/J98)","v":0}]
["OFICIALIA_MAYORDEPARTAMENTO DE CAPACITACION Y SERVICIO SOCIAL2Capacitación en materia de Derechos Humanos","OFICIALIA_MAYORDEPARTAMENTO DE CAPACITACION Y SERVICIO SOCIAL2","OFICIALIA_MAYOR","DEPARTAMENTO DE CAPACITACION Y SERVICIO SOCIAL",{"$f":"COUNTIF($D$4:D99,D99:D99)","v":2},"Capacitación en materia de Derechos Humanos","Porcentaje de avance en la capacitación a servidoras y servidores públicos en materia de DDHH","Número de personas capacitadas",0,800,"Lic. José Antonio Aceves Reynoso","33 12 00 39 80 al 83","capacitaciónyserviciosocial@gmail.com",null,null,null,null,null,null,{"$f":"SUM(P99:S99/J99)","v":0}]
["OFICIALIA_MAYORDEPARTAMENTO DE CAPACITACION Y SERVICIO SOCIAL3Desarrollo Académico Básico de las y los servidores públicos de la Secretaría de Servicios Públicos y Medio Ambiente","OFICIALIA_MAYORDEPARTAMENTO DE CAPACITACION Y SERVICIO SOCIAL3","OFICIALIA_MAYOR","DEPARTAMENTO DE CAPACITACION Y SERVICIO SOCIAL",{"$f":"COUNTIF($D$4:D100,D100:D100)","v":3},"Desarrollo Académico Básico de las y los servidores públicos de la Secretaría de Servicios Públicos y Medio Ambiente","Porcentaje de servidoras y servidores públicos certificados","Número de personas certificadas",0,80,"Lic. José Antonio Aceves Reynoso","33 12 00 39 80 al 83","capacitaciónyserviciosocial@gmail.com",null,null,null,null,null,null,{"$f":"SUM(P100:S100/J100)","v":0}]
["OFICIALIA_MAYORDEPARTAMENTO DE CAPACITACION Y SERVICIO SOCIAL4Difusión de Protocolos","OFICIALIA_MAYORDEPARTAMENTO DE CAPACITACION Y SERVICIO SOCIAL4","OFICIALIA_MAYOR","DEPARTAMENTO DE CAPACITACION Y SERVICIO SOCIAL",{"$f":"COUNTIF($D$4:D101,D101:D101)","v":4},"Difusión de Protocolos","Porcentaje de personas con sesibilización en la difusión de protocolos para Personas Adultas Mayores y Personas con Discapacidad ","Número de personas sesibilizadas",0,1200,"Lic. José Antonio Aceves Reynoso","33 12 00 39 80 al 83","capacitaciónyserviciosocial@gmail.com",null,null,null,null,null,null,{"$f":"SUM(P101:S101/J101)","v":0}]
["OFICIALIA_MAYORDEPARTAMENTO DE CAPACITACION Y SERVICIO SOCIAL5Fortalecimiento y Desarrollo de Habilidades Blandas y Desarrollo Humano","OFICIALIA_MAYORDEPARTAMENTO DE CAPACITACION Y SERVICIO SOCIAL5","OFICIALIA_MAYOR","DEPARTAMENTO DE CAPACITACION Y SERVICIO SOCIAL",{"$f":"COUNTIF($D$4:D102,D102:D102)","v":5},"Fortalecimiento y Desarrollo de Habilidades Blandas y Desarrollo Humano","Porcentaje de personas capacitadas en el desarrollo de habilidades blandas y desarrollo humano ","Número de personas capacitadas",0,1200,"Lic. José Antonio Aceves Reynoso","33 12 00 39 80 al 83","capacitaciónyserviciosocial@gmail.com",null,null,null,null,null,null,{"$f":"SUM(P102:S102/J102)","v":0}]
["OFICIALIA_MAYORDEPARTAMENTO DE CAPACITACION Y SERVICIO SOCIAL6Fortalecimiento y Desarrollo de Habilidades Técnicas","OFICIALIA_MAYORDEPARTAMENTO DE CAPACITACION Y SERVICIO SOCIAL6","OFICIALIA_MAYOR","DEPARTAMENTO DE CAPACITACION Y SERVICIO SOCIAL",{"$f":"COUNTIF($D$4:D103,D103:D103)","v":6},"Fortalecimiento y Desarrollo de Habilidades Técnicas","Porcentaje de servidoras y servidores públicos capacitados","Número de personas capacitadas",0,1400,"Lic. José Antonio Aceves Reynoso","33 12 00 39 80 al 83","capacitaciónyserviciosocial@gmail.com",null,null,null,null,null,null,{"$f":"SUM(P103:S103/J103)","v":0}]
["OFICIALIA_MAYORDEPARTAMENTO DE CAPACITACION Y SERVICIO SOCIAL7Promoción de estilos de vida y entornos laboral, alimentaria y físicamente saludable para el personal","OFICIALIA_MAYORDEPARTAMENTO DE CAPACITACION Y SERVICIO SOCIAL7","OFICIALIA_MAYOR","DEPARTAMENTO DE CAPACITACION Y SERVICIO SOCIAL",{"$f":"COUNTIF($D$4:D104,D104:D104)","v":7},"Promoción de estilos de vida y entornos laboral, alimentaria y físicamente saludable para el personal","Porcentaje de edificios certificados como entornos saludables ","Número de edificios certificados",0,16,"Lic. José Antonio Aceves Reynoso","33 12 00 39 80 al 83","capacitaciónyserviciosocial@gmail.com",null,null,null,null,null,null,{"$f":"SUM(P104:S104/J104)","v":0}]
["OFICIALIA_MAYORDEPARTAMENTO DE CAPACITACION Y SERVICIO SOCIAL8Tlaquepaque Universitario","OFICIALIA_MAYORDEPARTAMENTO DE CAPACITACION Y SERVICIO SOCIAL8","OFICIALIA_MAYOR","DEPARTAMENTO DE CAPACITACION Y SERVICIO SOCIAL",{"$f":"COUNTIF($D$4:D105,D105:D105)","v":8},"Tlaquepaque Universitario","Porcentaje de apoyos brindados a prácticantes profesionales y pasantes.","Número de apoyos económicos brindados a los practicantes y pasantes.",533,2000,"Lic. José Antonio Aceves Reynoso","33 12 00 39 80 al 83","capacitaciónyserviciosocial@gmail.com",null,null,null,null,null,null,{"$f":"SUM(P105:S105/J105)","v":0}]
["OFICIALIA_MAYORDEPARTAMENTO DE INCIDENCIAS Y CALCULO DE NOMINA1Pago de Nóminas","OFICIALIA_MAYORDEPARTAMENTO DE INCIDENCIAS Y CALCULO DE NOMINA1","OFICIALIA_MAYOR","DEPARTAMENTO DE INCIDENCIAS Y CALCULO DE NOMINA",{"$f":"COUNTIF($D$4:D106,D106:D106)","v":1},"Pago de Nóminas","Porcentaje en la generación y expedición eficiente y puntual de la nómina municipal, apoyada en procesos de actualización y digitalización de sistemas para la gestión de Recursos Humanos.","Número de nóminas generadas",0,24,"Sergio Lara Gutiérrez",null,"sergio.lara@tlaquepaque.gob.mx",null,null,null,null,null,null,{"$f":"SUM(P106:S106/J106)","v":0}]
["SECRETARIA_DE_PLANIFICACION_ANALISIS_Y_GESTION_URBANASECRETARIA DE PLANIFICACION, ANALISIS Y GESTION URBANA1Coordinación de actividades de las direcciones que integran la Secretaría de Planificación, Análisis y Gestión Urbana","SECRETARIA_DE_PLANIFICACION_ANALISIS_Y_GESTION_URBANASECRETARIA DE PLANIFICACION, ANALISIS Y GESTION URBANA1","SECRETARIA_DE_PLANIFICACION_ANALISIS_Y_GESTION_URBANA","SECRETARIA DE PLANIFICACION, ANALISIS Y GESTION URBANA",{"$f":"COUNTIF($D$4:D107,D107:D107)","v":1},"Coordinación de actividades de las direcciones que integran la Secretaría de Planificación, Análisis y Gestión Urbana","Porcentaje de avance enl a supervision y seguimiento las actividades realizadas de la Secretaria de planicacion , analisis y Gestion urbana 2024-2025","Numero de Actividades supervisadas",0,3,"Dr. Jose Ariel Ruiz Corral","'33 1020 3835",null,null,null,null,null,null,null,{"$f":"SUM(P107:S107/J107)","v":0}]
["SECRETARIA_DE_PLANIFICACION_ANALISIS_Y_GESTION_URBANADIRECCION DE GESTION TERRITORIAL Y PLANEACION URBANA.Regularización de predios efectiva","SECRETARIA_DE_PLANIFICACION_ANALISIS_Y_GESTION_URBANADIRECCION DE GESTION TERRITORIAL Y PLANEACION URBANA.","SECRETARIA_DE_PLANIFICACION_ANALISIS_Y_GESTION_URBANA","DIRECCION DE GESTION TERRITORIAL Y PLANEACION URBANA",".","Regularización de predios efectiva","Porcentaje de titulos entregados a personas que viven en predios irregulares de San Pedro Tlaquepaque","Titulos entregados ",500,800,"DALIA RAMIREZ RAMOS","3335 62 7054 al 60 extensión 2428 y 2413","DALIA.RAMIREZ@TLAQUEPAQUE.GOB.MX",null,null,null,null,null,null,{"$f":"SUM(P108:S108/J108)","v":0}]
["SECRETARIA_DE_PLANIFICACION_ANALISIS_Y_GESTION_URBANADEPARTAMENTO DE GESTION TERRITORIAL SUELO Y VIVIENDA1Mejoramiento de la atención al publico así como fiscalización de la Auditoria Superior del Estado","SECRETARIA_DE_PLANIFICACION_ANALISIS_Y_GESTION_URBANADEPARTAMENTO DE GESTION TERRITORIAL SUELO Y VIVIENDA1","SECRETARIA_DE_PLANIFICACION_ANALISIS_Y_GESTION_URBANA","DEPARTAMENTO DE GESTION TERRITORIAL SUELO Y VIVIENDA",{"$f":"COUNTIF($D$4:D109,D109:D109)","v":1},"Mejoramiento de la atención al publico así como fiscalización de la Auditoria Superior del Estado","Porcentaje de solicitudes de  trámites y servicios atendidas ","número de solicitudes atendidas ",9500,7500,"DALIA RAMIREZ RAMOS","3335 62 7054 al 60 extensión 2428 y 2413","DALIA.RAMIREZ@TLAQUEPAQUE.GOB.MX",null,null,null,null,null,null,{"$f":"SUM(P109:S109/J109)","v":0}]
["SECRETARIA_DE_PLANIFICACION_ANALISIS_Y_GESTION_URBANADEPARTAMENTO DE PLANEACION URBANA1Planes parciales y reglamentos municipales actualizados","SECRETARIA_DE_PLANIFICACION_ANALISIS_Y_GESTION_URBANADEPARTAMENTO DE PLANEACION URBANA1","SECRETARIA_DE_PLANIFICACION_ANALISIS_Y_GESTION_URBANA","DEPARTAMENTO DE PLANEACION URBANA",{"$f":"COUNTIF($D$4:D110,D110:D110)","v":1},"Planes parciales y reglamentos municipales actualizados","Porcentaje en la actualización del Programa de Ordenamiento Ecológico Territorial y de Desarrollo Urbano para el Municipio de San Pedro Tlaquepaque (Poetdum)","programa actualizado ",0,1,"DALIA RAMIREZ RAMOS","3335 62 7054 al 60 extensión 2428 y 2413","DALIA.RAMIREZ@TLAQUEPAQUE.GOB.MX",null,null,null,null,null,null,{"$f":"SUM(P110:S110/J110)","v":0}]
["SECRETARIA_DE_PLANIFICACION_ANALISIS_Y_GESTION_URBANADEPARTAMENTO DE PLANEACION URBANA2Planes parciales y reglamentos municipales actualizados","SECRETARIA_DE_PLANIFICACION_ANALISIS_Y_GESTION_URBANADEPARTAMENTO DE PLANEACION URBANA2","SECRETARIA_DE_PLANIFICACION_ANALISIS_Y_GESTION_URBANA","DEPARTAMENTO DE PLANEACION URBANA",{"$f":"COUNTIF($D$4:D111,D111:D111)","v":2},"Planes parciales y reglamentos municipales actualizados","porcentaje en la actualización del Plan de Desarrollo Urbano de Centro de Población","Plan actualizado ",0,1,"DALIA RAMIREZ RAMOS","3335 62 7054 al 60 extensión 2428 y 2413","DALIA.RAMIREZ@TLAQUEPAQUE.GOB.MX",null,null,null,null,null,null,{"$f":"SUM(P111:S111/J111)","v":0}]
["SECRETARIA_DE_PLANIFICACION_ANALISIS_Y_GESTION_URBANADEPARTAMENTO DE PLANEACION URBANA3Planes parciales y reglamentos municipales actualizados","SECRETARIA_DE_PLANIFICACION_ANALISIS_Y_GESTION_URBANADEPARTAMENTO DE PLANEACION URBANA3","SECRETARIA_DE_PLANIFICACION_ANALISIS_Y_GESTION_URBANA","DEPARTAMENTO DE PLANEACION URBANA",{"$f":"COUNTIF($D$4:D112,D112:D112)","v":3},"Planes parciales y reglamentos municipales actualizados","Porentaje de Planes Parciales de Desarrollo Urbano actualizados ","número de planes actualizados ",0,5,"DALIA RAMIREZ RAMOS","3335 62 7054 al 60 extensión 2428 y 2413","DALIA.RAMIREZ@TLAQUEPAQUE.GOB.MX",null,null,null,null,null,null,{"$f":"SUM(P112:S112/J112)","v":0}]
["SECRETARIA_DE_PLANIFICACION_ANALISIS_Y_GESTION_URBANADEPARTAMENTO DE PLANEACION URBANA4Planes parciales y reglamentos municipales actualizados","SECRETARIA_DE_PLANIFICACION_ANALISIS_Y_GESTION_URBANADEPARTAMENTO DE PLANEACION URBANA4","SECRETARIA_DE_PLANIFICACION_ANALISIS_Y_GESTION_URBANA","DEPARTAMENTO DE PLANEACION URBANA",{"$f":"COUNTIF($D$4:D113,D113:D113)","v":4},"Planes parciales y reglamentos municipales actualizados","Porcentaje de actualización del Reglamento de Zonificación Urbana para el Municipio de San Pedro Tlaquepaque. ","reglamento actualizado ",0,1,"DALIA RAMIREZ RAMOS","3335 62 7054 al 60 extensión 2428 y 2413","DALIA.RAMIREZ@TLAQUEPAQUE.GOB.MX",null,null,null,null,null,null,{"$f":"SUM(P113:S113/J113)","v":0}]
["SECRETARIA_DE_PLANIFICACION_ANALISIS_Y_GESTION_URBANADIRECCION DE GESTION DEL DESEMPEÑO, EVALUACION DE RESULTADOS Y TABLERO DE CONTROL1Coordinación de actividades de los departamentos de la Dirección de Desempeño, Resultados y Tablero de Control","SECRETARIA_DE_PLANIFICACION_ANALISIS_Y_GESTION_URBANADIRECCION DE GESTION DEL DESEMPEÑO, EVALUACION DE RESULTADOS Y TABLERO DE CONTROL1","SECRETARIA_DE_PLANIFICACION_ANALISIS_Y_GESTION_URBANA","DIRECCION DE GESTION DEL DESEMPEÑO, EVALUACION DE RESULTADOS Y TABLERO DE CONTROL",{"$f":"COUNTIF($D$4:D114,D114:D114)","v":1},"Coordinación de actividades de los departamentos de la Dirección de Desempeño, Resultados y Tablero de Control","Porcentaje de avance en la supervision y seguimiento de las actividades de la direccion de Desempeño, Resultados y Tablero de control realizadas","Numero de Actividades supervisadas",0,3,"Ing. Raúl Pérez y Pérez",3316921707,"Raul.perez@tlaquepaque.gob.mx",null,null,null,null,null,null,{"$f":"SUM(P114:S114/J114)","v":0}]
["SECRETARIA_DE_PLANIFICACION_ANALISIS_Y_GESTION_URBANADIRECCION DE GESTION DEL DESEMPEÑO, EVALUACION DE RESULTADOS Y TABLERO DE CONTROL2Gestión para el sistema integral para la planeación y evaluación de la auditoria publica municipal","SECRETARIA_DE_PLANIFICACION_ANALISIS_Y_GESTION_URBANADIRECCION DE GESTION DEL DESEMPEÑO, EVALUACION DE RESULTADOS Y TABLERO DE CONTROL2","SECRETARIA_DE_PLANIFICACION_ANALISIS_Y_GESTION_URBANA","DIRECCION DE GESTION DEL DESEMPEÑO, EVALUACION DE RESULTADOS Y TABLERO DE CONTROL",{"$f":"COUNTIF($D$4:D115,D115:D115)","v":2},"Gestión para el sistema integral para la planeación y evaluación de la auditoria publica municipal","Porcentaje de avance en la gestión para la implementación del sistema que permita monitorear y evaluar la planeación operativa 2024-2025","Número de etapas realizadas",0,8,"Ing. Raúl Pérez y Pérez",3316921707,"Raul.perez@tlaquepaque.gob.mx",null,null,null,null,null,null,{"$f":"SUM(P115:S115/J115)","v":0}]
["SECRETARIA_DE_PLANIFICACION_ANALISIS_Y_GESTION_URBANADIRECCION DE GESTION DEL DESEMPEÑO, EVALUACION DE RESULTADOS Y TABLERO DE CONTROL3Seguimiento y Evaluación a los Fondos de Origen Federal","SECRETARIA_DE_PLANIFICACION_ANALISIS_Y_GESTION_URBANADIRECCION DE GESTION DEL DESEMPEÑO, EVALUACION DE RESULTADOS Y TABLERO DE CONTROL3","SECRETARIA_DE_PLANIFICACION_ANALISIS_Y_GESTION_URBANA","DIRECCION DE GESTION DEL DESEMPEÑO, EVALUACION DE RESULTADOS Y TABLERO DE CONTROL",{"$f":"COUNTIF($D$4:D116,D116:D116)","v":3},"Seguimiento y Evaluación a los Fondos de Origen Federal","Porcentaje de avance de las evaluación realizadas","Número de etapas realizadas",0,8,"Ing. Juan Enrique Acevedo Acevedo",3325745322,"juan.aceves@tlaquepaque.gob.mx",null,null,null,null,null,null,{"$f":"SUM(P116:S116/J116)","v":0}]
["SECRETARIA_DE_PLANIFICACION_ANALISIS_Y_GESTION_URBANADEPARTAMENTO DEL SISTEMA DE EVALUACION DEL DESEMPEÑO1Seguimiento y Evaluación a la Administración Pública Municipal","SECRETARIA_DE_PLANIFICACION_ANALISIS_Y_GESTION_URBANADEPARTAMENTO DEL SISTEMA DE EVALUACION DEL DESEMPEÑO1","SECRETARIA_DE_PLANIFICACION_ANALISIS_Y_GESTION_URBANA","DEPARTAMENTO DEL SISTEMA DE EVALUACION DEL DESEMPEÑO",{"$f":"COUNTIF($D$4:D117,D117:D117)","v":1},"Seguimiento y Evaluación a la Administración Pública Municipal","Porcentaje de PbRs de la Planeación Operativa con seguimiento ","PbRs con seguimiento",398,270,"Ing. Juan Enrique Acevedo Acevedo",3325745322,"juan.aceves@tlaquepaque.gob.mx",null,null,null,null,null,null,{"$f":"SUM(P117:S117/J117)","v":0}]
["SECRETARIA_DE_PLANIFICACION_ANALISIS_Y_GESTION_URBANADEPARTAMENTO DEL SISTEMA DE EVALUACION DEL DESEMPEÑO2Seguimiento y Evaluación a los Programas Sociales","SECRETARIA_DE_PLANIFICACION_ANALISIS_Y_GESTION_URBANADEPARTAMENTO DEL SISTEMA DE EVALUACION DEL DESEMPEÑO2","SECRETARIA_DE_PLANIFICACION_ANALISIS_Y_GESTION_URBANA","DEPARTAMENTO DEL SISTEMA DE EVALUACION DEL DESEMPEÑO",{"$f":"COUNTIF($D$4:D118,D118:D118)","v":2},"Seguimiento y Evaluación a los Programas Sociales","Porcentaje de programas sociales a los que se les aplicará la evaluación de consistencia y resultados ","Número de programas sociales evaluados ",0,4,"Ing. Juan Enrique Acevedo Acevedo",3325745322,"juan.aceves@tlaquepaque.gob.mx",null,null,null,null,null,null,{"$f":"SUM(P118:S118/J118)","v":0}]
["SECRETARIA_DE_PLANIFICACION_ANALISIS_Y_GESTION_URBANADEPARTAMENTO DE INDICADORES Y METAS PARA RESULTADOS1Servicio de Acompañamiento para la gestión del sistema de Planeación Municipal","SECRETARIA_DE_PLANIFICACION_ANALISIS_Y_GESTION_URBANADEPARTAMENTO DE INDICADORES Y METAS PARA RESULTADOS1","SECRETARIA_DE_PLANIFICACION_ANALISIS_Y_GESTION_URBANA","DEPARTAMENTO DE INDICADORES Y METAS PARA RESULTADOS",{"$f":"COUNTIF($D$4:D119,D119:D119)","v":1},"Servicio de Acompañamiento para la gestión del sistema de Planeación Municipal","Porcentaje de avance en las etapas de acompañamiento/asesorías para generar la planeación operativa 2024-2025 e integración del Sistema de Indicadores del Desempeño 2024 de las áreas y direcciones municipales ","Etapas realizadas",13,13,"Liliana Delfín Jiménez",9981604015,"liliana.delfin@tlaquepaque.gob.mx",null,null,null,null,null,null,{"$f":"SUM(P119:S119/J119)","v":0}]
["SECRETARIA_DE_PLANIFICACION_ANALISIS_Y_GESTION_URBANADIRECCION DEL BANCO INTEGRADO DE PROYECTOS Y PROGRAMAS1Seguimiento de Mesas de gestión Metropolitana ante el IMEPLAN","SECRETARIA_DE_PLANIFICACION_ANALISIS_Y_GESTION_URBANADIRECCION DEL BANCO INTEGRADO DE PROYECTOS Y PROGRAMAS1","SECRETARIA_DE_PLANIFICACION_ANALISIS_Y_GESTION_URBANA","DIRECCION DEL BANCO INTEGRADO DE PROYECTOS Y PROGRAMAS",{"$f":"COUNTIF($D$4:D120,D120:D120)","v":1},"Seguimiento de Mesas de gestión Metropolitana ante el IMEPLAN","Porcentaje de reportes mensuales generados por las mesas de gestión y coordinación activas","Número de Reportes mensuales generados",0,180,"Jonathan Octavio García Martínez",3310622577,"jonathan.garcia@tlaquepaque.gob.mx",null,null,null,null,null,null,{"$f":"SUM(P120:S120/J120)","v":0}]
["SECRETARIA_DE_PLANIFICACION_ANALISIS_Y_GESTION_URBANADIRECCION DEL BANCO INTEGRADO DE PROYECTOS Y PROGRAMAS2Banco integrado de proyectos y programas","SECRETARIA_DE_PLANIFICACION_ANALISIS_Y_GESTION_URBANADIRECCION DEL BANCO INTEGRADO DE PROYECTOS Y PROGRAMAS2","SECRETARIA_DE_PLANIFICACION_ANALISIS_Y_GESTION_URBANA","DIRECCION DEL BANCO INTEGRADO DE PROYECTOS Y PROGRAMAS",{"$f":"COUNTIF($D$4:D121,D121:D121)","v":2},"Banco integrado de proyectos y programas","Porcentaje de avance en las etapas de gestión del recurso para la implementación del sistema de información geográfica, realizadas ","Número de Etapas de gestión realizadas",0,6,"Jonathan Octavio García Martínez",3310622577,"jonathan.garcia@tlaquepaque.gob.mx",null,null,null,null,null,null,{"$f":"SUM(P121:S121/J121)","v":0}]
["SECRETARIA_DE_PLANIFICACION_ANALISIS_Y_GESTION_URBANADEPARTAMENTO DE EVALUACION DE PROYECTOS Y PROGRAMAS1Dictamen de evaluación de solicitud de obras","SECRETARIA_DE_PLANIFICACION_ANALISIS_Y_GESTION_URBANADEPARTAMENTO DE EVALUACION DE PROYECTOS Y PROGRAMAS1","SECRETARIA_DE_PLANIFICACION_ANALISIS_Y_GESTION_URBANA","DEPARTAMENTO DE EVALUACION DE PROYECTOS Y PROGRAMAS",{"$f":"COUNTIF($D$4:D122,D122:D122)","v":1},"Dictamen de evaluación de solicitud de obras","Porcentaje de diagnóstico de dictamenes de evaluación de solicitud de obras","Número de dictamenes de evaluación elaborados ",0,80,"María Guadalupe Saldaña Duarte","33-13-49-10-90","mgsd2909@gmail.com","Revisado",null,null,null,null,null,{"$f":"SUM(P122:S122/J122)","v":0}]
["SECRETARIA_DE_BIENESTARDIRECCION DE PROGRAMAS SOCIALES PARA EL BIENESTAR1Bienestar Incluyente","SECRETARIA_DE_BIENESTARDIRECCION DE PROGRAMAS SOCIALES PARA EL BIENESTAR1","SECRETARIA_DE_BIENESTAR","DIRECCION DE PROGRAMAS SOCIALES PARA EL BIENESTAR",{"$f":"COUNTIF($D$4:D123,D123:D123)","v":1},"Bienestar Incluyente","                                           Porcentaje de personas con discapacidad permanente que reciben el apoyo económico  ","Número de personas que reciben apoyo ",0,4200,"Daniel Mercado",3311979562,"daniel.m.fotografo@outlook.com, marius.doctus@gmail.com","Revisado",null,null,null,null,null,{"$f":"SUM(P123:S123/J123)","v":0}]
["SECRETARIA_DE_BIENESTARDIRECCION DE PROGRAMAS SOCIALES PARA EL BIENESTAR2Aprendiendo con Bienestar","SECRETARIA_DE_BIENESTARDIRECCION DE PROGRAMAS SOCIALES PARA EL BIENESTAR2","SECRETARIA_DE_BIENESTAR","DIRECCION DE PROGRAMAS SOCIALES PARA EL BIENESTAR",{"$f":"COUNTIF($D$4:D124,D124:D124)","v":2},"Aprendiendo con Bienestar","Útiles escolares Porcentaje de ","Número de alumnos inscirtos en matrícula de educación básica pública",0,98124,"Mario Alberto Aguila Higuera","33-10-22-23-77","marius.doctus@gmail.com","Revisado",null,null,null,null,null,{"$f":"SUM(P124:S124/J124)","v":0}]
["SECRETARIA_DE_BIENESTARDIRECCION DE PROGRAMAS SOCIALES PARA EL BIENESTAR3Raíces de Esperanza","SECRETARIA_DE_BIENESTARDIRECCION DE PROGRAMAS SOCIALES PARA EL BIENESTAR3","SECRETARIA_DE_BIENESTAR","DIRECCION DE PROGRAMAS SOCIALES PARA EL BIENESTAR",{"$f":"COUNTIF($D$4:D125,D125:D125)","v":3},"Raíces de Esperanza","Porcentaje de Artesanas y Artesanos que reciben un apoyo económico.","Numero de artesanas/os que reciben apoyo",0,428,"Araceli Hernández",3312954027,"tsaracelihernandez18@gmail.com, marius.doctus@gmail.com","Revisado",null,null,null,null,null,{"$f":"SUM(P125:S125/J125)","v":0}]
["SECRETARIA_DE_BIENESTARDIRECCION DE PROGRAMAS SOCIALES PARA EL BIENESTAR4Líderes de Esperanza","SECRETARIA_DE_BIENESTARDIRECCION DE PROGRAMAS SOCIALES PARA EL BIENESTAR4","SECRETARIA_DE_BIENESTAR","DIRECCION DE PROGRAMAS SOCIALES PARA EL BIENESTAR",{"$f":"COUNTIF($D$4:D126,D126:D126)","v":4},"Líderes de Esperanza","Apoyar a mujeres líderes del hogar, padres solteros y tutores de San Pedro Tlaquepaque ","5500 beneficiarias",0,5500,"Yessica Lizeth Castellanos Carrillo",3318435959,"carrilloyessica791@gmail.com,  marius.doctus@gmail.com","Revisado",null,null,null,null,null,{"$f":"SUM(P126:S126/J126)","v":0}]
["SECRETARIA_DE_BIENESTARDIRECCION DE EDUCACION1Feria de la oferta educativa media superior y superior","SECRETARIA_DE_BIENESTARDIRECCION DE EDUCACION1","SECRETARIA_DE_BIENESTAR","DIRECCION DE EDUCACION",{"$f":"COUNTIF($D$4:D127,D127:D127)","v":1},"Feria de la oferta educativa media superior y superior","Porcentaje de charlas sobre ofertas educativas a estudiantes de secundaria ","número de charlas impartidas ",0,5000,"Julio Ornelas Camacho",3336576890,"julio.ornelas@tlaquepaque.gob.mx","Revisado/Por definir",null,null,null,null,null,{"$f":"SUM(P127:S127/J127)","v":0}]
["SECRETARIA_DE_BIENESTARDIRECCION DE EDUCACION2Educación Y Capacitación Para El Medio Ambiente","SECRETARIA_DE_BIENESTARDIRECCION DE EDUCACION2","SECRETARIA_DE_BIENESTAR","DIRECCION DE EDUCACION",{"$f":"COUNTIF($D$4:D128,D128:D128)","v":2},"Educación Y Capacitación Para El Medio Ambiente","Porcentaje de planteles intervenidos mediante capacitaciones sobre cuidado al medio ambiente","Número de planteles intervenidos",0,80,"Julio Ornelas Camacho",3336576890,"julio.ornelas@tlaquepaque.gob.mx","Revisado",null,null,null,null,null,{"$f":"SUM(P128:S128/J128)","v":0}]
[{"$f":"B129&F129","v":"SECRETARIA_DE_BIENESTARDIRECCION DE EDUCACION3Cabildo Infantil Y Juvenil"},{"$f":"C129&D129&E129","v":"SECRETARIA_DE_BIENESTARDIRECCION DE EDUCACION3"},"SECRETARIA_DE_BIENESTAR","DIRECCION DE EDUCACION",{"$f":"COUNTIF($D$4:D129,D129:D129)","v":3},"Cabildo Infantil Y Juvenil","Porcentaje de alumnos elegidos en el proceso electoral","número de alumnos elegidos en el proceso electoral",0,21,"Julio Ornelas Camacho",3336576890,"julio.ornelas@tlaquepaque.gob.mx","Revisado/Agregado",null,null,null,null,null,{"$f":"SUM(P129:S129/J129)","v":0}]
["SECRETARIA_DE_BIENESTARDIRECCION DE EDUCACION4Abrigando Tu Bienestar","SECRETARIA_DE_BIENESTARDIRECCION DE EDUCACION4","SECRETARIA_DE_BIENESTAR","DIRECCION DE EDUCACION",{"$f":"COUNTIF($D$4:D130,D130:D130)","v":4},"Abrigando Tu Bienestar","Porcentaje de personas benefiaciadas mediante la campaña abrigando tu bienestar ","Número de personas  beneficiadas",0,1000,"Julio Ornelas Camacho",3313049438,"julio.ornelas@tlaquepaque.gob.mx","Revisado",null,null,null,null,null,{"$f":"SUM(P130:S130/J130)","v":0}]
["SECRETARIA_DE_BIENESTARDIRECCION DE EDUCACION5Actividades Extraescolares","SECRETARIA_DE_BIENESTARDIRECCION DE EDUCACION5","SECRETARIA_DE_BIENESTAR","DIRECCION DE EDUCACION",{"$f":"COUNTIF($D$4:D131,D131:D131)","v":5},"Actividades Extraescolares","Porcentaje de alumnos beneficiados, mediante cursos extraescolares","número de alumnos beneficiados",0,1000,"Julio Ornelas Camacho",3313049438,"julio.ornelas@tlaquepaque.gob.mx","Revisado",null,null,null,null,null,{"$f":"SUM(P131:S131/J131)","v":0}]
["SECRETARIA_DE_BIENESTARDIRECCION DE EDUCACION6Actividades Extraescolares","SECRETARIA_DE_BIENESTARDIRECCION DE EDUCACION6","SECRETARIA_DE_BIENESTAR","DIRECCION DE EDUCACION",{"$f":"COUNTIF($D$4:D132,D132:D132)","v":6},"Actividades Extraescolares","Porcentaje de cursos extraescolares impartidos ","números de cursos impartidos ",0,1000,"Julio Ornelas Camacho",3313049438,"julio.ornelas@tlaquepaque.gob.mx","Revisado",null,null,null,null,null,{"$f":"SUM(P132:S132/J132)","v":0}]
["SECRETARIA_DE_BIENESTARSUBDIRECCION DE DESARROLLO Y ATENCION AL SECTOR AGROPECUARIO1Rehabilitación Permanente De Caminos Rurales","SECRETARIA_DE_BIENESTARSUBDIRECCION DE DESARROLLO Y ATENCION AL SECTOR AGROPECUARIO1","SECRETARIA_DE_BIENESTAR","SUBDIRECCION DE DESARROLLO Y ATENCION AL SECTOR AGROPECUARIO",{"$f":"COUNTIF($D$4:D133,D133:D133)","v":1},"Rehabilitación Permanente De Caminos Rurales","Porcentaje de etapas de gestión para la adquisición de una Motoconformadora, Material para Caminos  (Gravilla)","número de etapas de gestión realizadas",0,2,"Jorge Eduardo Luján Gómez","33-36-01-14-05","agropecuariotlaquepaque@gmail.com","Revisado",null,null,null,null,null,{"$f":"SUM(P133:S133/J133)","v":0}]
["SECRETARIA_DE_BIENESTARSUBDIRECCION DE DESARROLLO Y ATENCION AL SECTOR AGROPECUARIO2Rehabilitación Permanente De Caminos Rurales","SECRETARIA_DE_BIENESTARSUBDIRECCION DE DESARROLLO Y ATENCION AL SECTOR AGROPECUARIO2","SECRETARIA_DE_BIENESTAR","SUBDIRECCION DE DESARROLLO Y ATENCION AL SECTOR AGROPECUARIO",{"$f":"COUNTIF($D$4:D134,D134:D134)","v":2},"Rehabilitación Permanente De Caminos Rurales","Porcentaje de kilómetros rehabilitados en caminos rurales.","Número de Kilómetros rehabilitados",60,65,"Jorge Eduardo Luján Gómez","33-36-01-14-05","agropecuariotlaquepaque@gmail.com","Revisado",null,null,null,null,null,{"$f":"SUM(P134:S134/J134)","v":0}]
["SECRETARIA_DE_BIENESTARSUBDIRECCION DE DESARROLLO Y ATENCION AL SECTOR AGROPECUARIO3Procesadora de composta orgánica.","SECRETARIA_DE_BIENESTARSUBDIRECCION DE DESARROLLO Y ATENCION AL SECTOR AGROPECUARIO3","SECRETARIA_DE_BIENESTAR","SUBDIRECCION DE DESARROLLO Y ATENCION AL SECTOR AGROPECUARIO",{"$f":"COUNTIF($D$4:D135,D135:D135)","v":3},"Procesadora de composta orgánica.","Porcentaje de etapas de gestión para el equipamiento de la dirección  ","número de etapas realizadas ",0,7,"Jorge Eduardo Luján Gómez","33-36-01-14-05","agropecuariotlaquepaque@gmail.com","Revisado",null,null,null,null,null,{"$f":"SUM(P135:S135/J135)","v":0}]
["SECRETARIA_DE_BIENESTARSUBDIRECCION DE DESARROLLO Y ATENCION AL SECTOR AGROPECUARIO4Pozos de absorción Tecnificados.","SECRETARIA_DE_BIENESTARSUBDIRECCION DE DESARROLLO Y ATENCION AL SECTOR AGROPECUARIO4","SECRETARIA_DE_BIENESTAR","SUBDIRECCION DE DESARROLLO Y ATENCION AL SECTOR AGROPECUARIO",{"$f":"COUNTIF($D$4:D136,D136:D136)","v":4},"Pozos de absorción Tecnificados.","Porcentaje de pozos de absorción tecnificados construidos.","Pozos de absorción construidos.",10,10,"Jorge Eduardo Luján Gómez","33-36-01-14-05","agropecuariotlaquepaque@gmail.com","Revisado",null,null,null,null,null,{"$f":"SUM(P136:S136/J136)","v":0}]
["SECRETARIA_DE_BIENESTARSUBDIRECCION DE DESARROLLO Y ATENCION AL SECTOR AGROPECUARIO5Conservación y mejoramiento de suelos agrícolas","SECRETARIA_DE_BIENESTARSUBDIRECCION DE DESARROLLO Y ATENCION AL SECTOR AGROPECUARIO5","SECRETARIA_DE_BIENESTAR","SUBDIRECCION DE DESARROLLO Y ATENCION AL SECTOR AGROPECUARIO",{"$f":"COUNTIF($D$4:D137,D137:D137)","v":5},"Conservación y mejoramiento de suelos agrícolas","Porcentaje de toneladas de cal y minerales incorporados mediante el Programa de conservación y mejora de los suelos agrícolas ","Número de Toneladas incorporadas al suelo",300,300,"Jorge Eduardo Luján Gómez","33-36-01-14-05","agropecuariotlaquepaque@gmail.com","Revisado",null,null,null,null,null,{"$f":"SUM(P137:S137/J137)","v":0}]
["SECRETARIA_DE_BIENESTARSUBDIRECCION DE DESARROLLO Y ATENCION AL SECTOR AGROPECUARIO6Conservación y mejoramiento de suelos agrícolas","SECRETARIA_DE_BIENESTARSUBDIRECCION DE DESARROLLO Y ATENCION AL SECTOR AGROPECUARIO6","SECRETARIA_DE_BIENESTAR","SUBDIRECCION DE DESARROLLO Y ATENCION AL SECTOR AGROPECUARIO",{"$f":"COUNTIF($D$4:D138,D138:D138)","v":6},"Conservación y mejoramiento de suelos agrícolas","Porcentaje de toneladas de cal y minerales incorporados mediante el Programa de conservación y mejora de los suelos agrícolas ","Número de Toneladas incorporadas al suelo",200,200,"Jorge Eduardo Luján Gómez","33-36-01-14-05","agropecuariotlaquepaque@gmail.com","Revisado",null,null,null,null,null,{"$f":"SUM(P138:S138/J138)","v":0}]
["SECRETARIA_DE_BIENESTARSUBDIRECCION DE DESARROLLO Y ATENCION AL SECTOR AGROPECUARIO7Hidroponía","SECRETARIA_DE_BIENESTARSUBDIRECCION DE DESARROLLO Y ATENCION AL SECTOR AGROPECUARIO7","SECRETARIA_DE_BIENESTAR","SUBDIRECCION DE DESARROLLO Y ATENCION AL SECTOR AGROPECUARIO",{"$f":"COUNTIF($D$4:D139,D139:D139)","v":7},"Hidroponía","Porcentaje de huertos de hidroponia creados en el Municipio"," Número de huertos de hidroponia creados",20,40,"Juan Pablo Santana Moya","33-36-01-14-05","agropecuariotlaquepaque@gmail.com","Revisado",null,null,null,null,null,{"$f":"SUM(P139:S139/J139)","v":0}]
["SECRETARIA_DE_FOMENTO_ECONOMICO_Y_CULTURALDIRECCION DE CULTURA1Cultura en tu colonia","SECRETARIA_DE_FOMENTO_ECONOMICO_Y_CULTURALDIRECCION DE CULTURA1","SECRETARIA_DE_FOMENTO_ECONOMICO_Y_CULTURAL","DIRECCION DE CULTURA",{"$f":"COUNTIF($D$4:D140,D140:D140)","v":1},"Cultura en tu colonia","Porcentaje de artistas contratados para llevar actividades culturales a las colonias vulnerables","Número de artistas contratados",53,50,"Vázquez Sandoval Arianna Janeth","´'3316018010","oscar.carrillo.cultura@gmail.com","Revisado","Eficiencia / Eficacia",0,null,null,null,{"$f":"SUM(P140:S140/J140)","v":0},"Durante este trimestre se trabajó en la planeación del programa buscando apoyar a la comunidad artística  y  por consecuencia a las colonias del municipio, buscamos llegar a artistas de todas las disciplinas para con ellos ofrecer una programación cultural versátil, obteniendo un mejor impacto entre la población de San Pedro Tlaquepaque, con la que rescataremos los valores y tradiciones del municipio."]
[{"$f":"B141&F141","v":"SECRETARIA_DE_FOMENTO_ECONOMICO_Y_CULTURALDIRECCION DE CULTURA2Cultura Por La Paz"},{"$f":"C141&D141&E141","v":"SECRETARIA_DE_FOMENTO_ECONOMICO_Y_CULTURALDIRECCION DE CULTURA2"},"SECRETARIA_DE_FOMENTO_ECONOMICO_Y_CULTURAL","DIRECCION DE CULTURA",{"$f":"COUNTIF($D$4:D141,D141:D141)","v":2},"Cultura Por La Paz","Porcentaje de colonias beneficiadas con actividades culturales.","Numero de colonias beneficiadas",186,80,"Vázquez Sandoval Arianna Janeth","´'3316018010","oscar.carrillo.cultura@gmail.com","Revisado/Agregado","Eficiencia / Eficacia",8,null,null,null,{"$f":"SUM(P141:S141/J141)","v":0.1},"El programa de Cultura por la Paz tiene como finalidad llevar la cultura a las comunidades que no  cuentan con infraestructura cultural, atendiendo a los ciudadanos que carecen de los medios para acceder a la cultura, por lo cual se diseñó una propuesta en beneficio las colonias vulnerables  del municipio y aquellas que son susceptibles de atención, iniciamos este trimestre, llevando, talleres artísticos, actividades de fomento a la lectura y cine al aire libre, hasta el momento se visitaron 8 colonias como: Tateposco, Toluquilla, Las Juntas, El Tapatío, Buenos Aires, La Ladrillera, Lomas del Tepeyac y Santa Cruz,  llegando a 1,160 beneficiarios de los cuales, el 80% son menores de edad."]
["SECRETARIA_DE_FOMENTO_ECONOMICO_Y_CULTURALDIRECCION DE CULTURA3Ferias, Festivales Y Exposiciones","SECRETARIA_DE_FOMENTO_ECONOMICO_Y_CULTURALDIRECCION DE CULTURA3","SECRETARIA_DE_FOMENTO_ECONOMICO_Y_CULTURAL","DIRECCION DE CULTURA",{"$f":"COUNTIF($D$4:D142,D142:D142)","v":3},"Ferias, Festivales Y Exposiciones","Porcentaje de avances en Festivales o Ferias ","Festivales y/o Ferias realizados",4,3,"Vázquez Sandoval Arianna Janeth","´'3316018010","oscar.carrillo.cultura@gmail.com","Revisado","Eficiencia / Eficacia",0,null,null,null,{"$f":"SUM(P142:S142/J142)","v":0},"Durante este trimestre se planteó un calendario de exposiciones y festivales a desarrollarse durante este año en beneficio de la población."]
[{"$f":"B143&F143","v":"SECRETARIA_DE_FOMENTO_ECONOMICO_Y_CULTURALDIRECCION DE CULTURA4Formación Continua"},"SECRETARIA_DE_FOMENTO_ECONOMICO_Y_CULTURALDIRECCION DE CULTURA4","SECRETARIA_DE_FOMENTO_ECONOMICO_Y_CULTURAL","DIRECCION DE CULTURA",{"$f":"COUNTIF($D$4:D143,D143:D143)","v":4},"Formación Continua","Numero de talleres impartidos en colonias ","Talleres impartidos en colonias",0,10,"Vázquez Sandoval Arianna Janeth","´'3316018010","oscar.carrillo.cultura@gmail.com","Revisado","Eficiencia / Eficacia",1,null,null,null,{"$f":"SUM(P143:S143/J143)","v":0.1},"Con la finalidad de enseñar un oficio a los asistentes, el cual pueda contribuir a su economía, en este trimestre iniciamos con el taller de creación de paletas de bombón con el que atendimos a 25 personas de la colonia el tapatío."]
["SECRETARIA_DE_FOMENTO_ECONOMICO_Y_CULTURALDIRECCION DE CULTURA5Amigos de Refugio","SECRETARIA_DE_FOMENTO_ECONOMICO_Y_CULTURALDIRECCION DE CULTURA5","SECRETARIA_DE_FOMENTO_ECONOMICO_Y_CULTURAL","DIRECCION DE CULTURA",{"$f":"COUNTIF($D$4:D144,D144:D144)","v":5},"Amigos de Refugio","Porcentaje de visitas al recinto cultural","Numero de visitas al recinto cultural",43,30,"Vázquez Sandoval Arianna Janeth",3316018010,"oscar.carrillo.cultura@gmail.com","Revisado","Eficiencia / Eficacia",0,null,null,null,{"$f":"SUM(P144:S144/J144)","v":0},"Este periodo trabajamos en un plan para mostrar el patrimonio cultural a niñas, niños y adolescentes del municipio, por lo que realizamos la selección de talleres a impartir así como el listado de escuelas de las colonias."]
["SECRETARIA_DE_FOMENTO_ECONOMICO_Y_CULTURALSUBDIRECCION DE BIBLIOTECAS1Talleres De Fomento A Cultura","SECRETARIA_DE_FOMENTO_ECONOMICO_Y_CULTURALSUBDIRECCION DE BIBLIOTECAS1","SECRETARIA_DE_FOMENTO_ECONOMICO_Y_CULTURAL","SUBDIRECCION DE BIBLIOTECAS",{"$f":"COUNTIF($D$4:D145,D145:D145)","v":1},"Talleres De Fomento A Cultura","Porcentaje de etapas de gestión para la adquisición de un vehículo para equipar la jefatura de bibliotecas ","Número de etapas realizadas",0,2,"Christian René García Gutiérrez","33-10-97-20-56","libroscoordinacion@gmail.com","Revisado",null,null,null,null,null,{"$f":"SUM(P145:S145/J145)","v":0}]
["SECRETARIA_DE_FOMENTO_ECONOMICO_Y_CULTURALSUBDIRECCION DE BIBLIOTECAS2Talleres De Fomento A Cultura","SECRETARIA_DE_FOMENTO_ECONOMICO_Y_CULTURALSUBDIRECCION DE BIBLIOTECAS2","SECRETARIA_DE_FOMENTO_ECONOMICO_Y_CULTURAL","SUBDIRECCION DE BIBLIOTECAS",{"$f":"COUNTIF($D$4:D146,D146:D146)","v":2},"Talleres De Fomento A Cultura","Porcentaje de personas atendidas mediante los talleres de fomento a la cultura y educacion.","Numero de Personas Atendidas",0,100000,"Christian René García Gutiérrez","33-10-97-20-56","libroscoordinacion@gmail.com","Revisado",null,null,null,null,null,{"$f":"SUM(P146:S146/J146)","v":0}]
["SECRETARIA_DE_FOMENTO_ECONOMICO_Y_CULTURALSUBDIRECCION DE MUSEOS1Exposiciones Temporales","SECRETARIA_DE_FOMENTO_ECONOMICO_Y_CULTURALSUBDIRECCION DE MUSEOS1","SECRETARIA_DE_FOMENTO_ECONOMICO_Y_CULTURAL","SUBDIRECCION DE MUSEOS",{"$f":"COUNTIF($D$4:D147,D147:D147)","v":1},"Exposiciones Temporales","Porcentaje de exposiciones temporales realizadas ","Número de exposiciones realizadas",0,4,"DAVID GALLEGOS","33-36-39-56-46","pantaleonpanduromuseo@gmail.com","Revisado",null,null,null,null,null,{"$f":"SUM(P147:S147/J147)","v":0}]
["SECRETARIA_DE_FOMENTO_ECONOMICO_Y_CULTURALSUBDIRECCION DE MUSEOS2Museo Itinerante",{"$f":"C148&D148&E148","v":"SECRETARIA_DE_FOMENTO_ECONOMICO_Y_CULTURALSUBDIRECCION DE MUSEOS2"},"SECRETARIA_DE_FOMENTO_ECONOMICO_Y_CULTURAL","SUBDIRECCION DE MUSEOS",{"$f":"COUNTIF($D$4:D148,D148:D148)","v":2},"Museo Itinerante"," Porcentaje de exposiciones itinerantes para mostrar el talento artístico de nuestros artesanos, realizadas","número de exposiciones realizadas ",0,3,"DAVID GALLEGOS","33-36-39-56-46","pantaleonpanduromuseo@gmail.com","Revisado/Agregado",null,null,null,null,null,{"$f":"SUM(P148:S148/J148)","v":0}]
["SECRETARIA_DE_FOMENTO_ECONOMICO_Y_CULTURALSUBDIRECCION DE MUSEOS3Museos a la Calle","SECRETARIA_DE_FOMENTO_ECONOMICO_Y_CULTURALSUBDIRECCION DE MUSEOS3","SECRETARIA_DE_FOMENTO_ECONOMICO_Y_CULTURAL","SUBDIRECCION DE MUSEOS",{"$f":"COUNTIF($D$4:D149,D149:D149)","v":3},"Museos a la Calle","Porcentaje de exposiciones itinerantes en colonias marginadas del municipio, realizadas ","número de exposiciones realizadas ",0,1,"DAVID GALLEGOS","33-36-39-56-46","pantaleonpanduromuseo@gmail.com","Revisado",null,null,null,null,null,{"$f":"SUM(P149:S149/J149)","v":0}]
["SECRETARIA_DE_FOMENTO_ECONOMICO_Y_CULTURALSUBDIRECCION DE MUSEOS4Xvlvii Premio Nacional De La Cerámica","SECRETARIA_DE_FOMENTO_ECONOMICO_Y_CULTURALSUBDIRECCION DE MUSEOS4","SECRETARIA_DE_FOMENTO_ECONOMICO_Y_CULTURAL","SUBDIRECCION DE MUSEOS",{"$f":"COUNTIF($D$4:D150,D150:D150)","v":4},"Xvlvii Premio Nacional De La Cerámica","Porcentaje de etapas para la realización del Certamen del Premio Nacional de la Cerámica, realizadas","Número de etapas realizadas ",0,3,"DAVID GALLEGOS","33-36-39-56-46","pantaleonpanduromuseo@gmail.com","Revisado",null,null,null,null,null,{"$f":"SUM(P150:S150/J150)","v":0}]
["SECRETARIA_DE_FOMENTO_ECONOMICO_Y_CULTURALDIRECCION DE DESARROLLO ARTESANAL Y TURISTICO (ARTESANAL)1Capacitación","SECRETARIA_DE_FOMENTO_ECONOMICO_Y_CULTURALDIRECCION DE DESARROLLO ARTESANAL Y TURISTICO (ARTESANAL)1","SECRETARIA_DE_FOMENTO_ECONOMICO_Y_CULTURAL","DIRECCION DE DESARROLLO ARTESANAL Y TURISTICO (ARTESANAL)",{"$f":"COUNTIF($D$4:D151,D151:D151)","v":1},"Capacitación","Porcentaje de capacitaciones en técnicas artesanales y modelos de negocios a los artesanos registrados en el padrón artesanal","Numero de capacitaciones realizadas",9,12,"Mtro. Arwin Armando Matanael Ramos Casas",3310576212,"patricia.cano@tlaquepaque.gob.mx","Revisado",null,null,null,null,null,{"$f":"SUM(P151:S151/J151)","v":0}]
["SECRETARIA_DE_FOMENTO_ECONOMICO_Y_CULTURALDIRECCION DE DESARROLLO ARTESANAL Y TURISTICO (ARTESANAL)2Padrón Artesanal y Credencialización","SECRETARIA_DE_FOMENTO_ECONOMICO_Y_CULTURALDIRECCION DE DESARROLLO ARTESANAL Y TURISTICO (ARTESANAL)2","SECRETARIA_DE_FOMENTO_ECONOMICO_Y_CULTURAL","DIRECCION DE DESARROLLO ARTESANAL Y TURISTICO (ARTESANAL)",{"$f":"COUNTIF($D$4:D152,D152:D152)","v":2},"Padrón Artesanal y Credencialización","Porcentaje de avance en la revisión y actualización del padrón de artesanos","Numero de artesanos registrados",426,426,"Mtro. Arwin Armando Matanael Ramos Casas",3310576212,"patricia.cano@tlaquepaque.gob.mx","Revisado",null,null,null,null,null,{"$f":"SUM(P152:S152/J152)","v":0}]
["SECRETARIA_DE_FOMENTO_ECONOMICO_Y_CULTURALDIRECCION DE DESARROLLO ARTESANAL Y TURISTICO (ARTESANAL)3Padrón Artesanal y Credencialización",{"$f":"C153&D153&E153","v":"SECRETARIA_DE_FOMENTO_ECONOMICO_Y_CULTURALDIRECCION DE DESARROLLO ARTESANAL Y TURISTICO (ARTESANAL)3"},"SECRETARIA_DE_FOMENTO_ECONOMICO_Y_CULTURAL","DIRECCION DE DESARROLLO ARTESANAL Y TURISTICO (ARTESANAL)",{"$f":"COUNTIF($D$4:D153,D153:D153)","v":3},"Padrón Artesanal y Credencialización","Porcentaje de avance en la entrega de credenciales a los artesanos registrados en el padrón","número de credenciales antregadas ",0,426,"Mtro. Arwin Armando Matanael Ramos Casas",3310576212,"patricia.cano@tlaquepaque.gob.mx","Revisado",null,null,null,null,null,{"$f":"SUM(P153:S153/J153)","v":0}]
["SECRETARIA_DE_FOMENTO_ECONOMICO_Y_CULTURALDIRECCION DE DESARROLLO ARTESANAL Y TURISTICO (ARTESANAL)4Rescatando nuestras Tradiciones","SECRETARIA_DE_FOMENTO_ECONOMICO_Y_CULTURALDIRECCION DE DESARROLLO ARTESANAL Y TURISTICO (ARTESANAL)4","SECRETARIA_DE_FOMENTO_ECONOMICO_Y_CULTURAL","DIRECCION DE DESARROLLO ARTESANAL Y TURISTICO (ARTESANAL)",{"$f":"COUNTIF($D$4:D154,D154:D154)","v":4},"Rescatando nuestras Tradiciones","Porcentaje de talleres para fomentar el oficio de la artesanía, impartidos","Numero de Talleres impartidos",95,100,"Mtro. Arwin Armando Matanael Ramos Casas",3310576212,"patricia.cano@tlaquepaque.gob.mx","Revisado",null,null,null,null,null,{"$f":"SUM(P154:S154/J154)","v":0}]
["SECRETARIA_DE_FOMENTO_ECONOMICO_Y_CULTURALDIRECCION DE DESARROLLO ARTESANAL Y TURISTICO (TURISMO)1Festivales, Eventos, Ferias y Exposiciones","SECRETARIA_DE_FOMENTO_ECONOMICO_Y_CULTURALDIRECCION DE DESARROLLO ARTESANAL Y TURISTICO (TURISMO)1","SECRETARIA_DE_FOMENTO_ECONOMICO_Y_CULTURAL","DIRECCION DE DESARROLLO ARTESANAL Y TURISTICO (TURISMO)",{"$f":"COUNTIF($D$4:D155,D155:D155)","v":1},"Festivales, Eventos, Ferias y Exposiciones","Porcentaje de actividades turísticas y  culturales que promueven el flujo de visitantes, realizadas ","Número de actividades turísticas y culturales realizads ",12,17,"Jessica Lizbeth Gallardo González / Arwin Armando Matanael Ramos Casas","33 1057 6212 / 33 1206960","desarrolloartesanalyturistico@tlaquepaque.gob.mx","Revisado",null,null,null,null,null,{"$f":"SUM(P155:S155/J155)","v":0}]
["SECRETARIA_DE_FOMENTO_ECONOMICO_Y_CULTURALDIRECCION DE DESARROLLO ARTESANAL Y TURISTICO (TURISMO)2Permanencia Pueblo Mágico","SECRETARIA_DE_FOMENTO_ECONOMICO_Y_CULTURALDIRECCION DE DESARROLLO ARTESANAL Y TURISTICO (TURISMO)2","SECRETARIA_DE_FOMENTO_ECONOMICO_Y_CULTURAL","DIRECCION DE DESARROLLO ARTESANAL Y TURISTICO (TURISMO)",{"$f":"COUNTIF($D$4:D156,D156:D156)","v":2},"Permanencia Pueblo Mágico","Porcentaje de personas que visitan el municipio  registrados en módulos de información, tour-operadores y hoteles   ","Número de visitantes registrados ",319000,400000,"Jessica Lizbeth Gallardo González / Arwin Armando Matanael Ramos Casas","33 1057 6212 / 33 1206960","desarrolloartesanalyturistico@tlaquepaque.gob.mx","Revisado",null,null,null,null,null,{"$f":"SUM(P156:S156/J156)","v":0}]
["SECRETARIA_DE_FOMENTO_ECONOMICO_Y_CULTURALDIRECCION DE GESTION EMPRESARIAL E INDUSTRIAL1Vinculación directa con empresas","SECRETARIA_DE_FOMENTO_ECONOMICO_Y_CULTURALDIRECCION DE GESTION EMPRESARIAL E INDUSTRIAL1","SECRETARIA_DE_FOMENTO_ECONOMICO_Y_CULTURAL","DIRECCION DE GESTION EMPRESARIAL E INDUSTRIAL",{"$f":"COUNTIF($D$4:D157,D157:D157)","v":1},"Vinculación directa con empresas","Porcentaje de empresas vinculadas","empresarios atendidos/vinculados",0,30,"Lcdo. José Antonio Álvarez Hernández","3336591599/3336590901","antonioempresarialindustrial@gmail.com","Revisado","EFICIENCIA",16,null,null,null,{"$f":"SUM(P157:S157/J157)","v":0.53333333333333333},"Durante este primer trimestre se le dió la atención a 16 empresas las cuales consultaron la bolsa de empleo para poder cubrir sus vacantes"]
["SECRETARIA_DE_FOMENTO_ECONOMICO_Y_CULTURALDIRECCION DE GESTION EMPRESARIAL E INDUSTRIAL2Expo Emprende y Transforma 2025","SECRETARIA_DE_FOMENTO_ECONOMICO_Y_CULTURALDIRECCION DE GESTION EMPRESARIAL E INDUSTRIAL2","SECRETARIA_DE_FOMENTO_ECONOMICO_Y_CULTURAL","DIRECCION DE GESTION EMPRESARIAL E INDUSTRIAL",{"$f":"COUNTIF($D$4:D158,D158:D158)","v":2},"Expo Emprende y Transforma 2025","Porcentanje de personas atendidas en general y  vinculación empresarial","Número de personas atendidas y vinculacion empresarial ",0,500,"Lcdo. José Antonio Álvarez Hernández","3336591599/3336590901","antonioempresarialindustrial@gmail.com","Revisado","CALIDAD",0,null,null,null,{"$f":"SUM(P158:S158/J158)","v":0},"En este primer reporte no se encuntra con información ya que aún no se cuenta con los recursos económicos para despegar con dicho proyecto."]
["SECRETARIA_DE_FOMENTO_ECONOMICO_Y_CULTURALDIRECCION DE GESTION EMPRESARIAL E INDUSTRIAL3Empleo a Tu Alcance","SECRETARIA_DE_FOMENTO_ECONOMICO_Y_CULTURALDIRECCION DE GESTION EMPRESARIAL E INDUSTRIAL3","SECRETARIA_DE_FOMENTO_ECONOMICO_Y_CULTURAL","DIRECCION DE GESTION EMPRESARIAL E INDUSTRIAL",{"$f":"COUNTIF($D$4:D159,D159:D159)","v":3},"Empleo a Tu Alcance","Porcentaje de personas beneficiadas con alguna vacante, mediante el programa Empleo a tu Alcance","Número de personas atendidas",0,300,"Lcdo. José Antonio Álvarez Hernández","3336591599/3336590901","antonioempresarialindustrial@gmail.com","Revisado","EFICIENCIA",65,null,null,null,{"$f":"SUM(P159:S159/J159)","v":0.21666666666666667},"Se atendió un total de 65 personas buscadoras de empleo, y fueron vinculardos a un empleo formal, a través de la atención en la oficiona , y de los módulos de promoción en Colonias y Delegaciones, Feria de empleo."]
["SECRETARIA_DE_FOMENTO_ECONOMICO_Y_CULTURALDIRECCION DE GESTION EMPRESARIAL E INDUSTRIAL4Capacitación Permanente Empresarial, Cooperativas bienes y/o Servicios y Talleres Autoempleo","SECRETARIA_DE_FOMENTO_ECONOMICO_Y_CULTURALDIRECCION DE GESTION EMPRESARIAL E INDUSTRIAL4","SECRETARIA_DE_FOMENTO_ECONOMICO_Y_CULTURAL","DIRECCION DE GESTION EMPRESARIAL E INDUSTRIAL",{"$f":"COUNTIF($D$4:D160,D160:D160)","v":4},"Capacitación Permanente Empresarial, Cooperativas bienes y/o Servicios y Talleres Autoempleo","Porcentaje de personas capacitadas en temas empresariales","número de personas capacitadas en temas empresariales",100,110,"Lcdo. José Antonio Álvarez Hernández","3336591599/3336590901","antonioempresarialindustrial@gmail.com","Revisado","CALIDAD",79,null,null,null,{"$f":"SUM(P160:S160/J160)","v":0.71818181818181814},"se llevó a cabo el CURSO-TALLER de Económica Social y Solidaria fue impartido por Expositores profesionales de ITESO con la asistencia de 61 invitado de las siguientes instituciones: Universidad Azteca, CECyTEJ, Universidad de Guadalajara, UNIVER, Casa del Artesano y Público en General., se impartió el curso “Cooperativas de Servicio y Producción” con la asistencia de 10 ciudadanos de ellos fueron 08 emprendedores y 2 empresarios, se impartió el curso “IMPI Registro de Marca y Exportación” participando 6       emprendedores y 2 empresarios."]
["SECRETARIA_DE_FOMENTO_ECONOMICO_Y_CULTURALDIRECCION DE GESTION EMPRESARIAL E INDUSTRIAL5Mujeres Empresarias en Tlaquepaque","SECRETARIA_DE_FOMENTO_ECONOMICO_Y_CULTURALDIRECCION DE GESTION EMPRESARIAL E INDUSTRIAL5","SECRETARIA_DE_FOMENTO_ECONOMICO_Y_CULTURAL","DIRECCION DE GESTION EMPRESARIAL E INDUSTRIAL",{"$f":"COUNTIF($D$4:D161,D161:D161)","v":5},"Mujeres Empresarias en Tlaquepaque","Porcentaje de etapas realizadas para el evento MUJERES EMPRESARIAS","Número de etapas realizadas",1,1,"Mtro. Juan David Garcia Camarena","3336591599/3336590901","secretariafomentoeconomico01@gmail.com",null,"CALIDAD",0,null,null,null,{"$f":"SUM(P161:S161/J161)","v":0},"En este primer reporte no se encuntra con información ya que aún no se cuenta con los recursos económicospara despegar con dicho proyecto."]
["SECRETARIA_DE_FOMENTO_ECONOMICO_Y_CULTURALDIRECCION DEL CENTRO HISTORICO1Mantenimiento y Conservación del Centro Histórico","SECRETARIA_DE_FOMENTO_ECONOMICO_Y_CULTURALDIRECCION DEL CENTRO HISTORICO1","SECRETARIA_DE_FOMENTO_ECONOMICO_Y_CULTURAL","DIRECCION DEL CENTRO HISTORICO",{"$f":"COUNTIF($D$4:D162,D162:D162)","v":1},"Mantenimiento y Conservación del Centro Histórico","Porcentaje de actividades de mantenimiento y conservación del Centro Histórico, relizadas","Número de actividades realizadas",0,60,"JOSÉ ALONSO FLORES RAMÍREZ",3322354310,"floresalonso.lcop@gmail.com",null,null,null,null,null,null,{"$f":"SUM(P162:S162/J162)","v":0}]
["SECRETARIA_DE_FOMENTO_ECONOMICO_Y_CULTURALDIRECCION DEL CENTRO HISTORICO2Agenda del Espacio Público","SECRETARIA_DE_FOMENTO_ECONOMICO_Y_CULTURALDIRECCION DEL CENTRO HISTORICO2","SECRETARIA_DE_FOMENTO_ECONOMICO_Y_CULTURAL","DIRECCION DEL CENTRO HISTORICO",{"$f":"COUNTIF($D$4:D163,D163:D163)","v":2},"Agenda del Espacio Público","Porcentaje de autorizaciones para el uso del espacio público del Centro Histórico","Número de autorizaciones emitidas",0,60,"JOSÉ ALONSO FLORES RAMÍREZ",3322354310,"floresalonso.lcop@gmail.com","Revisado",null,null,null,null,null,{"$f":"SUM(P163:S163/J163)","v":0}]
[{"$f":"B164&F164","v":"SECRETARIA_DE_SERVICIOS_PUBLICOS_Y_MEDIO_AMBIENTEDIRECCIÓN DE CEMENTERIOS1Digitalización Administrativa"},{"$f":"C164&D164&E164","v":"SECRETARIA_DE_SERVICIOS_PUBLICOS_Y_MEDIO_AMBIENTEDIRECCIÓN DE CEMENTERIOS1"},"SECRETARIA_DE_SERVICIOS_PUBLICOS_Y_MEDIO_AMBIENTE","DIRECCIÓN DE CEMENTERIOS",{"$f":"COUNTIF($D$4:D164,D164:D164)","v":1},"Digitalización Administrativa","Porcentaje de gestiones para la implementación de un sistema informático que permita llevar un control eficiente de los cementerios ","número de gestiones realizadas ",0,7,"Marcela Carrillo Ramirez",3315489068,"tlaqcementerios24@gmail.com","Revisado",null,null,null,null,null,{"$f":"SUM(P164:S164/J164)","v":0}]
["SECRETARIA_DE_SERVICIOS_PUBLICOS_Y_MEDIO_AMBIENTEDEPARTAMENTO DE REGULACION AMBIENTAL1Creadores De Esperanza Para El Medio Ambiente","SECRETARIA_DE_SERVICIOS_PUBLICOS_Y_MEDIO_AMBIENTEDEPARTAMENTO DE REGULACION AMBIENTAL1","SECRETARIA_DE_SERVICIOS_PUBLICOS_Y_MEDIO_AMBIENTE","DEPARTAMENTO DE REGULACION AMBIENTAL",{"$f":"COUNTIF($D$4:D165,D165:D165)","v":1},"Creadores De Esperanza Para El Medio Ambiente","Porcentaje de charlas/talleres ambientales de manualidad con reciclado, realizados","Número de charlas/talleres, realizados ",100,150,"Carlos Iván Vázquez Muñoz",3334577356,"carlosambiental2024@gmail.com","Revisado",null,120,null,null,null,{"$f":"SUM(P165:S165/J165)","v":0.8},"DURANTE ESTE TRIMESTRE SE LOGRO LLEGAR A 8 JARDINES DE NIÑOS Y 1 PRIMARIA DONDE LOGRAMOS CAPACITAR A 1,924 PERSONAS CON CHARLAS AMBIENTALES ,ECO CINE O TEATRINO ASI COMO LOS TALLERES DE MANUALIDADES RECICLANDO 120 KG DE PET REALIZANDO PEQUE HUERTOS Y FLORES DE PET CON ESTAS ACTIVIDADES TAMBIEN SE INCULCO LA CULTURA DE CREAR HUERTOS URBANOS."]
["SECRETARIA_DE_SERVICIOS_PUBLICOS_Y_MEDIO_AMBIENTEDEPARTAMENTO DE REGULACION AMBIENTAL2Gobierno Con Buen Papel","SECRETARIA_DE_SERVICIOS_PUBLICOS_Y_MEDIO_AMBIENTEDEPARTAMENTO DE REGULACION AMBIENTAL2","SECRETARIA_DE_SERVICIOS_PUBLICOS_Y_MEDIO_AMBIENTE","DEPARTAMENTO DE REGULACION AMBIENTAL",{"$f":"COUNTIF($D$4:D166,D166:D166)","v":2},"Gobierno Con Buen Papel","porcentaje de kilogramos de papel recolectado para el proceso de reciclaje","kilogramos de papel recolectado ",3500,4000,"Carlos Iván Vázquez Muñoz",3334577356,"carlosambiental2024@gmail.com","Revisado",null,300,null,null,null,{"$f":"SUM(P166:S166/J166)","v":7.4999999999999997E-2},"SE LOGRO VISITAR DIFERENTES DEPENDENCIAS DONDE PUDIMOS OBTENER UN APROXIMADO DE 300Kg DE PAPEL "]
["SECRETARIA_DE_SERVICIOS_PUBLICOS_Y_MEDIO_AMBIENTEDEPARTAMENTO DE REGULACION AMBIENTAL3Sembrando Esperanza","SECRETARIA_DE_SERVICIOS_PUBLICOS_Y_MEDIO_AMBIENTEDEPARTAMENTO DE REGULACION AMBIENTAL3","SECRETARIA_DE_SERVICIOS_PUBLICOS_Y_MEDIO_AMBIENTE","DEPARTAMENTO DE REGULACION AMBIENTAL",{"$f":"COUNTIF($D$4:D167,D167:D167)","v":3},"Sembrando Esperanza","Porcentaje de árboles reforestados, mediente el Programa Sembrando Esperanza","número de árboles reforestados",0,150,"Carlos Iván Vázquez Muñoz",3334577356,"carlosambiental2024@gmail.com","Revisado",null,17,null,null,null,{"$f":"SUM(P167:S167/J167)","v":0.11333333333333333},"SE PLANTARON 17 ARBOLES DE DIFERENTESESPECIES ASI COMO LA DISTRIBUCION DE MAS DE 600 PAQUETES DE SEMILLAS DE DIFERENTES TIPOS COMO CHILE,CEBOLLA,MANZANILLA, OREGANO,COL ETC DANDOLE LA OPORTUNIDAD DE CREAR  200 HUERTOS FAMILIARES"]
["SECRETARIA_DE_SERVICIOS_PUBLICOS_Y_MEDIO_AMBIENTEDEPARTAMENTO DE REGULACION AMBIENTAL4Sembrando Esperanza","SECRETARIA_DE_SERVICIOS_PUBLICOS_Y_MEDIO_AMBIENTEDEPARTAMENTO DE REGULACION AMBIENTAL4","SECRETARIA_DE_SERVICIOS_PUBLICOS_Y_MEDIO_AMBIENTE","DEPARTAMENTO DE REGULACION AMBIENTAL",{"$f":"COUNTIF($D$4:D168,D168:D168)","v":4},"Sembrando Esperanza","Porcentaje de huertos intervenidos mediante el Programa Sembrando Esperanza","número de huertos intervenidos ",0,50,"Carlos Iván Vázquez Muñoz",3334577356,"carlosambiental2024@gmail.com","Revisado",null,null,null,null,null,{"$f":"SUM(P168:S168/J168)","v":0}]
["SECRETARIA_DE_SERVICIOS_PUBLICOS_Y_MEDIO_AMBIENTEDIRECCION DE AGUA POTABLE, DRENAJE Y ALCANTARILLADO1Padrón Único de Usuarios","SECRETARIA_DE_SERVICIOS_PUBLICOS_Y_MEDIO_AMBIENTEDIRECCION DE AGUA POTABLE, DRENAJE Y ALCANTARILLADO1","SECRETARIA_DE_SERVICIOS_PUBLICOS_Y_MEDIO_AMBIENTE","DIRECCION DE AGUA POTABLE, DRENAJE Y ALCANTARILLADO",{"$f":"COUNTIF($D$4:D169,D169:D169)","v":1},"Padrón Único de Usuarios","Porcentaje de viviendas agregadas al padrón único de usuarios.","Número de Viviendas agregadas",522,1200,"ANTONIO GUADALUPE HURTADO NUÑEZ",3338370430,"aghn1980@gmail.com","Revisado","Eficiencia / Economia",38,null,null,null,{"$f":"SUM(P169:S169/J169)","v":3.1666666666666669E-2},"Se aperturaron 38 nuevas cuentas que aportaran economicamente a las arcas del ayuntamiento de San pedro tlaquepaque, las cuales son: 5 amaneceres, 1 fracc. Ojo de agua, 23 geovillas los olivos, 1 las liebres, 5 lopez cotilla, 1 san sebastianito, 1 santa maria tequepexpan y 1 toluquilla.   "]
["SECRETARIA_DE_SERVICIOS_PUBLICOS_Y_MEDIO_AMBIENTEDIRECCION DE AGUA POTABLE, DRENAJE Y ALCANTARILLADO2Servicio Medido","SECRETARIA_DE_SERVICIOS_PUBLICOS_Y_MEDIO_AMBIENTEDIRECCION DE AGUA POTABLE, DRENAJE Y ALCANTARILLADO2","SECRETARIA_DE_SERVICIOS_PUBLICOS_Y_MEDIO_AMBIENTE","DIRECCION DE AGUA POTABLE, DRENAJE Y ALCANTARILLADO",{"$f":"COUNTIF($D$4:D170,D170:D170)","v":2},"Servicio Medido","Porcentaje de gestiones realizadas para la adquisición e Instalación de medidor de agua y piezas especiales","Número de gestiones realizadas",0,3,"ANTONIO GUADALUPE HURTADO NUÑEZ",3338370430,"aghn1980@gmail.com","Revisado","Eficiencia / Economia",0,null,null,null,{"$f":"SUM(P170:S170/J170)","v":0},"No se obtuvo el presupuesto en este trimestre, por tal motivo no se realizo ningun avance del programa, pero al inicio del año 2025 seguiremos solicitando para la ejecución de este.        "]
["SECRETARIA_DE_SERVICIOS_PUBLICOS_Y_MEDIO_AMBIENTEDIRECCION DE AGUA POTABLE, DRENAJE Y ALCANTARILLADO3Servicio Medido","SECRETARIA_DE_SERVICIOS_PUBLICOS_Y_MEDIO_AMBIENTEDIRECCION DE AGUA POTABLE, DRENAJE Y ALCANTARILLADO3","SECRETARIA_DE_SERVICIOS_PUBLICOS_Y_MEDIO_AMBIENTE","DIRECCION DE AGUA POTABLE, DRENAJE Y ALCANTARILLADO",{"$f":"COUNTIF($D$4:D171,D171:D171)","v":3},"Servicio Medido","Porcentaje de adquisición e Instalación de medidor de agua y piezas especiales","Número de medidores instalados",0,1200,"ANTONIO GUADALUPE HURTADO NUÑEZ",3338370430,"aghn1980@gmail.com","Revisado","Eficiencia / Economia",0,null,null,null,{"$f":"SUM(P171:S171/J171)","v":0},"Se antendieron 388 reportes ciudadanos, 29,136 tomas de lecturas de medidores, 3,726 marco de inpedimentos en hoja de lectura, 29,526 revisión y aplicación de adeudos de cuentas en regimen de servicio medido, 28,858 capturas de lecturas de medidor de agua, 22,082 impresiones de recibos, 21,685 entrega de recibos en las colonias que menciono: Arroyo   Seco, Barrio De San Miguel, El Real, Valles Del  Sur l Y ll, Lomas Del Real, Prado De Santa María, Loma Verde, Villas De Santa María Y Las Brisas, Misión De San  Francisco, Pintores Españoles, España, Loreto, Adamas, Los Naranjos, Fracc. Ojo De Agua, Quinta Nova, Infonavit Santa Anita, El Mirador Juan Arias, La Candelaria , La Calidad, Las Varitas, Ponciano Arriaga, Residencial Santa Anita, Villas De Santa Anita, Santa Anita, El Sereno, Aurea Residencial, La Nopalera, Calerilla,  paseo del lago, ojo de agua, juan de la barrera y la ladrillera,  Toluquilla, Prados de Toluquilla Y Providencia Toluquilla, San Sebastianito, Fracc. Geovillas Los Olivos, Residencial San Sebastianito, Indígena de San Sebastianito,  Riveras de San Sebastianito, Olivos II,  La Cartonera, fracc. Mision de San Francisco, Lopez Cotilla, las  liebres en zonas  altas y Portillo Blanco.                                                                                                                                                                                                                                                                                                                                                                                                                          "]
["SECRETARIA_DE_SERVICIOS_PUBLICOS_Y_MEDIO_AMBIENTEDIRECCION DE AGUA POTABLE, DRENAJE Y ALCANTARILLADO4Trabajos emergentes de redes hidrosanitarias","SECRETARIA_DE_SERVICIOS_PUBLICOS_Y_MEDIO_AMBIENTEDIRECCION DE AGUA POTABLE, DRENAJE Y ALCANTARILLADO4","SECRETARIA_DE_SERVICIOS_PUBLICOS_Y_MEDIO_AMBIENTE","DIRECCION DE AGUA POTABLE, DRENAJE Y ALCANTARILLADO",{"$f":"COUNTIF($D$4:D172,D172:D172)","v":4},"Trabajos emergentes de redes hidrosanitarias","Porcentaje de Reportes Atendidos para el Mantenimiento de Redes Hidrosanitarias","Número de Reportes Atendidos",1750,1800,"ANTONIO GUADALUPE HURTADO NUÑEZ",3338370430,"aghn1980@gmail.com","Revisado","Eficiencia / Calidad",436,null,null,null,{"$f":"SUM(P172:S172/J172)","v":0.24222222222222223},"En base a los reportes ciudadanos se antendieron 436,  se realizaron 353 sondeos, fugas de agua, instalación de medidores y tomas de agua, 83 descargas, desazolve de registro y sondeos sanitarios, esto se realizo en las siguientes delegaciones y colonias que se mencionan: DELEGACION DE SANTA MARIA TEQUEPEXPAN: Arroyo   Seco, Barrio De San Miguel, El Real, Valles Del  Sur l Y ll, Lomas Del Real, Prado De Santa María, Delegación De Santa María Tequepexpan, Loma Verde, Villas De Santa María Y Las Brisas, DELEGACION DE SANTA ANITA: Misión De San  Francisco, Pintores Españoles, España, Loreto, Adamas, Los Naranjos, Fracc. Ojo De Agua, Quinta Nova, Infonavit Santa Anita, El Mirador Juan Arias, La Candelaria , La Calidad, Las Varitas, Ponciano Arriaga, Residencial Santa Anita, Villas De Santa Anita, Santa Anita, El Sereno, Aurea Residencial, La Nopalera, DELEGACION CALERILLA: Calerilla, DELEGACION LAS PINTAS DE ABAJO: paseo del lago, ojo de agua, juan de la barrera y la ladrillera, DELEGACION DE TOLUQUILLA: Toluquilla, Prados de Toluquilla Y Providencia Toluquilla, DELEGACION DE SAN SEBASTIANITO: San Sebastianito, Fracc. Geovillas Los Olivos, Residencial San Sebastianito, Indígena de San Sebastianito,  Riveras de San Sebastianito, Olivos II,  La Cartonera, las  liebres en zonas  altas y La Portillo Blanco."]
["SECRETARIA_DE_SERVICIOS_PUBLICOS_Y_MEDIO_AMBIENTEDIRECCION DE AGUA POTABLE, DRENAJE Y ALCANTARILLADO5Entrega del Vital Líquido","SECRETARIA_DE_SERVICIOS_PUBLICOS_Y_MEDIO_AMBIENTEDIRECCION DE AGUA POTABLE, DRENAJE Y ALCANTARILLADO5","SECRETARIA_DE_SERVICIOS_PUBLICOS_Y_MEDIO_AMBIENTE","DIRECCION DE AGUA POTABLE, DRENAJE Y ALCANTARILLADO",{"$f":"COUNTIF($D$4:D173,D173:D173)","v":5},"Entrega del Vital Líquido","Porcentaje de viajes para el suministro de agua, realizados ","Número de viajes realizados ",12000,14000,"ANTONIO GUADALUPE HURTADO NUÑEZ",3338370430,"aghn1980@gmail.com","Revisado","Eficiencia / Calidad",3957,null,null,null,{"$f":"SUM(P173:S173/J173)","v":0.28264285714285714},"Se dio el servicio de 3,957  viajes de entrega de agua potable en pipa a las siguientes colonias EL SAUZ,  EL TAPATIO, SAN JUAN, EL ZALATE, BOSQUES DEL CLUB, EX HACIENDA DEL CUATRO, LA GIGANTERA (EL TAJO),  FRANCISCO I MADERO,  EL TEMPIZQUE, HACIENDA DE VIDRIO, LA ARENA,  LOS PUESTOS,  PORTILLO BLANCO, LA CALERILLA, SOLIDARIDAD, LOMAS DEL 4  Y SENTIMIENTOS DE LA NACIÓN. dio apoyo en los  EDIFICIOS PUBLICOS Y COLONIAS DEL SIAPAR POR FALTA DE AGUA: EL ALAMO (TEXTILES),  LOS MESEROS (JUZGADOS), CABECERA MUNICIPAL (MERCADO JUAREZ, CEMENTERIO, CABAÑAS, ARTESANOS, CENTRO CULTURAL EL REFUGIO, INSTITUTO DE LA JUVENTUD, REGULARIZACIÓN DE PREDIOS  Y BAÑOS DEL PARIAN), SAN ALFONSO (SUTAJ), SAN ALFONSO, ALFREDO BARBA, LAS POMAS, LAS VARITAS, LA SOLEDAD (CENTRO DE SALUD), LOS OLIVOS, LAS BARITAS,  LAS LIEBRES, SAN MARTIN ABAJO, OJO DE AGUA, LOS MESEROS (REGISTRO CIVIL), BUENOS AIRES (COMEDOR COMUNITARIO), BUENOS AIRES (TEMPLO 12 APOSTOLES), LAS JUNTAS (DELEGACIÓN), TOLUQUILLA, FRACCIONAMIENTO ARBOLEDAS, EL ROSARIO (POLITICAS PUBLICAS), CEMENTERIOS DE TOLUQUILLA Y SAN SEBASTIANITO Y EN EL INCENDIO DE LA CENTRAL NUEVA, Beneficiando a 25,164 Niñas y Niños, 18,873 Mujeres y hombres Adultos y 12,582 Mujeres y Hombres  Adultos Mayores, con un Consumo de 39´570,000 litros de Agua Potable.                                                                                                                                       "]
["SECRETARIA_DE_SERVICIOS_PUBLICOS_Y_MEDIO_AMBIENTEDIRECCION DE AGUA POTABLE, DRENAJE Y ALCANTARILLADO6Gestión Y Puesta En Marcha Del Laboratorio De Análisis De Agua Potable","SECRETARIA_DE_SERVICIOS_PUBLICOS_Y_MEDIO_AMBIENTEDIRECCION DE AGUA POTABLE, DRENAJE Y ALCANTARILLADO6","SECRETARIA_DE_SERVICIOS_PUBLICOS_Y_MEDIO_AMBIENTE","DIRECCION DE AGUA POTABLE, DRENAJE Y ALCANTARILLADO",{"$f":"COUNTIF($D$4:D174,D174:D174)","v":6},"Gestión Y Puesta En Marcha Del Laboratorio De Análisis De Agua Potable","Porcentaje de etapas de gestión para la conclusión y puesta en marcha del laboratorio de análisis del Agua Potable ","Número de etapas realizadas",0,10,"ANTONIO GUADALUPE HURTADO NUÑEZ",3338370430,"aghn1980@gmail.com",null,"Eficiencia / Calidad",0,null,null,null,{"$f":"SUM(P174:S174/J174)","v":0},"No se obtuvo el presupuesto en este trimestre por tal motivo no se realizo ningun avance del programa, pero al inicio del año 2025 seguiremos solicitando para la ejecución de este.   "]
["SECRETARIA_DE_SERVICIOS_PUBLICOS_Y_MEDIO_AMBIENTEDIRECCION DE AGUA POTABLE, DRENAJE Y ALCANTARILLADO7Estudio de Factibilidades de Redes Hidrosanitarias","SECRETARIA_DE_SERVICIOS_PUBLICOS_Y_MEDIO_AMBIENTEDIRECCION DE AGUA POTABLE, DRENAJE Y ALCANTARILLADO7","SECRETARIA_DE_SERVICIOS_PUBLICOS_Y_MEDIO_AMBIENTE","DIRECCION DE AGUA POTABLE, DRENAJE Y ALCANTARILLADO",{"$f":"COUNTIF($D$4:D175,D175:D175)","v":7},"Estudio de Factibilidades de Redes Hidrosanitarias","Porcentaje de etapas de gestión para obtención de factibilidades","Número de etapas de gestión realizadas   ",0,3,"ANTONIO GUADALUPE HURTADO NUÑEZ",3338370430,"aghn1980@gmail.com",null,"Eficiencia / Calidad",0,null,null,null,{"$f":"SUM(P175:S175/J175)","v":0},"En este trimestre no se realizaron supervisiones, ya que no llegaron tramites para factibilidades "]
["SECRETARIA_DE_SERVICIOS_PUBLICOS_Y_MEDIO_AMBIENTEDIRECCION DE AGUA POTABLE, DRENAJE Y ALCANTARILLADO8Estudio de Factibilidades de Redes Hidrosanitarias","SECRETARIA_DE_SERVICIOS_PUBLICOS_Y_MEDIO_AMBIENTEDIRECCION DE AGUA POTABLE, DRENAJE Y ALCANTARILLADO8","SECRETARIA_DE_SERVICIOS_PUBLICOS_Y_MEDIO_AMBIENTE","DIRECCION DE AGUA POTABLE, DRENAJE Y ALCANTARILLADO",{"$f":"COUNTIF($D$4:D176,D176:D176)","v":8},"Estudio de Factibilidades de Redes Hidrosanitarias","Porcentaje de Expedientes y Supervisiones de redes hidrosanitarias para factibilidades, realizadas ","Número de Supervisiones y Expedientes",0,80,"ANTONIO GUADALUPE HURTADO NUÑEZ",3338370430,"aghn1980@gmail.com",null,"Eficiencia / Calidad",0,null,null,null,{"$f":"SUM(P176:S176/J176)","v":0},"En este trimestre no se realizaron supervisiones, ya que no llegaron tramites para factibilidades "]
["SECRETARIA_DE_SERVICIOS_PUBLICOS_Y_MEDIO_AMBIENTEDIRECCION DE AGUA POTABLE, DRENAJE Y ALCANTARILLADO9Actualización de Datos de Redes Hidrosanitarias","SECRETARIA_DE_SERVICIOS_PUBLICOS_Y_MEDIO_AMBIENTEDIRECCION DE AGUA POTABLE, DRENAJE Y ALCANTARILLADO9","SECRETARIA_DE_SERVICIOS_PUBLICOS_Y_MEDIO_AMBIENTE","DIRECCION DE AGUA POTABLE, DRENAJE Y ALCANTARILLADO",{"$f":"COUNTIF($D$4:D177,D177:D177)","v":9},"Actualización de Datos de Redes Hidrosanitarias","Porcentaje de etapas de gestión para el proyecto de Actualización de datos de redes hidrosanitarias","Número de etapas de gestión realizadas   ",0,3,"ANTONIO GUADALUPE HURTADO NUÑEZ",3338370430,"aghn1980@gmail.com",null,"Eficiencia / Calidad",0,null,null,null,{"$f":"SUM(P177:S177/J177)","v":0},"No se obtuvo el presupuesto en este trimestre, por tal motivo no se realizo ningun avance del programa, pero al inicio del año 2025 seguiremos solicitando para la ejecución de este.                                                                                                                                    "]
["SECRETARIA_DE_SERVICIOS_PUBLICOS_Y_MEDIO_AMBIENTEDIRECCION DE AGUA POTABLE, DRENAJE Y ALCANTARILLADO10Actualización de Datos de Redes Hidrosanitarias","SECRETARIA_DE_SERVICIOS_PUBLICOS_Y_MEDIO_AMBIENTEDIRECCION DE AGUA POTABLE, DRENAJE Y ALCANTARILLADO10","SECRETARIA_DE_SERVICIOS_PUBLICOS_Y_MEDIO_AMBIENTE","DIRECCION DE AGUA POTABLE, DRENAJE Y ALCANTARILLADO",{"$f":"COUNTIF($D$4:D178,D178:D178)","v":10},"Actualización de Datos de Redes Hidrosanitarias","Porcentaje en la Actualización de datos de kilometros de redes hidrosanitarias","Número de Kilómetros actualizados",0,12.1,"ANTONIO GUADALUPE HURTADO NUÑEZ",3338370430,"aghn1980@gmail.com",null,"Eficiencia / Calidad",0,null,null,null,{"$f":"SUM(P178:S178/J178)","v":0},"No se obtuvo el presupuesto en este trimestre, por tal motivo no se realizo ningun avance del programa, pero al inicio del año 2025 seguiremos solicitando para la ejecución de este.                                                                                                                                    "]
["SECRETARIA_DE_SERVICIOS_PUBLICOS_Y_MEDIO_AMBIENTEDIRECCION DE AGUA POTABLE, DRENAJE Y ALCANTARILLADO11Recepción, Distribución, Dosificación, Monitoreo de cloro residual de Agua Potable","SECRETARIA_DE_SERVICIOS_PUBLICOS_Y_MEDIO_AMBIENTEDIRECCION DE AGUA POTABLE, DRENAJE Y ALCANTARILLADO11","SECRETARIA_DE_SERVICIOS_PUBLICOS_Y_MEDIO_AMBIENTE","DIRECCION DE AGUA POTABLE, DRENAJE Y ALCANTARILLADO",{"$f":"COUNTIF($D$4:D179,D179:D179)","v":11},"Recepción, Distribución, Dosificación, Monitoreo de cloro residual de Agua Potable","Porcentaje de monitoreos de distribución y dosificación de cloro residual en el agua potable, realizados","Número de monitoreos de cloro residual realizados",23000,24000,"ANTONIO GUADALUPE HURTADO NUÑEZ",3338370430,"aghn1980@gmail.com",null,"Eficiencia / Calidad",5363,null,null,null,{"$f":"SUM(P179:S179/J179)","v":0.22345833333333334},"Se realizaron 5,363 monitoreos de Cloro residual, se suministraron y consumieron 14,166 Kilogramos de cloro a los pozos:  1 SANTA ANITA (5 DE MAYO Nº 357 Y MATAMOROS), 3 SANTA ANITA (C. 5 DE MAYO Nº 537 Y SAN FRANCISCO), 4 SANTA ANITA (RAMON CORONA Y CAMINO REAL A COLIMA), 5 LA CALERILLA (MIGUEL ALEMAN Y ALLENDE), 6 ARROYO SECO (CAMINO REAL  A COLIMA Y ARROYO DEL SUR), 7 STA MARIA TEQUEPEXPAN (ZARAGOZA Y ARENAL), 8 STA MARIA TEQUEPEXPAN (RAMON CORONA Y ARENAL), 9 PRADOS STA MARIA (C. LOS PINOS Y SAUCES), 10 SAN SEBASTIANITO (MORELOS Y PERIFERICO SUR), 11 TOLUQUILLA (GONZALEZ GALLO Y  ANTONIO BRAVO), 13 LA LADRILLERA (LOS ARCOS Y FCO VILLA), 14 M. LOPEZ COTILLA  (RAMON MARTINEZ E HIDALGO), 15 JUAN DE LA BARRERA (SANTIAGO XICOTENCATL Y CHURUBUSCO), 17 LAS LIEBRES (MIGUEL HIDALGO Y AMADO NERVO), 18 HDAS LA CANDELARIA (VGEN. DE LA CANDELARIA Y VGEN. DE ZAPOPAN), 20 LOS OLIVOS (BOSQUE DE LA PRIMAVERA Y CDA FRESNOS), 21 MISION DE SAN FRANCISCO (CIRC. STA CLARA NTE. Y RAMON MARISCAL), 23 LORETO (AV. MAGALLANES Y AV. LORETO), 24 CENTRO SUR (INDEPENDENCIA Y COMONFORT), 25 PRIVADA LOS OLIVOS PROL. 8 DE JULIO Y ARROYO SECO, 26 EL SERENO (CAMINO REAL DE COLIMA Y BLV. PROL. MARIANO OTERO), 27 AMANECERES PROL. 8 DE JULIO Y ARROYO SECO, 28 SANTIBAÑEZ (LUCIO CABAÑAS Y FRANCISCO VILLA),  beneficiandose a estas delegaciones y colonias las cuales se mencionan: DELEGACION DE SANTA MARIA TEQUEPEXPAN: Arroyo   Seco, Barrio De San Miguel, El Real, Valles Del  Sur l Y ll, Lomas Del Real, Prado De Santa María, Delegación De Santa María Tequepexpan, Loma Verde, Villas De Santa María Y Las Brisas, DELEGACION DE SANTA ANITA: Misión De San  Francisco, Pintores Españoles, España, Loreto, Adamas, Los Naranjos, Fracc. Ojo De Agua, Quinta Nova, Infonavit Santa Anita, El Mirador Juan Arias, La Candelaria , La Calidad, Las Varitas, Ponciano Arriaga, Residencial Santa Anita, Villas De Santa Anita, Santa Anita, El Sereno, Aurea Residencial, La Nopalera, DELEGACION CALERILLA: Calerilla, DELEGACION LAS PINTAS DE ABAJO: paseo del lago, ojo de agua, juan de la barrera y la ladrillera, DELEGACION DE TOLUQUILLA: Toluquilla, Prados de Toluquilla Y Providencia Toluquilla, DELEGACION DE SAN SEBASTIANITO: San Sebastianito, Fracc. Geovillas Los Olivos, Residencial San Sebastianito, Indígena de San Sebastianito,  Riveras de San Sebastianito, Olivos II,  La Cartonera, las  liebres en zonas  altas y La Portillo Blanco. con un volumen de extracción de 1´312,234m3 y en alguno de estos pozos se les realizo limpieza en general y pintura en la infraestructura."]
["SECRETARIA_DE_SERVICIOS_PUBLICOS_Y_MEDIO_AMBIENTEDIRECCION DE ALUMBRADO PUBLICO1Sustitución de luminarias a la red de alumbrado publico.","SECRETARIA_DE_SERVICIOS_PUBLICOS_Y_MEDIO_AMBIENTEDIRECCION DE ALUMBRADO PUBLICO1","SECRETARIA_DE_SERVICIOS_PUBLICOS_Y_MEDIO_AMBIENTE","DIRECCION DE ALUMBRADO PUBLICO",{"$f":"COUNTIF($D$4:D180,D180:D180)","v":1},"Sustitución de luminarias a la red de alumbrado publico.","Porcentaje en el seguimiento a la prestación del servicio de Alumbrado Público, mediante la susutitución de luminarias con tecnología LED","Número de luminarias sustituidas en el municipio",2000,5000,"Luz Adriana Arellano Lomelí","33 38388392","alumbrado.tlq@gmail.co",null,null,null,null,null,null,{"$f":"SUM(P180:S180/J180)","v":0}]
["SECRETARIA_DE_SERVICIOS_PUBLICOS_Y_MEDIO_AMBIENTEDIRECCION DE ALUMBRADO PUBLICO2Mantenimiento y reparación de luminarias a la red de alumbrado publico.","SECRETARIA_DE_SERVICIOS_PUBLICOS_Y_MEDIO_AMBIENTEDIRECCION DE ALUMBRADO PUBLICO2","SECRETARIA_DE_SERVICIOS_PUBLICOS_Y_MEDIO_AMBIENTE","DIRECCION DE ALUMBRADO PUBLICO",{"$f":"COUNTIF($D$4:D181,D181:D181)","v":2},"Mantenimiento y reparación de luminarias a la red de alumbrado publico.","Porcentaje en el segumiento a reportes atendidos para el mantenimiento de las lumianrias ","Número de reportes atendidos",9000,9000,"Luz Adriana Arellano Lomelí","33 38388392","alumbrado.tlq@gmail.co",null,null,null,null,null,null,{"$f":"SUM(P181:S181/J181)","v":0}]
["SECRETARIA_DE_SERVICIOS_PUBLICOS_Y_MEDIO_AMBIENTEDIRECCION DE ASEO PUBLICO1Programa De Operativos De Limpieza","SECRETARIA_DE_SERVICIOS_PUBLICOS_Y_MEDIO_AMBIENTEDIRECCION DE ASEO PUBLICO1","SECRETARIA_DE_SERVICIOS_PUBLICOS_Y_MEDIO_AMBIENTE","DIRECCION DE ASEO PUBLICO",{"$f":"COUNTIF($D$4:D182,D182:D182)","v":1},"Programa De Operativos De Limpieza","porcentaje de operativos de limpieza, realizados","número de operativos realizados",1270,1270,"Claudia Ivón Hernández Arriaga","33 36 90 04 08","cieloaseopublico@gmail.com claudiaaseopublico@gmail.com",null,"EFICIENCIA",589,null,null,null,{"$f":"SUM(P182:S182/J182)","v":0.4637795275590551},"En este trimestre se realizaron 589 operativos de limpieza por las calles y avenidas principales de diversas colonias de nuestro municipio, en las cuales se encuentran la Av. Lazaro Cardenas hasta Carr. a Chapala a fuera de la Expo Ganadera, Desviacion de Cantarito y Tonala hacia la Central Nueva por Carr. a Zapotlanejo, Calle Hidalgo, Zaragoza, Tonala, Leandro Valle y 16 de Septiembre en Zona Centro de Tlaquepaque, en Av. 8 de Julio de Periferico hasta Cuyucuata, Puentes peatonales de Tateposco, calle Santa Rosalia y Patria hasta carretera a Zapotlanejo, Av. Niños Heroes desde Glorieta del Alamo a Cementerio Municipal, Plaza San Pedrito ubicada en Poza Rica, Tlacotalpan, Central Nueva por carretera a Zapotlanejo hasta Atzcapozalco, Parque del Fraccionamiento Altos Sur, Av. Lázaro Cardenas desde la colonia Hacienda de Vidrio hasta Revolución, Parque lineal glorieta y Av. Patria de Loma Bonita, paradas del camión del Fracc. Revolución y Parques Colón, Lavado del Centro Histórico, Av. Delicias desde Av. Niños Heroes hasta Río Seco, Clínica 39 del IMSS, Poligono de las Preparatorias 6 de Miravalle, Regional de Santa Anita y Preparatoria 16 de San Martin de las Flores (Sendero Seguro);  asi como poda. Dichos operativos estan conformados por un equipo de 4 personas"]
["SECRETARIA_DE_SERVICIOS_PUBLICOS_Y_MEDIO_AMBIENTEDIRECCION DE ASEO PUBLICO2Servicio de recolección de residuos urbanos","SECRETARIA_DE_SERVICIOS_PUBLICOS_Y_MEDIO_AMBIENTEDIRECCION DE ASEO PUBLICO2","SECRETARIA_DE_SERVICIOS_PUBLICOS_Y_MEDIO_AMBIENTE","DIRECCION DE ASEO PUBLICO",{"$f":"COUNTIF($D$4:D183,D183:D183)","v":2},"Servicio de recolección de residuos urbanos","Porcentaje de avance en el servicio  de recolección de residuos sólidos urbanos, realizados","número de servicios de recolección realizados ",12740,30624,"Claudia Ivón Hernández Arriaga","33 36 90 04 08","cieloaseopublico@gmail.com claudiaaseopublico@gmail.com",null,"EFICIENCIA",7656,null,null,null,{"$f":"SUM(P183:S183/J183)","v":0.25},"optimizamos la eficacia y eficiencia en la gestión de la recolección de residuos en las 319 colonias de nuestro municipio, con 67 rutas de recolección de residuos sólidos mediante la implementación de mejores prácticas organizativas que involucran tanto área administrativa y como operativa, "]
["SECRETARIA_DE_SERVICIOS_PUBLICOS_Y_MEDIO_AMBIENTEDIRECCION DE ASEO PUBLICO3Fortalecimiento y adiestramiento al personal operativo","SECRETARIA_DE_SERVICIOS_PUBLICOS_Y_MEDIO_AMBIENTEDIRECCION DE ASEO PUBLICO3","SECRETARIA_DE_SERVICIOS_PUBLICOS_Y_MEDIO_AMBIENTE","DIRECCION DE ASEO PUBLICO",{"$f":"COUNTIF($D$4:D184,D184:D184)","v":3},"Fortalecimiento y adiestramiento al personal operativo","porcentaje de acciones de capacitación del personal","número de acciones de capacitación realizadas",0,4,"Claudia Ivón Hernández Arriaga","33 36 90 04 08","cieloaseopublico@gmail.com claudiaaseopublico@gmail.com","Revisado","EFICIENCIA",0,null,null,null,{"$f":"SUM(P184:S184/J184)","v":0},"No se ha realizado la capacitación para el personal ya que se encuentran en operativos todo el tiempo. "]
["SECRETARIA_DE_SERVICIOS_PUBLICOS_Y_MEDIO_AMBIENTEDIRECCION DE ASEO PUBLICO4Plataforma de Atención Ciudadana (Reportes)","SECRETARIA_DE_SERVICIOS_PUBLICOS_Y_MEDIO_AMBIENTEDIRECCION DE ASEO PUBLICO4","SECRETARIA_DE_SERVICIOS_PUBLICOS_Y_MEDIO_AMBIENTE","DIRECCION DE ASEO PUBLICO",{"$f":"COUNTIF($D$4:D185,D185:D185)","v":4},"Plataforma de Atención Ciudadana (Reportes)","porcentaje de reportes atendidos dentro de las 24 horas","número de reportes atendidos",0,1550,"Claudia Ivón Hernández Arriaga","33 36 90 04 08","cieloaseopublico@gmail.com claudiaaseopublico@gmail.com","Revisado","EFICIENCIA",1162,null,null,null,{"$f":"SUM(P185:S185/J185)","v":0.74967741935483867},"Recibimos 1203 reportes, de los cuales 1162 fueron resueltos en un periodo no mayor a 24 hrs., de los cuales únicamente no se resolvieron 41 que solicitaron fumigación ya que  por el momento no se contaba con veneno para fumigar"]
["SECRETARIA_DE_SERVICIOS_PUBLICOS_Y_MEDIO_AMBIENTEDIRECCION DE ASEO PUBLICO5Servicio de fumigación para prevención del dengue y otras plagas","SECRETARIA_DE_SERVICIOS_PUBLICOS_Y_MEDIO_AMBIENTEDIRECCION DE ASEO PUBLICO5","SECRETARIA_DE_SERVICIOS_PUBLICOS_Y_MEDIO_AMBIENTE","DIRECCION DE ASEO PUBLICO",{"$f":"COUNTIF($D$4:D186,D186:D186)","v":5},"Servicio de fumigación para prevención del dengue y otras plagas","porcentaje de avance de las campañas de fumigación para la prevención del dengue y otras plagas","número de descacharrizaciones realizadas",0,4000,"Claudia Ivón Hernández Arriaga","33 36 90 04 08","cieloaseopublico@gmail.com claudiaaseopublico@gmail.com","Revisado","EFICIENCIA",51,null,null,null,{"$f":"SUM(P186:S186/J186)","v":1.2749999999999999E-2},"Realizamos 51 fumigaciones en escuelas, parques y calles de nuestro municipio, reduciendo la poblacion de plagas y fauna dañina en zonas reportadas por los ciudadanos"]
["SECRETARIA_DE_SERVICIOS_PUBLICOS_Y_MEDIO_AMBIENTEDIRECCION DE RASTRO1Capacitación Continua","SECRETARIA_DE_SERVICIOS_PUBLICOS_Y_MEDIO_AMBIENTEDIRECCION DE RASTRO1","SECRETARIA_DE_SERVICIOS_PUBLICOS_Y_MEDIO_AMBIENTE","DIRECCION DE RASTRO",{"$f":"COUNTIF($D$4:D187,D187:D187)","v":1},"Capacitación Continua","Porcentaje de capacitaciones impartidas al personal","Número de capacitaciones",4,2,"Montserrat Carolina Corona Pérez",3335627069,"administracion.rastro@tlaquepaque.gob.mx","Revisado",null,null,null,null,null,{"$f":"SUM(P187:S187/J187)","v":0}]
["SECRETARIA_DE_SERVICIOS_PUBLICOS_Y_MEDIO_AMBIENTEDIRECCION DE RASTRO2Inspección Cárnica","SECRETARIA_DE_SERVICIOS_PUBLICOS_Y_MEDIO_AMBIENTEDIRECCION DE RASTRO2","SECRETARIA_DE_SERVICIOS_PUBLICOS_Y_MEDIO_AMBIENTE","DIRECCION DE RASTRO",{"$f":"COUNTIF($D$4:D188,D188:D188)","v":2},"Inspección Cárnica","Porcentaje de inspecciónes de productos cárnicos, lácteos, mariscos y embutidos a giros y tianguis, realizadas","Número de inspecciones realizadas",4500,13000,"Montserrat Carolina Corona Pérez",3335627069,"administracion.rastro@tlaquepaque.gob.mx","Revisado",null,null,null,null,null,{"$f":"SUM(P188:S188/J188)","v":0}]
["SECRETARIA_DE_SERVICIOS_PUBLICOS_Y_MEDIO_AMBIENTEDIRECCION DE RASTRO3Participación en campañas","SECRETARIA_DE_SERVICIOS_PUBLICOS_Y_MEDIO_AMBIENTEDIRECCION DE RASTRO3","SECRETARIA_DE_SERVICIOS_PUBLICOS_Y_MEDIO_AMBIENTE","DIRECCION DE RASTRO",{"$f":"COUNTIF($D$4:D189,D189:D189)","v":3},"Participación en campañas","Porcentaje de Campañas para la detección de enfermedades en ganado, realizadas","Número de Campañas  realizadas",3,12,"Montserrat Carolina Corona Pérez",3335627069,"administracion.rastro@tlaquepaque.gob.mx","Revisado",null,null,null,null,null,{"$f":"SUM(P189:S189/J189)","v":0}]
["SECRETARIA_DE_SERVICIOS_PUBLICOS_Y_MEDIO_AMBIENTEDIRECCION DE SALUD AMBIENTAL Y CAMBIO CLIMATICO1Registro de ladrilleros","SECRETARIA_DE_SERVICIOS_PUBLICOS_Y_MEDIO_AMBIENTEDIRECCION DE SALUD AMBIENTAL Y CAMBIO CLIMATICO1","SECRETARIA_DE_SERVICIOS_PUBLICOS_Y_MEDIO_AMBIENTE","DIRECCION DE SALUD AMBIENTAL Y CAMBIO CLIMATICO",{"$f":"COUNTIF($D$4:D190,D190:D190)","v":1},"Registro de ladrilleros","Porcentaje de ladrilleras registradas.","Número de ladrilleras registradas. ",185,200,"Lenin Torres Mondragón",3314697407,"Ltmondragon@hotmail.com","Revisado",null,null,null,null,null,{"$f":"SUM(P190:S190/J190)","v":0}]
["SECRETARIA_DE_SERVICIOS_PUBLICOS_Y_MEDIO_AMBIENTEDIRECCION DE SALUD AMBIENTAL Y CAMBIO CLIMATICO2Registro de ladrilleros","SECRETARIA_DE_SERVICIOS_PUBLICOS_Y_MEDIO_AMBIENTEDIRECCION DE SALUD AMBIENTAL Y CAMBIO CLIMATICO2","SECRETARIA_DE_SERVICIOS_PUBLICOS_Y_MEDIO_AMBIENTE","DIRECCION DE SALUD AMBIENTAL Y CAMBIO CLIMATICO",{"$f":"COUNTIF($D$4:D191,D191:D191)","v":2},"Registro de ladrilleros","Porcentaje de ladrilleras que renuevan convenio. ","Número de ladrilleras con renovación  ",426,450,"Lenin Torres Mondragón",3314697407,"Ltmondragon@hotmail.com","Revisado",null,null,null,null,null,{"$f":"SUM(P191:S191/J191)","v":0}]
["SECRETARIA_DE_SERVICIOS_PUBLICOS_Y_MEDIO_AMBIENTEDIRECCION DE SALUD AMBIENTAL Y CAMBIO CLIMATICO3Registro De Fuentes Fijas Municipales","SECRETARIA_DE_SERVICIOS_PUBLICOS_Y_MEDIO_AMBIENTEDIRECCION DE SALUD AMBIENTAL Y CAMBIO CLIMATICO3","SECRETARIA_DE_SERVICIOS_PUBLICOS_Y_MEDIO_AMBIENTE","DIRECCION DE SALUD AMBIENTAL Y CAMBIO CLIMATICO",{"$f":"COUNTIF($D$4:D192,D192:D192)","v":3},"Registro De Fuentes Fijas Municipales","Porcentaje de avance en el registro de fuentes fijas ","Número de fuentes fijas registradas",14,20,"Lenin Torres Mondragón",3314697407,"Ltmondragon@hotmail.com","Revisado",null,null,null,null,null,{"$f":"SUM(P192:S192/J192)","v":0}]
["SECRETARIA_DE_SERVICIOS_PUBLICOS_Y_MEDIO_AMBIENTEDIRECCION DE SALUD AMBIENTAL Y CAMBIO CLIMATICO4Servicio de dictaminación ambiental","SECRETARIA_DE_SERVICIOS_PUBLICOS_Y_MEDIO_AMBIENTEDIRECCION DE SALUD AMBIENTAL Y CAMBIO CLIMATICO4","SECRETARIA_DE_SERVICIOS_PUBLICOS_Y_MEDIO_AMBIENTE","DIRECCION DE SALUD AMBIENTAL Y CAMBIO CLIMATICO",{"$f":"COUNTIF($D$4:D193,D193:D193)","v":4},"Servicio de dictaminación ambiental","Porcentaje de dictaminaciones ambientales evaluadas ","Número de dictaminaciones evaluadas",115,130,"Lenin Torres Mondragón",3314697407,"Ltmondragon@hotmail.com","Revisado",null,null,null,null,null,{"$f":"SUM(P193:S193/J193)","v":0}]
["SECRETARIA_DE_SERVICIOS_PUBLICOS_Y_MEDIO_AMBIENTEDIRECCION DE SALUD AMBIENTAL Y CAMBIO CLIMATICO5Denuncia Ambiental Ciudadana","SECRETARIA_DE_SERVICIOS_PUBLICOS_Y_MEDIO_AMBIENTEDIRECCION DE SALUD AMBIENTAL Y CAMBIO CLIMATICO5","SECRETARIA_DE_SERVICIOS_PUBLICOS_Y_MEDIO_AMBIENTE","DIRECCION DE SALUD AMBIENTAL Y CAMBIO CLIMATICO",{"$f":"COUNTIF($D$4:D194,D194:D194)","v":5},"Denuncia Ambiental Ciudadana","Porcentaje de denuncias recibidas y atendidas","Número de denuncias atendidas ",34,60,"Lenin Torres Mondragón",3314697407,"Ltmondragon@hotmail.com","Revisado",null,null,null,null,null,{"$f":"SUM(P194:S194/J194)","v":0}]
["SECRETARIA_DE_SERVICIOS_PUBLICOS_Y_MEDIO_AMBIENTEDIRECCION DE SALUD AMBIENTAL Y CAMBIO CLIMATICO6Retiro de bienes en estado de abandono en la vía pública","SECRETARIA_DE_SERVICIOS_PUBLICOS_Y_MEDIO_AMBIENTEDIRECCION DE SALUD AMBIENTAL Y CAMBIO CLIMATICO6","SECRETARIA_DE_SERVICIOS_PUBLICOS_Y_MEDIO_AMBIENTE","DIRECCION DE SALUD AMBIENTAL Y CAMBIO CLIMATICO",{"$f":"COUNTIF($D$4:D195,D195:D195)","v":6},"Retiro de bienes en estado de abandono en la vía pública"," Porcentaje de reportes de retiro de vehiculos en vía pública  atendidos ","Número de reportes atendidos ",45,50,"Lenin Torres Mondragón",3314697407,"Ltmondragon@hotmail.com","Revisado",null,null,null,null,null,{"$f":"SUM(P195:S195/J195)","v":0}]
["SECRETARIA_DE_SERVICIOS_PUBLICOS_Y_MEDIO_AMBIENTESUBDIRECCION DE SERVICIOS ECOSISTEMICOS Y GESTION DEL CAMBIO CLIMATICO DE\nPARQUES, JARDINES Y GESTIÓN\nDEL CAMBIO CLIMÁTICO1Operativo Mantenimiento De Áreas Verdes","SECRETARIA_DE_SERVICIOS_PUBLICOS_Y_MEDIO_AMBIENTESUBDIRECCION DE SERVICIOS ECOSISTEMICOS Y GESTION DEL CAMBIO CLIMATICO DE\nPARQUES, JARDINES Y GESTIÓN\nDEL CAMBIO CLIMÁTICO1","SECRETARIA_DE_SERVICIOS_PUBLICOS_Y_MEDIO_AMBIENTE","SUBDIRECCION DE SERVICIOS ECOSISTEMICOS Y GESTION DEL CAMBIO CLIMATICO DE\nPARQUES, JARDINES Y GESTIÓN\nDEL CAMBIO CLIMÁTICO",{"$f":"COUNTIF($D$4:D196,D196:D196)","v":1},"Operativo Mantenimiento De Áreas Verdes","Porcentaje de áreas verdes pertenecientes al Municipio de San Pedro Tlaquepaque, intervenidas en mts2, con mantenimiento ","Número de áreas verdes intervenidas en m2 ",9000000,9500000,"Maricruz Martínez Macias",3314446874,"maricruzm057@gmail.com","Revisado",null,null,null,null,null,{"$f":"SUM(P196:S196/J196)","v":0}]
["SECRETARIA_DE_SERVICIOS_PUBLICOS_Y_MEDIO_AMBIENTESUBDIRECCION DE SERVICIOS ECOSISTEMICOS Y GESTION DEL CAMBIO CLIMATICO DE\nPARQUES, JARDINES Y GESTIÓN\nDEL CAMBIO CLIMÁTICO2Operativo De Podas Preventivas","SECRETARIA_DE_SERVICIOS_PUBLICOS_Y_MEDIO_AMBIENTESUBDIRECCION DE SERVICIOS ECOSISTEMICOS Y GESTION DEL CAMBIO CLIMATICO DE\nPARQUES, JARDINES Y GESTIÓN\nDEL CAMBIO CLIMÁTICO2","SECRETARIA_DE_SERVICIOS_PUBLICOS_Y_MEDIO_AMBIENTE","SUBDIRECCION DE SERVICIOS ECOSISTEMICOS Y GESTION DEL CAMBIO CLIMATICO DE\nPARQUES, JARDINES Y GESTIÓN\nDEL CAMBIO CLIMÁTICO",2,"Operativo De Podas Preventivas","Porcentaje de podas en nuestras áreas municipales, realizadas ","Número total de podas realizadas ",6000,6000,"Maricruz Martínez Macias",3314446874,"maricruzm057@gmail.com","Revisado",null,null,null,null,null,{"$f":"SUM(P197:S197/J197)","v":0}]
[{"$f":"B198&F198","v":"SECRETARIA_DE_SERVICIOS_PUBLICOS_Y_MEDIO_AMBIENTESUBDIRECCION DE SERVICIOS ECOSISTEMICOS Y GESTION DEL CAMBIO CLIMATICO DE\nPARQUES, JARDINES Y GESTIÓN\nDEL CAMBIO CLIMÁTICO3Operativo de Reforestación"},{"$f":"C198&D198&E198","v":"SECRETARIA_DE_SERVICIOS_PUBLICOS_Y_MEDIO_AMBIENTESUBDIRECCION DE SERVICIOS ECOSISTEMICOS Y GESTION DEL CAMBIO CLIMATICO DE\nPARQUES, JARDINES Y GESTIÓN\nDEL CAMBIO CLIMÁTICO3"},"SECRETARIA_DE_SERVICIOS_PUBLICOS_Y_MEDIO_AMBIENTE","SUBDIRECCION DE SERVICIOS ECOSISTEMICOS Y GESTION DEL CAMBIO CLIMATICO DE\nPARQUES, JARDINES Y GESTIÓN\nDEL CAMBIO CLIMÁTICO",3,"Operativo de Reforestación","Porcentaje de árboles reforestados en áreas verdes, camellones, parques y jardines.","Número de árboles reforestados ",2000,2000,"Maricruz Martínez Macias",3314446874,"maricruzm057@gmail.com","Revisado/Agregado",null,null,null,null,null,{"$f":"SUM(P198:S198/J198)","v":0}]
["SECRETARIA_DE_SERVICIOS_PUBLICOS_Y_MEDIO_AMBIENTESUBDIRECCION DE SERVICIOS ECOSISTEMICOS Y GESTION DEL CAMBIO CLIMATICO DE\nPARQUES, JARDINES Y GESTIÓN\nDEL CAMBIO CLIMÁTICO4Trituración de material orgánico para la elaboración de composta","SECRETARIA_DE_SERVICIOS_PUBLICOS_Y_MEDIO_AMBIENTESUBDIRECCION DE SERVICIOS ECOSISTEMICOS Y GESTION DEL CAMBIO CLIMATICO DE\nPARQUES, JARDINES Y GESTIÓN\nDEL CAMBIO CLIMÁTICO4","SECRETARIA_DE_SERVICIOS_PUBLICOS_Y_MEDIO_AMBIENTE","SUBDIRECCION DE SERVICIOS ECOSISTEMICOS Y GESTION DEL CAMBIO CLIMATICO DE\nPARQUES, JARDINES Y GESTIÓN\nDEL CAMBIO CLIMÁTICO",4,"Trituración de material orgánico para la elaboración de composta","Porcentaje de viajes de ramas resultantes de podas y derribos, realizados","Número de viajes realizados ",900,900,"Maricruz Martínez Macias",3314446874,"maricruzm057@gmail.com","Revisado",null,null,null,null,null,{"$f":"SUM(P199:S199/J199)","v":0}]
["SECRETARIA_DE_SERVICIOS_PUBLICOS_Y_MEDIO_AMBIENTESUBDIRECCION DE SERVICIOS ECOSISTEMICOS Y GESTION DEL CAMBIO CLIMATICO DE\nPARQUES, JARDINES Y GESTIÓN\nDEL CAMBIO CLIMÁTICO5Adopta un árbol y dale vida al planeta","SECRETARIA_DE_SERVICIOS_PUBLICOS_Y_MEDIO_AMBIENTESUBDIRECCION DE SERVICIOS ECOSISTEMICOS Y GESTION DEL CAMBIO CLIMATICO DE\nPARQUES, JARDINES Y GESTIÓN\nDEL CAMBIO CLIMÁTICO5","SECRETARIA_DE_SERVICIOS_PUBLICOS_Y_MEDIO_AMBIENTE","SUBDIRECCION DE SERVICIOS ECOSISTEMICOS Y GESTION DEL CAMBIO CLIMATICO DE\nPARQUES, JARDINES Y GESTIÓN\nDEL CAMBIO CLIMÁTICO",5,"Adopta un árbol y dale vida al planeta","Porcentaje de árboles donados ","Número de árboles  donados ",7000,7000,"Maricruz Martínez Macias",3314446874,"maricruzm057@gmail.com","Revisado",null,null,null,null,null,{"$f":"SUM(P200:S200/J200)","v":0}]
["SECRETARIA_DE_SERVICIOS_PUBLICOS_Y_MEDIO_AMBIENTESUBDIRECCION DE SERVICIOS ECOSISTEMICOS Y GESTION DEL CAMBIO CLIMATICO DE\nPARQUES, JARDINES Y GESTIÓN\nDEL CAMBIO CLIMÁTICO6Adopta un árbol y dale vida al planeta","SECRETARIA_DE_SERVICIOS_PUBLICOS_Y_MEDIO_AMBIENTESUBDIRECCION DE SERVICIOS ECOSISTEMICOS Y GESTION DEL CAMBIO CLIMATICO DE\nPARQUES, JARDINES Y GESTIÓN\nDEL CAMBIO CLIMÁTICO6","SECRETARIA_DE_SERVICIOS_PUBLICOS_Y_MEDIO_AMBIENTE","SUBDIRECCION DE SERVICIOS ECOSISTEMICOS Y GESTION DEL CAMBIO CLIMATICO DE\nPARQUES, JARDINES Y GESTIÓN\nDEL CAMBIO CLIMÁTICO",6,"Adopta un árbol y dale vida al planeta","Porcentaje de escuelas visitadas ","Número de escuelas visitadas ",30,30,"Maricruz Martínez Macias",3314446874,"maricruzm057@gmail.com","Revisado",null,null,null,null,null,{"$f":"SUM(P201:S201/J201)","v":0}]
["SECRETARIA_DE_SERVICIOS_PUBLICOS_Y_MEDIO_AMBIENTESUBDIRECCION DE SERVICIOS ECOSISTEMICOS Y GESTION DEL CAMBIO CLIMATICO DE\nPARQUES, JARDINES Y GESTIÓN\nDEL CAMBIO CLIMÁTICO7Operativos de derribos secos","SECRETARIA_DE_SERVICIOS_PUBLICOS_Y_MEDIO_AMBIENTESUBDIRECCION DE SERVICIOS ECOSISTEMICOS Y GESTION DEL CAMBIO CLIMATICO DE\nPARQUES, JARDINES Y GESTIÓN\nDEL CAMBIO CLIMÁTICO7","SECRETARIA_DE_SERVICIOS_PUBLICOS_Y_MEDIO_AMBIENTE","SUBDIRECCION DE SERVICIOS ECOSISTEMICOS Y GESTION DEL CAMBIO CLIMATICO DE\nPARQUES, JARDINES Y GESTIÓN\nDEL CAMBIO CLIMÁTICO",7,"Operativos de derribos secos","Porcentaje de árboles secos con riesgo latente, derribados ","Número de árboles  derribados",300,300,"Maricruz Martínez Macias",3314446874,"maricruzm057@gmail.com","Revisado",null,null,null,null,null,{"$f":"SUM(P202:S202/J202)","v":0}]
["SECRETARIA_DE_SALUDDIRECCION DE URGENCIAS MEDICAS1Atención Urgente En Sala De Choque","SECRETARIA_DE_SALUDDIRECCION DE URGENCIAS MEDICAS1","SECRETARIA_DE_SALUD","DIRECCION DE URGENCIAS MEDICAS",1,"Atención Urgente En Sala De Choque","Porcentaje de etapas de gestión para el equipamiento de sala de choques","número de etapas de gestión realizadas",0,6,"FRANCISCO SANCHEZ IBARRA",3310620656,"lic.fcosanchezi@gmail.com","Revisado",null,null,null,null,null,{"$f":"SUM(P203:S203/J203)","v":0}]
["SECRETARIA_DE_SALUDDIRECCION DE URGENCIAS MEDICAS2Atención Urgente En Sala De Choque","SECRETARIA_DE_SALUDDIRECCION DE URGENCIAS MEDICAS2","SECRETARIA_DE_SALUD","DIRECCION DE URGENCIAS MEDICAS",{"$f":"COUNTIF($D$4:D204,D204:D204)","v":2},"Atención Urgente En Sala De Choque","Porcentade de atenciones  bribdadas en sala de choques","número de atenciónes brindadas ",0,430,"FRANCISCO SANCHEZ IBARRA",3310620656,"lic.fcosanchezi@gmail.com",null,null,null,null,null,null,{"$f":"SUM(P204:S204/J204)","v":0}]
["SECRETARIA_DE_SALUDSUBDIRECCION DE ENSEÑANZA1Enseñanza Continua","SECRETARIA_DE_SALUDSUBDIRECCION DE ENSEÑANZA1","SECRETARIA_DE_SALUD","SUBDIRECCION DE ENSEÑANZA",{"$f":"COUNTIF($D$4:D205,D205:D205)","v":1},"Enseñanza Continua","Porcentaje de sesiones de Enseñanza Continua realizadas","Número de sesiones realizadas",0,12,"MARIA YOLANDA GUIZAR TORRES",3311108422,"drayolanda2@gmail.com",null,null,null,null,null,null,{"$f":"SUM(P205:S205/J205)","v":0}]
["SECRETARIA_DE_SALUDDIRECCION DE SALUD PUBLICA1Ferias de la Salud Tlaquepaque","SECRETARIA_DE_SALUDDIRECCION DE SALUD PUBLICA1","SECRETARIA_DE_SALUD","DIRECCION DE SALUD PUBLICA",{"$f":"COUNTIF($D$4:D206,D206:D206)","v":1},"Ferias de la Salud Tlaquepaque","Porcentaje de Ferías de la Salud para llegar a la poblacion sin acceso a la seguridad social, realizadas","número de ferias realizadas",43,46,"MARIO ARTURO SALINAS HERNANDEZ",3321233710,"saludpublicatlaq@gmail.com",null,null,null,null,null,null,{"$f":"SUM(P206:S206/J206)","v":0}]
["SECRETARIA_DE_SALUDDIRECCION DE SALUD PUBLICA2Ferias de la Salud Tlaquepaque","SECRETARIA_DE_SALUDDIRECCION DE SALUD PUBLICA2","SECRETARIA_DE_SALUD","DIRECCION DE SALUD PUBLICA",{"$f":"COUNTIF($D$4:D207,D207:D207)","v":2},"Ferias de la Salud Tlaquepaque","Porcentaje de personas atendidas, mediantes las Ferías de la Salud","Número de personas atendidas",4470,5000,"MARIO ARTURO SALINAS HERNANDEZ",3321233710,"saludpublicatlaq@gmail.com",null,null,null,null,null,null,{"$f":"SUM(P207:S207/J207)","v":0}]
[{"$f":"B208&F208","v":"SECRETARIA_DE_SALUDDEPARTAMENTO DE TRABAJO SOCIAL1Vinculación De Asistencia Social"},"SECRETARIA_DE_SALUDDEPARTAMENTO DE TRABAJO SOCIAL1","SECRETARIA_DE_SALUD","DEPARTAMENTO DE TRABAJO SOCIAL",{"$f":"COUNTIF($D$4:D208,D208:D208)","v":1},"Vinculación De Asistencia Social","Porcentaje de personas atendidas y canalizadas para recibir una atención completa","número de personas atendidas ",0,120,"YENICA ODALIS MARTINEZ DELGADILLO",3326674946,"yenikaodalys0808@icloud.com",null,null,null,null,null,null,{"$f":"SUM(P208:S208/J208)","v":0}]
["SECRETARIA_DE_SALUDSUBDIRECCION DE SALUD ANIMAL1Campañas de esterilización y vacunación antirrábica gratuitas","SECRETARIA_DE_SALUDSUBDIRECCION DE SALUD ANIMAL1","SECRETARIA_DE_SALUD","SUBDIRECCION DE SALUD ANIMAL",{"$f":"COUNTIF($D$4:D209,D209:D209)","v":1},"Campañas de esterilización y vacunación antirrábica gratuitas","Porcentaje de campañas de esterilización y vacunación antirrábica gratuitas, realizadas","Número de campañas realizadas ",0,48,"M.V.Z. Sandra Guadalupe León Becerra","3336007145- 3333679060","saludanimaltlq@gmail.com",null,"Eficiencia, Eficacia y de Calidad ",6,null,null,null,{"$f":"SUM(P209:S209/J209)","v":0.125},"Se realizaron 5 campañas de vacunacion contra la rabia, y 1 de esterilizacion  en las colonias del municipio de San Pedro Tlaquepaque "]
["SECRETARIA_DE_OBRAS_PUBLICASDIRECCION DE CONSTRUCCION Y MANTENIMIENTO1Programa De Urbanización","SECRETARIA_DE_OBRAS_PUBLICASDIRECCION DE CONSTRUCCION Y MANTENIMIENTO1","SECRETARIA_DE_OBRAS_PUBLICAS","DIRECCION DE CONSTRUCCION Y MANTENIMIENTO",{"$f":"COUNTIF($D$4:D210,D210:D210)","v":1},"Programa De Urbanización","Porcentaje en la realización y ejecución de obra pública, para mejoras del Municipio ","Número de Obras realizadas",240,250,"Lic. Gabriel Sánchez Niño",3311346549,"gabsan0202@gmail.com, laurapatyrb@hotmail.com, laura.rodrigueztlaquepaque.gob.mx",null,null,null,null,null,null,{"$f":"SUM(P210:S210/J210)","v":0}]
["SECRETARIA_DE_OBRAS_PUBLICASSUBDIRECCION DE MANTENIMIENTO1Intervenciones Al Entorno Urbano","SECRETARIA_DE_OBRAS_PUBLICASSUBDIRECCION DE MANTENIMIENTO1","SECRETARIA_DE_OBRAS_PUBLICAS","SUBDIRECCION DE MANTENIMIENTO",{"$f":"COUNTIF($D$4:D211,D211:D211)","v":1},"Intervenciones Al Entorno Urbano","Porcentaje de colonias intervenidas en atención a servicios generales al entorno urbano","N° colonias intervenidas",60,40,"ING. ABEL CASILLAS BENITES","33 38 38 82 60","mejoramiento.urbano.tlaquepaque@gmail.com",null,null,null,null,null,null,{"$f":"SUM(P211:S211/J211)","v":0}]
["SECRETARIA_DE_OBRAS_PUBLICASSUBDIRECCION DE MANTENIMIENTO2Señalización Horizontal y Vertical","SECRETARIA_DE_OBRAS_PUBLICASSUBDIRECCION DE MANTENIMIENTO2","SECRETARIA_DE_OBRAS_PUBLICAS","SUBDIRECCION DE MANTENIMIENTO",{"$f":"COUNTIF($D$4:D212,D212:D212)","v":2},"Señalización Horizontal y Vertical","Porcentaje de colonias intervenidas con señalización horizontal y vertical","N° colonias intervenidas",380,200,"ING. ABEL CASILLAS BENITES","33 38 38 82 60","mejoramiento.urbano.tlaquepaque@gmail.com",null,null,null,null,null,null,{"$f":"SUM(P212:S212/J212)","v":0}]
["SECRETARIA_DE_OBRAS_PUBLICASSUBDIRECCION DE MANTENIMIENTO3Programa Permanente De Mantenimiento De Vialidades","SECRETARIA_DE_OBRAS_PUBLICASSUBDIRECCION DE MANTENIMIENTO3","SECRETARIA_DE_OBRAS_PUBLICAS","SUBDIRECCION DE MANTENIMIENTO",{"$f":"COUNTIF($D$4:D213,D213:D213)","v":3},"Programa Permanente De Mantenimiento De Vialidades","Programa de mantenimiento permanente de mantenimiento.","metros cuadrados reparados en vialidades ",90000,90000,"Julio Geovanni Pamplona Nuño",3322856233,"mantenimientovialidadestlaq@gmail.com",null,null,null,null,null,null,{"$f":"SUM(P213:S213/J213)","v":0}]
["SECRETARIA_DE_OBRAS_PUBLICASSUBDIRECCION DE MANTENIMIENTO4Mantenimiento A Escuelas","SECRETARIA_DE_OBRAS_PUBLICASSUBDIRECCION DE MANTENIMIENTO4","SECRETARIA_DE_OBRAS_PUBLICAS","SUBDIRECCION DE MANTENIMIENTO",{"$f":"COUNTIF($D$4:D214,D214:D214)","v":4},"Mantenimiento A Escuelas","Porcentaje de solicitudes atendidas en planteles educativos ","número de solicitudes atendidas ",50,50,"Lucio Roberto Terrones Padilla",3320201117,"lucio.terronespadilla@gmail.com",null,null,null,null,null,null,{"$f":"SUM(P214:S214/J214)","v":0}]
["SECRETARIA_DE_OBRAS_PUBLICASSUBDIRECCION DE MANTENIMIENTO5Mantenimiento a Edificios y Espacios Públicos","SECRETARIA_DE_OBRAS_PUBLICASSUBDIRECCION DE MANTENIMIENTO5","SECRETARIA_DE_OBRAS_PUBLICAS","SUBDIRECCION DE MANTENIMIENTO",{"$f":"COUNTIF($D$4:D215,D215:D215)","v":5},"Mantenimiento a Edificios y Espacios Públicos","porcentaje de solicitudes atendidas  al Mantenimiento de Edificios y espacios públicos .","Solicitudes Atendidas",900,1000,"Francisco Velázquez Hernández",3316021128,"pakovel78@hotmail.com",null,null,null,null,null,null,{"$f":"SUM(P215:S215/J215)","v":0}]
["SECRETARIA_DE_OBRAS_PUBLICASDIRECCION DE PRESUPUESTOS Y CONTRATACION DE OBRA PUBLICA1Programa para la gestión sustentable de la infraestructura y movilidad segura.","SECRETARIA_DE_OBRAS_PUBLICASDIRECCION DE PRESUPUESTOS Y CONTRATACION DE OBRA PUBLICA1","SECRETARIA_DE_OBRAS_PUBLICAS","DIRECCION DE PRESUPUESTOS Y CONTRATACION DE OBRA PUBLICA",{"$f":"COUNTIF($D$4:D216,D216:D216)","v":1},"Programa para la gestión sustentable de la infraestructura y movilidad segura.","Porcentaje de espacios analizados para la elaboración de anteproyectos para la gestión sustentable de la infraestructura básica y movilidad en colonias prioritarias ","número de espacios analizados",0,140,"ING. EDMUNDO CANCINO PEREZ",3311514285,"edmundo.cancino@tlaquepaque.gob.mx / edcancino1010@gmail.com",null,null,null,null,null,null,{"$f":"SUM(P216:S216/J216)","v":0}]
["SECRETARIA_DE_OBRAS_PUBLICASDIRECCION DE PRESUPUESTOS Y CONTRATACION DE OBRA PUBLICA2Programa para la gestión sustentable de la infraestructura básica.",{"$f":"C217&D217&E217","v":"SECRETARIA_DE_OBRAS_PUBLICASDIRECCION DE PRESUPUESTOS Y CONTRATACION DE OBRA PUBLICA2"},"SECRETARIA_DE_OBRAS_PUBLICAS","DIRECCION DE PRESUPUESTOS Y CONTRATACION DE OBRA PUBLICA",{"$f":"COUNTIF($D$4:D217,D217:D217)","v":2},"Programa para la gestión sustentable de la infraestructura básica.","Porcentaje de proyectos elaborados para lal construcción o rehablilitación de la infraestructura básica en colonias prioritarias ","número de proyectos elaborados ",0,170,"ING. EDMUNDO CANCINO PEREZ",3311514285,"edmundo.cancino@tlaquepaque.gob.mx / edcancino1010@gmail.com",null,null,null,null,null,null,{"$f":"SUM(P217:S217/J217)","v":0}]
["SECRETARIA_DE_OBRAS_PUBLICASDIRECCION DE PRESUPUESTOS Y CONTRATACION DE OBRA PUBLICA3Programa para la recuperación del espacio público y regeneración del tejido social","SECRETARIA_DE_OBRAS_PUBLICASDIRECCION DE PRESUPUESTOS Y CONTRATACION DE OBRA PUBLICA3","SECRETARIA_DE_OBRAS_PUBLICAS","DIRECCION DE PRESUPUESTOS Y CONTRATACION DE OBRA PUBLICA",{"$f":"COUNTIF($D$4:D218,D218:D218)","v":3},"Programa para la recuperación del espacio público y regeneración del tejido social","Número de espacios analizados y estudios preliminares para la reconstrucción del tejido social en colonias prioritarias ","Espacios analizados",0,16,"ING. EDMUNDO CANCINO PEREZ",3311514285,"edmundo.cancino@tlaquepaque.gob.mx / edcancino1010@gmail.com",null,null,null,null,null,null,{"$f":"SUM(P218:S218/J218)","v":0}]
["SECRETARIA_DE_OBRAS_PUBLICASDIRECCION DE PRESUPUESTOS Y CONTRATACION DE OBRA PUBLICA4Programa Fortalecimiento institucional financiero y operativo, para la provisión de los servicios públicos municipales bajo criterios de calidad, eficiencia y oportunidad.","SECRETARIA_DE_OBRAS_PUBLICASDIRECCION DE PRESUPUESTOS Y CONTRATACION DE OBRA PUBLICA4","SECRETARIA_DE_OBRAS_PUBLICAS","DIRECCION DE PRESUPUESTOS Y CONTRATACION DE OBRA PUBLICA",{"$f":"COUNTIF($D$4:D219,D219:D219)","v":4},"Programa Fortalecimiento institucional financiero y operativo, para la provisión de los servicios públicos municipales bajo criterios de calidad, eficiencia y oportunidad.","Proyectos de Infraestructura Urbana de la más diversa índole","proyectos","-",6,"ING. EDMUNDO CANCINO PEREZ",3311514285,"edmundo.cancino@tlaquepaque.gob.mx / edcancino1010@gmail.com",null,null,null,null,null,null,{"$f":"SUM(P219:S219/J219)","v":0}]
["SECRETARIA_DE_OBRAS_PUBLICASSUBDIRECCION DE INSPECCION DE CONTROL DE LA EDIFICACION Y ORDENAMIENTO TERRITORIAL1Programa de Inspección y Vigilancia de Tramites y Licencias de Construcción.","SECRETARIA_DE_OBRAS_PUBLICASSUBDIRECCION DE INSPECCION DE CONTROL DE LA EDIFICACION Y ORDENAMIENTO TERRITORIAL1","SECRETARIA_DE_OBRAS_PUBLICAS","SUBDIRECCION DE INSPECCION DE CONTROL DE LA EDIFICACION Y ORDENAMIENTO TERRITORIAL",{"$f":"COUNTIF($D$4:D220,D220:D220)","v":1},"Programa de Inspección y Vigilancia de Tramites y Licencias de Construcción.","Porcentaje de visitas para verificar que cuenten con licencias de construcción, y  lo establecido en el Reglamento de Construcción, relizadas ","Número de Visitas realizadas",3000,3100,"Lic. María Rosalía Castillo Chávez","33-35-62-70-54 Extensión 2418","mercedesrobles162@gmail.com",null,null,null,null,null,null,{"$f":"SUM(P220:S220/J220)","v":0}]
["SECRETARIA_DE_OBRAS_PUBLICASSUBDIRECCION DE INSPECCION DE CONTROL DE LA EDIFICACION Y ORDENAMIENTO TERRITORIAL2Trámites y Servicios","SECRETARIA_DE_OBRAS_PUBLICASSUBDIRECCION DE INSPECCION DE CONTROL DE LA EDIFICACION Y ORDENAMIENTO TERRITORIAL2","SECRETARIA_DE_OBRAS_PUBLICAS","SUBDIRECCION DE INSPECCION DE CONTROL DE LA EDIFICACION Y ORDENAMIENTO TERRITORIAL",{"$f":"COUNTIF($D$4:D221,D221:D221)","v":2},"Trámites y Servicios","Porcentaje de trámites de licencias de construcción que coadyuvan a una gestión ordenada, realizados","número de trámites realizados ",1800,1850,"Lic. María Rosalía Castillo Chávez","33-35-62-70-54 Extensión 2418","mercedesrobles162@gmail.com",null,null,null,null,null,null,{"$f":"SUM(P221:S221/J221)","v":0}]
["SECRETARIA_DE_SEGURIDAD_Y_PROTECCION_CIUDADANADIRECCION ADMINISTRATIVA1Programa permanente de seguimiento para la administración eficiente de los recursos humanos y materiales de la Secretaría","SECRETARIA_DE_SEGURIDAD_Y_PROTECCION_CIUDADANADIRECCION ADMINISTRATIVA1","SECRETARIA_DE_SEGURIDAD_Y_PROTECCION_CIUDADANA","DIRECCION ADMINISTRATIVA",{"$f":"COUNTIF($D$4:D222,D222:D222)","v":1},"Programa permanente de seguimiento para la administración eficiente de los recursos humanos y materiales de la Secretaría","Porcentaje de etapas realizadas para el Programa permanente de seguimiento para la administración eficiente de los  Recursos Humanos y Materiales de la Comisaria  ","Número de etapas realizadas ",0,72,"Mtra. Juana Esmeralda Zamorano Pelayo",3329291913,"juana.zamorano@tlaquepaque.gob.mx",null,"EFICIENCIA",6,null,null,null,{"$f":"SUM(P222:S222/J222)","v":8.3333333333333329E-2},"La Dirección Administrativa durante el trimestre comprendido del 1 de octubre al 31 de diciembre del 2024, se cumplió con las 6 etapas establecidas para el seguimiento y conclusión de solicitudes realizadas a esta Dirección Administrativa donde se realizaron las siguientes actividades. La Jefatura de Recursos Humanos Durante el trimestre comprendido del 1 de octubre al 31 de diciembre del 2024 La Jefatura de Recursos Humanos de esta Secretaria de Seguridad y Protección Ciudadana de San Pedro Tlaquepaque realizo las actividades de Pre nómina, El pago de Nómina de las Quincenas correspondientes a los de julio, agosto y septiembre, así como los pagos de apoyo metropolitano, pagos de servicio y actividades extraordinarias correspondiente. Coordina él envió de periodos vacacionales en el caso de personal operativo en el periodo que corresponda, asistir al personal de incapacidad con el apoyo para realizar el traslado de su nómina o la recepción de incapacidades en su domicilio para realizar el trámite correspondiente, realizar la labor de levantamiento de incidencias cada quincena, llevar el control del personal realizando roles de personal de intendencia para cubrir todas nuestras áreas y realizar las labores de limpieza y saneamiento de las áreas, también realiza los informes que periodo a periodo se le envían al secretariado de seguridad pública del estado de Jalisco, así como la coordinación con la dirección Operativa para la constante capacitación del personal operativo. Área de Vehículos.  Los servicios atendidos durante el trimestre del 1 de octubre al 31 de diciembre del 2024 fueron un total de 483 Servicio Preventivos y reparaciones en general.  Área de Patrimonio. Durante el trimestre comprendido del 1 de octubre al 31 de diciembre del 2024, esta área realizo las siguientes acciones: Se realizaron la recolección de muebles en sector IV, UVI, Sector V por concepto de baja, así como del área de cabina, se realizaron los diversos traspasos de muebles entre las direcciones y jefaturas pertenecientes a la Secretaria, se realizaron los nuevos resguardos vehiculares del padrón vehicular de esta secretaria Mantenimiento. Dentro del trimestre correspondiente del 1 de octubre al 31 de diciembre del 2024 fueron las siguientes:Octubre: Se reparó portón eléctrico del sector 2, Se reparó fuga de agua en el sector 3 cambiando tubería y llaves de paso, se le dio mantenimiento a 10 aires acondicionados en el área administrativa, Dirección operativa y Jurídica.Noviembre:  Se verificaron los módulos itinerantes y se reubico un módulo en la central camionera cambiando instalaciones eléctricas dándole mantenimiento a los mismos.Diciembre: Se cambiaron luminarias en parques de la victoria en el área UCIP, Se cambió instalación eléctrica y luminarias en las instalaciones de la UVI en san Pedrito, Se hizo la instalación eléctrica de los Aires acondicionados del Área Administrativa, Área Jurídica y Dirección operativa."]
["SECRETARIA_DE_SEGURIDAD_Y_PROTECCION_CIUDADANADIRECCION OPERATIVA1Certificación De Personal Y Oficiales Caninos K-9","SECRETARIA_DE_SEGURIDAD_Y_PROTECCION_CIUDADANADIRECCION OPERATIVA1","SECRETARIA_DE_SEGURIDAD_Y_PROTECCION_CIUDADANA","DIRECCION OPERATIVA",{"$f":"COUNTIF($D$4:D223,D223:D223)","v":1},"Certificación De Personal Y Oficiales Caninos K-9","Porcentaje de personal operativo y oficiales caninos certificados ante la Secretaría de Seguridad Pública con Cedula Profesional.","Número de personal operativo y oficilaes caninos certificados",0,4,"JUAN CARLOS ROMO DAVALOS","33-33-45-59-24","cpm.operativo.tlq@gmail.com",null,null,null,null,null,null,{"$f":"SUM(P223:S223/J223)","v":0}]
["SECRETARIA_DE_SEGURIDAD_Y_PROTECCION_CIUDADANADIRECCION OPERATIVA2Unidad de Proximidad Policial","SECRETARIA_DE_SEGURIDAD_Y_PROTECCION_CIUDADANADIRECCION OPERATIVA2","SECRETARIA_DE_SEGURIDAD_Y_PROTECCION_CIUDADANA","DIRECCION OPERATIVA",{"$f":"COUNTIF($D$4:D224,D224:D224)","v":2},"Unidad de Proximidad Policial","Pocentaje de patrullajes de vigilancia y proximidad ciudadana en colonias con mayor incidencia delictiva, realizados ","Número de patrullajes de vigilancia y proximidad ciudadana realizados ",60,120,"JUAN CARLOS ROMO DAVALOS","33-33-45-59-24","cpm.operativo.tlq@gmail.com","Revisado",null,null,null,null,null,{"$f":"SUM(P224:S224/J224)","v":0}]
["SECRETARIA_DE_SEGURIDAD_Y_PROTECCION_CIUDADANADIRECCION OPERATIVA3Unidad de Proximidad Policial","SECRETARIA_DE_SEGURIDAD_Y_PROTECCION_CIUDADANADIRECCION OPERATIVA3","SECRETARIA_DE_SEGURIDAD_Y_PROTECCION_CIUDADANA","DIRECCION OPERATIVA",{"$f":"COUNTIF($D$4:D225,D225:D225)","v":3},"Unidad de Proximidad Policial","Porcentaje de planteles atendidos mediante entrevistas para conocer las necesidades en materia de seguridad","Número de planteles  atendidos",30,200,"JUAN CARLOS ROMO DAVALOS","33-33-45-59-24","cpm.operativo.tlq@gmail.com","Revisado",null,null,null,null,null,{"$f":"SUM(P225:S225/J225)","v":0}]
["SECRETARIA_DE_SEGURIDAD_Y_PROTECCION_CIUDADANADIRECCION OPERATIVA4Unidad de Proximidad Policial","SECRETARIA_DE_SEGURIDAD_Y_PROTECCION_CIUDADANADIRECCION OPERATIVA4","SECRETARIA_DE_SEGURIDAD_Y_PROTECCION_CIUDADANA","DIRECCION OPERATIVA",{"$f":"COUNTIF($D$4:D226,D226:D226)","v":4},"Unidad de Proximidad Policial","Porcentaje de escuelas atendidas mediante pláticas preventivas.","Número de escuelas atendidas",60,80,"JUAN CARLOS ROMO DAVALOS","33-33-45-59-24","cpm.operativo.tlq@gmail.com","Revisado",null,null,null,null,null,{"$f":"SUM(P226:S226/J226)","v":0}]
["SECRETARIA_DE_SEGURIDAD_Y_PROTECCION_CIUDADANADIRECCION DE ATENCION A LA VIOLENCIA DE GENERO1Atención a las violencias en el ámbito familiar y seguimiento a Medidas/Ordenes de Protección emitidas en razón de Género.","SECRETARIA_DE_SEGURIDAD_Y_PROTECCION_CIUDADANADIRECCION DE ATENCION A LA VIOLENCIA DE GENERO1","SECRETARIA_DE_SEGURIDAD_Y_PROTECCION_CIUDADANA","DIRECCION DE ATENCION A LA VIOLENCIA DE GENERO",{"$f":"COUNTIF($D$4:D227,D227:D227)","v":1},"Atención a las violencias en el ámbito familiar y seguimiento a Medidas/Ordenes de Protección emitidas en razón de Género.","Porcentaje de atenciones realizadas en la Dirección de Atención a la Violencia de Género.","Número de atenciones realizadas",1500,3000,"Irma Araceli Gálvez Espinoza",3336000899,"uvi.opertivo@hotmail.com","Revisado",null,null,null,null,null,{"$f":"SUM(P227:S227/J227)","v":0}]
["SECRETARIA_DE_SEGURIDAD_Y_PROTECCION_CIUDADANADIRECCION DE ATENCION A LA VIOLENCIA DE GENERO2Prevención Comunitaria de las Violencias en el ámbito familiar y por razón de género.","SECRETARIA_DE_SEGURIDAD_Y_PROTECCION_CIUDADANADIRECCION DE ATENCION A LA VIOLENCIA DE GENERO2","SECRETARIA_DE_SEGURIDAD_Y_PROTECCION_CIUDADANA","DIRECCION DE ATENCION A LA VIOLENCIA DE GENERO",{"$f":"COUNTIF($D$4:D228,D228:D228)","v":2},"Prevención Comunitaria de las Violencias en el ámbito familiar y por razón de género.","Porcentaje de estudiantes atendidos mendiante el Programa de Prevención Comunitaria de las Violencias ","Número de estudiantes atendidos ",1500,3500,"Irma Araceli Gálvez Espinoza",3336000899,"uvi.opertivo@hotmail.com","Revisado",null,null,null,null,null,{"$f":"SUM(P228:S228/J228)","v":0}]
["SECRETARIA_DE_SEGURIDAD_Y_PROTECCION_CIUDADANASUBDIRECCION DE VIALIDAD1Programa Volanta","SECRETARIA_DE_SEGURIDAD_Y_PROTECCION_CIUDADANASUBDIRECCION DE VIALIDAD1","SECRETARIA_DE_SEGURIDAD_Y_PROTECCION_CIUDADANA","SUBDIRECCION DE VIALIDAD",{"$f":"COUNTIF($D$4:D229,D229:D229)","v":1},"Programa Volanta","Porcentaje de volantas de renovación de licencias de chofer y automovilista, realizadas ","número de volantas realizadas ",0,3,"Rafael Cristóbal Orozco Miramontes",3333455908,"rafael.orozco@tlaquepaque.gob.mx","Revisado",null,null,null,null,null,{"$f":"SUM(P229:S229/J229)","v":0}]
["SECRETARIA_DE_SEGURIDAD_Y_PROTECCION_CIUDADANADIRECCION DE BOMBEROS Y PROTECCION CIVIL1Programa del consejo municipal de Protección Civil de San Pedro Tlaquepaque","SECRETARIA_DE_SEGURIDAD_Y_PROTECCION_CIUDADANADIRECCION DE BOMBEROS Y PROTECCION CIVIL1","SECRETARIA_DE_SEGURIDAD_Y_PROTECCION_CIUDADANA","DIRECCION DE BOMBEROS Y PROTECCION CIVIL",{"$f":"COUNTIF($D$4:D230,D230:D230)","v":1},"Programa del consejo municipal de Protección Civil de San Pedro Tlaquepaque","Porcentaje de Sesiones del Consejo Municipal de Proteccion Civil, realizadas","Sesiones realizadas",4,4,"Dr. Luis Enrique Mederos Flores",3338372284,"pcyb.tlaquepaque@gmail.com","Revisado",null,null,null,null,null,{"$f":"SUM(P230:S230/J230)","v":0}]
["SECRETARIA_DE_SEGURIDAD_Y_PROTECCION_CIUDADANADIRECCION DE BOMBEROS Y PROTECCION CIVIL2Programa De Actualización Del Atlas Municipal De Riesgos De San Pedro Tlaquepaque","SECRETARIA_DE_SEGURIDAD_Y_PROTECCION_CIUDADANADIRECCION DE BOMBEROS Y PROTECCION CIVIL2","SECRETARIA_DE_SEGURIDAD_Y_PROTECCION_CIUDADANA","DIRECCION DE BOMBEROS Y PROTECCION CIVIL",{"$f":"COUNTIF($D$4:D231,D231:D231)","v":2},"Programa De Actualización Del Atlas Municipal De Riesgos De San Pedro Tlaquepaque","Porcentaje de avance de las etapas de gestión de la actualización del Atlas de riesgos","Número de etapas de gestión realizadas",0,3,"Lic. José Luis López Vizcarra",3317454286,"jluislvizcarra2015@gmail.com","Revisado",null,null,null,null,null,{"$f":"SUM(P231:S231/J231)","v":0}]
["SECRETARIA_DE_SEGURIDAD_Y_PROTECCION_CIUDADANASUBDIRECCION OPERATIVA1Programa permanente de operativos de prevención de accidentes","SECRETARIA_DE_SEGURIDAD_Y_PROTECCION_CIUDADANASUBDIRECCION OPERATIVA1","SECRETARIA_DE_SEGURIDAD_Y_PROTECCION_CIUDADANA","SUBDIRECCION OPERATIVA",{"$f":"COUNTIF($D$4:D232,D232:D232)","v":1},"Programa permanente de operativos de prevención de accidentes","Porcentaje de operativos  para la prevención de accidentes, implemetados","número de operativos implementados",555,1000,"Cmte. Edgardo Poe Morales",3318286148,"ninopoe@hotmail.com",null,null,null,null,null,null,{"$f":"SUM(P232:S232/J232)","v":0}]
["SECRETARIA_DE_SEGURIDAD_Y_PROTECCION_CIUDADANASUBDIRECCION OPERATIVA2Programa permanente de auxilio a la población para casos de emergencia y/o desastres en San Pedro Tlaquepaque","SECRETARIA_DE_SEGURIDAD_Y_PROTECCION_CIUDADANASUBDIRECCION OPERATIVA2","SECRETARIA_DE_SEGURIDAD_Y_PROTECCION_CIUDADANA","SUBDIRECCION OPERATIVA",{"$f":"COUNTIF($D$4:D233,D233:D233)","v":2},"Programa permanente de auxilio a la población para casos de emergencia y/o desastres en San Pedro Tlaquepaque","Porcentaje de atenciones a emergencias ordinarias, realizadas ","Número de atenciones realizadas",0,15000,"Cmte. Edgardo Poe Morales",3318286148,"ninopoe@hotmail.com",null,null,null,null,null,null,{"$f":"SUM(P233:S233/J233)","v":0}]
["SECRETARIA_DE_SEGURIDAD_Y_PROTECCION_CIUDADANASUBDIRECCION DE GESTION GENERAL DEL RIESGO1Programa de evaluación y dictaminación de riesgos hidrometeorológicos","SECRETARIA_DE_SEGURIDAD_Y_PROTECCION_CIUDADANASUBDIRECCION DE GESTION GENERAL DEL RIESGO1","SECRETARIA_DE_SEGURIDAD_Y_PROTECCION_CIUDADANA","SUBDIRECCION DE GESTION GENERAL DEL RIESGO",{"$f":"COUNTIF($D$4:D234,D234:D234)","v":1},"Programa de evaluación y dictaminación de riesgos hidrometeorológicos","Porcentaje de etapas de preparación y actualización del censo de población e información de puntos y polígonos de zonas con riesgo de inundación, realizadas","Número de etapas realizadas ",0,3,"Arq. Jorge Casarrubias Segura",3312191677,"casarrubiassegurajorge@gmail.com",null,null,null,null,null,null,{"$f":"SUM(P234:S234/J234)","v":0}]
["SECRETARIA_DE_SEGURIDAD_Y_PROTECCION_CIUDADANASUBDIRECCION DE GESTION GENERAL DEL RIESGO2Programa de evaluación y dictaminación de riesgos hidrometeorológicos","SECRETARIA_DE_SEGURIDAD_Y_PROTECCION_CIUDADANASUBDIRECCION DE GESTION GENERAL DEL RIESGO2","SECRETARIA_DE_SEGURIDAD_Y_PROTECCION_CIUDADANA","SUBDIRECCION DE GESTION GENERAL DEL RIESGO",{"$f":"COUNTIF($D$4:D235,D235:D235)","v":2},"Programa de evaluación y dictaminación de riesgos hidrometeorológicos","Porcentaje de apercibimientos y notificaciones realizados ","Número de apercibimientos realizados",0,700,"Arq. Jorge Casarrubias Segura",3312191677,"casarrubiassegurajorge@gmail.com",null,null,null,null,null,null,{"$f":"SUM(P235:S235/J235)","v":0}]
["SECRETARIA_DE_SEGURIDAD_Y_PROTECCION_CIUDADANASUBDIRECCION DE GESTION GENERAL DEL RIESGO3Programa de Gestión Integral del Riesgo mediante visitas de inspección a inmuebles","SECRETARIA_DE_SEGURIDAD_Y_PROTECCION_CIUDADANASUBDIRECCION DE GESTION GENERAL DEL RIESGO3","SECRETARIA_DE_SEGURIDAD_Y_PROTECCION_CIUDADANA","SUBDIRECCION DE GESTION GENERAL DEL RIESGO",{"$f":"COUNTIF($D$4:D236,D236:D236)","v":3},"Programa de Gestión Integral del Riesgo mediante visitas de inspección a inmuebles","Porcentaje de visitas de inspección  al ámbito público, privado y social por solicitud, realizadas","número de visitas de inspección realizadas",1170,1000,"Arq. Jorge Casarrubias Segura",3312191677,"casarrubiassegurajorge@gmail.com","Revisado",null,null,null,null,null,{"$f":"SUM(P236:S236/J236)","v":0}]
["SECRETARIA_DE_SEGURIDAD_Y_PROTECCION_CIUDADANASUBDIRECCION DE GESTION GENERAL DEL RIESGO4Programa de Gestión Integral del Riesgo mediante visitas de inspección a inmuebles","SECRETARIA_DE_SEGURIDAD_Y_PROTECCION_CIUDADANASUBDIRECCION DE GESTION GENERAL DEL RIESGO4","SECRETARIA_DE_SEGURIDAD_Y_PROTECCION_CIUDADANA","SUBDIRECCION DE GESTION GENERAL DEL RIESGO",{"$f":"COUNTIF($D$4:D237,D237:D237)","v":4},"Programa de Gestión Integral del Riesgo mediante visitas de inspección a inmuebles","Porcentaje de Informes de visitas de inspección por operativos extraordinarios, realizados","número de informes realizados",0,7,"Arq. Jorge Casarrubias Segura",3312191677,"casarrubiassegurajorge@gmail.com","Revisado",null,null,null,null,null,{"$f":"SUM(P237:S237/J237)","v":0}]
["SECRETARIA_DE_SEGURIDAD_Y_PROTECCION_CIUDADANASUBDIRECCION DE GESTION GENERAL DEL RIESGO5Programa de Gestión Integral del Riesgo mediante visitas de inspección a inmuebles","SECRETARIA_DE_SEGURIDAD_Y_PROTECCION_CIUDADANASUBDIRECCION DE GESTION GENERAL DEL RIESGO5","SECRETARIA_DE_SEGURIDAD_Y_PROTECCION_CIUDADANA","SUBDIRECCION DE GESTION GENERAL DEL RIESGO",{"$f":"COUNTIF($D$4:D238,D238:D238)","v":5},"Programa de Gestión Integral del Riesgo mediante visitas de inspección a inmuebles","Porcentaje de asesoría técnicas brindadas en materia de gestión integral del riesgo, mediante la atención a la ciudadanía","Asesorías técnicas a la ciudadanía",2457,10000,"Arq. Jorge Casarrubias Segura",3312191677,"casarrubiassegurajorge@gmail.com","Revisado",null,null,null,null,null,{"$f":"SUM(P238:S238/J238)","v":0}]
["SECRETARIA_DE_SEGURIDAD_Y_PROTECCION_CIUDADANADEPARTAMENTO DE AREA DE PREVENCION1Programa permanente de prevención de riesgos mediante la capacitación a la población en general","SECRETARIA_DE_SEGURIDAD_Y_PROTECCION_CIUDADANADEPARTAMENTO DE AREA DE PREVENCION1","SECRETARIA_DE_SEGURIDAD_Y_PROTECCION_CIUDADANA","DEPARTAMENTO DE AREA DE PREVENCION",{"$f":"COUNTIF($D$4:D239,D239:D239)","v":1},"Programa permanente de prevención de riesgos mediante la capacitación a la población en general","Porcentaje de personas capacitadas mediante el Programa de Protección Civil en mi escuela","Número de personas capacitadas",17550,15000,"José Cruz Velazco Curiel",3326299149,"velazcocuriel@gmail.com","Revisado",null,null,null,null,null,{"$f":"SUM(P239:S239/J239)","v":0}]
["SECRETARIA_DE_SEGURIDAD_Y_PROTECCION_CIUDADANADEPARTAMENTO DE AREA DE PREVENCION2Programa permanente de prevención de riesgos mediante la capacitación a la población en general","SECRETARIA_DE_SEGURIDAD_Y_PROTECCION_CIUDADANADEPARTAMENTO DE AREA DE PREVENCION2","SECRETARIA_DE_SEGURIDAD_Y_PROTECCION_CIUDADANA","DEPARTAMENTO DE AREA DE PREVENCION",{"$f":"COUNTIF($D$4:D240,D240:D240)","v":2},"Programa permanente de prevención de riesgos mediante la capacitación a la población en general","Porcentaje de personas capacitadas mediante el Programa de formacion de brigadas internas de proteccion civil en los centros de trabajo","Número de personas capacitadas",1531,1000,"José Cruz Velazco Curiel",3326299149,"velazcocuriel@gmail.com",null,null,null,null,null,null,{"$f":"SUM(P240:S240/J240)","v":0}]
["SECRETARIA_DE_SEGURIDAD_Y_PROTECCION_CIUDADANADEPARTAMENTO DE AREA DE PREVENCION3Programa permanente de prevención de riesgos mediante la capacitación a la población en general","SECRETARIA_DE_SEGURIDAD_Y_PROTECCION_CIUDADANADEPARTAMENTO DE AREA DE PREVENCION3","SECRETARIA_DE_SEGURIDAD_Y_PROTECCION_CIUDADANA","DEPARTAMENTO DE AREA DE PREVENCION",{"$f":"COUNTIF($D$4:D241,D241:D241)","v":3},"Programa permanente de prevención de riesgos mediante la capacitación a la población en general","Porcentaje de personas capacitadas mediante el Programa de capacitacion a comunidades","Número de personas capacitadas ",2420,2000,"José Cruz Velazco Curiel",3326299149,"velazcocuriel@gmail.com",null,null,null,null,null,null,{"$f":"SUM(P241:S241/J241)","v":0}]
["SECRETARIA_DE_SEGURIDAD_Y_PROTECCION_CIUDADANADEPARTAMENTO DE AREA DE PREVENCION4Programa permanente de prevención de riesgos mediante la capacitación a la población en general","SECRETARIA_DE_SEGURIDAD_Y_PROTECCION_CIUDADANADEPARTAMENTO DE AREA DE PREVENCION4","SECRETARIA_DE_SEGURIDAD_Y_PROTECCION_CIUDADANA","DEPARTAMENTO DE AREA DE PREVENCION",{"$f":"COUNTIF($D$4:D242,D242:D242)","v":4},"Programa permanente de prevención de riesgos mediante la capacitación a la población en general","Porcentaje de Simulacro evaluados mediante el Programa de simulacros para evaluar la capacidad de respuesta de la población","Número de simulacros evaluados",164,100,"José Cruz Velazco Curiel",3326299149,"velazcocuriel@gmail.com",null,null,null,null,null,null,{"$f":"SUM(P242:S242/J242)","v":0}]
["SECRETARIA_DE_SEGURIDAD_Y_PROTECCION_CIUDADANADIRECCION DE BOMBEROS Y PROTECCION CIVIL3Programa de profesionalización, actualización, especializada y salud integral para el personal de la Dirección de Bomberos y Protección Civil","SECRETARIA_DE_SEGURIDAD_Y_PROTECCION_CIUDADANADIRECCION DE BOMBEROS Y PROTECCION CIVIL3","SECRETARIA_DE_SEGURIDAD_Y_PROTECCION_CIUDADANA","DIRECCION DE BOMBEROS Y PROTECCION CIVIL",{"$f":"COUNTIF($D$4:D243,D243:D243)","v":3},"Programa de profesionalización, actualización, especializada y salud integral para el personal de la Dirección de Bomberos y Protección Civil","Porcentaje de cursos recibidos para el personal adscrito a esta Dirección de Bomberos y Protección Civil","Número de cursos recibidos",0,41,"Lic. José Luis López Vizcarra",3317454286,"jluislvizcarra2015@gmail.com",null,null,null,null,null,null,{"$f":"SUM(P243:S243/J243)","v":0}]
["SECRETARIA_DE_SEGURIDAD_Y_PROTECCION_CIUDADANADIRECCION DE BOMBEROS Y PROTECCION CIVIL4Programa de profesionalización, actualización, especializada y salud integral para el personal de la Dirección de Bomberos y Protección Civil","SECRETARIA_DE_SEGURIDAD_Y_PROTECCION_CIUDADANADIRECCION DE BOMBEROS Y PROTECCION CIVIL4","SECRETARIA_DE_SEGURIDAD_Y_PROTECCION_CIUDADANA","DIRECCION DE BOMBEROS Y PROTECCION CIVIL",{"$f":"COUNTIF($D$4:D244,D244:D244)","v":4},"Programa de profesionalización, actualización, especializada y salud integral para el personal de la Dirección de Bomberos y Protección Civil","Porcentaje de atenciones y actividades de salud integral, realizadas","Número de atenciones y actividades realizadas",0,100,"Lic. José Luis López Vizcarra",3317454286,"jluislvizcarra2015@gmail.com",null,null,null,null,null,null,{"$f":"SUM(P244:S244/J244)","v":0}]
["SECRETARIA_DE_SEGURIDAD_Y_PROTECCION_CIUDADANADIRECCION DE BOMBEROS Y PROTECCION CIVIL5Programa de profesionalización, actualización, especializada y salud integral para el personal de la Dirección de Bomberos y Protección Civil","SECRETARIA_DE_SEGURIDAD_Y_PROTECCION_CIUDADANADIRECCION DE BOMBEROS Y PROTECCION CIVIL5","SECRETARIA_DE_SEGURIDAD_Y_PROTECCION_CIUDADANA","DIRECCION DE BOMBEROS Y PROTECCION CIVIL",{"$f":"COUNTIF($D$4:D245,D245:D245)","v":5},"Programa de profesionalización, actualización, especializada y salud integral para el personal de la Dirección de Bomberos y Protección Civil","Porcentaje de alimentos para los elementos de Bomberos y Protección Civil, otorgados","Número de alimentos otorgados",0,24000,"Lic. José Luis López Vizcarra",3317454286,"jluislvizcarra2015@gmail.com",null,null,null,null,null,null,{"$f":"SUM(P245:S245/J245)","v":0}]
["SECRETARIA_DE_SEGURIDAD_Y_PROTECCION_CIUDADANASUBDIRECCION JURIDICA Y DE DERECHOS HUMANOS1Evaluaciones De Control De Confianza","SECRETARIA_DE_SEGURIDAD_Y_PROTECCION_CIUDADANASUBDIRECCION JURIDICA Y DE DERECHOS HUMANOS1","SECRETARIA_DE_SEGURIDAD_Y_PROTECCION_CIUDADANA","SUBDIRECCION JURIDICA Y DE DERECHOS HUMANOS",{"$f":"COUNTIF($D$4:D246,D246:D246)","v":1},"Evaluaciones De Control De Confianza"," Porcentaje en la realización de evaluaciones en materia de Control de Confianza a los elementos operativos de la Secretaría de Seguridad y Protección Ciudadana","Número de evaluaciones de Control de Confianza, realizadas",300,300,"MIGUEL ANGEL ESPINOZA PADILLA",3310979314,"miguelangelespinozapadilla93@gmail.com",null,null,null,null,null,null,{"$f":"SUM(P246:S246/J246)","v":0}]
["SECRETARIA_DE_SEGURIDAD_Y_PROTECCION_CIUDADANASUBDIRECCION DE PLANEACION ESTRATEGICA1Credencialización de Personal Operativo","SECRETARIA_DE_SEGURIDAD_Y_PROTECCION_CIUDADANASUBDIRECCION DE PLANEACION ESTRATEGICA1","SECRETARIA_DE_SEGURIDAD_Y_PROTECCION_CIUDADANA","SUBDIRECCION DE PLANEACION ESTRATEGICA",{"$f":"COUNTIF($D$4:D247,D247:D247)","v":1},"Credencialización de Personal Operativo","Porcentaje en el cumplimiento de los procesos de credencialización y captura de asignación de armas para el personal operativo de la Comisaría Municipal","Número de credenciales de portación de arma de fuego impresas.",1200,1300,"Viridiana Alejandra Córdova Osorio",3315759466,"areatecnica17@live.com.mx",null,"Eficiencia",717,null,null,null,{"$f":"SUM(P247:S247/J247)","v":0.55153846153846153}," Se realizó la captura de la asignación de armas en base de datos, se acudió a la Secretaria del Estado al área de Control de Armamento y equipo operativo a realizar captura e impresión de 717 Credenciales de Portación de Arma de fuego para posteriormente realizar la entrega de las mismas en el Edificio Central de esta Secretaría."]
["SECRETARIA_DE_SEGURIDAD_Y_PROTECCION_CIUDADANASUBDIRECCION DE PLANEACION ESTRATEGICA2Mantenimiento Preventivo de Armas","SECRETARIA_DE_SEGURIDAD_Y_PROTECCION_CIUDADANASUBDIRECCION DE PLANEACION ESTRATEGICA2","SECRETARIA_DE_SEGURIDAD_Y_PROTECCION_CIUDADANA","SUBDIRECCION DE PLANEACION ESTRATEGICA",{"$f":"COUNTIF($D$4:D248,D248:D248)","v":2},"Mantenimiento Preventivo de Armas","Porcentaje de armas con mantenimiento ","Número de armas que reciben mantenimiento",0,990,"Viridiana Alejandra Córdova Osorio",3315759466,"areatecnica17@live.com.mx",null,"Eficacia/Calidad",150,null,null,null,{"$f":"SUM(P248:S248/J248)","v":0.15151515151515152},"Se dio mantenimiento preventivo a 150 armas, mediante limpieza y lubricación, para su correcto funcionamiento, así como la visita a las armerías de los sectores y agrupamientos, para una supervisión constante, logrando así tener un mejor control del equipo armamentístico de la Secretaría."]
["SECRETARIA_DE_SEGURIDAD_Y_PROTECCION_CIUDADANASUBDIRECCION DE PLANEACION ESTRATEGICA3Elaboración de documentos y/o diagnósticos basados en evidencias","SECRETARIA_DE_SEGURIDAD_Y_PROTECCION_CIUDADANASUBDIRECCION DE PLANEACION ESTRATEGICA3","SECRETARIA_DE_SEGURIDAD_Y_PROTECCION_CIUDADANA","SUBDIRECCION DE PLANEACION ESTRATEGICA",{"$f":"COUNTIF($D$4:D249,D249:D249)","v":3},"Elaboración de documentos y/o diagnósticos basados en evidencias","Porcentaje de documentos y/o diagnósticos  elaborados","Número de documentos y/o diagnósticos  elaborados",0,5,"Mario Alberto Collazo Valdez","33 33 45 59 00 ext. 5990","seguciutlaq@gmail.com",null,"Eficiencia",1,null,null,null,{"$f":"SUM(P249:S249/J249)","v":0.2},"Se realizó análisis de la incidencia delictiva del municipio, basado en la información obtenida  del concentrado de carpetas de investigación que presenta el Gobierno del Estado de Jalisco a través del Instituto de Información Estadística y Geográfica IIEG, cuyos datos apoyaron a la implementación de acciones en materia de seguridad ciudadana."]
["SECRETARIA_DE_SEGURIDAD_Y_PROTECCION_CIUDADANASUBDIRECCION DE PLANEACION ESTRATEGICA4Coordinación de la Política Transversal de Reconstrucción del Tejido Social","SECRETARIA_DE_SEGURIDAD_Y_PROTECCION_CIUDADANASUBDIRECCION DE PLANEACION ESTRATEGICA4","SECRETARIA_DE_SEGURIDAD_Y_PROTECCION_CIUDADANA","SUBDIRECCION DE PLANEACION ESTRATEGICA",{"$f":"COUNTIF($D$4:D250,D250:D250)","v":4},"Coordinación de la Política Transversal de Reconstrucción del Tejido Social","Porcentaje de acciones realizadas en la preparación de la política transversal","Número de acciones",2,2,"Gerardo Flores Gutiérrez","33 33 45 59 00 ext. 5990","tejidosocialtlaquepaque@gmail.com",null,"Eficiencia",0,null,null,null,{"$f":"SUM(P250:S250/J250)","v":0}," n este trimestre no se realizaron acciones correspondientes a esta política local. Cabe destacar que se ha iniciado con la actualización de datos del documento que contiene el diagnostico, los objetivos y metodología de la política transversal de Reconstrucción del Tejido Social, en lo que transcurre el proceso municipal de planeación 2024 – 2025 para posteriormente iniciar el análisis y etapa de preparación y aplicación de acciones en las 30 colonias prioritarias."]
[{"$f":"B251&F251","v":"SECRETARIA_DE_SEGURIDAD_Y_PROTECCION_CIUDADANASUBDIRECCION DE PLANEACION ESTRATEGICA5Coordinación de la Política Transversal de Reconstrucción del Tejido Social"},{"$f":"C251&D251&E251","v":"SECRETARIA_DE_SEGURIDAD_Y_PROTECCION_CIUDADANASUBDIRECCION DE PLANEACION ESTRATEGICA5"},"SECRETARIA_DE_SEGURIDAD_Y_PROTECCION_CIUDADANA","SUBDIRECCION DE PLANEACION ESTRATEGICA",{"$f":"COUNTIF($D$4:D251,D251:D251)","v":5},"Coordinación de la Política Transversal de Reconstrucción del Tejido Social","porcentaje de colonias intervenidas en la implementación de la política transversal","Número de colonias prioritarias intervenidas",30,30,"Gerardo Flores Gutiérrez","33 33 45 59 00 ext. 5990","tejidosocialtlaquepaque@gmail.com",null,null,null,null,null,null,{"$f":"SUM(P251:S251/J251)","v":0}]
[{"$f":"B252&F252","v":"SECRETARIA_DE_SEGURIDAD_Y_PROTECCION_CIUDADANASUBDIRECCION DE PLANEACION ESTRATEGICA6Actualización de Requisitos de Permanencia"},{"$f":"C252&D252&E252","v":"SECRETARIA_DE_SEGURIDAD_Y_PROTECCION_CIUDADANASUBDIRECCION DE PLANEACION ESTRATEGICA6"},"SECRETARIA_DE_SEGURIDAD_Y_PROTECCION_CIUDADANA","SUBDIRECCION DE PLANEACION ESTRATEGICA",{"$f":"COUNTIF($D$4:D252,D252:D252)","v":6},"Actualización de Requisitos de Permanencia","Porcentaje de policías actualizados  en competencias básicas de la función policial ","Número de policías actualizados ",0,410,"FABIOLA ARACELI HERNÁNDEZ ARRIAGA","33 35 62 70 74","cpm.academia.tlq@gmail.com",null,null,null,null,null,null,{"$f":"SUM(P252:S252/J252)","v":0}]
[{"$f":"B253&F253","v":"SECRETARIA_DE_SEGURIDAD_Y_PROTECCION_CIUDADANASUBDIRECCION DE PLANEACION ESTRATEGICA7Actualización de Requisitos de Permanencia"},{"$f":"C253&D253&E253","v":"SECRETARIA_DE_SEGURIDAD_Y_PROTECCION_CIUDADANASUBDIRECCION DE PLANEACION ESTRATEGICA7"},"SECRETARIA_DE_SEGURIDAD_Y_PROTECCION_CIUDADANA","SUBDIRECCION DE PLANEACION ESTRATEGICA",{"$f":"COUNTIF($D$4:D253,D253:D253)","v":7},"Actualización de Requisitos de Permanencia","Porcentaje de policías actualizados en evaluación del desempeño ","Número de policías actualizados ",0,380,"FABIOLA ARACELI HERNÁNDEZ ARRIAGA","33 35 62 70 74","cpm.academia.tlq@gmail.com",null,null,null,null,null,null,{"$f":"SUM(P253:S253/J253)","v":0}]
["SECRETARIA_DE_SEGURIDAD_Y_PROTECCION_CIUDADANASUBDIRECCION DE PLANEACION ESTRATEGICA8Sendero Seguro","SECRETARIA_DE_SEGURIDAD_Y_PROTECCION_CIUDADANASUBDIRECCION DE PLANEACION ESTRATEGICA8","SECRETARIA_DE_SEGURIDAD_Y_PROTECCION_CIUDADANA","SUBDIRECCION DE PLANEACION ESTRATEGICA",{"$f":"COUNTIF($D$4:D254,D254:D254)","v":8},"Sendero Seguro","Porcentaje de dependencias participantes en la política de Sendero Seguro ","Número de dependencias participantes ",10,18,"Emmanuel Hernández López","33 33 45 59 00 ext. 5990","sendero.seguro.tlaquepaque@gmail.com",null,"Eficiencia",16,null,null,null,{"$f":"SUM(P254:S254/J254)","v":0.88888888888888884},"Durante el primer trimestre del periodo de gestión gubernamental, se identificaron las dependencias que pueden contribuir a la implementación de la política pública de sendero seguro; en este contexto, en el mes de noviembre del 2024, se realizó la presentación de ésta política a las personas titulares de las 16 dependencias, así como la designación de personas enlaces para la recepción y atención de los reportes recibidos por parte de los centros educativos que se encuentran en los polígonos, con el objetivo de lograr una adecuada coordinación para la ejecución de acciones .Asimismo, en el mes de diciembre se sostuvo reunión con personal directivo de los CECyTEJ´S La Duraznera, San Pedro y Santa Anita, con la finalidad de continuar con el trabajo colaborativo realizado a través de la política pública de Sendero Seguro, recibiendo diversas peticiones para la atención de problemáticas registradas en estos tres centros de educación media superior."]
["SECRETARIA_DE_SEGURIDAD_Y_PROTECCION_CIUDADANASUBDIRECCION DE VINCULACION CIUDADANA1Programa De Participación Ciudadana (Línea Segura)","SECRETARIA_DE_SEGURIDAD_Y_PROTECCION_CIUDADANASUBDIRECCION DE VINCULACION CIUDADANA1","SECRETARIA_DE_SEGURIDAD_Y_PROTECCION_CIUDADANA","SUBDIRECCION DE VINCULACION CIUDADANA",{"$f":"COUNTIF($D$4:D255,D255:D255)","v":1},"Programa De Participación Ciudadana (Línea Segura)","porcentaje de peronas capacitadas para realizar sus reportes a las áreas correspondientes.","Número de personas capacitadas ",3700,4600,"Mario Sergio Gama Apodaca",3333455940,"vinculacioncuidadanatlaq@gmail.com",null,null,null,null,null,null,{"$f":"SUM(P255:S255/J255)","v":0}]
["SECRETARIA_DE_SEGURIDAD_Y_PROTECCION_CIUDADANASUBDIRECCION DE PROFESIONALIZACION Y ACREDITACION POLICIAL1Profesionalización Continua","SECRETARIA_DE_SEGURIDAD_Y_PROTECCION_CIUDADANASUBDIRECCION DE PROFESIONALIZACION Y ACREDITACION POLICIAL1","SECRETARIA_DE_SEGURIDAD_Y_PROTECCION_CIUDADANA","SUBDIRECCION DE PROFESIONALIZACION Y ACREDITACION POLICIAL",{"$f":"COUNTIF($D$4:D256,D256:D256)","v":1},"Profesionalización Continua","Porcentaje de policías incorporados al curso de especialización para la formación de mandos medios","Número de policías (mandos) incorporados al curso",0,50,"Fabiola Araceli Hernández Arriaga","33 35 62 70 74","cpm.academia.tlq@gmail.com",null,null,null,null,null,null,{"$f":"SUM(P256:S256/J256)","v":0}]
["SECRETARIA_DE_SEGURIDAD_Y_PROTECCION_CIUDADANASUBDIRECCION DE PROFESIONALIZACION Y ACREDITACION POLICIAL2Profesionalización Continua","SECRETARIA_DE_SEGURIDAD_Y_PROTECCION_CIUDADANASUBDIRECCION DE PROFESIONALIZACION Y ACREDITACION POLICIAL2","SECRETARIA_DE_SEGURIDAD_Y_PROTECCION_CIUDADANA","SUBDIRECCION DE PROFESIONALIZACION Y ACREDITACION POLICIAL",{"$f":"COUNTIF($D$4:D257,D257:D257)","v":2},"Profesionalización Continua","Porcentaje de policías incorporados al cursos Nuevo modelo de Proximidad e inteligencia aplicada","Número de policías incorporados al curso",0,250,"Fabiola Araceli Hernández Arriaga","33 35 62 70 74","cpm.academia.tlq@gmail.com",null,null,null,null,null,null,{"$f":"SUM(P257:S257/J257)","v":0}]
["SECRETARIA_DE_SEGURIDAD_Y_PROTECCION_CIUDADANASUBDIRECCION DE PROFESIONALIZACION Y ACREDITACION POLICIAL3Profesionalización Continua","SECRETARIA_DE_SEGURIDAD_Y_PROTECCION_CIUDADANASUBDIRECCION DE PROFESIONALIZACION Y ACREDITACION POLICIAL3","SECRETARIA_DE_SEGURIDAD_Y_PROTECCION_CIUDADANA","SUBDIRECCION DE PROFESIONALIZACION Y ACREDITACION POLICIAL",{"$f":"COUNTIF($D$4:D258,D258:D258)","v":3},"Profesionalización Continua","Porcentaje de policías incorporados a la formación de personal operativo para Banda de Guerra y escolta","Número de policías incorporados a la formación",0,100,"Fabiola Araceli Hernández Arriaga","33 35 62 70 74","cpm.academia.tlq@gmail.com",null,null,null,null,null,null,{"$f":"SUM(P258:S258/J258)","v":0}]
["SECRETARIA_DE_SEGURIDAD_Y_PROTECCION_CIUDADANASUBDIRECCION DE PROFESIONALIZACION Y ACREDITACION POLICIAL4Profesionalización Continua","SECRETARIA_DE_SEGURIDAD_Y_PROTECCION_CIUDADANASUBDIRECCION DE PROFESIONALIZACION Y ACREDITACION POLICIAL4","SECRETARIA_DE_SEGURIDAD_Y_PROTECCION_CIUDADANA","SUBDIRECCION DE PROFESIONALIZACION Y ACREDITACION POLICIAL",{"$f":"COUNTIF($D$4:D259,D259:D259)","v":4},"Profesionalización Continua","Porcentaje de policías incorporados al curso de medicina táctica","Número de policías incorporados al curso",0,250,"Fabiola Araceli Hernández Arriaga","33 35 62 70 74","cpm.academia.tlq@gmail.com",null,null,null,null,null,null,{"$f":"SUM(P259:S259/J259)","v":0}]
["SECRETARIA_DE_SEGURIDAD_Y_PROTECCION_CIUDADANASUBDIRECCION DE PROFESIONALIZACION Y ACREDITACION POLICIAL5Profesionalización Continua","SECRETARIA_DE_SEGURIDAD_Y_PROTECCION_CIUDADANASUBDIRECCION DE PROFESIONALIZACION Y ACREDITACION POLICIAL5","SECRETARIA_DE_SEGURIDAD_Y_PROTECCION_CIUDADANA","SUBDIRECCION DE PROFESIONALIZACION Y ACREDITACION POLICIAL",{"$f":"COUNTIF($D$4:D260,D260:D260)","v":5},"Profesionalización Continua","Porcentaje de ciudadanos capacitados mediante el curso: \"Mujer Lider\" ","Número de ciudadanos capacitados",0,250,"Fabiola Araceli Hernández Arriaga","33 35 62 70 74","cpm.academia.tlq@gmail.com",null,null,null,null,null,null,{"$f":"SUM(P260:S260/J260)","v":0}]
["SECRETARIA_DE_SEGURIDAD_Y_PROTECCION_CIUDADANASUBDIRECCION DE PROFESIONALIZACION Y ACREDITACION POLICIAL6Selección Y Reclutamiento Para Plazas Operativas","SECRETARIA_DE_SEGURIDAD_Y_PROTECCION_CIUDADANASUBDIRECCION DE PROFESIONALIZACION Y ACREDITACION POLICIAL6","SECRETARIA_DE_SEGURIDAD_Y_PROTECCION_CIUDADANA","SUBDIRECCION DE PROFESIONALIZACION Y ACREDITACION POLICIAL",{"$f":"COUNTIF($D$4:D261,D261:D261)","v":6},"Selección Y Reclutamiento Para Plazas Operativas","Porcentaje en la selección  y reclutamiento de ciudadanos mexicanos que cumplan con el perfil para Policía de Proximidad","Número de ciudadanos reclutados ",0,80,"Fabiola Araceli Hernández Arriaga","33 35 62 70 74","cpm.academia.tlq@gmail.com",null,null,null,null,null,null,{"$f":"SUM(P261:S261/J261)","v":0}]
["SECRETARIA_DE_SEGURIDAD_Y_PROTECCION_CIUDADANASUBDIRECCION DE PROFESIONALIZACION Y ACREDITACION POLICIAL7Formación Inicial Policía de Proximidad","SECRETARIA_DE_SEGURIDAD_Y_PROTECCION_CIUDADANASUBDIRECCION DE PROFESIONALIZACION Y ACREDITACION POLICIAL7","SECRETARIA_DE_SEGURIDAD_Y_PROTECCION_CIUDADANA","SUBDIRECCION DE PROFESIONALIZACION Y ACREDITACION POLICIAL",{"$f":"COUNTIF($D$4:D262,D262:D262)","v":7},"Formación Inicial Policía de Proximidad","Porcentaje de personas incorporadas al Curso de Formación Inicial Policía de Proximidad","Número de personas incorporadas al curso",0,80,"Fabiola Araceli Hernández Arriaga","33 35 62 70 74","cpm.academia.tlq@gmail.com",null,null,null,null,null,null,{"$f":"SUM(P262:S262/J262)","v":0}]
["SECRETARIA_DE_SEGURIDAD_Y_PROTECCION_CIUDADANASUBDIRECCION DE PROFESIONALIZACION Y ACREDITACION POLICIAL8Convocatoria para Selección de Personal Operativo","SECRETARIA_DE_SEGURIDAD_Y_PROTECCION_CIUDADANASUBDIRECCION DE PROFESIONALIZACION Y ACREDITACION POLICIAL8","SECRETARIA_DE_SEGURIDAD_Y_PROTECCION_CIUDADANA","SUBDIRECCION DE PROFESIONALIZACION Y ACREDITACION POLICIAL",{"$f":"COUNTIF($D$4:D263,D263:D263)","v":8},"Convocatoria para Selección de Personal Operativo","Porcentaje en la realización de acciones para la convocatoria de reclutamiento  y selección de personal","número de acciones para  desarrollar la convocatoria",0,5,"Fabiola Araceli Hernández Arriaga","33 35 62 70 74","cpm.academia.tlq@gmail.com",null,null,null,null,null,null,{"$f":"SUM(P263:S263/J263)","v":0}]
["SECRETARIA_DE_SEGURIDAD_Y_PROTECCION_CIUDADANASUBDIRECCION DE PREVENCION AL DELITO1Trotando Ando Por La Vida Y La Familia","SECRETARIA_DE_SEGURIDAD_Y_PROTECCION_CIUDADANASUBDIRECCION DE PREVENCION AL DELITO1","SECRETARIA_DE_SEGURIDAD_Y_PROTECCION_CIUDADANA","SUBDIRECCION DE PREVENCION AL DELITO",{"$f":"COUNTIF($D$4:D264,D264:D264)","v":1},"Trotando Ando Por La Vida Y La Familia","Porcentaje de personas que participan en la carrera atlética Trotando ando por la vida y la familia","Número de personas que participan en la carrera",0,1000,"Lic. José de Jesús Godoy Serrano","33-35-62-70-76","tlaquepaque.prevencion.social@gmail.com",null,"Eficacia",0,null,null,null,{"$f":"SUM(P264:S264/J264)","v":0},"Se realizaron  3 reuniones con el titular de COMUDE el Mtro.  David Ruvalcaba Carrillo a fin de consolidar lineamientos para la carrera atletica, bajo los criterios de la Asociacion Deportiva de Atletismo definiendo fecha para el dia  Domingo 24 de agosto  para la incorporación al calendario de eventos de dicha asociación,  verificando la disponibilidad de la misma a efecto de que no se cruzara con otra carrera de mayor afluencia; asi mismo se definio el lugar en la cual se llevara acabo en consecusion de los criterios establecidos por  ser la primera carrera que sera realizada por esta Subdirección estableciendose en un lugar cerrado, por lo que sera efectuada en el  Bosque Urbano Tlaquepaque."]
["SECRETARIA_DE_SEGURIDAD_Y_PROTECCION_CIUDADANASUBDIRECCION DE PREVENCION AL DELITO2Cascareando Por La Prevención","SECRETARIA_DE_SEGURIDAD_Y_PROTECCION_CIUDADANASUBDIRECCION DE PREVENCION AL DELITO2","SECRETARIA_DE_SEGURIDAD_Y_PROTECCION_CIUDADANA","SUBDIRECCION DE PREVENCION AL DELITO",{"$f":"COUNTIF($D$4:D265,D265:D265)","v":2},"Cascareando Por La Prevención","Porcentaje de escuelas atendidas mediante el programa Cascareando por la prevención","Número de escuelas atendidas ",8,8,"Lic. José de Jesús Godoy Serrano","33-35-62-70-76","tlaquepaque.prevencion.social@gmail.com",null,"Eficiencia",0,null,null,null,{"$f":"SUM(P265:S265/J265)","v":0},"En este trimestre se realizaron 2 reuniones con el director de Educación el Mtro. Julio Ornelas Camacho con el propósito de definir las escuelas secundarias con mayor necesidad en problematicas sociales, a fin de seleccionar las 8 secundarias que seran participantes en dicho programa. Asi mismo se refirio que se encontraban en proceso de la realización de un diagnóstico de todas las escuelas  primarias y secundarias, por lo que a partir de enero ya se tendran definidas las escuelas de acuerdo a los resultados arrojados del diagnóstico."]
["SECRETARIA_DE_SEGURIDAD_Y_PROTECCION_CIUDADANASUBDIRECCION DE PREVENCION AL DELITO3Gabinete Psicológico","SECRETARIA_DE_SEGURIDAD_Y_PROTECCION_CIUDADANASUBDIRECCION DE PREVENCION AL DELITO3","SECRETARIA_DE_SEGURIDAD_Y_PROTECCION_CIUDADANA","SUBDIRECCION DE PREVENCION AL DELITO",{"$f":"COUNTIF($D$4:D266,D266:D266)","v":3},"Gabinete Psicológico","Porcentaje de elementos operativos y familiares atendidos psicologicamente ","Número de elementos y familiares atendidos ",100,170,"Lic. José de Jesús Godoy Serrano","33-35-62-70-76","tlaquepaque.prevencion.social@gmail.com",null,"Eficiencia",18,null,null,null,{"$f":"SUM(P266:S266/J266)","v":0.10588235294117647},"Durante este trimestre se atendieron un total de 18 personas de las cuales 2 de ellos son elementos operativos, 4 familiares de operativos y 12 de familiares de administrativos; refiriendo que de dichas atenciones se implementaron 100 sesiones terapeuticas.  NOTA: ES IMPORTANTE REFERIR QUE ESTE SERVICIO TRABAJA CON POBLACION FLOTANTE POR LO QUE SE DEPENDERA DE LA DEMANDA A ESTE SERVICIO."]
["SECRETARIA_DE_SEGURIDAD_Y_PROTECCION_CIUDADANASUBDIRECCION DE PREVENCION AL DELITO4Asipt","SECRETARIA_DE_SEGURIDAD_Y_PROTECCION_CIUDADANASUBDIRECCION DE PREVENCION AL DELITO4","SECRETARIA_DE_SEGURIDAD_Y_PROTECCION_CIUDADANA","SUBDIRECCION DE PREVENCION AL DELITO",{"$f":"COUNTIF($D$4:D267,D267:D267)","v":4},"Asipt","Porcentaje de elementos operativos y familiares atendidos en acompañamientos asituaciones emergentes","Número de elementos y familiares atendidos ",21,54,"Lic. José de Jesús Godoy Serrano","33-35-62-70-76","tlaquepaque.prevencion.social@gmail.com",null,"Eficiencia",9,null,null,null,{"$f":"SUM(P267:S267/J267)","v":0.16666666666666666},"Durante este trimestre se atendio un total de 9 personas  (4 mujeres y 5 hombres)  desprendiendose los siguientes servicios: visitas domiciliarias para recoger incapacidades,  entrega de nominas a domicilio en estado de incapacidad, visitas domiciliares para entrega de tarjeta de nomina a personal de incapacidad, visita domiciliaria para recoger documentación para el tramite de los examenes para el Centro de Control y Confianza, entrega de formatos para el nuevo modelo de llenado de incapacidades y un acompañamiento  a servicios medicos municipales  para la atención de una lumbalgia de un operativo. NOTA: ES IMPORTANTE REFERIR QUE ESTE SERVICIO TRABAJA CON POBLACION FLOTANTE POR LO QUE DEPENDERA DE LA DEMANDA A ESTE  SERVICIO. (CABE MENCIONAR QUE CON FECHA DEL 6 DE ENERO SE INFORMA A LAURA PEREZ PARA CAMBIAR LA META DE ESTE INDICADOR ESTABLECIENDO LA META DE 54 PERSONAS ATENDIDAS)"]
["SECRETARIA_DE_SEGURIDAD_Y_PROTECCION_CIUDADANASUBDIRECCION DE PREVENCION AL DELITO5Centro De Atención A Niños, Niñas Y Adolescentes De Tlaquepaque","SECRETARIA_DE_SEGURIDAD_Y_PROTECCION_CIUDADANASUBDIRECCION DE PREVENCION AL DELITO5","SECRETARIA_DE_SEGURIDAD_Y_PROTECCION_CIUDADANA","SUBDIRECCION DE PREVENCION AL DELITO",{"$f":"COUNTIF($D$4:D268,D268:D268)","v":5},"Centro De Atención A Niños, Niñas Y Adolescentes De Tlaquepaque","Porcentaje de niñas, niños y adolescentes en conflicto con la ley, atendidos ","Número de atenciones de niñas, niños y adolescentes en conflicto con la ley         ",47,55,"Lic. José de Jesús Godoy Serrano","33-35-62-70-76","tlaquepaque.prevencion.social@gmail.com",null,"Eficacia",11,null,null,null,{"$f":"SUM(P268:S268/J268)","v":0.2},"Durante este trimestre se atendió un total de 11 personas de las cuales 1 de ellos corresponde a un adolescente en conflicto con la ley por riña,  4 menores en depósito  fueron  trasladados al area de PPNNA al Municipio del Salto y de Zapopan; 6 adolescentes  fueronde entregados a familiares por haberse escapado de sus hogares quienes se encontraban en resguardo en esta subdirección . De dichas acciones se desprendieron llamadas telefonicas a las diversas procuradurias, acompañamientos en traslados, llamadas telefonicas a  familiares de las personas en depósito. ( Asi mismo se asistieron a 2 adultos mayoes  por encontrarse extraviados localizando a familiares, estas atenciones no entran en el indicador sin embargo son atenciones realizadas) NOTA: ES IMPORTANTE REFERIR QUE ESTE SERVICIO TRABAJA CON POBLACION FLOTANTE POR LO QUE SE DEPENDE DE LA DEMANDA DE LOS SERVICIOS DERIVADOS."]
["SECRETARIA_DE_SEGURIDAD_Y_PROTECCION_CIUDADANASUBDIRECCION DE PREVENCION AL DELITO6Centro De Atención A Niños, Niñas Y Adolescentes De Tlaquepaque","SECRETARIA_DE_SEGURIDAD_Y_PROTECCION_CIUDADANASUBDIRECCION DE PREVENCION AL DELITO6","SECRETARIA_DE_SEGURIDAD_Y_PROTECCION_CIUDADANA","SUBDIRECCION DE PREVENCION AL DELITO",{"$f":"COUNTIF($D$4:D269,D269:D269)","v":6},"Centro De Atención A Niños, Niñas Y Adolescentes De Tlaquepaque","Porcentaje de personas que requieren atención psicologica derivadas de servicios de CANNAT y casos detectados de centros educativos","Número de personas atendidas ",200,200,"Lic. José de Jesús Godoy Serrano","33-35-62-70-76","tlaquepaque.prevencion.social@gmail.com",null,"Eficacia",35,null,null,null,{"$f":"SUM(P269:S269/J269)","v":0.17499999999999999},"Octubre-diciembre:  En este trimestre el area de atención psicologica del CANNAT atendio un total de 35 personas que recibieron proceso terapeutico, asi mismo se brindaron 311 orientaciones psicologicas a adolescentes y padres de familia de los siguientes planteles educativos: Escuela primaria Octavio Paz, Primaria Urbana No. 1093 y la Secundaria 93. "]
["SECRETARIA_DE_SEGURIDAD_Y_PROTECCION_CIUDADANASUBDIRECCION DE PREVENCION AL DELITO7Programas Preventivos","SECRETARIA_DE_SEGURIDAD_Y_PROTECCION_CIUDADANASUBDIRECCION DE PREVENCION AL DELITO7","SECRETARIA_DE_SEGURIDAD_Y_PROTECCION_CIUDADANA","SUBDIRECCION DE PREVENCION AL DELITO",{"$f":"COUNTIF($D$4:D270,D270:D270)","v":7},"Programas Preventivos","Porcentaje de personas atendidas mediante la aplicación de programas preventivos","número de personas atendidas",24700,27000,"Lic. José de Jesús Godoy Serrano","33-35-62-70-76","tlaquepaque.prevencion.social@gmail.com",null,"Eficiencia",7424,null,null,null,{"$f":"SUM(P270:S270/J270)","v":0.27496296296296296},"Durante este trimestre se atendió un total de 7,424 personas disgregadas de la siguiente manera:  3,320 niños y niñas, 2,733 adolescentes y adultos 1,371; impartiendose un total de 214 seiones en planteles educativos y  42 en comunidad abierta. Implementandose los programas preventivos consecuentes: Botellita de Jerez, Fortaleciendo a nuestras mujeres, Me conozco, me cuido y me protejo, Padres preventivos padres responsables, Prevención en red sin violencia, Querer es poder, Medidas de auto protección (Teatro guiñol); asimismo se implementaron sesiones informativas orientadas a robo a camion repartidor, secuestro  express y sesiones informativas de todos los programas preventivos. Dichas sesiones se implementaron en los planteles educativos siguientes: jardines de niños Manuel Lopez Cotilla, Luis Donaldo Colosio, Escuelas primarias Adolfo Lopez Mateos, Alfredo Ramos Plascencia, Isidro Castillo, Jesus Reyes Heroles, Octavio Paz, Revolución Agraria, Urbana No. 1,098, Urbana No. 115; consecutivamente se abordo la escuela secundaria General No. 141 y el COBAEJ de la colonia Alvaro Obregon.  Dentro de las colonias trabajadas se encuentran: Alfredo Barba, Alvaro Obregon, Artesanos, Balcones de Santa Maria, Brisas de Chapala, Camichines, Cerro del gato, El Mante, El Tapatio, El vergel, El Zalate, Emiliano Zapata, Exhaciendas del Cuatro, Farccionamiento Villa Fontana, Fraccionamiento Misión San Francisco, Fraccionamiento Revolución, Guadalupe Ejidal, Hacienda Real, Infonavit Revolución, Juan de la Barrera, La Capacha, Las Juntitas, Las Liebres, Linda Vista, Lomas de San Miguel, Lomas de Tlaquepaque, Lomas del Tapatio, los Meseros, Los Puestos, Ojo de Agua, Parques Colon, Paseos del Prado, Potrero del Sauz, San Juan, San Sebastianito, Toluquilla, Verde Valle, Villas del Tapatío, Zona Centro, Las Huertas, Rancho los Camichines, San Martin de las Flores, Hacienda San Jose y Parque San Pedro."]
["OPDCOMUCAT1Capacitaciones Preventivas en Adicciones","OPDCOMUCAT1","OPD","COMUCAT",{"$f":"COUNTIF($D$4:D271,D271:D271)","v":1},"Capacitaciones Preventivas en Adicciones","porcentaje de personas capacitadas en tema de prevención de adicciones ","Número de personas capacitadas ",2200,8000,"Dr. Francisco López Rosas/Tatiana López",3338601965,"comucattlaquepaque2024@gmail.com",null,"eficiencia y eficacia",380,null,null,null,{"$f":"SUM(P271:S271/J271)","v":4.7500000000000001E-2},"El 14 de noviembre asistimos a la escuela secundaria Secundaria Técnica #120 en la Colonia Lomas de Tlaquepaque, en la que trabajamos con actividades de concientización en el tema de las adicciones con los jóvenes estudiantes, así mismo se les brindo información preventiva sobre el consumo y abuso de sustancias y se invitó a los jóvenes a conocer los riesgos en las adicciones. Se atendieron aproximadamente 180 estudiantes.  Asistimos a la Semana de la Cultura de la preparatoria 16, donde platicamos con los jóvenes y les dimos a conocer los estragos del consumo de sustancias adictivas, el como afecta sus sentidos y poco a poco su salud física en general. Tuvimos a bien atender a 200 alumnos.  El día 15 noviembre asistimos a la Feria de la Salud de Escuela Secundaria No. 32 Libertador Miguel Hidalgo t/m y t/v, donde tuvimos a bien participar en el “Evento Vive Sin Drogas 2024”. Trabajamos con actividades lúdicas, donde invitamos al joven a conocer los riesgos en que incurren si llegarán a consumir cualquier sustancia psicoadictiva"]
[{"$f":"B272&F272","v":"OPDCOMUCAT2Atención Terapéutica"},"OPDCOMUCAT2","OPD","COMUCAT",{"$f":"COUNTIF($D$4:D272,D272:D272)","v":2},"Atención Terapéutica","Porcentaje de personas con tratamientos completos, atendidas ","número de personas atendidas",250,400,"Dr. Francisco López Rosas/Tatiana López",3338601965,"comucattlaquepaque2024@gmail.com",null,"eficiencia y eficacia",35,null,null,null,{"$f":"SUM(P272:S272/J272)","v":8.7499999999999994E-2},"En el mes de noviembre  en el Comucat atendimos semanalmente por medio de la terapia breve y/o el tratamiento de recaídas en el consumo.  5 pacientes masculinos adultos; 6 adolescentes (  3 mujeres y 3 hombres) y 3 mujeres adultas.Se ha brindado orientación a 7 personas (4 hombres y 3 mujeres), que tienen algún integrante familiar con alguna Adicción, se les proporciona información sobre derivaciones a centros y o se les brinda atención psicológica. Cabe mencionar que han derivado 3 personas a Establecimientos especializado en adicciones, tratamiento por 3 meses. En el CEntro de Integración y atención en Adicciones ( CEINAA ) se han atendido a 11 pacientes. "]
["OPDCOMUCAT3Espacios COMUCAT","OPDCOMUCAT3","OPD","COMUCAT",{"$f":"COUNTIF($D$4:D273,D273:D273)","v":3},"Espacios COMUCAT","Unidades de Atención gestionados","Número de espacios gestionados ",0,4,"Dr. Francisco López Rosas/Michel Alejandro Rivas",3338601965,"comucattlaquepaque2024@gmail.com",null,"Eficiencia",1,null,null,null,{"$f":"SUM(P273:S273/J273)","v":0.25},"Durante este primer trimestre tuvimos a bien visitar la preparatoria 16 de la udg ubicada en San Martín de las Flores, donde establecimos la estrategia de trabajar en conjunto para poder brindar servicios de terapia breve en temas de depresión y ansiedad, además de la detección en el consumo de sustancia psicoadictivas en el alumnado. De igual modo hicimos la vinculación para que el COMUCAT cuente con un espacio especifico para la atención de terapia breve. Cabe resaltar que a 100 días de este gobierno, ya contamos con un espaciomás para COMUCAT. "]
["OPDCOMUCAT4Espacios COMUCAT","OPDCOMUCAT4","OPD","COMUCAT",{"$f":"COUNTIF($D$4:D274,D274:D274)","v":4},"Espacios COMUCAT","Porcentaje de personas atendidas ","Número de personas atendidas",0,2200,null,null,null,null,null,null,null,null,null,{"$f":"SUM(P274:S274/J274)","v":0}]
["OPDCOMUCAT5Red de Apoyo para Establecimientos especializado en Adicciones","OPDCOMUCAT5","OPD","COMUCAT",{"$f":"COUNTIF($D$4:D275,D275:D275)","v":5},"Red de Apoyo para Establecimientos especializado en Adicciones","Porcentaje de establecimientos especializados en adicciones registrados en en padrón ","número de establecimientos registrados ",40,55,"Dr. Francisco López Rosas/Michel Alejandro Rivas",3338601965,"comucattlaquepaque2024@gmail.com",null,"Eficiencia / calidad",0,null,null,null,{"$f":"SUM(P275:S275/J275)","v":0},"Nos reunimos con 17 Establecimientos Especializados en Adicciones, instalados en nuestro municipio el día 20 de diciembre, con el fin de establecer vinculación y organización para crear alianza, creando acuerdos, para trabajar en la prevención y atención de las adicciones y la salud mental, en beneficio de nuestra población Tlaquepaquense. ( SOLO DATO INFORMATIVO  Con esta reunión creamos la vínculación con varios centros y será hasta el segundo trimestre del año de gestión 2024-2025 donde iniciamos con capacitaciones; mismas que registraran el avance que  se vaya generando y así, los datos que sumen a la red de apoyo a la que nos referimos en esa propuesta de PBR )"]
["OPDCOMUCAT6Red de Apoyo para Establecimientos especializado en Adicciones","OPDCOMUCAT6","OPD","COMUCAT",{"$f":"COUNTIF($D$4:D276,D276:D276)","v":6},"Red de Apoyo para Establecimientos especializado en Adicciones","Porcentaje de capacitaciones de mejora contínua para el establecimiento ","número de capacitaciones realizadas",0,8,null,null,null,null,null,null,null,null,null,{"$f":"SUM(P276:S276/J276)","v":0}]
["OPDSistema de Desarrollo Integral de la Familia (DIF) de Tlaquepaque1Área Alimentaria","OPDSistema de Desarrollo Integral de la Familia (DIF) de Tlaquepaque1","OPD","Sistema de Desarrollo Integral de la Familia (DIF) de Tlaquepaque",{"$f":"COUNTIF($D$4:D277,D277:D277)","v":1},"Área Alimentaria","   Porcentaje de raciones de alimentos entregadas ","Número de raciones de alimentos entregadas ",1525130,1525130,"Bertha Elizabeth Sánchez García",3315781002,null,null,null,null,null,null,null,{"$f":"SUM(P277:S277/J277)","v":0}]
["OPDSistema de Desarrollo Integral de la Familia (DIF) de Tlaquepaque2Área Alimentaria","OPDSistema de Desarrollo Integral de la Familia (DIF) de Tlaquepaque2","OPD","Sistema de Desarrollo Integral de la Familia (DIF) de Tlaquepaque",{"$f":"COUNTIF($D$4:D278,D278:D278)","v":2},"Área Alimentaria","Porcentaje de despensas entregadas ","Número de despensas entregadas",30984,30984,"Bertha Elizabeth Sánchez García",3315781002,null,null,null,null,null,null,null,{"$f":"SUM(P278:S278/J278)","v":0}]
["OPDSistema de Desarrollo Integral de la Familia (DIF) de Tlaquepaque3Área Alimentaria","OPDSistema de Desarrollo Integral de la Familia (DIF) de Tlaquepaque3","OPD","Sistema de Desarrollo Integral de la Familia (DIF) de Tlaquepaque",{"$f":"COUNTIF($D$4:D279,D279:D279)","v":3},"Área Alimentaria","Porcentajde de personas atendidas mendiante platicas de orientación alimentaria ","Número de personas atendidas  ",12910,12910,"Bertha Elizabeth Sánchez García",3315781002,null,null,null,null,null,null,null,{"$f":"SUM(P279:S279/J279)","v":0}]
["OPDSistema de Desarrollo Integral de la Familia (DIF) de Tlaquepaque4Psicología","OPDSistema de Desarrollo Integral de la Familia (DIF) de Tlaquepaque4","OPD","Sistema de Desarrollo Integral de la Familia (DIF) de Tlaquepaque",{"$f":"COUNTIF($D$4:D280,D280:D280)","v":4},"Psicología","Porcentaje de sesiones psicologicas otorgadas ","Numero de Sesiones otorgadas ",13040,13200,"Lic. Leonardo Anatolio Salazar Marrero/ Lic. Lucia Alejandra Villaseñor Gómez",3336802559,"areapsicologiatlaq@gmail.com",null,null,null,null,null,null,{"$f":"SUM(P280:S280/J280)","v":0}]
["OPDSistema de Desarrollo Integral de la Familia (DIF) de Tlaquepaque5Talleres de Esperanza",{"$f":"C281&D281&E281","v":"OPDSistema de Desarrollo Integral de la Familia (DIF) de Tlaquepaque5"},"OPD","Sistema de Desarrollo Integral de la Familia (DIF) de Tlaquepaque",{"$f":"COUNTIF($D$4:D281,D281:D281)","v":5},"Talleres de Esperanza","Porcentaje de Personas Inscritas a Talleres de eperanza","número de personas Inscritas",0,1060,"Mario Herrera Gallardo",3325681978,"mherrada93@gmail.com",null,null,null,null,null,null,{"$f":"SUM(P281:S281/J281)","v":0}]
["OPDSistema de Desarrollo Integral de la Familia (DIF) de Tlaquepaque6Talleres de Esperanza","OPDSistema de Desarrollo Integral de la Familia (DIF) de Tlaquepaque6","OPD","Sistema de Desarrollo Integral de la Familia (DIF) de Tlaquepaque",{"$f":"COUNTIF($D$4:D282,D282:D282)","v":6},"Talleres de Esperanza","Porcentaje de sesiones de atención a personas en talleres, brindadas ","número de sesiones de atención brindadas",0,3200,"Mario Herrera Gallardo",3325681978,"mherrada93@gmail.com",null,null,null,null,null,null,{"$f":"SUM(P282:S282/J282)","v":0}]
["OPDSistema de Desarrollo Integral de la Familia (DIF) de Tlaquepaque7Talleres de Esperanza","OPDSistema de Desarrollo Integral de la Familia (DIF) de Tlaquepaque7","OPD","Sistema de Desarrollo Integral de la Familia (DIF) de Tlaquepaque",{"$f":"COUNTIF($D$4:D283,D283:D283)","v":7},"Talleres de Esperanza","Porcentaje de personas graduadas en talleres","Número de personas graduadas ",0,1060,"Mario Herrera Gallardo",3325681978,"mherrada93@gmail.com",null,null,null,null,null,null,{"$f":"SUM(P283:S283/J283)","v":0}]
["OPDSistema de Desarrollo Integral de la Familia (DIF) de Tlaquepaque8Programa de Atención a la Discapacidad","OPDSistema de Desarrollo Integral de la Familia (DIF) de Tlaquepaque8","OPD","Sistema de Desarrollo Integral de la Familia (DIF) de Tlaquepaque",{"$f":"COUNTIF($D$4:D284,D284:D284)","v":8},"Programa de Atención a la Discapacidad","Porcentaje de sesiones de atención a Personas con Discapacidad, brindadas","Número de sesiones de atención brindadas ",4000,4000,"María del Carmen González Chávez/Ana Bertha González Rodríguez",3338380716,"discapacidad.tlaquepaque@gmail.com",null,null,null,null,null,null,{"$f":"SUM(P284:S284/J284)","v":0}]
["OPDSistema de Desarrollo Integral de la Familia (DIF) de Tlaquepaque9Programa de Atención a la Discapacidad","OPDSistema de Desarrollo Integral de la Familia (DIF) de Tlaquepaque9","OPD","Sistema de Desarrollo Integral de la Familia (DIF) de Tlaquepaque",{"$f":"COUNTIF($D$4:D285,D285:D285)","v":9},"Programa de Atención a la Discapacidad","Porcentaje de Capacitacion y sensibilizacion sobre cultura de discapacidad a servidores publicos y ciudadania. ","Número de personas capacitadas y sensibilizadas",500,500,"María del Carmen González Chávez/Ana Bertha González Rodríguez",3338380716,"discapacidad.tlaquepaque@gmail.com",null,null,null,null,null,null,{"$f":"SUM(P285:S285/J285)","v":0}]
["OPDSistema de Desarrollo Integral de la Familia (DIF) de Tlaquepaque10Inclusión y Derechos Humanos de las Personas con Discapacidad","OPDSistema de Desarrollo Integral de la Familia (DIF) de Tlaquepaque10","OPD","Sistema de Desarrollo Integral de la Familia (DIF) de Tlaquepaque",{"$f":"COUNTIF($D$4:D286,D286:D286)","v":10},"Inclusión y Derechos Humanos de las Personas con Discapacidad","Porcentaje de personas capacitas y sensibilizadas en tema de Personas con Discapacidad  ","Personas capacitadas y sensibilizadas",0,500,"María del Carmen González Chávez/Ana Bertha González Rodríguez",3338380716,"discapacidad.tlaquepaque@gmail.com",null,null,null,null,null,null,{"$f":"SUM(P286:S286/J286)","v":0}]
["OPDSistema de Desarrollo Integral de la Familia (DIF) de Tlaquepaque11Protección y Atención ante casos de Violencia Familia","OPDSistema de Desarrollo Integral de la Familia (DIF) de Tlaquepaque11","OPD","Sistema de Desarrollo Integral de la Familia (DIF) de Tlaquepaque",{"$f":"COUNTIF($D$4:D287,D287:D287)","v":11},"Protección y Atención ante casos de Violencia Familia"," Porcentaje de personas con atención psicológica y asesoría jurídica ","Numero personas atendidas ",1800,2500,"Carmen Yakarar López Ramírez",3330440444,"auvi.diftlaquepaque@gmail.com",null,null,null,null,null,null,{"$f":"SUM(P287:S287/J287)","v":0}]
["OPDSistema de Desarrollo Integral de la Familia (DIF) de Tlaquepaque12Procuraduría de Protección de NNA","OPDSistema de Desarrollo Integral de la Familia (DIF) de Tlaquepaque12","OPD","Sistema de Desarrollo Integral de la Familia (DIF) de Tlaquepaque",{"$f":"COUNTIF($D$4:D288,D288:D288)","v":12},"Procuraduría de Protección de NNA","Porcentaje de personas atendidas mediante asesoria familiar, juridica y de C. Identidad  ","Número de personas atendidas ",950,1200,"Lic. Daysi Itzel Martínez Barajas",3314850872,"daf.diftlaquepaque@gmail.com",null,null,null,null,null,null,{"$f":"SUM(P288:S288/J288)","v":0}]
["OPDSistema de Desarrollo Integral de la Familia (DIF) de Tlaquepaque13Procuraduría de Protección de NNA","OPDSistema de Desarrollo Integral de la Familia (DIF) de Tlaquepaque13","OPD","Sistema de Desarrollo Integral de la Familia (DIF) de Tlaquepaque",{"$f":"COUNTIF($D$4:D289,D289:D289)","v":13},"Procuraduría de Protección de NNA","Porcentaje de reportes de violencia y/o abuso, atendidos ","Número de Reportes atendidos ",450,500,"Lic. Daysi Itzel Martínez Barajas",3314850872,"daf.diftlaquepaque@gmail.com",null,null,null,null,null,null,{"$f":"SUM(P289:S289/J289)","v":0}]
["OPDSistema de Desarrollo Integral de la Familia (DIF) de Tlaquepaque14Procuraduría de Protección de NNA","OPDSistema de Desarrollo Integral de la Familia (DIF) de Tlaquepaque14","OPD","Sistema de Desarrollo Integral de la Familia (DIF) de Tlaquepaque",{"$f":"COUNTIF($D$4:D290,D290:D290)","v":14},"Procuraduría de Protección de NNA","Porcentaje de constancias expedidas por el Servicio de Platicas prematrimoniales ","Número de constancias expedidas",3000,3500,"Lic. Daysi Itzel Martínez Barajas",3314850872,"daf.diftlaquepaque@gmail.com",null,null,null,null,null,null,{"$f":"SUM(P290:S290/J290)","v":0}]
["OPDSistema de Desarrollo Integral de la Familia (DIF) de Tlaquepaque15Albergue Vista Hermosa","OPDSistema de Desarrollo Integral de la Familia (DIF) de Tlaquepaque15","OPD","Sistema de Desarrollo Integral de la Familia (DIF) de Tlaquepaque",{"$f":"COUNTIF($D$4:D291,D291:D291)","v":15},"Albergue Vista Hermosa","Porcentaje de menores en situación de vulnerabilidad, atendidos integralmente, mediante su ingreso al albergue ","Número de menores atendidos en el albergue ",0,150,"Lic. Daysi Itzel Martínez Barajas",3314850872,"daf.diftlaquepaque@gmail.com",null,null,null,null,null,null,{"$f":"SUM(P291:S291/J291)","v":0}]
["OPDSistema de Desarrollo Integral de la Familia (DIF) de Tlaquepaque16Protección y Restitución de Derechos de Niñas. Niños y Adolescentes","OPDSistema de Desarrollo Integral de la Familia (DIF) de Tlaquepaque16","OPD","Sistema de Desarrollo Integral de la Familia (DIF) de Tlaquepaque",{"$f":"COUNTIF($D$4:D292,D292:D292)","v":16},"Protección y Restitución de Derechos de Niñas. Niños y Adolescentes","Porcentaje  de niñas, niños y adolescentes atendidos de manera integral","número de niñas, niños y adolescentes atendidos",120,150,"Hannia Itzel Parada González",3336571095,"tuteladederechos12@gmail.com",null,null,null,null,null,null,{"$f":"SUM(P292:S292/J292)","v":0}]
["OPDSistema de Desarrollo Integral de la Familia (DIF) de Tlaquepaque17Área Médica","OPDSistema de Desarrollo Integral de la Familia (DIF) de Tlaquepaque17","OPD","Sistema de Desarrollo Integral de la Familia (DIF) de Tlaquepaque",{"$f":"COUNTIF($D$4:D293,D293:D293)","v":17},"Área Médica","Porcentaje de Servicios médicos otorgados.","Número de servicios otorgados",29500,29700,"Dr. Jaime Ramos Martínez",3322553580,"amedicadiftlaq@gmail.com",null,null,null,null,null,null,{"$f":"SUM(P293:S293/J293)","v":0}]
["OPDSistema de Desarrollo Integral de la Familia (DIF) de Tlaquepaque18Área Médica","OPDSistema de Desarrollo Integral de la Familia (DIF) de Tlaquepaque18","OPD","Sistema de Desarrollo Integral de la Familia (DIF) de Tlaquepaque",{"$f":"COUNTIF($D$4:D294,D294:D294)","v":18},"Área Médica","Porentaje de Capacitaciones sobre salud a la población en general, brindadas","Número de capacitaciones brindadas.",60,65,"Dr. Jaime Ramos Martínez",3322553580,"amedicadiftlaq@gmail.com",null,null,null,null,null,null,{"$f":"SUM(P294:S294/J294)","v":0}]
["OPDSistema de Desarrollo Integral de la Familia (DIF) de Tlaquepaque19Área Médica","OPDSistema de Desarrollo Integral de la Familia (DIF) de Tlaquepaque19","OPD","Sistema de Desarrollo Integral de la Familia (DIF) de Tlaquepaque",{"$f":"COUNTIF($D$4:D295,D295:D295)","v":19},"Área Médica","Porcentaje de Capacitaciones para el personal médico, recibidas ","Número de Capacitaciones recibidas.",8,13,"Dr. Jaime Ramos Martínez",3322553580,"amedicadiftlaq@gmail.com",null,null,null,null,null,null,{"$f":"SUM(P295:S295/J295)","v":0}]
["OPDSistema de Desarrollo Integral de la Familia (DIF) de Tlaquepaque20Laboratorio Clínico","OPDSistema de Desarrollo Integral de la Familia (DIF) de Tlaquepaque20","OPD","Sistema de Desarrollo Integral de la Familia (DIF) de Tlaquepaque",{"$f":"COUNTIF($D$4:D296,D296:D296)","v":20},"Laboratorio Clínico","Porcentaje de Servicios  otorgados.","Número de servicios otorgados",0,500,"Dr. Jaime Ramos Martínez",3322553580,"amedicadiftlaq@gmail.com",null,null,null,null,null,null,{"$f":"SUM(P296:S296/J296)","v":0}]
["OPDSistema de Desarrollo Integral de la Familia (DIF) de Tlaquepaque21Laboratorio Clínico","OPDSistema de Desarrollo Integral de la Familia (DIF) de Tlaquepaque21","OPD","Sistema de Desarrollo Integral de la Familia (DIF) de Tlaquepaque",{"$f":"COUNTIF($D$4:D297,D297:D297)","v":21},"Laboratorio Clínico","Porcentaje de Capacitaciones para el personal médico, recibidas ","número de capacitaciones recibidas.",0,2,"Dr. Jaime Ramos Martínez",3322553580,"amedicadiftlaq@gmail.com",null,null,null,null,null,null,{"$f":"SUM(P297:S297/J297)","v":0}]
["OPDSistema de Desarrollo Integral de la Familia (DIF) de Tlaquepaque22Por una Gestión Responsable","OPDSistema de Desarrollo Integral de la Familia (DIF) de Tlaquepaque22","OPD","Sistema de Desarrollo Integral de la Familia (DIF) de Tlaquepaque",{"$f":"COUNTIF($D$4:D298,D298:D298)","v":22},"Por una Gestión Responsable","Porcentaje de orientación Otorgadas","Número de orientaciones otorgadas ",0,100,"Dr. Jaime Ramos Martínez",3322553580,"amedicadiftlaq@gmail.com",null,null,null,null,null,null,{"$f":"SUM(P298:S298/J298)","v":0}]
["OPDSistema de Desarrollo Integral de la Familia (DIF) de Tlaquepaque23Por una Gestión Responsable","OPDSistema de Desarrollo Integral de la Familia (DIF) de Tlaquepaque23","OPD","Sistema de Desarrollo Integral de la Familia (DIF) de Tlaquepaque",{"$f":"COUNTIF($D$4:D299,D299:D299)","v":23},"Por una Gestión Responsable","Porcentaje de Capacitaciones sobre salud a la población en general, brindadas","Número de capacitaciones brindadas.",0,40,"Dr. Jaime Ramos Martínez",3322553580,"amedicadiftlaq@gmail.com",null,null,null,null,null,null,{"$f":"SUM(P299:S299/J299)","v":0}]
["OPDSistema de Desarrollo Integral de la Familia (DIF) de Tlaquepaque24Rehabilitación","OPDSistema de Desarrollo Integral de la Familia (DIF) de Tlaquepaque24","OPD","Sistema de Desarrollo Integral de la Familia (DIF) de Tlaquepaque",{"$f":"COUNTIF($D$4:D300,D300:D300)","v":24},"Rehabilitación","Porcentaje de Servicios  de terapias de rehabilitación, otorgados.","Número de servicios otorgados  ",0,1800,"Dr. Jaime Ramos Martínez",3322553580,"amedicadiftlaq@gmail.com",null,null,null,null,null,null,{"$f":"SUM(P300:S300/J300)","v":0}]
["OPDSistema de Desarrollo Integral de la Familia (DIF) de Tlaquepaque25Rehabilitación","OPDSistema de Desarrollo Integral de la Familia (DIF) de Tlaquepaque25","OPD","Sistema de Desarrollo Integral de la Familia (DIF) de Tlaquepaque",{"$f":"COUNTIF($D$4:D301,D301:D301)","v":25},"Rehabilitación","Porcentaje de Capacitaciones para el personal de terapeutas,  recibidas ","Capacitaciones recibidas.",0,5,"Dr. Jaime Ramos Martínez",3322553580,"amedicadiftlaq@gmail.com",null,null,null,null,null,null,{"$f":"SUM(P301:S301/J301)","v":0}]
["OPDSistema de Desarrollo Integral de la Familia (DIF) de Tlaquepaque26Atención a la Población en Condiciones de Emergencia","OPDSistema de Desarrollo Integral de la Familia (DIF) de Tlaquepaque26","OPD","Sistema de Desarrollo Integral de la Familia (DIF) de Tlaquepaque",{"$f":"COUNTIF($D$4:D302,D302:D302)","v":26},"Atención a la Población en Condiciones de Emergencia","Porcentaje de familias que enfrentan una contingencia (inundación, explosión, incendio, etc.) atendidas ","número de familias atendidas.",97,355,"Lic. Karla Paola Palafox Pérez",3221506285,"diftlaquepaque.apce@gmail.com",null,null,null,null,null,null,{"$f":"SUM(P302:S302/J302)","v":0}]
["OPDSistema de Desarrollo Integral de la Familia (DIF) de Tlaquepaque27Fortalecimiento Sociofamiliar","OPDSistema de Desarrollo Integral de la Familia (DIF) de Tlaquepaque27","OPD","Sistema de Desarrollo Integral de la Familia (DIF) de Tlaquepaque",{"$f":"COUNTIF($D$4:D303,D303:D303)","v":27},"Fortalecimiento Sociofamiliar","Porcentaje de servicios de apoyo \nasistencial otorgados.","Número de servicios otorgados",3692,3000,"C. Tania Carolina Martínez Jiménez/ C. Cindy Guadalupe Núñez Gutiérrez",3317618910,"diftlaquepaque.ts@gmail.com",null,null,null,null,null,null,{"$f":"SUM(P303:S303/J303)","v":0}]
["OPDSistema de Desarrollo Integral de la Familia (DIF) de Tlaquepaque28Fortalecimiento Sociofamiliar","OPDSistema de Desarrollo Integral de la Familia (DIF) de Tlaquepaque28","OPD","Sistema de Desarrollo Integral de la Familia (DIF) de Tlaquepaque",{"$f":"COUNTIF($D$4:D304,D304:D304)","v":28},"Fortalecimiento Sociofamiliar","Porcentaje de personas atendidas mediante la entrega de apoyos ","número de personas atendidas con apoyos ",1208,1400,"C. Tania Carolina Martínez Jiménez/ C. Cindy Guadalupe Núñez Gutiérrez",3317618910,"diftlaquepaque.ts@gmail.com",null,null,null,null,null,null,{"$f":"SUM(P304:S304/J304)","v":0}]
["OPDSistema de Desarrollo Integral de la Familia (DIF) de Tlaquepaque29Fortalecimiento Sociofamiliar","OPDSistema de Desarrollo Integral de la Familia (DIF) de Tlaquepaque29","OPD","Sistema de Desarrollo Integral de la Familia (DIF) de Tlaquepaque",{"$f":"COUNTIF($D$4:D305,D305:D305)","v":29},"Fortalecimiento Sociofamiliar","porcentaje de personas atendidas","número de personas atendidas ",2063,2000,"C. Tania Carolina Martínez Jiménez/ C. Cindy Guadalupe Núñez Gutiérrez",3317618910,"diftlaquepaque.ts@gmail.com",null,null,null,null,null,null,{"$f":"SUM(P305:S305/J305)","v":0}]
["OPDSistema de Desarrollo Integral de la Familia (DIF) de Tlaquepaque30Atención Integral a personas a Adultos Mayores","OPDSistema de Desarrollo Integral de la Familia (DIF) de Tlaquepaque30","OPD","Sistema de Desarrollo Integral de la Familia (DIF) de Tlaquepaque",{"$f":"COUNTIF($D$4:D306,D306:D306)","v":30},"Atención Integral a personas a Adultos Mayores","Porcentaje de atenciones a personas adultas mayores en grupos de convivencia, brindadas","Número de atenciones brindadas ",2000,10000,"Lic. Jenifer Solano Gutiérrez",3336803199,"diftlaquepaque.am@gmail.com",null,null,null,null,null,null,{"$f":"SUM(P306:S306/J306)","v":0}]
["OPDSistema de Desarrollo Integral de la Familia (DIF) de Tlaquepaque31Atención Integral a personas a Adultos Mayores","OPDSistema de Desarrollo Integral de la Familia (DIF) de Tlaquepaque31","OPD","Sistema de Desarrollo Integral de la Familia (DIF) de Tlaquepaque",{"$f":"COUNTIF($D$4:D307,D307:D307)","v":31},"Atención Integral a personas a Adultos Mayores","Porcentaje de atenciones a personas adultas mayores en eventos recreativos. Culturales y deportivos","Número de atenciones brindadas",1800,7000,"Lic. Jenifer Solano Gutiérrez",3336803199,"diftlaquepaque.am@gmail.com",null,null,null,null,null,null,{"$f":"SUM(P307:S307/J307)","v":0}]
["OPDSistema de Desarrollo Integral de la Familia (DIF) de Tlaquepaque32Atención Integral a personas a Adultos Mayores","OPDSistema de Desarrollo Integral de la Familia (DIF) de Tlaquepaque32","OPD","Sistema de Desarrollo Integral de la Familia (DIF) de Tlaquepaque",{"$f":"COUNTIF($D$4:D308,D308:D308)","v":32},"Atención Integral a personas a Adultos Mayores","Porcentaje de orientaciones a personas adultas mayores en carta de vinculación a la actividad productiva ","Numero de orientaciones brindadas",0,25,"Lic. Jenifer Solano Gutiérrez",3336803199,"diftlaquepaque.am@gmail.com",null,null,null,null,null,null,{"$f":"SUM(P308:S308/J308)","v":0}]
["OPDSistema de Desarrollo Integral de la Familia (DIF) de Tlaquepaque33CDC","OPDSistema de Desarrollo Integral de la Familia (DIF) de Tlaquepaque33","OPD","Sistema de Desarrollo Integral de la Familia (DIF) de Tlaquepaque",{"$f":"COUNTIF($D$4:D309,D309:D309)","v":33},"CDC","Porcentaje de campañas promovidas para dar a conocer los cursos y talleres.","Número de campañas promovidas.",6,10,"Lic. Jenifer Solano Gutiérrez",3336803199,"diftlaquepaque.am@gmail.com",null,null,null,null,null,null,{"$f":"SUM(P309:S309/J309)","v":0}]
["OPDSistema de Desarrollo Integral de la Familia (DIF) de Tlaquepaque34CDC","OPDSistema de Desarrollo Integral de la Familia (DIF) de Tlaquepaque34","OPD","Sistema de Desarrollo Integral de la Familia (DIF) de Tlaquepaque",{"$f":"COUNTIF($D$4:D310,D310:D310)","v":34},"CDC","Porcentaje de sesiones de educación básica y media superior a  adolescentes, personas adultas y personas adultas mayores, realizadas ","Número de sesiones realizadas",0,0,"Lic. Jenifer Solano Gutiérrez",3336803199,"diftlaquepaque.am@gmail.com",null,null,null,null,null,null,{"$f":"SUM(P310:S310/J310)","v":{"$error":"#DIV/0!"}}]
["OPDSistema de Desarrollo Integral de la Familia (DIF) de Tlaquepaque35CDC","OPDSistema de Desarrollo Integral de la Familia (DIF) de Tlaquepaque35","OPD","Sistema de Desarrollo Integral de la Familia (DIF) de Tlaquepaque",{"$f":"COUNTIF($D$4:D311,D311:D311)","v":35},"CDC","Porcentaje de personas que recibieron capacitación y actualización de oficios y habilidades técnicas para el empleo y el emprendimiento  en las colonias prioritarias.","Número de personas capacitadas ",1000,1500,"Lic. Jenifer Solano Gutiérrez",3336803199,"diftlaquepaque.am@gmail.com",null,null,null,null,null,null,{"$f":"SUM(P311:S311/J311)","v":0}]
["OPDSistema de Desarrollo Integral de la Familia (DIF) de Tlaquepaque36Clínica Deportiva Prevención de Adicciones","OPDSistema de Desarrollo Integral de la Familia (DIF) de Tlaquepaque36","OPD","Sistema de Desarrollo Integral de la Familia (DIF) de Tlaquepaque",{"$f":"COUNTIF($D$4:D312,D312:D312)","v":36},"Clínica Deportiva Prevención de Adicciones","Porcentaje de niñas, niños y adolescentes atendidos mediante el programa Clínicas deportivas de  prevención de adicciones","Número de niñas, niños y adolescentes atendidos ",25,30,"Maribel Pizaña Pedroza",3314636880,"preverp.diftlaquepaque@gmail.com",null,null,null,null,null,null,{"$f":"SUM(P312:S312/J312)","v":0}]
["OPDSistema de Desarrollo Integral de la Familia (DIF) de Tlaquepaque37Prevención de Embarazo Adolescente","OPDSistema de Desarrollo Integral de la Familia (DIF) de Tlaquepaque37","OPD","Sistema de Desarrollo Integral de la Familia (DIF) de Tlaquepaque",{"$f":"COUNTIF($D$4:D313,D313:D313)","v":37},"Prevención de Embarazo Adolescente","Porcentaje de niñas, niños y adolescentes atendidos mediante el taller Mas vale prevenvir que amamantar ","Número de niñas, niños y adolescentes atendidos ",1000,1100,"Maribel Pizaña Pedroza",3314636880,"preverp.diftlaquepaque@gmail.com",null,null,null,null,null,null,{"$f":"SUM(P313:S313/J313)","v":0}]
["OPDSistema de Desarrollo Integral de la Familia (DIF) de Tlaquepaque38Crecer sin Violencia","OPDSistema de Desarrollo Integral de la Familia (DIF) de Tlaquepaque38","OPD","Sistema de Desarrollo Integral de la Familia (DIF) de Tlaquepaque",{"$f":"COUNTIF($D$4:D314,D314:D314)","v":38},"Crecer sin Violencia","Porcentaje de niñas, niños y adolescentes atendidos mediante el taller de Crecer sin violencia ","Número de Niñas, niños y adolescentes beneficiados al acceso de la educación. ",700,750,"Maribel Pizaña Pedroza",3314636880,"preverp.diftlaquepaque@gmail.com",null,null,null,null,null,null,{"$f":"SUM(P314:S314/J314)","v":0}]
["OPDSistema de Desarrollo Integral de la Familia (DIF) de Tlaquepaque39Situación de Calle","OPDSistema de Desarrollo Integral de la Familia (DIF) de Tlaquepaque39","OPD","Sistema de Desarrollo Integral de la Familia (DIF) de Tlaquepaque",{"$f":"COUNTIF($D$4:D315,D315:D315)","v":39},"Situación de Calle","Porcentaje de niñas, niños y adolescentes atendidos mediante el programa Con educación me reconozco, aprendo y me voy de campamento","Número de niñas, niños y adolescentes atendidos",200,250,"Maribel Pizaña Pedroza",3314636880,"preverp.diftlaquepaque@gmail.com",null,null,null,null,null,null,{"$f":"SUM(P315:S315/J315)","v":0}]
["OPDSistema de Desarrollo Integral de la Familia (DIF) de Tlaquepaque40Mejoramiento Educativo","OPDSistema de Desarrollo Integral de la Familia (DIF) de Tlaquepaque40","OPD","Sistema de Desarrollo Integral de la Familia (DIF) de Tlaquepaque",{"$f":"COUNTIF($D$4:D316,D316:D316)","v":40},"Mejoramiento Educativo","porcentaje de sesiones de atención psicologica, inglés y educación física a niñas y niños alumnos de los CAIC, impartidas","Numero de sesiones impartidas",0,320,"Pravda Cristina López Arvizu",3317428376,"caic.diftlaquepaque2022@gmail.com",null,null,null,null,null,null,{"$f":"SUM(P316:S316/J316)","v":0}]
["OPDSistema de Desarrollo Integral de la Familia (DIF) de Tlaquepaque41Prevención y Detención de abuso Sexual","OPDSistema de Desarrollo Integral de la Familia (DIF) de Tlaquepaque41","OPD","Sistema de Desarrollo Integral de la Familia (DIF) de Tlaquepaque",{"$f":"COUNTIF($D$4:D317,D317:D317)","v":41},"Prevención y Detención de abuso Sexual","porentaje de directoras de CAIC´S, capacitadas","número de directoras capacitadas",0,9,"Pravda Cristina López Arvizu",3317428376,"caic.diftlaquepaque2022@gmail.com",null,null,null,null,null,null,{"$f":"SUM(P317:S317/J317)","v":0}]
["OPDSistema de Desarrollo Integral de la Familia (DIF) de Tlaquepaque42Prevención y Detención de abuso Sexual","OPDSistema de Desarrollo Integral de la Familia (DIF) de Tlaquepaque42","OPD","Sistema de Desarrollo Integral de la Familia (DIF) de Tlaquepaque",{"$f":"COUNTIF($D$4:D318,D318:D318)","v":42},"Prevención y Detención de abuso Sexual","porcentaje de maestras de CAIC´S capacitadas","número de maestras capacitadas ",0,27,"Pravda Cristina López Arvizu",3317428376,"caic.diftlaquepaque2022@gmail.com",null,null,null,null,null,null,{"$f":"SUM(P318:S318/J318)","v":0}]
["OPDIMJUVET1Beca Joven","OPDIMJUVET1","OPD","IMJUVET",{"$f":"COUNTIF($D$4:D319,D319:D319)","v":1},"Beca Joven"," Porcentaje de jóvenes apoyados mediante la Beca Joven ","numero de jóvenes apoyados",0,100,"FERNANDO ANTONIO ALVAREZ ESTEVES",332464264041,"jovenestlaq@gmail.com",null,null,null,null,null,null,{"$f":"SUM(P319:S319/J319)","v":0}]
["OPDIMJUVET2Cabildo Juvenil","OPDIMJUVET2","OPD","IMJUVET",{"$f":"COUNTIF($D$4:D320,D320:D320)","v":2},"Cabildo Juvenil","Porentaje de etapas para la realización del cabildo juvenil ","numero de etapas realizadas",0,6,"FERNANDO ANTONIO ALVAREZ ESTEVES",332464264041,"jovenestlaq@gmail.com",null,null,null,null,null,null,{"$f":"SUM(P320:S320/J320)","v":0}]
["OPDIMJUVET3Cine en tu Barrio","OPDIMJUVET3","OPD","IMJUVET",{"$f":"COUNTIF($D$4:D321,D321:D321)","v":3},"Cine en tu Barrio","porcentaje de jóvenes que asistan a las funciones del cine","numero de jóvenes participantes",1000,1200,"FERNANDO ANTONIO ALVAREZ ESTEVES",332464264041,"jovenestlaq@gmail.com",null,null,null,null,null,null,{"$f":"SUM(P321:S321/J321)","v":0}]
["OPDIMJUVET4Coloquios Juveniles","OPDIMJUVET4","OPD","IMJUVET",{"$f":"COUNTIF($D$4:D322,D322:D322)","v":4},"Coloquios Juveniles","porcentaje de jovenes que asistan a las charlas de concientización ","numero de asistentes ",3500,3700,"FERNANDO ANTONIO ALVAREZ ESTEVES",332464264041,"jovenestlaq@gmail.com",null,null,null,null,null,null,{"$f":"SUM(P322:S322/J322)","v":0}]
["OPDIMJUVET5Cultiva-T","OPDIMJUVET5","OPD","IMJUVET",{"$f":"COUNTIF($D$4:D323,D323:D323)","v":5},"Cultiva-T","Porcentaje de jovenes asistentes a los talleres de actividades culturales ","numero de jóvenes asistentes ",0,300,"FERNANDO ANTONIO ALVAREZ ESTEVES",332464264041,"jovenestlaq@gmail.com",null,null,null,null,null,null,{"$f":"SUM(P323:S323/J323)","v":0}]
["OPDIMJUVET6Cultura en tu escuela","OPDIMJUVET6","OPD","IMJUVET",{"$f":"COUNTIF($D$4:D324,D324:D324)","v":6},"Cultura en tu escuela","Porcentaje de escuelas atendidas mendiante el proyecto de Cultura en tu escuela","numero de escuelas atendidas ",0,17,"FERNANDO ANTONIO ALVAREZ ESTEVES",332464264041,"jovenestlaq@gmail.com",null,null,null,null,null,null,{"$f":"SUM(P324:S324/J324)","v":0}]
["OPDIMJUVET7Enchula tu barrio","OPDIMJUVET7","OPD","IMJUVET",{"$f":"COUNTIF($D$4:D325,D325:D325)","v":7},"Enchula tu barrio","Porcentaje de espacios recuperados ","número de espacios recuperados ",0,10,"FERNANDO ANTONIO ALVAREZ ESTEVES",332464264041,"jovenestlaq@gmail.com",null,null,null,null,null,null,{"$f":"SUM(P325:S325/J325)","v":0}]
["OPDIMJUVET8Festival Juventudes Tlaquepaque","OPDIMJUVET8","OPD","IMJUVET",{"$f":"COUNTIF($D$4:D326,D326:D326)","v":8},"Festival Juventudes Tlaquepaque","porcentaje de etapas para la realización del Festival Juvetudes Tlaquepaque  ","número de etapas realizadas ",0,3,"FERNANDO ANTONIO ALVAREZ ESTEVES",332464264041,"jovenestlaq@gmail.com",null,null,null,null,null,null,{"$f":"SUM(P326:S326/J326)","v":0}]
["OPDIMJUVET9Jóvenes con arte","OPDIMJUVET9","OPD","IMJUVET",{"$f":"COUNTIF($D$4:D327,D327:D327)","v":9},"Jóvenes con arte","porcentaje de juventudes que asisten a los talleres artesanales ","numero de juventudes asistentes ",0,60,"FERNANDO ANTONIO ALVAREZ ESTEVES",332464264041,"jovenestlaq@gmail.com",null,null,null,null,null,null,{"$f":"SUM(P327:S327/J327)","v":0}]
["OPDIMJUVET10Jóvenes Con-Ciencia","OPDIMJUVET10","OPD","IMJUVET",{"$f":"COUNTIF($D$4:D328,D328:D328)","v":10},"Jóvenes Con-Ciencia","porcentaje de jóvenes que asistan a las charlas de prevención ","numero de jóvenes asistentes",3500,3650,"FERNANDO ANTONIO ALVAREZ ESTEVES",332464264041,"jovenestlaq@gmail.com",null,null,null,null,null,null,{"$f":"SUM(P328:S328/J328)","v":0}]
["OPDIMJUVET11Juventudes Emprendedoras","OPDIMJUVET11","OPD","IMJUVET",{"$f":"COUNTIF($D$4:D329,D329:D329)","v":11},"Juventudes Emprendedoras","número de asistentes en las exposiciones de los productos y/o servicios de los jóvenes","numero de jóvenes asistentes",0,90,"FERNANDO ANTONIO ALVAREZ ESTEVES",332464264041,"jovenestlaq@gmail.com",null,null,null,null,null,null,{"$f":"SUM(P329:S329/J329)","v":0}]
["OPDIMJUVET12Juventudes con historia","OPDIMJUVET12","OPD","IMJUVET",{"$f":"COUNTIF($D$4:D330,D330:D330)","v":12},"Juventudes con historia","porcentaje de jóvenes que asistan a las charlas","numero de jóvenes asitentes",3500,3650,"FERNANDO ANTONIO ALVAREZ ESTEVES",332464264041,"jovenestlaq@gmail.com",null,null,null,null,null,null,{"$f":"SUM(P330:S330/J330)","v":0}]
["OPDIMJUVET13Juventudes a la cancha","OPDIMJUVET13","OPD","IMJUVET",{"$f":"COUNTIF($D$4:D331,D331:D331)","v":13},"Juventudes a la cancha","   Porcentaje de torneos para alejar a las juventudes de las drogas, realizados ","numero de torneos realizados ",0,8,"FERNANDO ANTONIO ALVAREZ ESTEVES",332464264041,"jovenestlaq@gmail.com",null,null,null,null,null,null,{"$f":"SUM(P331:S331/J331)","v":0}]
["OPDIMJUVET14Oportunidad joven","OPDIMJUVET14","OPD","IMJUVET",{"$f":"COUNTIF($D$4:D332,D332:D332)","v":14},"Oportunidad joven","porcentaje de convenios con el sector privado elaborados ","numero de convenios elaborados ",0,40,"FERNANDO ANTONIO ALVAREZ ESTEVES",332464264041,"jovenestlaq@gmail.com",null,null,null,null,null,null,{"$f":"SUM(P332:S332/J332)","v":0}]
["OPDIMJUVET15Conoce tus derechos","OPDIMJUVET15","OPD","IMJUVET",{"$f":"COUNTIF($D$4:D333,D333:D333)","v":15},"Conoce tus derechos","porcentaje de jóvenes que asistan a las charlas sobre sus derechos y obligaciones ","numero de jóvenes asistentes",3500,3700,"FERNANDO ANTONIO ALVAREZ ESTEVES",332464264041,"jovenestlaq@gmail.com",null,null,null,null,null,null,{"$f":"SUM(P333:S333/J333)","v":0}]
["OPDIMJUVET16Premio de las juventudes","OPDIMJUVET16","OPD","IMJUVET",{"$f":"COUNTIF($D$4:D334,D334:D334)","v":16},"Premio de las juventudes"," Porcentaje de jovenes que participan en el Premio de las juventudes ","número de jovenes participantes ",2000,2150,"FERNANDO ANTONIO ALVAREZ ESTEVES",332464264041,"jovenestlaq@gmail.com",null,null,null,null,null,null,{"$f":"SUM(P334:S334/J334)","v":0}]
["OPDIMJUVET17Servicio Social Integral","OPDIMJUVET17","OPD","IMJUVET",{"$f":"COUNTIF($D$4:D335,D335:D335)","v":17},"Servicio Social Integral","Porcentaje de convenios con escuelas para facilitar el Servicio Social ","numero convenios realizados ",50,60,"FERNANDO ANTONIO ALVAREZ ESTEVES",332464264041,"jovenestlaq@gmail.com",null,null,null,null,null,null,{"$f":"SUM(P335:S335/J335)","v":0}]
[{"$f":"B336&F336","v":"OPDIMJUVET18Suetertón & Juguetón"},"OPDIMJUVET18","OPD","IMJUVET",{"$f":"COUNTIF($D$4:D336,D336:D336)","v":18},"Suetertón & Juguetón"," Porcentaje de paquetes de juguete y sueter a las personas vulnerables, entregados","número de paquetes (juguete y sueter) entregados ",0,200,"FERNANDO ANTONIO ALVAREZ ESTEVES",332464264041,"jovenestlaq@gmail.com",null,null,null,null,null,null,{"$f":"SUM(P336:S336/J336)","v":0}]
["OPDIMJUVET19Tlaque-Can","OPDIMJUVET19","OPD","IMJUVET",{"$f":"COUNTIF($D$4:D337,D337:D337)","v":19},"Tlaque-Can","Porcerntaje de asistentes al evento Tlaque-Can  ","número de asistentes ",0,350,"FERNANDO ANTONIO ALVAREZ ESTEVES",332464264041,"jovenestlaq@gmail.com",null,null,null,null,null,null,{"$f":"SUM(P337:S337/J337)","v":0}]
["OPDIMMUJERES1Enfoque Transversal con Perspectiva de Género","OPDIMMUJERES1","OPD","IMMUJERES",{"$f":"COUNTIF($D$4:D338,D338:D338)","v":1},"Enfoque Transversal con Perspectiva de Género","Porcentaje de acciones con perspectiva de Género reportadas.","Número de Acciones reportadas ",30,30,"Diana Elizabeth Quirarte de la Torre","3335627010 Ext 220","tlaquepaqueinmujeres@gmail.com",null,"Eficacia",5,null,null,null,{"$f":"SUM(P338:S338/J338)","v":0.16666666666666666},"Se realizó un convenio con Casa Calera, que atiende a mujeres con situaciones de vulnerabilidad enfocadas en las adicciones o temas conductuales. Se asistió a una reunión de trabajo en la Comisaría de Seguridad Municipal de Tlaquepaque sobre el Programa Sendero Seguro, que buscaba garantizar la seguridad de las escuelas y sus estudiantes. Se llevó a cabo de manera interinstitucional la colaboración del Instituto en jornadas de salud junto a otras dependencias y OPDs, en las que se buscaba tener mayor cercanía con la ciudadanía. De igual manera, se asistió a la Comisaría de Seguridad de Tlaquepaque referente a la Mesa de Construcción de Paz y Seguridad, en la que se buscó unir esfuerzos de coordinación entre los tres niveles de gobierno para la lucha contra la violencia y la impunidad. Finalmente, se realizó un foro con la temática \"Retos y Oportunidades en la Defensa de Derechos Humanos de Mujeres Víctimas de Violencia\" con invitadas especialistas en dicho tema. Siendo 5 actividades con las que culminamos dichas actividades."]
["OPDIMMUJERES2Enfoque Transversal con Perspectiva de Género","OPDIMMUJERES2","OPD","IMMUJERES",{"$f":"COUNTIF($D$4:D339,D339:D339)","v":2},"Enfoque Transversal con Perspectiva de Género","Porcentaje de Instrumentos normativos y programaticos observados para incorporar la Perspectiva de Género. ","Número de Instrumentos incorporados ",1,3,"Diana Elizabeth Quirarte de la Torre","3335627010 Ext 220","tlaquepaqueinmujeres@gmail.com",null,"Eficacia",1,null,null,null,{"$f":"SUM(P339:S339/J339)","v":0.33333333333333331},"Se analizó y trabajo  en actualizaciones sobre el Reglamento Interno del propio Instituto para integrar la perspectiva de género, se atendio la petición por parte de reglamentación para su pronta actualización."]
["OPDIMMUJERES3Enfoque Transversal con Perspectiva de Género","OPDIMMUJERES3","OPD","IMMUJERES",{"$f":"COUNTIF($D$4:D340,D340:D340)","v":3},"Enfoque Transversal con Perspectiva de Género","Porcentaje de mujeres beneficiadas por incorporación de perspectiva de Género a los Anexos de planeación.","Número de mujeres beneficiadas",1500,2000,"Diana Elizabeth Quirarte de la Torre","3335627010 Ext 220","tlaquepaqueinmujeres@gmail.com",null,"Eficacia",5,null,null,null,{"$f":"SUM(P340:S340/J340)","v":2.5000000000000001E-3},"Se realizaron 5 formatos de invitaciones y oficios que incluyeron la perspectiva de género con lenguaje incluyente."]
["OPDIMMUJERES4Libres por la igualdad","OPDIMMUJERES4","OPD","IMMUJERES",{"$f":"COUNTIF($D$4:D341,D341:D341)","v":4},"Libres por la igualdad","Porcentaje de personas beneficiadas por las acciones de promoción","Número de personas beneficiadas ",1500,2000,"Diana Elizabeth Quirarte de la Torre","3335627010 Ext 220","tlaquepaqueinmujeres@gmail.com",null,"Eficacia",5,null,null,null,{"$f":"SUM(P341:S341/J341)","v":2.5000000000000001E-3},"Se realizaron 5 actividades para la promoción de la Igualdad de Género, entre ellas: acciones a traves de campañas de difusión a través de las diversas herramientas de comunicación interna del propio Instituto, como por ejemplo Facebook, Instagram y Twitter. Se tomaron en cuenta acciones en la comunidad, en donde el Instituto asistió a diversas delegaciones, como Santa Anita, Santa María Tequepexpan, Toluquilla, Loma Bonita, San Sebastianito, San Martín de las Flores y  San Pedrito.Se implementó, en apoyo a las mujeres víctimas de violencia que se atienden en el propio Instituto, el Programa de Ludoteca, en el que todas aquellas mujeres que lleguen solicitando atención y vengan con bebés o niños, también puedan tener un espacio digno con ambiente a cargo de personal especializado mientras se le brinda la atención a la madre. Se implementó la participación política de un grupo de mujeres activistas en uno de los eventos que realizó el Instituto, a modo de que intervinieran con una pinta de graffiti artístico conmemorando la eliminación de la violencia de género. Se llevó a cabo la colaboración en conjunto con grandes empresas importantes para consolidar la autonomía económica de las mujeres víctimas de violencia que atiende el Instituto, en donde se les ofrece una amplia bolsa de trabajo con las distintas empresas, como por ejemplo: Sello Rojo, LALA, Kellogg's y algunas franquicias de la cadena de gasolineras PEMEX."]
["OPDIMMUJERES5Libres por la igualdad","OPDIMMUJERES5","OPD","IMMUJERES",{"$f":"COUNTIF($D$4:D342,D342:D342)","v":5},"Libres por la igualdad","Porcentaje de Eventos conmemorativos para promover y reconocer los derechos de las mujeres en su diversidad, realizados","Número de Eventos realizados  ",1,1,"Diana Elizabeth Quirarte de la Torre","3335627010 Ext 220","tlaquepaqueinmujeres@gmail.com",null,"Eficacia",161,null,null,null,{"$f":"SUM(P342:S342/J342)","v":161},"Con las 5 acciones de promoción de la Igualdad de Género realizadas en colaboración con empresas privadas y personal del propio Instituto, se logró impactar a 161 personas con el objetivo de ayudarlas y orientarlas en los temas de Igualdad Sustantiva."]
["OPDIMMUJERES6Vivir sin violencia","OPDIMMUJERES6","OPD","IMMUJERES",{"$f":"COUNTIF($D$4:D343,D343:D343)","v":6},"Vivir sin violencia","Porcentaje de atenciones de primer contacto, realizadas","Número de atenciones realizadas",425,430]
["OPDIMMUJERES7Vivir sin violencia","OPDIMMUJERES7","OPD","IMMUJERES",{"$f":"COUNTIF($D$4:D344,D344:D344)","v":7},"Vivir sin violencia","Porcentaje de acciones de prevención de la violencia de género en la comunidad, realizadas  ","Número de acciones realizadas",30,40,"Diana Elizabeth Quirarte de la Torre","3335627010 Ext 220","tlaquepaqueinmujeres@gmail.com",null,"Eficacia",10,null,null,null,{"$f":"SUM(P344:S344/J344)","v":0.25},"Se realizaron 10 acciones de prevención de la violencia de género en las comunidades, por mencionar algunas de estas acciones:   caravanas de salud en las distintas delegaciones del municipio, en donde se brindó asesoramiento y orientación a mujeres sobre los lugares a los que debían acudir para recibir atención y seguimiento de su caso. En eventos como un cineforo, se proyectó una película llamada \"Desde mi Cielo\" que abordaba la violencia y la concientización de cómo la experimentan las mujeres. Se llevó a cabo un cambaceo en dichos eventos y caravanas, en donde se proporcionó publicidad sobre cómo prevenir la violencia y se ofrecieron números de contacto para que las mujeres puedan acudir en caso de estar viviendo algún tipo de violencia. También se realizaron talleres de prevención y concientización sobre la violencia de género. Además, se establecieron juntas de trabajo con la directora de UVI para fortalecer lazos colaborativos en beneficio de las mujeres, así como con la comisaria de seguridad de Tlaquepaque en conjunto con los tres niveles de gobierno. En estas juntas, se previó la prevención de delitos que atenten contra la integridad de las estudiantes, y se promovió la concientización sobre la eliminación de la violencia de género a través de la jornada del 25 de noviembre, en la que se desarrollaron temas para la prevención de violencias hacia las mujeres."]
["OPDIMMUJERES8Vivir sin violencia","OPDIMMUJERES8","OPD","IMMUJERES",{"$f":"COUNTIF($D$4:D345,D345:D345)","v":8},"Vivir sin violencia","Porcentaje de personas beneficiadas con las acciones de prevención, atención y profesionalización en materia de violencia contra las mujeres.","Número de personas beneficiarias",1500,1500,"Diana Elizabeth Quirarte de la Torre","3335627010 Ext 220","tlaquepaqueinmujeres@gmail.com",null,"Eficacia",0,null,null,null,{"$f":"SUM(P345:S345/J345)","v":0},"No se obtuvieron actualizaciones de profesionalización ya que se estuvo llevando a cabo su planificación. "]
["OPDIMMUJERES9Vivir sin violencia","OPDIMMUJERES9","OPD","IMMUJERES",{"$f":"COUNTIF($D$4:D346,D346:D346)","v":9},"Vivir sin violencia","Porcentaje de eventos conmemorativos de fechas o acciones contra la violencia de género, realizados ","Número de eventos realizados",1,1,"Diana Elizabeth Quirarte de la Torre","3335627010 Ext 220","tlaquepaqueinmujeres@gmail.com",null,"Eficacia",1,null,null,null,{"$f":"SUM(P346:S346/J346)","v":1},"Se dio inicio y conclusión al evento conmemorativo del 25N \"Día de la Eliminación de la Violencia de Género\" llamado \" Huellas con Historia\" contando con participación de activistas, mujeres de la comunidad de San Pedro Tlaquepaque,  regidores, directivos y perosnal de distintas dependencias y OPDs, teniendo un impacto de mas de 100 mujeres asistentes. "]
["COMUDE","COMUDE","OPD","COMUDE",{"$f":"COUNTIF($D$4:D347,D347:D347)","v":1},"Administración y Gestión Institucional","Porcentaje de convenios elaborados para el programa de Administración y Gestión Institucional.","Número de convenios elaborados",241,250,"Jorge Luis Martínez Avilés",3335627081,"jorgemartinez@comudetlaquepaque.com",null,null,null,null,null,null,{"$f":"SUM(P347:S347/J347)","v":0}]
["COMUDE","COMUDE","OPD","COMUDE",{"$f":"COUNTIF($D$4:D348,D348:D348)","v":2},"Macro Eventos","Porcentaje de Macro Eventos Realizados.","Número de Macro Eventos Realizados",18,20,"Marco Abel Palencia Suarez",3335627087,"marcopalencia@comudetlaquepaque.com",null,null,null,null,null,null,{"$f":"SUM(P348:S348/J348)","v":0}]
["COMUDE","COMUDE","OPD","COMUDE",{"$f":"COUNTIF($D$4:D349,D349:D349)","v":3},"Vía recreactiva metropolitana San Pedro Tlaquepaque","Porcentaje de Jornadas dominicales de la Vía RecreActiva, realizadas","Número de jornadas realizadas ",55,55,"Jesús Lozano Castañeda",3335627081,"jesuslozano@comudetlaquepaque.com",null,null,null,null,null,null,{"$f":"SUM(P349:S349/J349)","v":0}]
["COMUDE","COMUDE","OPD","COMUDE",{"$f":"COUNTIF($D$4:D350,D350:D350)","v":4},"Infraestructura","Porcentaje de Intervenciones en el programa de Mantenimiento de Espacios Públicos realizadas.","Número de intervenciones realizadas.",120,140,"Roberto Ríos",3335627081,"robertorios@comudetlaquepaque.com",null,null,null,null,null,null,{"$f":"SUM(P350:S350/J350)","v":0}]
["COMUDE","COMUDE","OPD","COMUDE",{"$f":"COUNTIF($D$4:D351,D351:D351)","v":5},"Tlaquepaque Acude","Porcentaje de Escuelas y talleres de activación física implementados.","Número de escuelas y talleres de activación física implementados.",130,150,"Gustavo Mitre Anaya",3335627087,"gustavomitre@comudetlaquepaque.com",null,null,null,null,null,null,{"$f":"SUM(P351:S351/J351)","v":0}]
["COMUDE","COMUDE","OPD","COMUDE",{"$f":"COUNTIF($D$4:D352,D352:D352)","v":6},"Tlaquepaque Acude","Porcentaje de Ligas deportivas implementadas.","Número ligas deportivas implementadas.",37,40,"Gustavo Mitre Anaya",3335627087,"gustavomitre@comudetlaquepaque.com",null,null,null,null,null,null,{"$f":"SUM(P352:S352/J352)","v":0}]
["PNC","PREMIO NACIONAL DE LA CERAMICA","OPD","PREMIO NACIONAL DE LA CERÁMICA",{"$f":"COUNTIF($D$4:D353,D353:D353)","v":1},"Premio Nacional de la Cerámica","CONVOCAR A LOS ARTESANOS DE TODA LA REPÙBLICA, PARA DAR A CONOCER SU TALENTO E INSPIRACIÒN AL PARTICIPAR CON SUS OBRAS EN EL CERTAMEN DEL PREMIO NACIONAL DE LA CERÀMICA",0,0,1,"DAVID GALLEGOS","33-36-39-56-46","pantaleonpanduromuseo@gmail.com",null,null,null,null,null,null,{"$f":"SUM(P353:S353/J353)","v":0}]

{"sheet":"Hoja1","index":5,"n_rows":272,"n_cols":17,"rows_kept":272,"cut":false,"hidden":true,"merged":[]}
[]
[]
[null,null,"OFICIALIA_MAYOR","DEPARTAMENTO DE CAPACITACION Y SERVICIO SOCIAL","Capacitación en materia de Derechos Humanos",null,null,null,null,null,null,null,null,null,null,"OFICIALIA_MAYOR","DEPARTAMENTO DE CAPACITACION Y SERVICIO SOCIAL"]
[null,null,"OFICIALIA_MAYOR","DEPARTAMENTO DE CAPACITACION Y SERVICIO SOCIAL","Certificación en el ECO385",null,null,null,null,null,null,null,null,null,null,"OFICIALIA_MAYOR","DEPARTAMENTO DE INCIDENCIAS Y CALCULO DE NOMINA"]
[null,null,"OFICIALIA_MAYOR","DEPARTAMENTO DE CAPACITACION Y SERVICIO SOCIAL","Desarrollo Académico Básico de las y los servidores públicos de la Secretaría de Servicios Públicos y Medio Ambiente",null,null,null,null,null,null,null,null,null,null,"OFICIALIA_MAYOR","DIRECCION DE DESARROLLO ORGANIZACIONAL"]
[null,null,"OFICIALIA_MAYOR","DEPARTAMENTO DE CAPACITACION Y SERVICIO SOCIAL","Difusión de Protocolos",null,null,null,null,null,null,null,null,null,null,"OFICINA_DE_PRESIDENCIA","DIRECCION DE ATENCION Y VINCULACION CIUDADANA"]
[null,null,"OFICIALIA_MAYOR","DEPARTAMENTO DE CAPACITACION Y SERVICIO SOCIAL","Fortalecimiento y Desarrollo de Habilidades Blandas y Desarrollo Humano",null,null,null,null,null,null,null,null,null,null,"OFICINA_DE_PRESIDENCIA","DIRECCION DE COMUNICACION ESTRATEGICA"]
[null,null,"OFICIALIA_MAYOR","DEPARTAMENTO DE CAPACITACION Y SERVICIO SOCIAL","Fortalecimiento y Desarrollo de Habilidades Técnicas",null,null,null,null,null,null,null,null,null,null,"OFICINA_DE_PRESIDENCIA","SUBDIRECCION DE GESTION DE PARTICIPACION TERRITORIAL"]
[null,null,"OFICIALIA_MAYOR","DEPARTAMENTO DE CAPACITACION Y SERVICIO SOCIAL","Promoción de estilos de vida y entornos laboral, alimentaria y físicamente saludable para el personal",null,null,null,null,null,null,null,null,null,null,"OFICINA_DE_PRESIDENCIA","UNIDAD DE TRANSPARENCIA"]
[null,null,"OFICIALIA_MAYOR","DEPARTAMENTO DE CAPACITACION Y SERVICIO SOCIAL","Tlaquepaque Universitario",null,null,null,null,null,null,null,null,null,null,"OPD","COMUCAT"]
[null,null,"OFICIALIA_MAYOR","DEPARTAMENTO DE INCIDENCIAS Y CALCULO DE NOMINA","Pago de Nóminas",null,null,null,null,null,null,null,null,null,null,"OPD","COMUDE"]
[null,null,"OFICIALIA_MAYOR","DIRECCION DE DESARROLLO ORGANIZACIONAL","Armonización Organizativa",null,null,null,null,null,null,null,null,null,null,"OPD","IMJUVET"]
[null,null,"OFICIALIA_MAYOR","DIRECCION DE DESARROLLO ORGANIZACIONAL","Elaboración de Manuales Administrativos",null,null,null,null,null,null,null,null,null,null,"OPD","IMMUJERES"]
[null,null,"OFICINA_DE_PRESIDENCIA","DIRECCION DE ATENCION Y VINCULACION CIUDADANA","Atención a Reportes de Servicios Públicos, Información sobre Ayudas Sociales y Reportes en General",null,null,null,null,null,null,null,null,null,null,"OPD","PREMIO NACIONAL DE LA CERÁMICA"]
[null,null,"OFICINA_DE_PRESIDENCIA","DIRECCION DE COMUNICACION ESTRATEGICA","Campañas en Redes Sociales",null,null,null,null,null,null,null,null,null,null,"OPD","Sistema de Desarrollo Integral de la Familia (DIF) de Tlaquepaque"]
[null,null,"OFICINA_DE_PRESIDENCIA","SUBDIRECCION DE GESTION DE PARTICIPACION TERRITORIAL","Actualizacion de Organizaciones Vecinales",null,null,null,null,null,null,null,null,null,null,"SECRETARIA_DE_ADMINISTRACION_Y_FINANZAS","DEPARTAMENTO DE BIENES MUEBLES"]
[null,null,"OFICINA_DE_PRESIDENCIA","SUBDIRECCION DE GESTION DE PARTICIPACION TERRITORIAL","Atencion y capacitacion a organizaciones vecinales en materia de participacion ciudadana",null,null,null,null,null,null,null,null,null,null,"SECRETARIA_DE_ADMINISTRACION_Y_FINANZAS","DEPARTAMENTO DE REDES Y TELECOMUNICACIONES"]
[null,null,"OFICINA_DE_PRESIDENCIA","SUBDIRECCION DE GESTION DE PARTICIPACION TERRITORIAL","Socializando y perifoneando para la cuidadania",null,null,null,null,null,null,null,null,null,null,"SECRETARIA_DE_ADMINISTRACION_Y_FINANZAS","DEPARTAMENTO DE SERVICIOS GENERALES"]
[null,null,"OFICINA_DE_PRESIDENCIA","UNIDAD DE TRANSPARENCIA","Programa de Transparencia y Atención de solicitudes de acceso a la información y protección de datos personales",null,null,null,null,null,null,null,null,null,null,"SECRETARIA_DE_ADMINISTRACION_Y_FINANZAS","DEPARTAMENTO DE SOPORTE Y MANTENIMIENTO"]
[null,null,"OPD","COMUCAT","Atención Terapéutica",null,null,null,null,null,null,null,null,null,null,"SECRETARIA_DE_ADMINISTRACION_Y_FINANZAS","DEPARTAMENTO DE TALLER MUNICIPAL"]
[null,null,"OPD","COMUCAT","Capacitaciones Preventivas en Adicciones",null,null,null,null,null,null,null,null,null,null,"SECRETARIA_DE_ADMINISTRACION_Y_FINANZAS","DIRECCION DE CATASTRO"]
[null,null,"OPD","COMUCAT","Espacios COMUCAT",null,null,null,null,null,null,null,null,null,null,"SECRETARIA_DE_ADMINISTRACION_Y_FINANZAS","DIRECCION DE CONTABILIDAD Y GLOSA"]
[null,null,"OPD","COMUCAT","Red de Apoyo para Establecimientos especializado en Adicciones",null,null,null,null,null,null,null,null,null,null,"SECRETARIA_DE_ADMINISTRACION_Y_FINANZAS","DIRECCION DE EGRESOS"]
[null,null,"OPD","COMUDE","Administración y Gestión Institucional",null,null,null,null,null,null,null,null,null,null,"SECRETARIA_DE_ADMINISTRACION_Y_FINANZAS","DIRECCION DE INGRESOS"]
[null,null,"OPD","COMUDE","Infraestructura",null,null,null,null,null,null,null,null,null,null,"SECRETARIA_DE_ADMINISTRACION_Y_FINANZAS","DIRECCION DE RECURSOS MATERIALES"]
[null,null,"OPD","COMUDE","Macro Eventos",null,null,null,null,null,null,null,null,null,null,"SECRETARIA_DE_ADMINISTRACION_Y_FINANZAS","SUBDIRECCION DE COMPRAS Y ADQUISICIONES"]
[null,null,"OPD","COMUDE","Tlaquepaque Acude",null,null,null,null,null,null,null,null,null,null,"SECRETARIA_DE_ADMINISTRACION_Y_FINANZAS","SUBDIRECCION DE CONTROL DE PAGOS"]
[null,null,"OPD","COMUDE","Vía recreactiva metropolitana San Pedro Tlaquepaque",null,null,null,null,null,null,null,null,null,null,"SECRETARIA_DE_ADMINISTRACION_Y_FINANZAS","SUBDIRECCION DE PATRIMONIO"]
[null,null,"OPD","IMJUVET","Beca Joven",null,null,null,null,null,null,null,null,null,null,"SECRETARIA_DE_BIENESTAR","DIRECCION DE EDUCACION"]
[null,null,"OPD","IMJUVET","Cabildo Juvenil",null,null,null,null,null,null,null,null,null,null,"SECRETARIA_DE_BIENESTAR","DIRECCION DE PROGRAMAS SOCIALES PARA EL BIENESTAR"]
[null,null,"OPD","IMJUVET","Cine en tu Barrio",null,null,null,null,null,null,null,null,null,null,"SECRETARIA_DE_BIENESTAR","SUBDIRECCION DE DESARROLLO Y ATENCION AL SECTOR AGROPECUARIO"]
[null,null,"OPD","IMJUVET","Coloquios Juveniles",null,null,null,null,null,null,null,null,null,null,"SECRETARIA_DE_CONTRALORIA_MUNICIPAL_Y_COMBATE_A_LA_CORRUPCION","DIRECCION DE AUDITORIA A OBRA PUBLICA Y SERVICIOS"]
[null,null,"OPD","IMJUVET","Conoce tus derechos",null,null,null,null,null,null,null,null,null,null,"SECRETARIA_DE_CONTRALORIA_MUNICIPAL_Y_COMBATE_A_LA_CORRUPCION","DIRECCION DE AUDITORIA GUBERNAMENTAL Y COMBATE A LA CORRUPCION"]
[null,null,"OPD","IMJUVET","Cultiva-T",null,null,null,null,null,null,null,null,null,null,"SECRETARIA_DE_CONTRALORIA_MUNICIPAL_Y_COMBATE_A_LA_CORRUPCION","DIRECCION DE RESPONSABILIDADES Y EVOLUCION PATRIMONIAL"]
[null,null,"OPD","IMJUVET","Cultura en tu escuela",null,null,null,null,null,null,null,null,null,null,"SECRETARIA_DE_CONTRALORIA_MUNICIPAL_Y_COMBATE_A_LA_CORRUPCION","SUBDIRECCION DE AUDITORIA FINANCIERA Y DE DESEMPEÑO"]
[null,null,"OPD","IMJUVET","Enchula tu barrio",null,null,null,null,null,null,null,null,null,null,"SECRETARIA_DE_FOMENTO_ECONOMICO_Y_CULTURAL","DIRECCIÓN DE CEMENTERIOS"]
[null,null,"OPD","IMJUVET","Festival Juventudes Tlaquepaque",null,null,null,null,null,null,null,null,null,null,"SECRETARIA_DE_FOMENTO_ECONOMICO_Y_CULTURAL","DIRECCION DE CULTURA"]
[null,null,"OPD","IMJUVET","Jóvenes con arte",null,null,null,null,null,null,null,null,null,null,"SECRETARIA_DE_FOMENTO_ECONOMICO_Y_CULTURAL","DIRECCION DE DESARROLLO ARTESANAL Y TURISTICO"]
[null,null,"OPD","IMJUVET","Jóvenes Con-Ciencia",null,null,null,null,null,null,null,null,null,null,"SECRETARIA_DE_FOMENTO_ECONOMICO_Y_CULTURAL","DIRECCION DE GESTION EMPRESARIAL E INDUSTRIAL"]
[null,null,"OPD","IMJUVET","Juventudes a la cancha",null,null,null,null,null,null,null,null,null,null,"SECRETARIA_DE_FOMENTO_ECONOMICO_Y_CULTURAL","DIRECCION DEL CENTRO HISTORICO"]
[null,null,"OPD","IMJUVET","Juventudes con historia",null,null,null,null,null,null,null,null,null,null,"SECRETARIA_DE_FOMENTO_ECONOMICO_Y_CULTURAL","SUBDIRECCION DE BIBLIOTECAS"]
[null,null,"OPD","IMJUVET","Juventudes Emprendedoras",null,null,null,null,null,null,null,null,null,null,"SECRETARIA_DE_FOMENTO_ECONOMICO_Y_CULTURAL","SUBDIRECCION DE MUSEOS"]
[null,null,"OPD","IMJUVET","Oportunidad joven",null,null,null,null,null,null,null,null,null,null,"SECRETARIA_DE_GOBERNANZA_Y_TERRITORIO","DELEGACION SAN SEBASTIANITO"]
[null,null,"OPD","IMJUVET","Premio de las juventudes",null,null,null,null,null,null,null,null,null,null,"SECRETARIA_DE_GOBERNANZA_Y_TERRITORIO","DEPARTAMENTO DE ASUNTOS RELIGIOSOS"]
[null,null,"OPD","IMJUVET","Servicio Social Integral",null,null,null,null,null,null,null,null,null,null,"SECRETARIA_DE_GOBERNANZA_Y_TERRITORIO","DEPARTAMENTO DE OFICINA DE PASAPORTES"]
[null,null,"OPD","IMJUVET","Suetertón & Juguetón",null,null,null,null,null,null,null,null,null,null,"SECRETARIA_DE_GOBERNANZA_Y_TERRITORIO","DIRECCION DE ARCHIVO MUNICIPAL"]
[null,null,"OPD","IMJUVET","Tlaque-Can",null,null,null,null,null,null,null,null,null,null,"SECRETARIA_DE_GOBERNANZA_Y_TERRITORIO","DIRECCION DE DELEGACIONES Y AGENCIAS"]
[null,null,"OPD","IMMUJERES","Enfoque Transversal con Perspectiva de Género",null,null,null,null,null,null,null,null,null,null,"SECRETARIA_DE_GOBERNANZA_Y_TERRITORIO","DIRECCION DE INSPECCION Y VIGILANCIA"]
[null,null,"OPD","IMMUJERES","Libres por la igualdad",null,null,null,null,null,null,null,null,null,null,"SECRETARIA_DE_GOBERNANZA_Y_TERRITORIO","DIRECCION DE PADRON Y LICENCIAS"]
[null,null,"OPD","IMMUJERES","Vivir sin violencia",null,null,null,null,null,null,null,null,null,null,"SECRETARIA_DE_GOBERNANZA_Y_TERRITORIO","DIRECCION DE PADRON Y LICENCIAS 1"]
[null,null,"OPD","PREMIO NACIONAL DE LA CERÁMICA","Premio Nacional de la Cerámica",null,null,null,null,null,null,null,null,null,null,"SECRETARIA_DE_GOBERNANZA_Y_TERRITORIO","SUBDIRECCION DE ATENCION E INSPECCION A TIANGUIS Y ESPACIOS ABIERTOS"]
[null,null,"OPD","Sistema de Desarrollo Integral de la Familia (DIF) de Tlaquepaque","Albergue Vista Hermosa",null,null,null,null,null,null,null,null,null,null,"SECRETARIA_DE_GOBERNANZA_Y_TERRITORIO","SUBDIRECCION DE ATENCION E INSPECCION DE MERCADOS"]
[null,null,"OPD","Sistema de Desarrollo Integral de la Familia (DIF) de Tlaquepaque","Área Alimentaria",null,null,null,null,null,null,null,null,null,null,"SECRETARIA_DE_GOBERNANZA_Y_TERRITORIO","SUBDIRECCION DE INSPECCION AMBIENTAL"]
[null,null,"OPD","Sistema de Desarrollo Integral de la Familia (DIF) de Tlaquepaque","Área Médica",null,null,null,null,null,null,null,null,null,null,"SECRETARIA_DE_LA_CONSEJERIA_JURIDICA","DEPARTAMENTO DE RECLUTAMIENTO MILITAR"]
[null,null,"OPD","Sistema de Desarrollo Integral de la Familia (DIF) de Tlaquepaque","Atención a la Población en Condiciones de Emergencia",null,null,null,null,null,null,null,null,null,null,"SECRETARIA_DE_LA_CONSEJERIA_JURIDICA","DIRECCION DE APOYO A CABILDO"]
[null,null,"OPD","Sistema de Desarrollo Integral de la Familia (DIF) de Tlaquepaque","Atención Integral a personas a Adultos Mayores",null,null,null,null,null,null,null,null,null,null,"SECRETARIA_DE_LA_CONSEJERIA_JURIDICA","DIRECCION DE DERECHOS HUMANOS"]
[null,null,"OPD","Sistema de Desarrollo Integral de la Familia (DIF) de Tlaquepaque","CDC",null,null,null,null,null,null,null,null,null,null,"SECRETARIA_DE_LA_CONSEJERIA_JURIDICA","DIRECCION DE MEDIACION Y JUZGADOS CIVICOS MUNICIPALES"]
[null,null,"OPD","Sistema de Desarrollo Integral de la Familia (DIF) de Tlaquepaque","Clínica Deportiva Prevención de Adicciones",null,null,null,null,null,null,null,null,null,null,"SECRETARIA_DE_LA_CONSEJERIA_JURIDICA","DIRECCION DE REGISTRO CIVIL"]
[null,null,"OPD","Sistema de Desarrollo Integral de la Familia (DIF) de Tlaquepaque","Crecer sin Violencia",null,null,null,null,null,null,null,null,null,null,"SECRETARIA_DE_LA_CONSEJERIA_JURIDICA","DIRECCION LEGAL-CONSULTIVA"]
[null,null,"OPD","Sistema de Desarrollo Integral de la Familia (DIF) de Tlaquepaque","Fortalecimiento Sociofamiliar",null,null,null,null,null,null,null,null,null,null,"SECRETARIA_DE_LA_CONSEJERIA_JURIDICA","OFICINA DEL REGISTRO CIVIL NO. 1"]
[null,null,"OPD","Sistema de Desarrollo Integral de la Familia (DIF) de Tlaquepaque","Inclusión y Derechos Humanos de las Personas con Discapacidad",null,null,null,null,null,null,null,null,null,null,"SECRETARIA_DE_LA_CONSEJERIA_JURIDICA","SECRETARIA DE LA CONSEJERIA JURIDICA"]
[null,null,"OPD","Sistema de Desarrollo Integral de la Familia (DIF) de Tlaquepaque","Laboratorio Clínico",null,null,null,null,null,null,null,null,null,null,"SECRETARIA_DE_OBRAS_PUBLICAS","DIRECCION DE CONSTRUCCION Y MANTENIMIENTO"]
[null,null,"OPD","Sistema de Desarrollo Integral de la Familia (DIF) de Tlaquepaque","Mejoramiento Educativo",null,null,null,null,null,null,null,null,null,null,"SECRETARIA_DE_OBRAS_PUBLICAS","DIRECCION DE PRESUPUESTOS Y CONTRATACION DE OBRA PUBLICA"]
[null,null,"OPD","Sistema de Desarrollo Integral de la Familia (DIF) de Tlaquepaque","Por una Gestión Responsable",null,null,null,null,null,null,null,null,null,null,"SECRETARIA_DE_OBRAS_PUBLICAS","SUBDIRECCION DE INSPECCION DE CONTROL DE LA EDIFICACION Y ORDENAMIENTO TERRITORIAL"]
[null,null,"OPD","Sistema de Desarrollo Integral de la Familia (DIF) de Tlaquepaque","Prevención de Embarazo Adolescente",null,null,null,null,null,null,null,null,null,null,"SECRETARIA_DE_OBRAS_PUBLICAS","SUBDIRECCION DE MANTENIMIENTO"]
[null,null,"OPD","Sistema de Desarrollo Integral de la Familia (DIF) de Tlaquepaque","Prevención y Detención de abuso Sexual",null,null,null,null,null,null,null,null,null,null,"SECRETARIA_DE_PLANIFICACION_ANALISIS_Y_GESTION_URBANA","DEPARTAMENTO DE EVALUACION DE PROYECTOS Y PROGRAMAS"]
[null,null,"OPD","Sistema de Desarrollo Integral de la Familia (DIF) de Tlaquepaque","Procuraduría de Protección de NNA",null,null,null,null,null,null,null,null,null,null,"SECRETARIA_DE_PLANIFICACION_ANALISIS_Y_GESTION_URBANA","DEPARTAMENTO DE GESTION TERRITORIAL SUELO Y VIVIENDA"]
[null,null,"OPD","Sistema de Desarrollo Integral de la Familia (DIF) de Tlaquepaque","Programa de Atención a la Discapacidad",null,null,null,null,null,null,null,null,null,null,"SECRETARIA_DE_PLANIFICACION_ANALISIS_Y_GESTION_URBANA","DEPARTAMENTO DE INDICADORES Y METAS PARA RESULTADOS"]
[null,null,"OPD","Sistema de Desarrollo Integral de la Familia (DIF) de Tlaquepaque","Protección y Atención ante casos de Violencia Familia",null,null,null,null,null,null,null,null,null,null,"SECRETARIA_DE_PLANIFICACION_ANALISIS_Y_GESTION_URBANA","DEPARTAMENTO DE PLANEACION URBANA"]
[null,null,"OPD","Sistema de Desarrollo Integral de la Familia (DIF) de Tlaquepaque","Protección y Restitución de Derechos de Niñas. Niños y Adolescentes",null,null,null,null,null,null,null,null,null,null,"SECRETARIA_DE_PLANIFICACION_ANALISIS_Y_GESTION_URBANA","DEPARTAMENTO DEL SISTEMA DE EVALUACION DEL DESEMPEÑO"]
[null,null,"OPD","Sistema de Desarrollo Integral de la Familia (DIF) de Tlaquepaque","Psicología",null,null,null,null,null,null,null,null,null,null,"SECRETARIA_DE_PLANIFICACION_ANALISIS_Y_GESTION_URBANA","DIRECCION DE GESTION DEL DESEMPEÑO, EVALUACION DE RESULTADOS Y TABLERO DE CONTROL"]
[null,null,"OPD","Sistema de Desarrollo Integral de la Familia (DIF) de Tlaquepaque","Rehabilitación",null,null,null,null,null,null,null,null,null,null,"SECRETARIA_DE_PLANIFICACION_ANALISIS_Y_GESTION_URBANA","DIRECCION DE GESTION TERRITORIAL Y PLANEACION URBANA"]
[null,null,"OPD","Sistema de Desarrollo Integral de la Familia (DIF) de Tlaquepaque","Situación de Calle",null,null,null,null,null,null,null,null,null,null,"SECRETARIA_DE_PLANIFICACION_ANALISIS_Y_GESTION_URBANA","DIRECCION DEL BANCO INTEGRADO DE PROYECTOS Y PROGRAMAS"]
[null,null,"OPD","Sistema de Desarrollo Integral de la Familia (DIF) de Tlaquepaque","Talleres de Esperanza",null,null,null,null,null,null,null,null,null,null,"SECRETARIA_DE_PLANIFICACION_ANALISIS_Y_GESTION_URBANA","SECRETARIA DE PLANIFICACION, ANALISIS Y GESTION URBANA"]
[null,null,"SECRETARIA_DE_ADMINISTRACION_Y_FINANZAS","DEPARTAMENTO DE BIENES MUEBLES","Actualización y control de los inventarios de los bienes muebles.",null,null,null,null,null,null,null,null,null,null,"SECRETARIA_DE_SALUD","DEPARTAMENTO DE TRABAJO SOCIAL"]
[null,null,"SECRETARIA_DE_ADMINISTRACION_Y_FINANZAS","DEPARTAMENTO DE REDES Y TELECOMUNICACIONES","Instalación de Cámaras de Seguridad",null,null,null,null,null,null,null,null,null,null,"SECRETARIA_DE_SALUD","DIRECCION DE SALUD PUBLICA"]
[null,null,"SECRETARIA_DE_ADMINISTRACION_Y_FINANZAS","DEPARTAMENTO DE SERVICIOS GENERALES","Recursos Humanos eficiente",null,null,null,null,null,null,null,null,null,null,"SECRETARIA_DE_SALUD","DIRECCION DE URGENCIAS MEDICAS"]
[null,null,"SECRETARIA_DE_ADMINISTRACION_Y_FINANZAS","DEPARTAMENTO DE SOPORTE Y MANTENIMIENTO","Sistema de control de servicios",null,null,null,null,null,null,null,null,null,null,"SECRETARIA_DE_SALUD","SUBDIRECCION DE ENSEÑANZA"]
[null,null,"SECRETARIA_DE_ADMINISTRACION_Y_FINANZAS","DEPARTAMENTO DE TALLER MUNICIPAL","Mantenimiento preventivo y correctivo del parque vehicular",null,null,null,null,null,null,null,null,null,null,"SECRETARIA_DE_SALUD","SUBDIRECCION DE SALUD ANIMAL"]
[null,null,"SECRETARIA_DE_ADMINISTRACION_Y_FINANZAS","DIRECCION DE CATASTRO","Tramites y Servicios",null,null,null,null,null,null,null,null,null,null,"SECRETARIA_DE_SEGURIDAD_Y_PROTECCION_CIUDADANA","DEPARTAMENTO DE AREA DE PREVENCION"]
[null,null,"SECRETARIA_DE_ADMINISTRACION_Y_FINANZAS","DIRECCION DE CONTABILIDAD Y GLOSA","Programa de elaboración y presentación de Cuentas Públicas",null,null,null,null,null,null,null,null,null,null,"SECRETARIA_DE_SEGURIDAD_Y_PROTECCION_CIUDADANA","DIRECCION ADMINISTRATIVA"]
[null,null,"SECRETARIA_DE_ADMINISTRACION_Y_FINANZAS","DIRECCION DE EGRESOS","Porcentaje De Presupuesto Ejercido De Acuerdo Con Criterios De Eficiencia, Austeridad Y Ahorro",null,null,null,null,null,null,null,null,null,null,"SECRETARIA_DE_SEGURIDAD_Y_PROTECCION_CIUDADANA","DIRECCION DE ATENCION A LA VIOLENCIA DE GENERO"]
[null,null,"SECRETARIA_DE_ADMINISTRACION_Y_FINANZAS","DIRECCION DE INGRESOS","Programa De Apoyo A Adultos Mayores",null,null,null,null,null,null,null,null,null,null,"SECRETARIA_DE_SEGURIDAD_Y_PROTECCION_CIUDADANA","DIRECCION DE BOMBEROS Y PROTECCION CIVIL"]
[null,null,"SECRETARIA_DE_ADMINISTRACION_Y_FINANZAS","DIRECCION DE INGRESOS","Programa de Convenios",null,null,null,null,null,null,null,null,null,null,"SECRETARIA_DE_SEGURIDAD_Y_PROTECCION_CIUDADANA","DIRECCION OPERATIVA"]
[null,null,"SECRETARIA_DE_ADMINISTRACION_Y_FINANZAS","DIRECCION DE INGRESOS","Programa Integral de Recaudación",null,null,null,null,null,null,null,null,null,null,"SECRETARIA_DE_SEGURIDAD_Y_PROTECCION_CIUDADANA","SUBDIRECCION DE GESTION GENERAL DEL RIESGO"]
[null,null,"SECRETARIA_DE_ADMINISTRACION_Y_FINANZAS","DIRECCION DE RECURSOS MATERIALES","Administración y control de los Recursos Materiales",null,null,null,null,null,null,null,null,null,null,"SECRETARIA_DE_SEGURIDAD_Y_PROTECCION_CIUDADANA","SUBDIRECCION DE PLANEACION ESTRATEGICA"]
[null,null,"SECRETARIA_DE_ADMINISTRACION_Y_FINANZAS","SUBDIRECCION DE COMPRAS Y ADQUISICIONES","Capacitación para Adquisiciones",null,null,null,null,null,null,null,null,null,null,"SECRETARIA_DE_SEGURIDAD_Y_PROTECCION_CIUDADANA","SUBDIRECCION DE PREVENCION AL DELITO"]
[null,null,"SECRETARIA_DE_ADMINISTRACION_Y_FINANZAS","SUBDIRECCION DE COMPRAS Y ADQUISICIONES","Licitaciones Ejecutadas",null,null,null,null,null,null,null,null,null,null,"SECRETARIA_DE_SEGURIDAD_Y_PROTECCION_CIUDADANA","SUBDIRECCION DE PROFESIONALIZACION Y ACREDITACION POLICIAL"]
[null,null,"SECRETARIA_DE_ADMINISTRACION_Y_FINANZAS","SUBDIRECCION DE CONTROL DE PAGOS","Optimizar el proceso de pagos",null,null,null,null,null,null,null,null,null,null,"SECRETARIA_DE_SEGURIDAD_Y_PROTECCION_CIUDADANA","SUBDIRECCION DE VIALIDAD"]
[null,null,"SECRETARIA_DE_ADMINISTRACION_Y_FINANZAS","SUBDIRECCION DE PATRIMONIO","Administración de Bienes Inmuebles",null,null,null,null,null,null,null,null,null,null,"SECRETARIA_DE_SEGURIDAD_Y_PROTECCION_CIUDADANA","SUBDIRECCION DE VINCULACION CIUDADANA"]
[null,null,"SECRETARIA_DE_BIENESTAR","DIRECCION DE EDUCACION","Abrigando Tu Bienestar",null,null,null,null,null,null,null,null,null,null,"SECRETARIA_DE_SEGURIDAD_Y_PROTECCION_CIUDADANA","SUBDIRECCION JURIDICA Y DE DERECHOS HUMANOS"]
[null,null,"SECRETARIA_DE_BIENESTAR","DIRECCION DE EDUCACION","Actividades Extraescolares",null,null,null,null,null,null,null,null,null,null,"SECRETARIA_DE_SEGURIDAD_Y_PROTECCION_CIUDADANA","SUBDIRECCION OPERATIVA"]
[null,null,"SECRETARIA_DE_BIENESTAR","DIRECCION DE EDUCACION","Cabildo Infantil Y Juvenil",null,null,null,null,null,null,null,null,null,null,"SECRETARIA_DE_SERVICIOS_PUBLICOS_Y_MEDIO_AMBIENTE","DEPARTAMENTO DE REGULACION AMBIENTAL"]
[null,null,"SECRETARIA_DE_BIENESTAR","DIRECCION DE EDUCACION","Educación Y Capacitación Para El Medio Ambiente",null,null,null,null,null,null,null,null,null,null,"SECRETARIA_DE_SERVICIOS_PUBLICOS_Y_MEDIO_AMBIENTE","DIRECCION DE AGUA POTABLE, DRENAJE Y ALCANTARILLADO"]
[null,null,"SECRETARIA_DE_BIENESTAR","DIRECCION DE EDUCACION","Feria de la oferta educativa media superior y superior",null,null,null,null,null,null,null,null,null,null,"SECRETARIA_DE_SERVICIOS_PUBLICOS_Y_MEDIO_AMBIENTE","DIRECCION DE ALUMBRADO PUBLICO"]
[null,null,"SECRETARIA_DE_BIENESTAR","DIRECCION DE PROGRAMAS SOCIALES PARA EL BIENESTAR","Aprendiendo con Bienestar",null,null,null,null,null,null,null,null,null,null,"SECRETARIA_DE_SERVICIOS_PUBLICOS_Y_MEDIO_AMBIENTE","DIRECCION DE ASEO PUBLICO"]
[null,null,"SECRETARIA_DE_BIENESTAR","DIRECCION DE PROGRAMAS SOCIALES PARA EL BIENESTAR","Bienestar Incluyente",null,null,null,null,null,null,null,null,null,null,"SECRETARIA_DE_SERVICIOS_PUBLICOS_Y_MEDIO_AMBIENTE","DIRECCION DE RASTRO"]
[null,null,"SECRETARIA_DE_BIENESTAR","DIRECCION DE PROGRAMAS SOCIALES PARA EL BIENESTAR","Líderes de Esperanza",null,null,null,null,null,null,null,null,null,null,"SECRETARIA_DE_SERVICIOS_PUBLICOS_Y_MEDIO_AMBIENTE","DIRECCION DE SALUD AMBIENTAL Y CAMBIO CLIMATICO MEDIO AMBIENTE"]
[null,null,"SECRETARIA_DE_BIENESTAR","DIRECCION DE PROGRAMAS SOCIALES PARA EL BIENESTAR","Raíces de Esperanza",null,null,null,null,null,null,null,null,null,null,"SECRETARIA_DE_SERVICIOS_PUBLICOS_Y_MEDIO_AMBIENTE","DIRECCION MEDIO AMBIENTE (DE SALUD AMBIENTAL Y CAMBIO CLIMATICO"]
[null,null,"SECRETARIA_DE_BIENESTAR","SUBDIRECCION DE DESARROLLO Y ATENCION AL SECTOR AGROPECUARIO","Conservación y mejoramiento de suelos agrícolas",null,null,null,null,null,null,null,null,null,null,"SECRETARIA_DE_SERVICIOS_PUBLICOS_Y_MEDIO_AMBIENTE","SUBDIRECCION DE SERVICIOS ECOSISTEMICOS Y GESTION DEL CAMBIO CLIMATICO DE\nPARQUES, JARDINES Y GESTIÓN\nDEL CAMBIO CLIMÁTICO"]
[null,null,"SECRETARIA_DE_BIENESTAR","SUBDIRECCION DE DESARROLLO Y ATENCION AL SECTOR AGROPECUARIO","Hidroponía",null,null,null,null,null,null,null,null,null,null,"SECRETARIA_DE_SERVICIOS_PUBLICOS_Y_MEDIO_AMBIENTE","SUBDIRECCION DE\nPARQUES, JARDINES Y GESTIÓN\nDEL CAMBIO CLIMÁTICO DE SERVICIOS ECOSISTEMICOS Y GESTION DEL CAMBIO CLIMATICO"]
[null,null,"SECRETARIA_DE_BIENESTAR","SUBDIRECCION DE DESARROLLO Y ATENCION AL SECTOR AGROPECUARIO","Pozos de absorción Tecnificados.",null,null,null,null,null,null,null,null,null,null,"SINDICATURA","DEPARTAMENTO DE CONTRATOS Y CONVENIOS"]
[null,null,"SECRETARIA_DE_BIENESTAR","SUBDIRECCION DE DESARROLLO Y ATENCION AL SECTOR AGROPECUARIO","Procesadora de composta orgánica.",null,null,null,null,null,null,null,null,null,null,"SINDICATURA","DEPARTAMENTO DE MEJORA REGULATORIA"]
[null,null,"SECRETARIA_DE_BIENESTAR","SUBDIRECCION DE DESARROLLO Y ATENCION AL SECTOR AGROPECUARIO","Rehabilitación Permanente De Caminos Rurales",null,null,null,null,null,null,null,null,null,null,"SINDICATURA","DIRECCION JURIDICA"]
[null,null,"SECRETARIA_DE_CONTRALORIA_MUNICIPAL_Y_COMBATE_A_LA_CORRUPCION","DIRECCION DE AUDITORIA A OBRA PUBLICA Y SERVICIOS","Análisis documental de expedientes de obras",null,null,null,null,null,null,null,null,null,null,"SINDICATURA","SINDICATURA"]
[null,null,"SECRETARIA_DE_CONTRALORIA_MUNICIPAL_Y_COMBATE_A_LA_CORRUPCION","DIRECCION DE AUDITORIA A OBRA PUBLICA Y SERVICIOS","Control documental de expedientes de obras"]
[null,null,"SECRETARIA_DE_CONTRALORIA_MUNICIPAL_Y_COMBATE_A_LA_CORRUPCION","DIRECCION DE AUDITORIA GUBERNAMENTAL Y COMBATE A LA CORRUPCION","Auditorías"]
[null,null,"SECRETARIA_DE_CONTRALORIA_MUNICIPAL_Y_COMBATE_A_LA_CORRUPCION","DIRECCION DE AUDITORIA GUBERNAMENTAL Y COMBATE A LA CORRUPCION","Visitas de Inspección"]
[null,null,"SECRETARIA_DE_CONTRALORIA_MUNICIPAL_Y_COMBATE_A_LA_CORRUPCION","DIRECCION DE RESPONSABILIDADES Y EVOLUCION PATRIMONIAL","Educación e Innovación Tecnológica"]
[null,null,"SECRETARIA_DE_CONTRALORIA_MUNICIPAL_Y_COMBATE_A_LA_CORRUPCION","SUBDIRECCION DE AUDITORIA FINANCIERA Y DE DESEMPEÑO","Auditorías"]
[null,null,"SECRETARIA_DE_CONTRALORIA_MUNICIPAL_Y_COMBATE_A_LA_CORRUPCION","SUBDIRECCION DE AUDITORIA FINANCIERA Y DE DESEMPEÑO","Procedimientos de aclaración derivados de entrega recepción"]
[null,null,"SECRETARIA_DE_CONTRALORIA_MUNICIPAL_Y_COMBATE_A_LA_CORRUPCION","SUBDIRECCION DE AUDITORIA FINANCIERA Y DE DESEMPEÑO","Visitas de Inspección"]
[null,null,"SECRETARIA_DE_FOMENTO_ECONOMICO_Y_CULTURAL","DIRECCIÓN DE CEMENTERIOS","Digitalización Administrativa"]
[null,null,"SECRETARIA_DE_FOMENTO_ECONOMICO_Y_CULTURAL","DIRECCION DE CULTURA","Amigos de Refugio"]
[null,null,"SECRETARIA_DE_FOMENTO_ECONOMICO_Y_CULTURAL","DIRECCION DE CULTURA","Cultura en tu colonia"]
[null,null,"SECRETARIA_DE_FOMENTO_ECONOMICO_Y_CULTURAL","DIRECCION DE CULTURA","Cultura Por La Paz"]
[null,null,"SECRETARIA_DE_FOMENTO_ECONOMICO_Y_CULTURAL","DIRECCION DE CULTURA","Ferias, Festivales Y Exposiciones"]
[null,null,"SECRETARIA_DE_FOMENTO_ECONOMICO_Y_CULTURAL","DIRECCION DE CULTURA","Formacion Continua"]
[null,null,"SECRETARIA_DE_FOMENTO_ECONOMICO_Y_CULTURAL","DIRECCION DE DESARROLLO ARTESANAL Y TURISTICO","Capacitación"]
[null,null,"SECRETARIA_DE_FOMENTO_ECONOMICO_Y_CULTURAL","DIRECCION DE DESARROLLO ARTESANAL Y TURISTICO","Festivales, Eventos, Ferías y Exposiciones"]
[null,null,"SECRETARIA_DE_FOMENTO_ECONOMICO_Y_CULTURAL","DIRECCION DE DESARROLLO ARTESANAL Y TURISTICO","Padrón Artesanal y Credencialización"]
[null,null,"SECRETARIA_DE_FOMENTO_ECONOMICO_Y_CULTURAL","DIRECCION DE DESARROLLO ARTESANAL Y TURISTICO","Permanencia Pueblo Mágico"]
[null,null,"SECRETARIA_DE_FOMENTO_ECONOMICO_Y_CULTURAL","DIRECCION DE DESARROLLO ARTESANAL Y TURISTICO","Rescatando nuestras Tradiciones"]
[null,null,"SECRETARIA_DE_FOMENTO_ECONOMICO_Y_CULTURAL","DIRECCION DE GESTION EMPRESARIAL E INDUSTRIAL","Capacitación Permanente Empresarial, Cooperativas bienes y/o Servicios y Talleres Autoempleo"]
[null,null,"SECRETARIA_DE_FOMENTO_ECONOMICO_Y_CULTURAL","DIRECCION DE GESTION EMPRESARIAL E INDUSTRIAL","Empleo a Tu Alcance"]
[null,null,"SECRETARIA_DE_FOMENTO_ECONOMICO_Y_CULTURAL","DIRECCION DE GESTION EMPRESARIAL E INDUSTRIAL","Expo Emprende y Transforma 2025"]
[null,null,"SECRETARIA_DE_FOMENTO_ECONOMICO_Y_CULTURAL","DIRECCION DE GESTION EMPRESARIAL E INDUSTRIAL","Mujeres Empresarias en Tlaquepaque"]
[null,null,"SECRETARIA_DE_FOMENTO_ECONOMICO_Y_CULTURAL","DIRECCION DE GESTION EMPRESARIAL E INDUSTRIAL","Vinculación directa con empresas"]
[null,null,"SECRETARIA_DE_FOMENTO_ECONOMICO_Y_CULTURAL","DIRECCION DEL CENTRO HISTORICO","Agenda del Espacio Público"]
[null,null,"SECRETARIA_DE_FOMENTO_ECONOMICO_Y_CULTURAL","DIRECCION DEL CENTRO HISTORICO","Mantenimiento y Conservación del Centro Histórico"]
[null,null,"SECRETARIA_DE_FOMENTO_ECONOMICO_Y_CULTURAL","SUBDIRECCION DE BIBLIOTECAS","Talleres De Fomento A Cultura"]
[null,null,"SECRETARIA_DE_FOMENTO_ECONOMICO_Y_CULTURAL","SUBDIRECCION DE MUSEOS","Exposiciones Temporales"]
[null,null,"SECRETARIA_DE_FOMENTO_ECONOMICO_Y_CULTURAL","SUBDIRECCION DE MUSEOS","Museo Itinerante"]
[null,null,"SECRETARIA_DE_FOMENTO_ECONOMICO_Y_CULTURAL","SUBDIRECCION DE MUSEOS","Museos a la Calle"]
[null,null,"SECRETARIA_DE_FOMENTO_ECONOMICO_Y_CULTURAL","SUBDIRECCION DE MUSEOS","Xvlvii Premio Nacional De La Cerámica"]
[null,null,"SECRETARIA_DE_GOBERNANZA_Y_TERRITORIO","DELEGACION SAN SEBASTIANITO","VISITAS A COLONIAS"]
[null,null,"SECRETARIA_DE_GOBERNANZA_Y_TERRITORIO","DEPARTAMENTO DE ASUNTOS RELIGIOSOS","Servicio de atención a las necesidades de las distintas asociaciones religiosas del municipio"]
[null,null,"SECRETARIA_DE_GOBERNANZA_Y_TERRITORIO","DEPARTAMENTO DE OFICINA DE PASAPORTES","Trámite de Pasaporte Mexicano en Oficinas de Enlace de Tlaquepaque"]
[null,null,"SECRETARIA_DE_GOBERNANZA_Y_TERRITORIO","DIRECCION DE ARCHIVO MUNICIPAL","Campaña de divulgación cultural histórica del Archivo Muicipal a escuelas de educación básica en Tlaquepaque"]
[null,null,"SECRETARIA_DE_GOBERNANZA_Y_TERRITORIO","DIRECCION DE ARCHIVO MUNICIPAL","Programa de capacitación para la clasificación, organización, transferencia, resguardo y consulta de información oficial"]
[null,null,"SECRETARIA_DE_GOBERNANZA_Y_TERRITORIO","DIRECCION DE ARCHIVO MUNICIPAL","Proyecto de digitalización para el Archivo Municipal"]
[null,null,"SECRETARIA_DE_GOBERNANZA_Y_TERRITORIO","DIRECCION DE DELEGACIONES Y AGENCIAS","Actividades Administrativas"]
[null,null,"SECRETARIA_DE_GOBERNANZA_Y_TERRITORIO","DIRECCION DE DELEGACIONES Y AGENCIAS","Atención a Solicitudes Ciudadanas"]
[null,null,"SECRETARIA_DE_GOBERNANZA_Y_TERRITORIO","DIRECCION DE DELEGACIONES Y AGENCIAS","Brigadas de Mantenimiento y Recuperación de Espacios Públicos"]
[null,null,"SECRETARIA_DE_GOBERNANZA_Y_TERRITORIO","DIRECCION DE DELEGACIONES Y AGENCIAS","Festividades Tradicionales Cívicas"]
[null,null,"SECRETARIA_DE_GOBERNANZA_Y_TERRITORIO","DIRECCION DE INSPECCION Y VIGILANCIA","Verificación De Giros Comerciales Rezagados En El Municipio De San Pedro Tlaquepaque"]
[null,null,"SECRETARIA_DE_GOBERNANZA_Y_TERRITORIO","DIRECCION DE PADRON Y LICENCIAS","Servicio eficaz de trámite de licencias municipal presencial y en línea"]
[null,null,"SECRETARIA_DE_GOBERNANZA_Y_TERRITORIO","DIRECCION DE PADRON Y LICENCIAS 1","Regularizacion de licencias en base a la ley de hacienda"]
[null,null,"SECRETARIA_DE_GOBERNANZA_Y_TERRITORIO","SUBDIRECCION DE ATENCION E INSPECCION A TIANGUIS Y ESPACIOS ABIERTOS","Actualizar los padrones de los comerciantes de tianguis"]
[null,null,"SECRETARIA_DE_GOBERNANZA_Y_TERRITORIO","SUBDIRECCION DE ATENCION E INSPECCION A TIANGUIS Y ESPACIOS ABIERTOS","Regularizar comercio en espacio abierto en la colonia San Martín de las Flores"]
[null,null,"SECRETARIA_DE_GOBERNANZA_Y_TERRITORIO","SUBDIRECCION DE ATENCION E INSPECCION DE MERCADOS","Recuperación de locales abandonados en merados municipales"]
[null,null,"SECRETARIA_DE_GOBERNANZA_Y_TERRITORIO","SUBDIRECCION DE INSPECCION AMBIENTAL","Verificación y regularización de residuos peligrosos y emisiones en talleres de laminado y pintura"]
[null,null,"SECRETARIA_DE_LA_CONSEJERIA_JURIDICA","DEPARTAMENTO DE RECLUTAMIENTO MILITAR","Cartillas Militares"]
[null,null,"SECRETARIA_DE_LA_CONSEJERIA_JURIDICA","DIRECCION DE APOYO A CABILDO","Apoyo Asuntos derivados por Secretaría"]
[null,null,"SECRETARIA_DE_LA_CONSEJERIA_JURIDICA","DIRECCION DE APOYO A CABILDO","Consolidar El Sistema De Información De Acuerdos Del Pleno"]
[null,null,"SECRETARIA_DE_LA_CONSEJERIA_JURIDICA","DIRECCION DE APOYO A CABILDO","Integración, Dictaminación de Iniciativas"]
[null,null,"SECRETARIA_DE_LA_CONSEJERIA_JURIDICA","DIRECCION DE APOYO A CABILDO","Participación En Sesiones Del Ayuntamiento"]
[null,null,"SECRETARIA_DE_LA_CONSEJERIA_JURIDICA","DIRECCION DE APOYO A CABILDO","Sitio Web de Actas y Acuerdos"]
[null,null,"SECRETARIA_DE_LA_CONSEJERIA_JURIDICA","DIRECCION DE DERECHOS HUMANOS","Atención a los grupos vulnerables."]
[null,null,"SECRETARIA_DE_LA_CONSEJERIA_JURIDICA","DIRECCION DE MEDIACION Y JUZGADOS CIVICOS MUNICIPALES","Atención y desahogo de los MASC"]
[null,null,"SECRETARIA_DE_LA_CONSEJERIA_JURIDICA","DIRECCION DE MEDIACION Y JUZGADOS CIVICOS MUNICIPALES","Calificación de Actas de Infracción"]
[null,null,"SECRETARIA_DE_LA_CONSEJERIA_JURIDICA","DIRECCION DE MEDIACION Y JUZGADOS CIVICOS MUNICIPALES","Difusión de la Cultura de Paz en conflictos comunitarios"]
[null,null,"SECRETARIA_DE_LA_CONSEJERIA_JURIDICA","DIRECCION DE MEDIACION Y JUZGADOS CIVICOS MUNICIPALES","La Mediación Con Rumbo A Tu Colonia"]
[null,null,"SECRETARIA_DE_LA_CONSEJERIA_JURIDICA","DIRECCION DE MEDIACION Y JUZGADOS CIVICOS MUNICIPALES","Orientación y Asesoría Jurídica"]
[null,null,"SECRETARIA_DE_LA_CONSEJERIA_JURIDICA","DIRECCION DE MEDIACION Y JUZGADOS CIVICOS MUNICIPALES","Servicio de trabajo social y psicología a Juzgados Cívicos Municipales"]
[null,null,"SECRETARIA_DE_LA_CONSEJERIA_JURIDICA","DIRECCION DE REGISTRO CIVIL","Celebración de Matrimonios en Lugares emblemáticos"]
[null,null,"SECRETARIA_DE_LA_CONSEJERIA_JURIDICA","DIRECCION LEGAL-CONSULTIVA","Consultas Y Asesoría Jurídica"]
[null,null,"SECRETARIA_DE_LA_CONSEJERIA_JURIDICA","DIRECCION LEGAL-CONSULTIVA","Opiniones Jurídicas"]
[null,null,"SECRETARIA_DE_LA_CONSEJERIA_JURIDICA","OFICINA DEL REGISTRO CIVIL NO. 1","Campaña de Integración Familiar 2025"]
[null,null,"SECRETARIA_DE_LA_CONSEJERIA_JURIDICA","SECRETARIA DE LA CONSEJERIA JURIDICA","Atención Y Orientación Jurídica A La Ciudadanía"]
[null,null,"SECRETARIA_DE_LA_CONSEJERIA_JURIDICA","SECRETARIA DE LA CONSEJERIA JURIDICA","Capacitación Jurídica Al Gobierno Municipal"]
[null,null,"SECRETARIA_DE_LA_CONSEJERIA_JURIDICA","SECRETARIA DE LA CONSEJERIA JURIDICA","Participación Comisiones, Comités Y Grupos De Trabajo"]
[null,null,"SECRETARIA_DE_LA_CONSEJERIA_JURIDICA","SECRETARIA DE LA CONSEJERIA JURIDICA","Revisión Documentos Para Firma Presidenta"]
[null,null,"SECRETARIA_DE_OBRAS_PUBLICAS","DIRECCION DE CONSTRUCCION Y MANTENIMIENTO","Programa De Urbanización"]
[null,null,"SECRETARIA_DE_OBRAS_PUBLICAS","DIRECCION DE PRESUPUESTOS Y CONTRATACION DE OBRA PUBLICA","Programa Fortalecimiento institucional financiero y operativo, para la provisión de los servicios públicos municipales bajo criterios de calidad, eficiencia y oportunidad."]
[null,null,"SECRETARIA_DE_OBRAS_PUBLICAS","DIRECCION DE PRESUPUESTOS Y CONTRATACION DE OBRA PUBLICA","Programa para la gestión sustentable de la infraestructura básica."]
[null,null,"SECRETARIA_DE_OBRAS_PUBLICAS","DIRECCION DE PRESUPUESTOS Y CONTRATACION DE OBRA PUBLICA","Programa para la gestión sustentable de la infraestructura y movilidad segura."]
[null,null,"SECRETARIA_DE_OBRAS_PUBLICAS","DIRECCION DE PRESUPUESTOS Y CONTRATACION DE OBRA PUBLICA","Programa para la recuperación del espacio público y regeneración del tejido social"]
[null,null,"SECRETARIA_DE_OBRAS_PUBLICAS","SUBDIRECCION DE INSPECCION DE CONTROL DE LA EDIFICACION Y ORDENAMIENTO TERRITORIAL","Programa de Inspección y Vigilancia de Tramites y Licencias de Construcción."]
[null,null,"SECRETARIA_DE_OBRAS_PUBLICAS","SUBDIRECCION DE INSPECCION DE CONTROL DE LA EDIFICACION Y ORDENAMIENTO TERRITORIAL","Trámites y Servicios"]
[null,null,"SECRETARIA_DE_OBRAS_PUBLICAS","SUBDIRECCION DE MANTENIMIENTO","Intervenciones Al Entorno Urbano"]
[null,null,"SECRETARIA_DE_OBRAS_PUBLICAS","SUBDIRECCION DE MANTENIMIENTO","Mantenimiento a Edificios y Espacios Públicos"]
[null,null,"SECRETARIA_DE_OBRAS_PUBLICAS","SUBDIRECCION DE MANTENIMIENTO","Mantenimiento A Escuelas"]
[null,null,"SECRETARIA_DE_OBRAS_PUBLICAS","SUBDIRECCION DE MANTENIMIENTO","Programa Permanente De Mantenimiento De Vialidades"]
[null,null,"SECRETARIA_DE_OBRAS_PUBLICAS","SUBDIRECCION DE MANTENIMIENTO","Señalización Horizontal y Vertical"]
[null,null,"SECRETARIA_DE_PLANIFICACION_ANALISIS_Y_GESTION_URBANA","DEPARTAMENTO DE EVALUACION DE PROYECTOS Y PROGRAMAS","Dictamen de evaluación de solicitud de obras"]
[null,null,"SECRETARIA_DE_PLANIFICACION_ANALISIS_Y_GESTION_URBANA","DEPARTAMENTO DE GESTION TERRITORIAL SUELO Y VIVIENDA","Mejoramiento de la atencion al publico asi como fiscalización de la Auditoria Superior del Estado"]
[null,null,"SECRETARIA_DE_PLANIFICACION_ANALISIS_Y_GESTION_URBANA","DEPARTAMENTO DE INDICADORES Y METAS PARA RESULTADOS","Servicio de Acompañamiento para la gestión del sistema de Planeación Municipal"]
[null,null,"SECRETARIA_DE_PLANIFICACION_ANALISIS_Y_GESTION_URBANA","DEPARTAMENTO DE PLANEACION URBANA","Planes parciales y reglamentos municipales actualizados"]
[null,null,"SECRETARIA_DE_PLANIFICACION_ANALISIS_Y_GESTION_URBANA","DEPARTAMENTO DEL SISTEMA DE EVALUACION DEL DESEMPEÑO","Seguimiento y Evaluación a la Administración Pública Municipal"]
[null,null,"SECRETARIA_DE_PLANIFICACION_ANALISIS_Y_GESTION_URBANA","DEPARTAMENTO DEL SISTEMA DE EVALUACION DEL DESEMPEÑO","Seguimiento y Evaluación a los Programas Sociales"]
[null,null,"SECRETARIA_DE_PLANIFICACION_ANALISIS_Y_GESTION_URBANA","DIRECCION DE GESTION DEL DESEMPEÑO, EVALUACION DE RESULTADOS Y TABLERO DE CONTROL","Coordinación de actividades de los departamentos de la Dirección de Desempeño, Resultados y Tablero de Control"]
[null,null,"SECRETARIA_DE_PLANIFICACION_ANALISIS_Y_GESTION_URBANA","DIRECCION DE GESTION DEL DESEMPEÑO, EVALUACION DE RESULTADOS Y TABLERO DE CONTROL","Gestión para el sistema integral para la planeación y evaluación de la auditoria publica municipal"]
[null,null,"SECRETARIA_DE_PLANIFICACION_ANALISIS_Y_GESTION_URBANA","DIRECCION DE GESTION DEL DESEMPEÑO, EVALUACION DE RESULTADOS Y TABLERO DE CONTROL","Seguimiento y Evaluación a los Fondos de Origen Federal"]
[null,null,"SECRETARIA_DE_PLANIFICACION_ANALISIS_Y_GESTION_URBANA","DIRECCION DE GESTION TERRITORIAL Y PLANEACION URBANA","Regularización de predios efectiva"]
[null,null,"SECRETARIA_DE_PLANIFICACION_ANALISIS_Y_GESTION_URBANA","DIRECCION DEL BANCO INTEGRADO DE PROYECTOS Y PROGRAMAS","Banco integrado de proyectos y programas"]
[null,null,"SECRETARIA_DE_PLANIFICACION_ANALISIS_Y_GESTION_URBANA","DIRECCION DEL BANCO INTEGRADO DE PROYECTOS Y PROGRAMAS","Seguimiento de Mesas de gestión Metropolitana ante el IMEPLAN"]
[null,null,"SECRETARIA_DE_PLANIFICACION_ANALISIS_Y_GESTION_URBANA","SECRETARIA DE PLANIFICACION, ANALISIS Y GESTION URBANA","Coordinación de actividades de las direcciones que integran la Secretaría de Planificación, Análisis y Gestión Urbana"]
[null,null,"SECRETARIA_DE_SALUD","DEPARTAMENTO DE TRABAJO SOCIAL","Vinculación De Asistencia Social"]
[null,null,"SECRETARIA_DE_SALUD","DIRECCION DE SALUD PUBLICA","Ferias de la Salud Tlaquepaque"]
[null,null,"SECRETARIA_DE_SALUD","DIRECCION DE URGENCIAS MEDICAS","Atención Urgente En Sala De Choque"]
[null,null,"SECRETARIA_DE_SALUD","SUBDIRECCION DE ENSEÑANZA","Enseñanza Continua"]
[null,null,"SECRETARIA_DE_SALUD","SUBDIRECCION DE SALUD ANIMAL","Campañas de esterilización y vacunación antirrábica gratuitas"]
[null,null,"SECRETARIA_DE_SEGURIDAD_Y_PROTECCION_CIUDADANA","DEPARTAMENTO DE AREA DE PREVENCION","Programa permanente de prevención de riesgos mediante la capacitación a la población en general"]
[null,null,"SECRETARIA_DE_SEGURIDAD_Y_PROTECCION_CIUDADANA","DIRECCION ADMINISTRATIVA","Programa permanente de seguimiento para la administración eficiente de los recursos humanos y materiales de la Secretaría"]
[null,null,"SECRETARIA_DE_SEGURIDAD_Y_PROTECCION_CIUDADANA","DIRECCION DE ATENCION A LA VIOLENCIA DE GENERO","Atención a las violencias en el ámbito familiar y seguimiento a Medidas/Ordenes de Protección emitidas en razón de Género."]
[null,null,"SECRETARIA_DE_SEGURIDAD_Y_PROTECCION_CIUDADANA","DIRECCION DE ATENCION A LA VIOLENCIA DE GENERO","Prevención Comunitaria de las Violencias en el ámbito familiar y por razón de género."]
[null,null,"SECRETARIA_DE_SEGURIDAD_Y_PROTECCION_CIUDADANA","DIRECCION DE BOMBEROS Y PROTECCION CIVIL","Programa De Actualización Del Atlas Municipal De Riesgos De San Pedro Tlaquepaque"]
[null,null,"SECRETARIA_DE_SEGURIDAD_Y_PROTECCION_CIUDADANA","DIRECCION DE BOMBEROS Y PROTECCION CIVIL","Programa de profesionalización, actualización, especializada y salud integral para el personal de la Dirección de Bomberos y Protección Civil"]
[null,null,"SECRETARIA_DE_SEGURIDAD_Y_PROTECCION_CIUDADANA","DIRECCION DE BOMBEROS Y PROTECCION CIVIL","Programa del consejo municipal de Protección Civil de San Pedro Tlaquepaque"]
[null,null,"SECRETARIA_DE_SEGURIDAD_Y_PROTECCION_CIUDADANA","DIRECCION OPERATIVA","Certificación De Personal Y Oficiales Caninos K-9"]
[null,null,"SECRETARIA_DE_SEGURIDAD_Y_PROTECCION_CIUDADANA","DIRECCION OPERATIVA","Unidad de Proximidad Policial"]
[null,null,"SECRETARIA_DE_SEGURIDAD_Y_PROTECCION_CIUDADANA","SUBDIRECCION DE GESTION GENERAL DEL RIESGO","Programa de evaluación y dictaminación de riesgos hidrometeorológicos"]
[null,null,"SECRETARIA_DE_SEGURIDAD_Y_PROTECCION_CIUDADANA","SUBDIRECCION DE GESTION GENERAL DEL RIESGO","Programa de Gestión Integral del Riesgo mediante visitas de inspección a inmuebles"]
[null,null,"SECRETARIA_DE_SEGURIDAD_Y_PROTECCION_CIUDADANA","SUBDIRECCION DE GESTION GENERAL DEL RIESGO","Programa permanente de auxilio a la población para casos de emergencia y/o desastres en San Pedro Tlaquepaque"]
[null,null,"SECRETARIA_DE_SEGURIDAD_Y_PROTECCION_CIUDADANA","SUBDIRECCION DE PLANEACION ESTRATEGICA","Actualización de Requisitos de Permanencia"]
[null,null,"SECRETARIA_DE_SEGURIDAD_Y_PROTECCION_CIUDADANA","SUBDIRECCION DE PLANEACION ESTRATEGICA","Coordinación de la Política Transversal de Reconstrucción del Tejido Social"]
[null,null,"SECRETARIA_DE_SEGURIDAD_Y_PROTECCION_CIUDADANA","SUBDIRECCION DE PLANEACION ESTRATEGICA","Credencialización de Personal Operativo"]
[null,null,"SECRETARIA_DE_SEGURIDAD_Y_PROTECCION_CIUDADANA","SUBDIRECCION DE PLANEACION ESTRATEGICA","Elaboración de documentos y/o diagnósticos basados en evidencias"]
[null,null,"SECRETARIA_DE_SEGURIDAD_Y_PROTECCION_CIUDADANA","SUBDIRECCION DE PLANEACION ESTRATEGICA","Mantenimiento Preventivo de Armas"]
[null,null,"SECRETARIA_DE_SEGURIDAD_Y_PROTECCION_CIUDADANA","SUBDIRECCION DE PLANEACION ESTRATEGICA","Sendero Seguro"]
[null,null,"SECRETARIA_DE_SEGURIDAD_Y_PROTECCION_CIUDADANA","SUBDIRECCION DE PREVENCION AL DELITO","Asipt"]
[null,null,"SECRETARIA_DE_SEGURIDAD_Y_PROTECCION_CIUDADANA","SUBDIRECCION DE PREVENCION AL DELITO","Cascareando Por La Prevención"]
[null,null,"SECRETARIA_DE_SEGURIDAD_Y_PROTECCION_CIUDADANA","SUBDIRECCION DE PREVENCION AL DELITO","Centro De Atención A Niños, Niñas Y Adolescentes De Tlaquepaque"]
[null,null,"SECRETARIA_DE_SEGURIDAD_Y_PROTECCION_CIUDADANA","SUBDIRECCION DE PREVENCION AL DELITO","Gabinete Psicológico"]
[null,null,"SECRETARIA_DE_SEGURIDAD_Y_PROTECCION_CIUDADANA","SUBDIRECCION DE PREVENCION AL DELITO","Programas Preventivos"]
[null,null,"SECRETARIA_DE_SEGURIDAD_Y_PROTECCION_CIUDADANA","SUBDIRECCION DE PREVENCION AL DELITO","Trotando Ando Por La Vida Y La Familia"]
[null,null,"SECRETARIA_DE_SEGURIDAD_Y_PROTECCION_CIUDADANA","SUBDIRECCION DE PROFESIONALIZACION Y ACREDITACION POLICIAL","Convocatoria para Selección de Personal Operativo"]
[null,null,"SECRETARIA_DE_SEGURIDAD_Y_PROTECCION_CIUDADANA","SUBDIRECCION DE PROFESIONALIZACION Y ACREDITACION POLICIAL","Formación Inicial Policía de Proximidad"]
[null,null,"SECRETARIA_DE_SEGURIDAD_Y_PROTECCION_CIUDADANA","SUBDIRECCION DE PROFESIONALIZACION Y ACREDITACION POLICIAL","Profesionalización Continua"]
[null,null,"SECRETARIA_DE_SEGURIDAD_Y_PROTECCION_CIUDADANA","SUBDIRECCION DE PROFESIONALIZACION Y ACREDITACION POLICIAL","Selección Y Reclutamiento Para Plazas Operativas"]
[null,null,"SECRETARIA_DE_SEGURIDAD_Y_PROTECCION_CIUDADANA","SUBDIRECCION DE VIALIDAD","Programa Volanta"]
[null,null,"SECRETARIA_DE_SEGURIDAD_Y_PROTECCION_CIUDADANA","SUBDIRECCION DE VINCULACION CIUDADANA","Programa De Participación Ciudadana (Línea Segura)"]
[null,null,"SECRETARIA_DE_SEGURIDAD_Y_PROTECCION_CIUDADANA","SUBDIRECCION JURIDICA Y DE DERECHOS HUMANOS","Evaluaciones De Control De Confianza"]
[null,null,"SECRETARIA_DE_SEGURIDAD_Y_PROTECCION_CIUDADANA","SUBDIRECCION OPERATIVA","Programa permanente de operativos de prevención de accidentes"]
[null,null,"SECRETARIA_DE_SERVICIOS_PUBLICOS_Y_MEDIO_AMBIENTE","DEPARTAMENTO DE REGULACION AMBIENTAL","Creadores De Esperanza Para El Medio Ambiente"]
[null,null,"SECRETARIA_DE_SERVICIOS_PUBLICOS_Y_MEDIO_AMBIENTE","DEPARTAMENTO DE REGULACION AMBIENTAL","Gobierno Con Buen Papel"]
[null,null,"SECRETARIA_DE_SERVICIOS_PUBLICOS_Y_MEDIO_AMBIENTE","DEPARTAMENTO DE REGULACION AMBIENTAL","Sembrando Esperanza"]
[null,null,"SECRETARIA_DE_SERVICIOS_PUBLICOS_Y_MEDIO_AMBIENTE","DIRECCION DE AGUA POTABLE, DRENAJE Y ALCANTARILLADO","Actualización de Datos de Redes Hidrosanitarias"]
[null,null,"SECRETARIA_DE_SERVICIOS_PUBLICOS_Y_MEDIO_AMBIENTE","DIRECCION DE AGUA POTABLE, DRENAJE Y ALCANTARILLADO","Entrega del Vital Líquido"]
[null,null,"SECRETARIA_DE_SERVICIOS_PUBLICOS_Y_MEDIO_AMBIENTE","DIRECCION DE AGUA POTABLE, DRENAJE Y ALCANTARILLADO","Estudio de Factibiloidades de Redes Hidrosanitarias"]
[null,null,"SECRETARIA_DE_SERVICIOS_PUBLICOS_Y_MEDIO_AMBIENTE","DIRECCION DE AGUA POTABLE, DRENAJE Y ALCANTARILLADO","Gestión Y Puesta En Marcha Del Laboratorio De Análisis De Agua Potable"]
[null,null,"SECRETARIA_DE_SERVICIOS_PUBLICOS_Y_MEDIO_AMBIENTE","DIRECCION DE AGUA POTABLE, DRENAJE Y ALCANTARILLADO","Padrón Único de Usuarios"]
[null,null,"SECRETARIA_DE_SERVICIOS_PUBLICOS_Y_MEDIO_AMBIENTE","DIRECCION DE AGUA POTABLE, DRENAJE Y ALCANTARILLADO","Recepción, Distribución, Dosificación, Monitoreo de cloro residual de Agua Potable"]
[null,null,"SECRETARIA_DE_SERVICIOS_PUBLICOS_Y_MEDIO_AMBIENTE","DIRECCION DE AGUA POTABLE, DRENAJE Y ALCANTARILLADO","Servicio Medido"]
[null,null,"SECRETARIA_DE_SERVICIOS_PUBLICOS_Y_MEDIO_AMBIENTE","DIRECCION DE AGUA POTABLE, DRENAJE Y ALCANTARILLADO","Trabajos emergentes de redes hidrosanitarias"]
[null,null,"SECRETARIA_DE_SERVICIOS_PUBLICOS_Y_MEDIO_AMBIENTE","DIRECCION DE ALUMBRADO PUBLICO","Mantenimiento y reparación de luminarias a la red de alumbrado publico."]
[null,null,"SECRETARIA_DE_SERVICIOS_PUBLICOS_Y_MEDIO_AMBIENTE","DIRECCION DE ALUMBRADO PUBLICO","Sustitución de luminarias a la red de alumbrado publico."]
[null,null,"SECRETARIA_DE_SERVICIOS_PUBLICOS_Y_MEDIO_AMBIENTE","DIRECCION DE ASEO PUBLICO","Fortalecimiento y adiestramiento al personal operativo"]
[null,null,"SECRETARIA_DE_SERVICIOS_PUBLICOS_Y_MEDIO_AMBIENTE","DIRECCION DE ASEO PUBLICO","Plataforma de Atención Ciudadana (Reportes)"]
[null,null,"SECRETARIA_DE_SERVICIOS_PUBLICOS_Y_MEDIO_AMBIENTE","DIRECCION DE ASEO PUBLICO","Programa De Operativos De Limpieza"]
[null,null,"SECRETARIA_DE_SERVICIOS_PUBLICOS_Y_MEDIO_AMBIENTE","DIRECCION DE ASEO PUBLICO","Servicio de fumigación para prevención del dengue y otras plagas"]
[null,null,"SECRETARIA_DE_SERVICIOS_PUBLICOS_Y_MEDIO_AMBIENTE","DIRECCION DE ASEO PUBLICO","Servicio de recolección de residuos urbanos"]
[null,null,"SECRETARIA_DE_SERVICIOS_PUBLICOS_Y_MEDIO_AMBIENTE","DIRECCION DE RASTRO","Capacitación Continua"]
[null,null,"SECRETARIA_DE_SERVICIOS_PUBLICOS_Y_MEDIO_AMBIENTE","DIRECCION DE RASTRO","Inspección Cárnica"]
[null,null,"SECRETARIA_DE_SERVICIOS_PUBLICOS_Y_MEDIO_AMBIENTE","DIRECCION DE RASTRO","Participación en campañas"]
[null,null,"SECRETARIA_DE_SERVICIOS_PUBLICOS_Y_MEDIO_AMBIENTE","DIRECCION DE SALUD AMBIENTAL Y CAMBIO CLIMATICO MEDIO AMBIENTE","Denuncia Ambiental Ciudadana"]
[null,null,"SECRETARIA_DE_SERVICIOS_PUBLICOS_Y_MEDIO_AMBIENTE","DIRECCION DE SALUD AMBIENTAL Y CAMBIO CLIMATICO MEDIO AMBIENTE","Registro De Fuentes Fijas Municipales"]
[null,null,"SECRETARIA_DE_SERVICIOS_PUBLICOS_Y_MEDIO_AMBIENTE","DIRECCION DE SALUD AMBIENTAL Y CAMBIO CLIMATICO MEDIO AMBIENTE","Retiro de bienes en estado de abandono en la vía pública"]
[null,null,"SECRETARIA_DE_SERVICIOS_PUBLICOS_Y_MEDIO_AMBIENTE","DIRECCION DE SALUD AMBIENTAL Y CAMBIO CLIMATICO MEDIO AMBIENTE","Servicio de dictaminación ambiental"]
[null,null,"SECRETARIA_DE_SERVICIOS_PUBLICOS_Y_MEDIO_AMBIENTE","DIRECCION MEDIO AMBIENTE (DE SALUD AMBIENTAL Y CAMBIO CLIMATICO","Registro de ladrilleros"]
[null,null,"SECRETARIA_DE_SERVICIOS_PUBLICOS_Y_MEDIO_AMBIENTE","SUBDIRECCION DE SERVICIOS ECOSISTEMICOS Y GESTION DEL CAMBIO CLIMATICO DE\nPARQUES, JARDINES Y GESTIÓN\nDEL CAMBIO CLIMÁTICO","Adopta un árbol y dale vida al planeta"]
[null,null,"SECRETARIA_DE_SERVICIOS_PUBLICOS_Y_MEDIO_AMBIENTE","SUBDIRECCION DE SERVICIOS ECOSISTEMICOS Y GESTION DEL CAMBIO CLIMATICO DE\nPARQUES, JARDINES Y GESTIÓN\nDEL CAMBIO CLIMÁTICO","Operativo De Podas Preventivas"]
[null,null,"SECRETARIA_DE_SERVICIOS_PUBLICOS_Y_MEDIO_AMBIENTE","SUBDIRECCION DE SERVICIOS ECOSISTEMICOS Y GESTION DEL CAMBIO CLIMATICO DE\nPARQUES, JARDINES Y GESTIÓN\nDEL CAMBIO CLIMÁTICO","Operativo de Reforestación"]
[null,null,"SECRETARIA_DE_SERVICIOS_PUBLICOS_Y_MEDIO_AMBIENTE","SUBDIRECCION DE SERVICIOS ECOSISTEMICOS Y GESTION DEL CAMBIO CLIMATICO DE\nPARQUES, JARDINES Y GESTIÓN\nDEL CAMBIO CLIMÁTICO","Operativos de derribos secos"]
[null,null,"SECRETARIA_DE_SERVICIOS_PUBLICOS_Y_MEDIO_AMBIENTE","SUBDIRECCION DE SERVICIOS ECOSISTEMICOS Y GESTION DEL CAMBIO CLIMATICO DE\nPARQUES, JARDINES Y GESTIÓN\nDEL CAMBIO CLIMÁTICO","Trituración de material orgánico para la elaboración de composta"]
[null,null,"SECRETARIA_DE_SERVICIOS_PUBLICOS_Y_MEDIO_AMBIENTE","SUBDIRECCION DE\nPARQUES, JARDINES Y GESTIÓN\nDEL CAMBIO CLIMÁTICO DE SERVICIOS ECOSISTEMICOS Y GESTION DEL CAMBIO CLIMATICO","Operativo Mantenimiento De Áreas Verdes"]
[null,null,"SINDICATURA","DEPARTAMENTO DE CONTRATOS Y CONVENIOS","Servicio de Revisión Contratos"]
[null,null,"SINDICATURA","DEPARTAMENTO DE MEJORA REGULATORIA","Catálogo Municipal de Trámites y Servicios"]
[null,null,"SINDICATURA","DIRECCION JURIDICA","Servicios de asesoramiento legal y jurídico a la población que presenta vulnerabilidad legal e indefensión de su patrimonio"]
[null,null,"SINDICATURA","SINDICATURA","Actualización de los instrumentos de control de Archivo de Tramite de la Sindicatura"]
[null,null,"SINDICATURA","SINDICATURA","Presentación de Iniciativas de modificación de normatividad"]